Workbook

Sheet Standard Equipment Workbook
B2: Standard Equipment
B3: New Buildings l Incentive Application l Form 520S
B7: For Program Use Only | I7: OM: | M7: Project ID: | T7: PT ID: | AD7: v2025.1
B8: CLEAResult is a Program Management Contractor (PMC) for Energy Trust of Oregon, Inc.
B10: OVERVIEW AND ELIGIBILITY
B11: A signed copy of the Form 510A: Project Enrollment Application must accompany or precede this Incentive Application, and only those projects approved for enrollment by the New Buildings program (Program) can apply for incentive funding. This Incentive Application must be submitted to the Program along with all required documentation. Any equipment which, either separately or as part of a project, has or will receive an incentive from any other Energy Trust offering is ineligible.
B12: STEPS TO PARTICIPATE
B14: 1. | C14: Successfully enroll your project as described in the Project Enrollment Application.
D15: » Electric customers of Portland General Electric or Pacific Power can apply for incentives for qualifying electric equipment, and natural gas customers (on qualifying rate schedules) of NW Natural, Cascade Natural Gas or Avista can apply for incentives for qualifying natural gas equipment.
B16: 2. | C16: Complete this Incentive Application and submit it to the Program, along with:
D17: » Product data sheets or other documentation demonstrating equipment compliance
B18: 3. | C18: Following its review of the application, Energy Trust will notify Project Owner via email of its decision. If the application is approved for an incentive reservation, you will receive a written notice. The incentive reservation notice will inform Project Owner of the estimated incentive and incentive reservation period (i.e. the deadline to install the measures and submit all required completion documentation).
B19: 4. | C19: Install the energy efficient equipment.
B20: 5. | C20: To request payment, submit the following to the Program, before the established incentive reservation deadline, for verification:
D21: » Complete, signed Form 540PR: Payment Request » Revised version of this Incentive Application, required if installed measures differ from initial submittal » Product data sheets or other documentation demonstrating equipment compliance » Payment documentation (suppliers or contractors can send copies of the invoices directly to the Program) » Project Owner's current W-9 (if not previously submitted)
C22: If Project Owner applies for additional installed incentives using other Energy Trust tools, workbooks, or forms, the Program will combine all approved installed incentives into one payment and only one signed Payment Request is required.
B23: 6. | C23: A site verification visit may be required by the Program prior to final payment.
B24: INCENTIVE CALCULATION
B25: Based on the equipment you have selected in this workbook, your incentive is estimated at: | AA25: ='Equipment Options'!J226 -> 0
B26: No incentives are reserved unless an incentive reservation is issued in response to this application. Reserved amounts are estimates only and the final amount may vary depending on upon actual qualifying equipment installed and operating as verified by the Program. Incentives are subject to Program per-project installation incentive caps.
B28: PROJECT INFORMATION
B29: Project Owner Name | V29: Company
B30: Building/Project Name | V30: Project ID (if known)
B31: Permit Date | V31: Construction Completion Date
B33: Electric Utility: | G33: Select Electric Utility | S33: Gas Utility: | AB33: Select Gas Utility
B34: Heating Fuel: | G34: Select Type | S34: Domestic Hot Water (DHW) Fuel: | AB34: Select Type
B35: Building Type: | G35: Select Building Type | S35: Building Code Year: | AB35: Select Code Year
B37: SUBMITTAL
B38: By signing (including typing or printing) my name below, I represent to Energy Trust that (i) I have completed this application completely, truthfully and accurately to the best of my knowledge, (ii) I have read, understand and agree that the terms and conditions contained in this Incentive Application are in addition to, and governed by, Project Owner’s Project Enrollment Application agreement with Energy Trust for the identified project; (iii) I am authorized to enter into this agreement on behalf of the named Project Owner; and (iv) all of the information in the submitted Project Enrollment Application agreement remains true and correct as of the date of this submission. Submitted By: (Must be an authorized representative of Project Owner)
B41: Type or Print Name Here | S41: Title | AB41: Date
B43: Firm name | W43: Phone | AC43: Email

Sheet Equipment Options
B1: =_xlfn.CONCAT("Project ID: ",ProjectID) -> Project ID: | D1: =IFERROR( _xlfn.IFS( AND(OR(SelectedElectric="Pacific Power",SelectedElectric="Portland General Electric"),NOT(SelectedGas="None"),NOT(SelectedGas="Select Gas Utility")),"Full Territory", AND(OR(SelectedElectric="Pacific Power",SelectedElectric="Portland General Electric"),OR(SelectedGas="None",SelectedGas="Select Gas Utility")),"Electric Only", AND(OR(SelectedElectric="Other",SelectedElectric="Select Electric Utility"),NOT(SelectedGas="None"),NOT(SelectedGas="Select Gas Utility")),"Gas Only" ),"No Utilities Selected") -> No Utilities Selected | F1: =_xlfn.CONCAT("Electric Utility: ", SelectedElectric) -> Electric Utility: Select Electric Utility | I1: =_xlfn.CONCAT("Heating: ", SelectedHeat) -> Heating: Select Type
B2: =_xlfn.CONCAT("Building Type: ", SelectedBldgType) -> Building Type: Select Building Type | F2: =_xlfn.CONCAT("Gas Utility: ", SelectedGas) -> Gas Utility: Select Gas Utility | I2: =_xlfn.CONCAT("DHW: ", SelectedDHW) -> DHW: Select Type
B4: Equipment | C4: Requirements | D4: Specification | E4: Participating Utility | F4: Installation Setting | G4: Incentive Basis | H4: Incentive | I4: Quantity | J4: Total Incentive | K4: Model Number | L4: MAD ID | M4: Product Code
B6: Multifamily Only Options
B7: Bath Fan - Continuous single speed | C7: • ENERGY STAR® Continuous Operating Bath Fans • Single speed fans ≤50 cfm exhaust rate | D7: <10 cfm/W | E7: Electric | F7: Multifamily | G7: each | H7: 15 | I7: 0 | J7: =SUM(H7*I7) -> 0 | L7: 269 | M7: BFSS5
D8: >=10 cfm/W, <15 cfm/W | E8: Electric | F8: Multifamily | G8: each | H8: 25 | I8: 0 | J8: =SUM(H8*I8) -> 0 | L8: 269 | M8: BFSS10
D9: >=15 cfm/W | E9: Electric | F9: Multifamily | G9: each | H9: 30 | I9: 0 | J9: 0 | L9: 269 | M9: BFSS15
B10: Bath Fan - Continuous two-speed, less than 90 cfm | C10: • ENERGY STAR® Continuous Operating Bath Fans • Two-speed fans: ≤50 cfm unoccupied exhaust rate, AND ≤200 cfm occupied exhaust rate | D10: <90 cfm, >=5 cfm/W, <10 cfm/W | E10: Electric | F10: Multifamily | G10: each | H10: 15 | I10: 0 | J10: 0 | L10: 269 | M10: BFTSSM5
D11: <90 cfm, >=10 cfm/W, <15 cfm/W | E11: Electric | F11: Multifamily | G11: each | H11: 25 | I11: 0 | J11: 0 | L11: 269 | M11: BFTSSM10
D12: <90 cfm, >=15 cfm/W | E12: Electric | F12: Multifamily | G12: each | H12: 30 | I12: 0 | J12: 0 | L12: 269 | M12: BFTSSM15
B13: Bath Fan - Continuous two-speed, greater than 90 cfm | C13: • ENERGY STAR® Continuous Operating Bath Fans • Two-speed fans: ≤50 cfm unoccupied exhaust rate AND ≤200 cfm occupied exhaust rate | D13: Bath Fan - two-speed, >90 cfm, >=5 cfm/W, <10 cfm/W | E13: Electric | F13: Multifamily | G13: each | H13: 15 | I13: 0 | J13: 0 | L13: 269 | M13: BFTSLG5
D14: Bath Fan - two-speed, >90 cfm, >=5 cfm/W, >=10 cfm/W, <15 cfm/W | E14: Electric | F14: Multifamily | G14: each | H14: 25 | I14: 0 | J14: 0 | L14: 269 | M14: BFTSLG10
D15: Bath Fan - two-speed, >90 cfm, >=5 cfm/W, >=15 cfm/W | E15: Electric | F15: Multifamily | G15: each | H15: 30 | I15: 0 | J15: 0 | L15: 269 | M15: BFTSLG15
B16: Commercial Clothes Washer w/ Dryer | C16: • ENERGY STAR® • Front-loading with hot water provided by a participating utility • Electric only includes sites using propane or other fuels for water heat or dryer fuel | D16: Electric dryer, elctric water heating | E16: Gas and Electric | F16: Multifamily | G16: each | H16: 400 | I16: 0 | J16: =SUM(H16*I16) -> 0 | L16: 89 | M16: COMWASHEDRYEMFFT
D17: Gas dryer, electric water heating | E17: Gas and Electric | F17: Multifamily | G17: each | H17: 350 | I17: 0 | J17: 0 | L17: 89 | M17: COMWASHEDRYGMFFT
D18: Gas/other dryer, electric water heating | E18: Electric only | F18: Multifamily | G18: each | H18: 150 | I18: 0 | J18: 0 | L18: 89 | M18: COMWASHEDRYGMFET
D19: Gas dryer, electric water heating | E19: Gas only | F19: Multifamily | G19: each | H19: 100 | I19: 0 | J19: 0 | L19: 89 | M19: COMWASHEDRYGMFGT
D20: Electric dryer, gas water heating | E20: Gas and Electric | F20: Multifamily | G20: each | H20: 400 | I20: 0 | J20: 0 | L20: 89 | M20: COMWASHGDRYEMFFT
D21: Gas dryer, gas water heating | E21: Gas and Electric | F21: Multifamily | G21: each | H21: 350 | I21: 0 | J21: 0 | L21: 89 | M21: COMWASHGDRYGMFFT
D22: Electric dryer, gas/other water heating | E22: Electric only | F22: Multifamily | G22: each | H22: 150 | I22: 0 | J22: 0 | L22: 89 | M22: COMWASHGDRYEMFET
D23: Electric dryer, gas water heating | E23: Gas only | F23: Multifamily | G23: each | H23: 100 | I23: 0 | J23: =SUM(H23*I23) -> 0 | L23: 89 | M23: COMWASHGDRYEMFGT
D24: Gas dryer, gas water heating | E24: Gas only | F24: Multifamily | G24: each | H24: 100 | I24: 0 | J24: =SUM(H24*I24) -> 0 | L24: 89 | M24: COMWASHGDRYGMFGT
B25: Electric Clothes Dryer | C25: • ENERGY STAR® • Dryer may not be purchased through retail channel | D25: In-unit | E25: Electric | F25: Multifamily | G25: each | H25: 50 | I25: 0 | J25: 0 | L25: 231 | M25: DRYERELE
B26: Heat Pump Water Heater | C26: • Stand-alone, in-unit HPHW in new multifamily buildings • Excludes central systems, contact the Program with eligibilty questions • Tier 3 minimum, per Advanced Water Heater Specifications v8.0 • Verify at link: https://neea.org/resources/residential-unitary-hpwh-qualified-products-list | E26: Electric | F26: Multifamily | G26: each | H26: 800 | I26: 0 | J26: 0 | L26: 52 | M26: COMHPWHT3
B27: Laundry Center | C27: • ENERGY STAR® • Tub: 2.5 cubic feet or more • Water heating must be provided by participating utility • In-unit, Front-loading | D27: Electric water heating | E27: Gas and Electric | F27: Multifamily | G27: each | H27: 200 | I27: 0 | J27: =SUM(H27*I27) -> 0 | L27: 152 | M27: LCELE
E28: Electric Only | F28: Multifamily | G28: each | H28: 200 | I28: 0 | J28: =SUM(H28*I28) -> 0 | L28: 152 | M28: LCELEEOT
D29: Gas water heating | E29: Gas and Electric | F29: Multifamily | G29: each | H29: 200 | I29: 0 | J29: 0 | L29: 152 | M29: LCGAS
E30: Gas only | F30: Multifamily | G30: each | H30: 200 | I30: 0 | J30: 0 | L30: 152 | M30: LCGASGOT
B31: Residential Clothes Washer | C31: • ENERGY STAR • Residential front-loading clothes washers • At least 2.5 cubic feet tub capacity • Water heating must be provided by participating utility • Washer may not be puchased through retail channel | D31: Electric water heating | E31: Gas and Electric | F31: Multifamily | G31: each | H31: 100 | I31: 0 | J31: 0 | L31: 152 | M31: WASHELEFL
E32: Electric only | F32: Multifamily | G32: each | H32: 100 | I32: 0 | J32: 0 | L32: 152 | M32: WASHELEFLEOT
D33: Gas water heating | E33: Gas and Electric | F33: Multifamily | G33: each | H33: 100 | I33: 0 | J33: 0 | L33: 152 | M33: WASHGASFL
B34: Residential Refrigerator | C34: • Residential ENERGY STAR refrigerator • 14.3 to 20.5 cubic feet • Top mounted freezer and no through the door ice | D34: ENERGY STAR | E34: Electric | F34: Multifamily | G34: each | H34: 70 | I34: 0 | J34: 0 | L34: 112 | M34: ESTARFRIDGE
D35: ENERGY STAR Most Efficient (ESME) | E35: Electric | F35: Multifamily | G35: each | H35: 70 | I35: 0 | J35: 0 | L35: 112 | M35: ESMEFRIDGE
D36: ENERGY STAR Emerging Technology Award (ESETA) | E36: Electric | F36: Multifamily | G36: each | H36: 70 | I36: 0 | J36: 0 | L36: 112 | M36: ESETAFRIDGE
B37: HVAC & Domestic Hot Water Equipment
B38: Condensing Furnace | C38: • 95% AFUE or better • Must be primary heat source for the space and must have an ECM supply fan • Capacity less than 225,000 Btu/h | E38: Electric and gas | F38: Any Except Multifamily | G38: kBtu/hr | H38: 8.25 | I38: 0 | J38: =SUM(H38*I38) -> 0 | L38: 270 | M38: GASFURNCONN
D39: Gas only territory | E39: Gas | F39: Any Except Multifamily | G39: kBtu/hr | H39: 8.25 | I39: 0 | J39: =SUM(H39*I39) -> 0 | L39: 270 | M39: GASFURNCONNGO
B40: Condensing Tankless Water Heater - ≥200 kBtu/h | C40: • Must not provide building space heating • Integral tank volume <10 gal • Minimum 94.0% thermal efficiency • Installed equipment must be on the AHRI certified product list | E40: Gas | F40: Any Except Multifamily | G40: kBtu/hr | H40: 1.4 | I40: 0 | J40: 0 | L40: 72 | M40: CTWH200COMNONMF
E41: Gas | F41: Multifamily | G41: kBtu/hr | H41: 1.4 | I41: 0 | J41: 0 | L41: 72 | M41: CTWH200COMMF
B42: Condensing Tankless Water Heater - <200 kBtu/h | C42: • Energy Factor (EF) ≥ 0.94 • No external storage tanks • Installed equipment must be on the AHRI certified product list | E42: Gas | F42: Any Except Multifamily | G42: each | H42: 140 | I42: 0 | J42: 0 | L42: 212 | M42: CTWH199ALLCOM
D43: Must be installed in stacked multifamily structures with central water heating | E43: Gas | F43: Multifamily | G43: each | H43: 140 | I43: 0 | J43: 0 | L43: 196 | M43: MFTANKLESS199
B44: Condensing Tank Water Heater | C44: • Tank volume ≥ 10gal; Capacity > 75,000 Btu/h • Minimum 94% thermal efficiency rating • Use in multifamily is limited to shared central DHW systems | E44: Gas | F44: Any Except Multifamily | G44: kBtu/hr | H44: 3.5 | I44: 0 | J44: 0 | L44: 21 | M44: DHWCONDNMF
E45: Gas | F45: Multifamily | G45: kBtu/hr | H45: 3.5 | I45: 0 | J45: 0 | L45: 21 | M45: DHWCONDTANKMF
B46: Ductless Heatpump | C46: • Minimum efficiency of 18 SEER or SEER2 and 10 HSPF or 9.5 HSPF2 • Single compressor systems with up to two heads per dwelling unit | D46: With baseboard heating | E46: Electric | F46: Commercial Dorm | G46: ton | H46: 500 | I46: 0 | J46: 0 | L46: 192 | M46: DHPDORMBASE
E47: Electric | F47: Commercial Lodging | G47: ton | H47: 500 | I47: 0 | J47: 0 | L47: 192 | M47: DHPLODBASE
E48: Electric | F48: Commercial Multifamily | G48: ton | H48: 500 | I48: 0 | J48: 0 | L48: 192 | M48: DHPMFBASE
D49: Without baseboard heating | E49: Electric | F49: Commercial Dorm | G49: ton | H49: 500 | I49: 0 | J49: =SUM(H49*I49) -> 0 | L49: 192 | M49: DHPDORMNOBASE
E50: Electric | F50: Commercial Lodging | G50: ton | H50: 500 | I50: 0 | J50: 0 | L50: 192 | M50: DHPLODNOBASE
E51: Electric | F51: Commercial Multifamily | G51: ton | H51: 500 | I51: 0 | J51: 0 | L51: 192 | M51: DHPMFNOBASE
B52: Commercial Heat Pump Water Heater | C52: • Tank volume ≥ 40, < 120 gallons; Excludes central systems, contact the Program with eligibilty questions • Tier 3 minimum, per Advanced Water Heater Specifications v8.0 • Verify at: https://neea.org/resources/residential-unitary-hpwh-qualified-products-list | D52: Tier 1 | E52: Electric | F52: Any Except Multifamily | G52: each | H52: 800 | I52: 0 | J52: 0 | L52: 254 | M52: CHPWHT1
D53: Tier 2 | E53: Electric | F53: Any Except Multifamily | G53: each | H53: 800 | I53: 0 | J53: =SUM(H53*I53) -> 0 | L53: 254 | M53: CHPWHT2
D54: Tier 2, ducted | E54: Electric | F54: Any Except Multifamily | G54: each | H54: 800 | I54: 0 | J54: 0 | L54: 254 | M54: CHPWHT2D
D55: Tier 3 | E55: Electric | F55: Any Except Multifamily | G55: each | H55: 800 | I55: 0 | J55: 0 | L55: 254 | M55: CHPWHT3
D56: Tier 3, ducted | E56: Electric | F56: Any Except Multifamily | G56: each | H56: 800 | I56: 0 | J56: 0 | L56: 254 | M56: CHPWHT3D
D57: Tier 4 & up | E57: Electric | F57: Any Except Multifamily | G57: each | H57: 800 | I57: 0 | J57: 0 | L57: 254 | M57: CHPWHT4UP
D58: Tier 4 & up, ducted | E58: Electric | F58: Any Except Multifamily | G58: each | H58: 800 | I58: 0 | J58: 0 | L58: 254 | M58: CHPWHT4UPD
B59: Commercial Infrared Radiant Heaters | C59: • Low intensity discharge, natural gas-fired, non-condensing, positive pressure system | D59: Modulating | E59: Gas and Electric | F59: Interiorspaces <20,000 sqft | G59: kBtu/hr | H59: 5 | I59: 0 | J59: =SUM(H59*I59) -> 0 | L59: 117 | M59: RADHEATMOD
E60: Gas only | F60: Interiorspaces <20,000 sqft | G60: kBtu/hr | H60: 5 | I60: 0 | J60: =SUM(H60*I60) -> 0 | L60: 117 | M60: RADHEATMODGO
D61: Non-modulating | E61: Gas and Electric | F61: Interiorspaces <20,000 sqft | G61: kBtu/hr | H61: 4 | I61: 0 | J61: =SUM(H61*I61) -> 0 | L61: 117 | M61: RADHEATNONMOD
E62: Gas only | F62: Interiorspaces <20,000 sqft | G62: kBtu/hr | H62: 4 | I62: 0 | J62: =SUM(H62*I62) -> 0 | L62: 117 | M62: RADHEATNONMODGO
B63: Commercial Clothes Washer w/ Dryer | C63: • ENERGY STAR • Front-loading with hot water provided by a participating utility • Electric only includes sites using propane or other fuels for water heat or dryer fuel | D63: Electric dryer, elctric water heating | E63: Gas and Electric | F63: Any Except Multifamily | G63: each | H63: 400 | I63: 0 | J63: 0 | L63: 89 | M63: COMWASHEDRYEFT
D64: Gas dryer, electric water heating | E64: Gas and Electric | F64: Any Except Multifamily | G64: each | H64: 350 | I64: 0 | J64: =SUM(H64*I64) -> 0 | L64: 89 | M64: COMWASHEDRYGFT
D65: Gas dryer, electric water heating | E65: Gas only | F65: Any Except Multifamily | G65: each | H65: 100 | I65: 0 | J65: 0 | L65: 89 | M65: COMWASHEDRYGGT
D66: Gas dryer, electric water heating | E66: Electric only | F66: Any Except Multifamily | G66: each | H66: 150 | I66: 0 | J66: =SUM(H66*I66) -> 0 | L66: 89 | M66: COMWASHEDRYGET
D67: Electric dryer, gas water heating | E67: Gas and Electric | F67: Any Except Multifamily | G67: each | H67: 400 | I67: 0 | J67: =SUM(H67*I67) -> 0 | L67: 89 | M67: COMWASHGDRYEFT
D68: Gas dryer, gas water heating | E68: Gas and Electric | F68: Any Except Multifamily | G68: each | H68: 350 | I68: 0 | J68: 0 | L68: 89 | M68: COMWASHGDRYGFT
D69: Electric dryer, gas/other water heating | E69: Electric only | F69: Any Except Multifamily | G69: each | H69: 150 | I69: 0 | J69: 0 | L69: 89 | M69: COMWASHGDRYEET
D70: Electric dryer, gas water heating | E70: Gas only | F70: Any Except Multifamily | G70: each | H70: 100 | I70: 0 | J70: 0 | L70: 89 | M70: COMWASHGDRYEGT
D71: Gas dryer, gas water heating | E71: Gas only | F71: Any Except Multifamily | G71: each | H71: 100 | I71: 0 | J71: =SUM(H71*I71) -> 0 | L71: 89 | M71: COMWASHGDRYGGT
B72: Commercial Air-Source Ductless Heat Pump | C72: • Conditioned space served must have a combined floor area < 10,000 sq ft. • AHRI rated with SEER ≥ 20 and HSPF > 9.5 | D72: Heating Zone 1 | E72: Electric | F72: Office, Retail, or Restaurant | G72: ton | H72: 300 | I72: 0 | J72: =SUM(H72*I72) -> 0 | L72: 256 | M72: HPREPHZ1
D73: Heating Zone 2 or 3 | E73: Electric | F73: Office, Retail, or Restaurant | G73: ton | H73: 300 | I73: 0 | J73: =SUM(H73*I73) -> 0 | L73: 255 | M73: HPREPHZ23
B74: Ozone Laundry System | C74: • Must be new and installed on either new or existing programmable commercial washing machine(s) • All existing/new washers at a facility must be reprogrammed and connected to work with the new ozone laundry system. Partial conversions are not eligible • Water heating for clothes washing must be provided by boilers, or gas or electric water heaters. Water heating must be provided by a participating utility • The ozone laundry system(s) must transfer ozone into the water with either the venturi injection or bubble diffusion process | D74: <75 lbs capacity, gas water heating | E74: Gas and Electric | F74: Any Except Multifamily | G74: per system | H74: 5000 | I74: 0 | J74: 0 | L74: 80 | M74: OZONSYS75GWHFULL
D75: <75 lbs capacity, electric water heating | E75: Electric | F75: Any Except Multifamily | G75: per system | H75: 5000 | I75: 0 | J75: =SUM(H75*I75) -> 0 | L75: 80 | M75: OZONSYS75EWH
D76: <75 lbs capacity, gas water heating | E76: Gas only | F76: Any Except Multifamily | G76: per system | H76: 5000 | I76: 0 | J76: 0 | L76: 80 | M76: OZONSYS75GWHGOT
D77: 75-125 lbs capacity, gas water heating | E77: Gas and Electric | F77: Any Except Multifamily | G77: per system | H77: 7500 | I77: 0 | J77: =SUM(H77*I77) -> 0 | L77: 80 | M77: OZONSYS75125GWHFULL
D78: 75-125 lbs capacity, electric water heating | E78: Electric | F78: Any Except Multifamily | G78: per system | H78: 7500 | I78: 0 | J78: 0 | L78: 80 | M78: OZONSYS75125EWH
D79: 75-125 lbs capacity | E79: Gas only | F79: Any Except Multifamily | G79: per system | H79: 7500 | I79: 0 | J79: 0 | L79: 80 | M79: OZONSYS75125GWHGOT
D80: 126-400 lbs capacity, gas water heating | E80: Gas and Electric | F80: Any Except Multifamily | G80: per system | H80: 15000 | I80: 0 | J80: =SUM(H80*I80) -> 0 | L80: 80 | M80: OZONSYS126400GWHFULL
D81: 126-400 lbs capacity, electric water heating | E81: Electric | F81: Any Except Multifamily | G81: per system | H81: 15000 | I81: 0 | J81: =SUM(H81*I81) -> 0 | L81: 80 | M81: OZONSYS126400EWH
D82: 126-400 lbs capacity, gas water heating | E82: Gas only | F82: Any Except Multifamily | G82: per system | H82: 15000 | I82: 0 | J82: =SUM(H82*I82) -> 0 | L82: 80 | M82: OZONSYS126400GWHGOT
D83: 401-600 lbs capacity, gas water heating | E83: Gas and Electric | F83: Any Except Multifamily | G83: per system | H83: 25000 | I83: 0 | J83: =SUM(H83*I83) -> 0 | L83: 80 | M83: OZONSYS401600GWHFULL
D84: 401-600 lbs capacity, electric water heating | E84: Electric | F84: Any Except Multifamily | G84: per system | H84: 25000 | I84: 0 | J84: 0 | L84: 80 | M84: OZONSYS401600EWH
D85: 401-600 lbs capacity | E85: Gas only | F85: Any Except Multifamily | G85: per system | H85: 25000 | I85: 0 | J85: =SUM(H85*I85) -> 0 | L85: 80 | M85: OZONSYS401600GWHGOT
D86: >600 lbs capacity, gas water heating | E86: Gas and Electric | F86: Any Except Multifamily | G86: per system | H86: 30000 | I86: 0 | J86: =SUM(H86*I86) -> 0 | L86: 80 | M86: OZONSYS600GWHFULL
D87: >600 lbs capacity, electric water heating | E87: Electric | F87: Any Except Multifamily | G87: per system | H87: 30000 | I87: 0 | J87: 0 | L87: 80 | M87: OZONSYS600EWH
D88: >600 lbs capacity, gas water heating | E88: Gas only | F88: Any Except Multifamily | G88: per system | H88: 30000 | I88: 0 | J88: 0 | L88: 80 | M88: OZONSYS600GWHGOT
B89: Two-stage Gas Valve on Clothes Dryers in On-Premises Laundry | C89: • Valves must be installed on commercial gas-fired dryers • Dryer ≤200 pounds of dry clothes capacity or ≤65 cubic feet of dryer drum volume • Valves can be installed on new or existing gas-fired dryers | E89: Gas | F89: Any Except Multifamily | G89: ton | H89: 700 | I89: 0 | J89: =SUM(H89*I89) -> 0 | L89: 291 | M89: 2STAGASGVALVEOPLDRY
B90: Server Closet Mini-Split A/C or Heat Pump | C90: • Cooling efficiency greater than SEER 18 or SEER2 18 • Cooling capacity no greater than 4.5 tons per unit • Must serve a space exclusively for servers, communications, or data equipment; Maximum of 2 units per space | D90: Mini-Split A/C | E90: Electric | F90: Any (Excluding Multifamily Tenant Spaces) | G90: ton cooling capacity | H90: 250 | I90: 0 | J90: =SUM(H90*I90) -> 0 | L90: 3 | M90: MINISPLITAC
D91: Mini-Split Heat Pump | E91: Electric | F91: Any (Excluding Multifamily Tenant Spaces) | G91: ton cooling capacity | H91: 250 | I91: 0 | J91: 0 | L91: 3 | M91: MINISPLITHP
B92: Hydronic Heating Circulators with Speed Controls | C92: • Variable speed ECMs only • Limited to in-line circulators with horizontal motors | D92: >1/6 - ≤1/4 horsepower (>300 - ≤400 Max watts) | E92: Electric | F92: Any | G92: kBtu/hr | H92: 250 | I92: 0 | J92: 0 | L92: 247 | M92: HHCECMSC1614HP
D93: >1/4 - ≤1/2 horsepower (>400 - ≤550 Max watts) | E93: Electric | F93: Any | G93: kBtu/hr | H93: 250 | I93: 0 | J93: 0 | L93: 247 | M93: HHCECMSC025050HP
D94: >1/2 - ≤3/4 horsepower (>550 - ≤750 Max watts) | E94: Electric | F94: Any | G94: kBtu/hr | H94: 250 | I94: 0 | J94: 0 | L94: 247 | M94: HHCECMSC050075HP
D95: >3/4 - ≤1.25 horsepower (>750 - ≤1000 Max watts) | E95: Electric | F95: Any | G95: kBtu/hr | H95: 300 | I95: 0 | J95: 0 | L95: 247 | M95: HHCECMSC075125HP
D96: >1.25 - ≤1.75 horsepower (>1000 - ≤1300 Max watts) | E96: Electric | F96: Any | G96: kBtu/hr | H96: 300 | I96: 0 | J96: 0 | L96: 247 | M96: HHCECMSC125175HP
D97: >1.75 - ≤2.5 horsepower (>1300 - ≤1750 Max watts) | E97: Electric | F97: Any | G97: kBtu/hr | H97: 300 | I97: 0 | J97: 0 | L97: 247 | M97: HHCECMSC175250HP
D98: >2.5 - ≤3.5 horsepower (>1750 - ≤2350 Max watts) | E98: Electric | F98: Any | G98: kBtu/hr | H98: 750 | I98: 0 | J98: 0 | L98: 247 | M98: HHCECMSC250350HP
D99: >3.5 - ≤4.5 horsepower (>2350 - ≤3100 Max watts) | E99: Electric | F99: Any | G99: kBtu/hr | H99: 750 | I99: 0 | J99: 0 | L99: 247 | M99: HHCECMSC350450HP
D100: >4.5 - ≤5 horsepower (>3100 - ≤3700 Max watts) | E100: Electric | F100: Any | G100: kBtu/hr | H100: 750 | I100: 0 | J100: 0 | L100: 247 | M100: HHCECMSC450500HP
B101: VFD on Cooling Tower Pump | C101: • VFD installed on a commercial pump with a nominal motor power up to 20 hp • Irrigation pumps are ineligible | D101: 1.5 HP (1.26 to 1.75 HP) | E101: Electric | F101: Any | G101: each | H101: 250 | I101: 0 | J101: =SUM(H101*I101) -> 0 | L101: 284 | M101: CPUMPVSDCOOLT1P5HP
D102: 2 HP (1.76 to 2.50 HP) | E102: Electric | F102: Any | G102: each | H102: 300 | I102: 0 | J102: 0 | L102: 284 | M102: CPUMPVSDCOOLT2HP
D103: 3 HP (2.51 to 3.50 HP) | E103: Electric | F103: Any | G103: each | H103: 350 | I103: 0 | J103: 0 | L103: 284 | M103: CPUMPVSDCOOLT3HP
D104: 4 HP (3.51 to 4.50 HP) | E104: Electric | F104: Any | G104: each | H104: 450 | I104: 0 | J104: 0 | L104: 284 | M104: CPUMPVSDCOOLT4HP
D105: 5 HP (4.51 to 6.00 HP) | E105: Electric | F105: Any | G105: each | H105: 500 | I105: 0 | J105: 0 | L105: 284 | M105: CPUMPVSDCOOLT5HP
D106: 7.5 HP (6.01 to 8.00 HP) | E106: Electric | F106: Any | G106: each | H106: 600 | I106: 0 | J106: 0 | L106: 284 | M106: CPUMPVSDCOOLT7P5HP
D107: 10 HP (8.01 to 12.50 HP) | E107: Electric | F107: Any | G107: each | H107: 700 | I107: 0 | J107: 0 | L107: 284 | M107: CPUMPVSDCOOLT10HP
D108: 15 HP (12.51 to 17.50 HP) | E108: Electric | F108: Any | G108: each | H108: 850 | I108: 0 | J108: 0 | L108: 284 | M108: CPUMPVSDCOOLT15HP
D109: 20 HP (17.51 to 22.50 HP) | E109: Electric | F109: Any | G109: each | H109: 1000 | I109: 0 | J109: 0 | L109: 284 | M109: CPUMPVSDCOOLT20HP
B110: VFD on Pressure Boost Pump | C110: • VFD installed on a commercial pump with a nominal motor power up to 20 hp • Irrigation pumps are ineligible | D110: 1.5 HP (1.26 to 1.75 HP) | E110: Electric | F110: Any | G110: each | H110: 250 | I110: 0 | J110: =SUM(H110*I110) -> 0 | L110: 284 | M110: CPUMPVSDPB1P5HP
D111: 2 HP (1.76 to 2.50 HP) | E111: Electric | F111: Any | G111: each | H111: 250 | I111: 0 | J111: 0 | L111: 284 | M111: CPUMPVSDPB2HP
D112: 3 HP (2.51 to 3.50 HP) | E112: Electric | F112: Any | G112: each | H112: 350 | I112: 0 | J112: 0 | L112: 284 | M112: CPUMPVSDPB3HP
D113: 4 HP (3.51 to 4.50 HP) | E113: Electric | F113: Any | G113: each | H113: 450 | I113: 0 | J113: 0 | L113: 284 | M113: CPUMPVSDPB4HP
D114: 5 HP (4.51 to 6.00 HP) | E114: Electric | F114: Any | G114: each | H114: 500 | I114: 0 | J114: 0 | L114: 284 | M114: CPUMPVSDPB5HP
D115: 7.5 HP (6.01 to 8.00 HP) | E115: Electric | F115: Any | G115: each | H115: 600 | I115: 0 | J115: 0 | L115: 284 | M115: CPUMPVSDPB7P5HP
D116: 10 HP (8.01 to 12.50 HP) | E116: Electric | F116: Any | G116: each | H116: 700 | I116: 0 | J116: 0 | L116: 284 | M116: CPUMPVSDPB10HP
D117: 15 HP (12.51 to 17.50 HP) | E117: Electric | F117: Any | G117: each | H117: 850 | I117: 0 | J117: =SUM(H117*I117) -> 0 | L117: 284 | M117: CPUMPVSDPB15HP
D118: 20 HP (17.51 to 22.50 HP) | E118: Electric | F118: Any | G118: each | H118: 1000 | I118: 0 | J118: =SUM(H118*I118) -> 0 | L118: 284 | M118: CPUMPVSDPB20HP
B119: VFD on Heating Water Pump | C119: • VFD installed on a commercial pump with a nominal motor power up to 20 hp • Irrigation pumps are ineligible | D119: 0.75 HP (0.50 to 0.75 HP) | E119: Electric | F119: Any | G119: each | H119: 150 | I119: 0 | J119: =SUM(H119*I119) -> 0 | L119: 284 | M119: CPUMPVSDHEAT0P75
D120: 1 HP (0.76 to 1.25 HP) | E120: Electric | F120: Any | G120: each | H120: 200 | I120: 0 | J120: 0 | L120: 284 | M120: CPUMPVSDHEAT1HP
D121: 1.5 HP (1.26 to 1.75 HP) | E121: Electric | F121: Any | G121: each | H121: 250 | I121: 0 | J121: 0 | L121: 284 | M121: CPUMPVSDHEAT1P5HP
D122: 2 HP (1.76 to 2.50 HP) | E122: Electric | F122: Any | G122: each | H122: 300 | I122: 0 | J122: 0 | L122: 284 | M122: CPUMPVSDHEAT2HP
D123: 3 HP (2.51 to 3.50 HP) | E123: Electric | F123: Any | G123: each | H123: 350 | I123: 0 | J123: 0 | L123: 284 | M123: CPUMPVSDHEAT3HP
D124: 4 HP (3.51 to 4.50 HP) | E124: Electric | F124: Any | G124: each | H124: 450 | I124: 0 | J124: 0 | L124: 284 | M124: CPUMPVSDHEAT4HP
D125: 5 HP (4.51 to 6.00 HP) | E125: Electric | F125: Any | G125: each | H125: 500 | I125: 0 | J125: 0 | L125: 284 | M125: CPUMPVSDHEAT5HP
D126: 7.5 HP (6.01 to 8.00 HP) | E126: Electric | F126: Any | G126: each | H126: 600 | I126: 0 | J126: 0 | L126: 284 | M126: CPUMPVSDHEAT7P5HP
B127: VFD on Chilled Water Pump | C127: • VFD installed on a commercial pump with a nominal motor power up to 20 hp • Irrigation pumps are ineligible | D127: 0.75 HP (0.50 to 0.75 HP) | E127: Electric | F127: Any | G127: each | H127: 150 | I127: 0 | J127: =SUM(H127*I127) -> 0 | L127: 284 | M127: CPUMPVSDCOOL0P75HP
D128: 1 HP (0.76 to 1.25 HP) | E128: Electric | F128: Any | G128: each | H128: 200 | I128: 0 | J128: 0 | L128: 284 | M128: CPUMPVSDCOOL1HP
D129: 1.5 HP (1.26 to 1.75 HP) | E129: Electric | F129: Any | G129: each | H129: 250 | I129: 0 | J129: 0 | L129: 284 | M129: CPUMPVSDCOOL1P5HP
D130: 2 HP (1.76 to 2.50 HP) | E130: Electric | F130: Any | G130: each | H130: 300 | I130: 0 | J130: 0 | L130: 284 | M130: CPUMPVSDCOOL2HP
D131: 3 HP (2.51 to 3.50 HP) | E131: Electric | F131: Any | G131: each | H131: 350 | I131: 0 | J131: 0 | L131: 284 | M131: CPUMPVSDCOOL3HP
D132: 4 HP (3.51 to 4.50 HP) | E132: Electric | F132: Any | G132: each | H132: 450 | I132: 0 | J132: 0 | L132: 284 | M132: CPUMPVSDCOOL4HP
D133: 5 HP (4.51 to 6.00 HP) | E133: Electric | F133: Any | G133: each | H133: 500 | I133: 0 | J133: 0 | L133: 284 | M133: CPUMPVSDCOOL5HP
B134: Forced Circulation Generator Block Heater | C134: • Must be installed by manufacturer-certified installer | D134: 1.1 to 1.5 kW | E134: Electric | F134: Any | G134: each | H134: 320 | I134: 0 | J134: =SUM(H134*I134) -> 0 | L134: 190 | M134: GENHTR1115
D135: 1.6 to 2.5 kW | E135: Electric | F135: Any | G135: each | H135: 320 | I135: 0 | J135: =SUM(H135*I135) -> 0 | L135: 190 | M135: GENHTR1625
B136: Food Service Options
B137: Dishwashers | C137: • ENERGY STAR® v 3.0 • Flight type dishwashers do not qualify | D137: Under Counter - Low Temp | E137: Electric | F137: Any | G137: each | H137: 750 | I137: 0 | J137: 0 | L137: 35 | M137: DWUCLTEMP
D138: Under Counter - High Temp | E138: Electric | F138: Any | G138: each | H138: 750 | I138: 0 | J138: 0 | L138: 35 | M138: DWUCHTEMP
D139: Stationary Single Tank Door - High Temp | E139: Electric | F139: Any | G139: each | H139: 900 | I139: 0 | J139: 0 | L139: 35 | M139: DWSTDHTEMP
D140: Single Tank Conveyor - High Temp | E140: Electric | F140: Any | G140: each | H140: 900 | I140: 0 | J140: 0 | L140: 35 | M140: DWSTCONHTEMP
D141: Multiple Tank Conveyor - High Temp | E141: Electric | F141: Any | G141: each | H141: 900 | I141: 0 | J141: 0 | L141: 35 | M141: DWMTCONHTEMP
D142: Pot, Pan and Utensil (PPU) | E142: Electric | F142: Any | G142: each | H142: 1200 | I142: 0 | J142: 0 | L142: 35 | M142: DWPPUHTEMP
B143: Electric Convection Oven | C143: • ENERGY STAR® v 3.0 | D143: Full-Size | E143: Electric | F143: Any | G143: each | H143: 1000 | I143: 0 | J143: =SUM(H143*I143) -> 0 | L143: 101 | M143: ELECONVOVES3FULL
B144: Gas Convection Oven | C144: • ENERGY STAR® v 3.0 | D144: Full-Size | E144: Gas | F144: Any | G144: each | H144: 500 | I144: 0 | J144: =SUM(H144*I144) -> 0 | L144: 101 | M144: GASCONOVENES3FULL
B145: Electric Combination Oven | C145: • ENERGY STAR v 3.0 | D145: 5-14 pan capacity | E145: Electric | F145: Any | G145: each | H145: 1000 | I145: 0 | J145: =SUM(H145*I145) -> 0 | L145: 101 | M145: COMBOOVES3514PANELE
D146: 15-28 pan capacity | E146: Electric | F146: Any | G146: each | H146: 600 | I146: 0 | J146: =SUM(H146*I146) -> 0 | L146: 101 | M146: COMBOOVES31528PANELE
D147: 29-40 pan capacity | E147: Electric | F147: Any | G147: each | H147: 3000 | I147: 0 | J147: =SUM(H147*I147) -> 0 | L147: 101 | M147: COMBOOVES32940PANELE
B148: Gas Combination Oven | C148: • ENERGY STAR v 3.0 | D148: 5-14 pan capacity | E148: Electric | F148: Any | G148: each | H148: 500 | I148: 0 | J148: =SUM(H148*I148) -> 0 | L148: 101 | M148: COMBOOVES3514PANGAS
D149: 15-28 pan capacity | E149: Electric | F149: Any | G149: each | H149: 500 | I149: 0 | J149: =SUM(H149*I149) -> 0 | L149: 101 | M149: COMBOOVES31528PANGAS
D150: 29-40 pan capacity | E150: Electric | F150: Any | G150: each | H150: 500 | I150: 0 | J150: =SUM(H150*I150) -> 0 | L150: 101 | M150: COMBOOVES32940PANGAS
B151: Electric Hot Food Holding Cabinet, Half Size | C151: • ENERGY STAR • Must have interior volume less than 13 cubic feet | E151: Electric | F151: Any | G151: each | H151: 150 | I151: 0 | J151: 0 | L151: 101 | M151: HOTCABINETHALF
B152: Double Rack Oven | C152: • ENERGY STAR® v 3.0 • Double accomodates two standard full-size sheet pans measuring 18 x 26 x 1 inch | E152: Gas and Electric | F152: Any | G152: each | H152: 900 | I152: 0 | J152: 0 | L152: 101 | M152: RACKOVENDOUBGAS
E153: Electric only | F153: Any | G153: each | H153: 600 | I153: 0 | J153: 0 | L153: 101 | M153: RACKOVENDOUBGEOT
E154: Gas only | F154: Any | G154: each | H154: 900 | I154: 0 | J154: 0 | L154: 101 | M154: RACKOVENDOUBGOT
B155: Griddles | C155: • Single Sided | E155: Electric | F155: Any | G155: each | H155: 1000 | I155: 0 | J155: =SUM(H155*I155) -> 0 | L155: 101 | M155: ELECGRIDSING
E156: Gas | F156: Any | G156: each | H156: 1000 | I156: 0 | J156: 0 | L156: 101 | M156: GASGRIDSING
B157: Gas-fired Automatic Conveyor Broiler - Continuous Two Speed, > 90cfm | C157: • Automatic conveyor with catalyst • Input rate less than 80 kBtu/h OR dual stage OR modulating gas valve with a capability of throttling the input rate below 80 kBtu/h | D157: under 20" | E157: Gas and Electric | F157: Any | G157: each | H157: 2500 | I157: 0 | J157: 0 | L157: 101 | M157: BROILER20FULL
E158: Electric only | F158: Any | G158: each | H158: 2500 | I158: 0 | J158: 0 | L158: 101 | M158: BROILER20EOT
E159: Gas only | F159: Any | G159: each | H159: 2500 | I159: 0 | J159: 0 | L159: 101 | M159: BROILER20GOT
D160: 20-26" | E160: Gas and Electric | F160: Any | G160: each | H160: 3000 | I160: 0 | J160: 0 | L160: 101 | M160: BROILER2026FULL
E161: Electric only | F161: Any | G161: each | H161: 3000 | I161: 0 | J161: 0 | L161: 101 | M161: BROILER2026EOT
E162: Gas only | F162: Any | G162: each | H162: 3000 | I162: 0 | J162: 0 | L162: 101 | M162: BROILER2026GOT
D163: over 26" | E163: Gas and Electric | F163: Any | G163: each | H163: 3500 | I163: 0 | J163: 0 | L163: 101 | M163: BROILER26FULL
E164: Electric only | F164: Any | G164: each | H164: 3500 | I164: 0 | J164: 0 | L164: 101 | M164: BROILER26EOT
E165: Gas only | F165: Any | G165: each | H165: 3500 | I165: 0 | J165: 0 | L165: 101 | M165: BROILER26GOT
B166: High Efficiency Electric Fryer | C166: • ≥ 85% efficiency • Idle Energy Rate ≤ 700 watts | D166: Standard or Split Vat | E166: Electric | F166: Any | G166: each | H166: 800 | I166: 0 | J166: 0 | L166: 272 | M166: HEELECFRYERSTAN
C167: • ≥ 88% efficiency • Idle Energy Rate ≤ 1,000 watts | D167: Large Vat | E167: Electric | F167: Any | G167: each | H167: 1000 | I167: 0 | J167: 0 | L167: 272 | M167: HEELECFRYERLARG
B168: High Efficiency Gas Fryer | C168: • ≥ 54% efficiency • Idle Energy Rate ≤ 8,000 BTU/hr | D168: Standard Vat | E168: Gas | F168: Any | G168: each | H168: 1500 | I168: 0 | J168: 0 | L168: 272 | M168: HEGASFRYERSTAN
C169: • ≥ 56% efficiency • Idle Energy Rate ≤ 10,000 BTU/hr | D169: Large Vat | E169: Gas | F169: Any | G169: each | H169: 2000 | I169: 0 | J169: 0 | L169: 272 | M169: HEGASFRYERLARG
B170: Ice Maker | C170: • ENERGY STAR v 3.0 • Must be ≤4,000 lb/day | D170: Batch SCU, >200 lb/day | E170: Electric | F170: Any | G170: each | H170: 180 | I170: 0 | J170: 0 | L170: 90 | M170: ICESCUBATCH
D171: Batch RCU, >988 lb/day | E171: Electric | F171: Any | G171: each | H171: 400 | I171: 0 | J171: 0 | L171: 90 | M171: ICERCUBATCH
D172: Batch IMH, >1,500 lb/day | E172: Electric | F172: Any | G172: each | H172: 400 | I172: 0 | J172: 0 | L172: 90 | M172: ICEIMHBATCH
D173: Continuous RCU, >800 lb/day | E173: Electric | F173: Any | G173: each | H173: 400 | I173: 0 | J173: 0 | L173: 90 | M173: ICERCUCONT
D174: Continuous IMH, >820 lb/day | E174: Electric | F174: Any | G174: each | H174: 400 | I174: 0 | J174: 0 | L174: 90 | M174: ICEIMHCONT
B175: On-Demand Overwrapper | C175: • Must use either a mechanical or optical control system | E175: Electric | F175: Any | G175: each | H175: 350 | I175: 0 | J175: 0 | L175: 230 | M175: OVERWRAPPER
B176: Reach-In Glass Door Freezer | C176: • ENERGY STAR • Must be packaged and self-contained w/built-in compressor for cooling • Must have glass doors; Used or rebuilt equipment is not eligible | D176: Electric Resistance Heat, 0 < V < 15 | E176: Electric | F176: Any | G176: each | H176: 40 | I176: 0 | J176: 0 | L176: 186 | M176: FREZRCHVRT015ELE
D177: Electric Resistance Heat, 15 ≤ V < 30 | E177: Electric | F177: Any | G177: each | H177: 80 | I177: 0 | J177: 0 | L177: 186 | M177: FREZRCHVRT1530ELE
D178: Electric Resistance Heat, 30 ≤ V < 50 | E178: Electric | F178: Any | G178: each | H178: 190 | I178: 0 | J178: 0 | L178: 186 | M178: FREZRCHVRT3050ELE
D179: Electric Resistance Heat, 50 ≤ V | E179: Electric | F179: Any | G179: each | H179: 325 | I179: 0 | J179: 0 | L179: 186 | M179: FREZRCHVRT50ELE
D180: Heat Pump, 0 < V < 15 | E180: Electric | F180: Any | G180: each | H180: 40 | I180: 0 | J180: 0 | L180: 186 | M180: FREZRCHVRT015HP
D181: Heat Pump, 15 ≤ V < 30 | E181: Electric | F181: Any | G181: each | H181: 80 | I181: 0 | J181: 0 | L181: 186 | M181: FREZRCHVRT1530HP
D182: Heat Pump, 30 ≤ V < 50 | E182: Electric | F182: Any | G182: each | H182: 190 | I182: 0 | J182: 0 | L182: 186 | M182: FREZRCHVRT3050HP
D183: Heat Pump, 50 ≤ V | E183: Electric | F183: Any | G183: each | H183: 325 | I183: 0 | J183: 0 | L183: 186 | M183: FREZRCHVRT50HP
D184: Natural Gas, 0 < V < 15 | E184: Gas | F184: Any | G184: each | H184: 40 | I184: 0 | J184: 0 | L184: 186 | M184: FREZRCHVRT015GAS
D185: Natural Gas, 15 ≤ V < 30 | E185: Gas | F185: Any | G185: each | H185: 80 | I185: 0 | J185: 0 | L185: 186 | M185: FREZRCHVRT1530GAS
D186: Natural Gas, 30 ≤ V < 50 | E186: Gas | F186: Any | G186: each | H186: 190 | I186: 0 | J186: 0 | L186: 186 | M186: FREZRCHVRT3050GAS
D187: Natural Gas, 50 ≤ V | E187: Gas | F187: Any | G187: each | H187: 325 | I187: 0 | J187: 0 | L187: 186 | M187: FREZRCHVRT50GAS
D188: Natural Gas, 0 < V < 15 | E188: Electric only | F188: Any | G188: each | H188: 40 | I188: 0 | J188: 0 | L188: 186 | M188: FREZRCHVRT015GEOT
D189: Natural Gas, 15 ≤ V < 30 | E189: Electric only | F189: Any | G189: each | H189: 80 | I189: 0 | J189: 0 | L189: 186 | M189: FREZRCHVRT1530GEOT
D190: Natural Gas, 30 ≤ V < 50 | E190: Electric only | F190: Any | G190: each | H190: 190 | I190: 0 | J190: 0 | L190: 186 | M190: FREZRCHVRT3050GEOT
D191: Natural Gas, 50 ≤ V | E191: Electric only | F191: Any | G191: each | H191: 325 | I191: 0 | J191: 0 | L191: 186 | M191: FREZRCHVRT50GEOT
B192: Reach-In Glass Door Refrigerator | C192: • ENERGY STAR • Must be packaged and self-contained w/built-in compressor for cooling • Must have glass doors; Used or rebuilt equipment is not eligible | D192: Electric Resistance Heat, 0 < V < 15 | E192: Electric | F192: Any | G192: each | H192: 20 | I192: 0 | J192: 0 | L192: 186 | M192: FRIGRCHVRT015ELE
D193: Gas Heat | E193: Electric only | F193: any | G193: each | H193: 20 | I193: 0 | J193: 0 | L193: 186
E194: Gas and Electric | F194: Any | G194: each | H194: 20 | I194: 0 | J194: 0 | L194: 186 | M194: FRIGRCHVRT015GAS
D195: Heat Pump, 0 < V < 15 | E195: Electric | F195: Any | G195: each | H195: 20 | I195: 0 | J195: 0 | L195: 186 | M195: FRIGRCHVRT015HP
D196: Natural Gas, 0 < V < 15 | E196: Electric only | F196: Any | G196: each | H196: 20 | I196: 0 | J196: 0 | L196: 186 | M196: FRIGRCHVRT015GEOT
B197: High-Speed Doors for Walk-in Freezers | C197: • Walk-in doorway must be at least 5 ft wide • Spaces set above 50°F are not eligible • Freezers >3,000 ft2 are not eligible • Refigerated warehouses and distribution centers are not eligible • New high-speed doors equipped with or without air curtains and/or door heaters are eligible • Electric only measures may be used for buildings heated with propane or other bulk fuels | D197: Electric Heating | E197: Electric | F197: Any | G197: each | H197: 14000 | I197: 0 | J197: 0 | L197: 301 | M197: HISPDDRWLKINFRZEH
D198: Heat Pump Heating | E198: Gas or Electric | F198: Any | G198: each | H198: 14000 | I198: 0 | J198: 0 | L198: 301 | M198: HISPDDRWLKINFRZHP
D199: Gas Heating | E199: Gas | F199: Any | G199: each | H199: 14000 | I199: 0 | J199: 0 | L199: 301 | M199: HISPDDRWLKINFRZGH
E200: Electric Only | F200: Any | G200: each | H200: 14000 | I200: 0 | J200: 0 | L200: 301 | M200: HISPDDRWLKINFRZGHET
B201: High-Speed Doors for Walk-in Coolers | C201: • Walk-in doorway must be at least 5 ft wide • Spaces set above 50°F are not eligible • Coolers >3,000 ft2 are not eligible • Refigerated warehouses and distribution centers are not eligible | E201: Gas or Electric | F201: Any | G201: each | H201: 11000 | I201: 0 | J201: 0 | L201: 301 | M201: HISPDDRWLKINCOOLR
B202: Advanced Controls for Walk-in Coolers/Freezers | C202: • Controller must be installed on a single walk-in cooler/freezer or a single condensing unit connected to multiple daisy-chained evaporator units of the same walk-in type • X-Line condensing units are not eligible • Controls installed on walk-in units in industrial warehouses are not eligible • Controls installed in units >3,000 ft2 are not eligible • Controls installed on reach-in refrigerated cases, multiplex, or rack refrigeration systems are not eligible • Qualifying control devices may include the following (other controls would require program verification to qualify): • KE2 Therm Evaporator Efficiency Controller • intelliGen Refrigeration Controller • EcoNet Enabled Unit Coolers | E202: Electric | F202: Any | G202: each | H202: 750 | I202: 0 | J202: 0 | L202: 300 | M202: COOLFREZRAC
... 23 more rows

Sheet Measure Totals (hidden)
B1: Measure Totals
B4: Description | C4: Product Code | D4: Product Version ID | E4: Incentive / unit | F4: kWh / unit | G4: Therms / unit | H4: Ele allocation | I4: Gas allocation | J4: Quantity | K4: Elec Savings | L4: Elec Incentive | M4: Gas Savings | N4: Gas Incentive | O4: Total Incentive | P4: Incremental Cost
B5: Commercial Pump VSD_Heating_New Pump_5 HP (4.51 to 6.00 HP) | C5: CPUMPVSDHEAT5HP | D5: 15287 | E5: =IFERROR(_xlfn.XLOOKUP($C5,ProductCode,DefaultIncentive,0,0),0) -> 500 | F5: =IFERROR(_xlfn.XLOOKUP($C5,ProductCode,DefaultKwh,0,0),0) -> 1826.51 | G5: =IFERROR(_xlfn.XLOOKUP($C5,ProductCode,DefaultTherms,0,0),0) -> 0 | H5: =IFERROR((_xlfn.XLOOKUP($C5,ProductCode,AllocationElectric,0,0))/100,0) -> 1 | I5: =IFERROR((_xlfn.XLOOKUP($C5,ProductCode,AllocationGas,0,0))/100,0) -> 0 | J5: =IFERROR(SUMIFS('Equipment Options'!I:I,'Equipment Options'!M:M,$C5),"") -> 0 | K5: =J5*F5 -> 0 | L5: =O5*H5 -> 0 | M5: =J5*G5 -> 0 | N5: =O5*I5 -> 0 | O5: =J5*E5 -> 0 | P5: =(_xlfn.XLOOKUP($C5,ProductCode,IncrementalCost,"",0))*J5 -> 0
B6: Comm Pump VSD_Cooling_New Pump_4 HP (3.51 to 4.50 HP) | C6: CPUMPVSDCOOL4HP | D6: 15288 | E6: 450 | F6: 1438.37 | G6: 0 | H6: 1 | I6: 0 | J6: =IFERROR(SUMIFS('Equipment Options'!I:I,'Equipment Options'!M:M,$C6),"") -> 0 | K6: =J6*F6 -> 0 | L6: =O6*H6 -> 0 | M6: =J6*G6 -> 0 | N6: =O6*I6 -> 0 | O6: =J6*E6 -> 0 | P6: =(_xlfn.XLOOKUP($C6,ProductCode,IncrementalCost,"",0))*J6 -> 0
B7: Comm Pump VSD_Cooling_New Pump_3 HP (2.51 to 3.50 HP) | C7: CPUMPVSDCOOL3HP | D7: 15289 | E7: 350 | F7: 1078.78 | G7: 0 | H7: 1 | I7: 0 | J7: =IFERROR(SUMIFS('Equipment Options'!I:I,'Equipment Options'!M:M,$C7),"") -> 0 | K7: 0 | L7: 0 | M7: 0 | N7: 0 | O7: 0 | P7: 0
B8: Comm Pump VSD_Pressure Boost_New Pump_7.5 HP (6.01 to 8.00 HP) | C8: CPUMPVSDPB7P5HP | D8: 15290 | E8: 600 | F8: 2088.55 | G8: 0 | H8: 1 | I8: 0 | J8: =IFERROR(SUMIFS('Equipment Options'!I:I,'Equipment Options'!M:M,$C8),"") -> 0 | K8: 0 | L8: 0 | M8: 0 | N8: 0 | O8: 0 | P8: 0
B9: Comm Pump VSD_Pressure Boost_New Pump_4 HP (3.51 to 4.50 HP) | C9: CPUMPVSDPB4HP | D9: 15291 | E9: 450 | F9: 1113.89 | G9: 0 | H9: 1 | I9: 0 | J9: =IFERROR(SUMIFS('Equipment Options'!I:I,'Equipment Options'!M:M,$C9),"") -> 0 | K9: 0 | L9: 0 | M9: 0 | N9: 0 | O9: 0 | P9: 0
B10: Commercial Pump VSD_Heating_New Pump_0.75 HP (0.50 to 0.75 HP) | C10: CPUMPVSDHEAT0P75 | D10: 15292 | E10: 150 | F10: 273.98 | G10: 0 | H10: 1 | I10: 0 | J10: =IFERROR(SUMIFS('Equipment Options'!I:I,'Equipment Options'!M:M,$C10),"") -> 0 | K10: 0 | L10: 0 | M10: 0 | N10: 0 | O10: 0 | P10: 0
B11: Commercial Pump VSD_Heating_New Pump_4 HP (3.51 to 4.50 HP) | C11: CPUMPVSDHEAT4HP | D11: 15293 | E11: 450 | F11: 1461.2 | G11: 0 | H11: 1 | I11: 0 | J11: =IFERROR(SUMIFS('Equipment Options'!I:I,'Equipment Options'!M:M,$C11),"") -> 0 | K11: 0 | L11: 0 | M11: 0 | N11: 0 | O11: 0 | P11: 0
B12: Comm Pump VSD_Cooling Tower_New Pump_5 HP (4.51 to 6.00 HP) | C12: CPUMPVSDCOOLT5HP | D12: 15294 | E12: 500 | F12: 898.41 | G12: 0 | H12: 1 | I12: 0 | J12: =IFERROR(SUMIFS('Equipment Options'!I:I,'Equipment Options'!M:M,$C12),"") -> 0 | K12: 0 | L12: 0 | M12: 0 | N12: 0 | O12: 0 | P12: 0
B13: Comm Pump VSD_Pressure Boost_New Pump_15 HP (12.51 to 17.50 HP) | C13: CPUMPVSDPB15HP | D13: 15295 | E13: 850 | F13: 4177.09 | G13: 0 | H13: 1 | I13: 0 | J13: =IFERROR(SUMIFS('Equipment Options'!I:I,'Equipment Options'!M:M,$C13),"") -> 0 | K13: 0 | L13: 0 | M13: 0 | N13: 0 | O13: 0 | P13: 0
B14: Comm Pump VSD_Pressure Boost_New Pump_3 HP (2.51 to 3.50 HP) | C14: CPUMPVSDPB3HP | D14: 15296 | E14: 350 | F14: 835.42 | G14: 0 | H14: 1 | I14: 0 | J14: =IFERROR(SUMIFS('Equipment Options'!I:I,'Equipment Options'!M:M,$C14),"") -> 0 | K14: 0 | L14: 0 | M14: 0 | N14: 0 | O14: 0 | P14: 0
B15: Comm Pump VSD_Pressure Boost_New Pump_10 HP (8.01 to 12.50 HP) | C15: CPUMPVSDPB10HP | D15: 15297 | E15: 700 | F15: 2784.73 | G15: 0 | H15: 1 | I15: 0 | J15: =IFERROR(SUMIFS('Equipment Options'!I:I,'Equipment Options'!M:M,$C15),"") -> 0 | K15: 0 | L15: 0 | M15: 0 | N15: 0 | O15: 0 | P15: 0
B16: Comm Pump VSD_Cooling Tower_New Pump_7.5 HP (6.01 to 8.00 HP) | C16: CPUMPVSDCOOLT7P5HP | D16: 15298 | E16: 600 | F16: 1347.61 | G16: 0 | H16: 1 | I16: 0 | J16: =IFERROR(SUMIFS('Equipment Options'!I:I,'Equipment Options'!M:M,$C16),"") -> 0 | K16: 0 | L16: 0 | M16: 0 | N16: 0 | O16: 0 | P16: 0
B17: Commercial Pump VSD_Heating_New Pump_2 HP (1.76 to 2.50 HP) | C17: CPUMPVSDHEAT2HP | D17: 15299 | E17: 300 | F17: 730.6 | G17: 0 | H17: 1 | I17: 0 | J17: =IFERROR(SUMIFS('Equipment Options'!I:I,'Equipment Options'!M:M,$C17),"") -> 0 | K17: 0 | L17: 0 | M17: 0 | N17: 0 | O17: 0 | P17: 0
B18: Comm Pump VSD_Cooling_New Pump_1 HP (0.76 to 1.25 HP) | C18: CPUMPVSDCOOL1HP | D18: 15300 | E18: 200 | F18: 359.59 | G18: 0 | H18: 1 | I18: 0 | J18: =IFERROR(SUMIFS('Equipment Options'!I:I,'Equipment Options'!M:M,$C18),"") -> 0 | K18: 0 | L18: 0 | M18: 0 | N18: 0 | O18: 0 | P18: 0
B19: Comm Pump VSD_Cooling_New Pump_2 HP (1.76 to 2.50 HP) | C19: CPUMPVSDCOOL2HP | D19: 15301 | E19: 300 | F19: 719.19 | G19: 0 | H19: 1 | I19: 0 | J19: =IFERROR(SUMIFS('Equipment Options'!I:I,'Equipment Options'!M:M,$C19),"") -> 0 | K19: 0 | L19: 0 | M19: 0 | N19: 0 | O19: 0 | P19: 0
B20: Comm Pump VSD_Pressure Boost_New Pump_2 HP (1.76 to 2.50 HP) | C20: CPUMPVSDPB2HP | D20: 15303 | E20: 300 | F20: 556.95 | G20: 0 | H20: 1 | I20: 0 | J20: =IFERROR(SUMIFS('Equipment Options'!I:I,'Equipment Options'!M:M,$C20),"") -> 0 | K20: 0 | L20: 0 | M20: 0 | N20: 0 | O20: 0 | P20: 0
B21: Comm Pump VSD_Cooling Tower_New Pump_15 HP (12.51 to 17.50 HP) | C21: CPUMPVSDCOOLT15HP | D21: 15304 | E21: 850 | F21: 2695.22 | G21: 0 | H21: 1 | I21: 0 | J21: =IFERROR(SUMIFS('Equipment Options'!I:I,'Equipment Options'!M:M,$C21),"") -> 0 | K21: 0 | L21: 0 | M21: 0 | N21: 0 | O21: 0 | P21: 0
B22: Comm Pump VSD_Pressure Boost_New Pump_20 HP (17.51 to 22.50 HP) | C22: CPUMPVSDPB20HP | D22: 15305 | E22: 1000 | F22: 5569.46 | G22: 0 | H22: 1 | I22: 0 | J22: =IFERROR(SUMIFS('Equipment Options'!I:I,'Equipment Options'!M:M,$C22),"") -> 0 | K22: 0 | L22: 0 | M22: 0 | N22: 0 | O22: 0 | P22: 0
B23: Comm Pump VSD_Pressure Boost_New Pump_5 HP (4.51 to 6.00 HP) | C23: CPUMPVSDPB5HP | D23: 15306 | E23: 500 | F23: 1392.36 | G23: 0 | H23: 1 | I23: 0 | J23: =IFERROR(SUMIFS('Equipment Options'!I:I,'Equipment Options'!M:M,$C23),"") -> 0 | K23: 0 | L23: 0 | M23: 0 | N23: 0 | O23: 0 | P23: 0
B24: Comm Pump VSD_Cooling_New Pump_0.75 HP (0.50 to 0.75 HP) | C24: CPUMPVSDCOOL0P75HP | D24: 15307 | E24: 150 | F24: 269.69 | G24: 0 | H24: 1 | I24: 0 | J24: =IFERROR(SUMIFS('Equipment Options'!I:I,'Equipment Options'!M:M,$C24),"") -> 0 | K24: 0 | L24: 0 | M24: 0 | N24: 0 | O24: 0 | P24: 0
B25: Comm Pump VSD_Cooling_New Pump_1.5 HP (1.26 to 1.75 HP) | C25: CPUMPVSDCOOL1P5HP | D25: 15308 | E25: 250 | F25: 539.39 | G25: 0 | H25: 1 | I25: 0 | J25: =IFERROR(SUMIFS('Equipment Options'!I:I,'Equipment Options'!M:M,$C25),"") -> 0 | K25: 0 | L25: 0 | M25: 0 | N25: 0 | O25: 0 | P25: 0
B26: Commercial Pump VSD_Heating_New Pump_7.5 HP (6.01 to 8.00 HP) | C26: CPUMPVSDHEAT7P5HP | D26: 15309 | E26: 600 | F26: 2739.76 | G26: 0 | H26: 1 | I26: 0 | J26: =IFERROR(SUMIFS('Equipment Options'!I:I,'Equipment Options'!M:M,$C26),"") -> 0 | K26: 0 | L26: 0 | M26: 0 | N26: 0 | O26: 0 | P26: 0
B27: Comm Pump VSD_Cooling_New Pump_5 HP (4.51 to 6.00 HP) | C27: CPUMPVSDCOOL5HP | D27: 15310 | E27: 500 | F27: 1797.97 | G27: 0 | H27: 1 | I27: 0 | J27: =IFERROR(SUMIFS('Equipment Options'!I:I,'Equipment Options'!M:M,$C27),"") -> 0 | K27: 0 | L27: 0 | M27: 0 | N27: 0 | O27: 0 | P27: 0
B28: Commercial Pump VSD_Heating_New Pump_3 HP (2.51 to 3.50 HP) | C28: CPUMPVSDHEAT3HP | D28: 15311 | E28: 350 | F28: 1095.9 | G28: 0 | H28: 1 | I28: 0 | J28: =IFERROR(SUMIFS('Equipment Options'!I:I,'Equipment Options'!M:M,$C28),"") -> 0 | K28: 0 | L28: 0 | M28: 0 | N28: 0 | O28: 0 | P28: 0
B29: Commercial Pump VSD_Heating_New Pump_1.5 HP (1.26 to 1.75 HP) | C29: CPUMPVSDHEAT1P5HP | D29: 15312 | E29: 250 | F29: 547.95 | G29: 0 | H29: 1 | I29: 0 | J29: =IFERROR(SUMIFS('Equipment Options'!I:I,'Equipment Options'!M:M,$C29),"") -> 0 | K29: 0 | L29: 0 | M29: 0 | N29: 0 | O29: 0 | P29: 0
B30: Commercial Pump VSD_Heating_New Pump_1 HP (0.76 to 1.25 HP) | C30: CPUMPVSDHEAT1HP | D30: 15313 | E30: 200 | F30: 365.3 | G30: 0 | H30: 1 | I30: 0 | J30: =IFERROR(SUMIFS('Equipment Options'!I:I,'Equipment Options'!M:M,$C30),"") -> 0 | K30: 0 | L30: 0 | M30: 0 | N30: 0 | O30: 0 | P30: 0
B31: Comm Pump VSD_Pressure Boost_New Pump_1.5 HP (1.26 to 1.75 HP) | C31: CPUMPVSDPB1P5HP | D31: 15314 | E31: 250 | F31: 417.71 | G31: 0 | H31: 1 | I31: 0 | J31: =IFERROR(SUMIFS('Equipment Options'!I:I,'Equipment Options'!M:M,$C31),"") -> 0 | K31: 0 | L31: 0 | M31: 0 | N31: 0 | O31: 0 | P31: 0
B32: Comm Pump VSD_Cooling Tower_New Pump_20 HP (17.51 to 22.50 HP) | C32: CPUMPVSDCOOLT20HP | D32: 15315 | E32: 1000 | F32: 3593.63 | G32: 0 | H32: 1 | I32: 0 | J32: =IFERROR(SUMIFS('Equipment Options'!I:I,'Equipment Options'!M:M,$C32),"") -> 0 | K32: 0 | L32: 0 | M32: 0 | N32: 0 | O32: 0 | P32: 0
B33: Comm Pump VSD_Cooling Tower_New Pump_10 HP (8.01 to 12.50 HP) | C33: CPUMPVSDCOOLT10HP | D33: 15316 | E33: 700 | F33: 1796.82 | G33: 0 | H33: 1 | I33: 0 | J33: =IFERROR(SUMIFS('Equipment Options'!I:I,'Equipment Options'!M:M,$C33),"") -> 0 | K33: 0 | L33: 0 | M33: 0 | N33: 0 | O33: 0 | P33: 0
B34: Comm Pump VSD_Cooling Tower_New Pump_4 HP (3.51 to 4.50 HP) | C34: CPUMPVSDCOOLT4HP | D34: 15317 | E34: 450 | F34: 718.73 | G34: 0 | H34: 1 | I34: 0 | J34: =IFERROR(SUMIFS('Equipment Options'!I:I,'Equipment Options'!M:M,$C34),"") -> 0 | K34: 0 | L34: 0 | M34: 0 | N34: 0 | O34: 0 | P34: 0
B35: Comm Pump VSD_Cooling Tower_New Pump_3 HP (2.51 to 3.50 HP) | C35: CPUMPVSDCOOLT3HP | D35: 15318 | E35: 350 | F35: 539.04 | G35: 0 | H35: 1 | I35: 0 | J35: =IFERROR(SUMIFS('Equipment Options'!I:I,'Equipment Options'!M:M,$C35),"") -> 0 | K35: 0 | L35: 0 | M35: 0 | N35: 0 | O35: 0 | P35: 0
B36: Comm Pump VSD_Cooling Tower_New Pump_2 HP (1.76 to 2.50 HP) | C36: CPUMPVSDCOOLT2HP | D36: 15319 | E36: 300 | F36: 359.36 | G36: 0 | H36: 1 | I36: 0 | J36: =IFERROR(SUMIFS('Equipment Options'!I:I,'Equipment Options'!M:M,$C36),"") -> 0 | K36: 0 | L36: 0 | M36: 0 | N36: 0 | O36: 0 | P36: 0
B37: Comm Pump VSD_Cooling Tower_New Pump_1.5 HP (1.26 to 1.75 HP) | C37: CPUMPVSDCOOLT1P5HP | D37: 15320 | E37: 250 | F37: 269.52 | G37: 0 | H37: 1 | I37: 0 | J37: =IFERROR(SUMIFS('Equipment Options'!I:I,'Equipment Options'!M:M,$C37),"") -> 0 | K37: 0 | L37: 0 | M37: 0 | N37: 0 | O37: 0 | P37: 0
B38: Multifamily 199 kBth/h Condensing Tankless water heater | C38: MFTANKLESS199 | D38: 15429 | E38: 140 | F38: 0 | G38: 25.67 | H38: 0 | I38: 1 | J38: =IFERROR(SUMIFS('Equipment Options'!I:I,'Equipment Options'!M:M,$C38),"") -> 0 | K38: 0 | L38: 0 | M38: 0 | N38: 0 | O38: 0 | P38: 0
B39: Lighting, Interior, 2019 Code Calc | C39: LIN2019CC | D39: 16185 | E39: 0 | F39: 0 | G39: 0 | H39: 1 | I39: 0 | J39: =IFERROR(SUMIFS('Equipment Options'!I:I,'Equipment Options'!M:M,$C39),"") -> 0 | K39: 0 | L39: 0 | M39: 0 | N39: 0 | O39: 0 | P39: 0
B40: Server Closet/Telecom Room Mini-Split Air Conditioner | C40: MINISPLITAC | D40: 17692 | E40: 250 | F40: 417.14 | G40: 0 | H40: 1 | I40: 0 | J40: =IFERROR(SUMIFS('Equipment Options'!I:I,'Equipment Options'!M:M,$C40),"") -> 0 | K40: 0 | L40: 0 | M40: 0 | N40: 0 | O40: 0 | P40: 0
B41: Server Closet/Telecom Room Mini-Split Heat Pumps | C41: MINISPLITHP | D41: 17693 | E41: 250 | F41: 417.14 | G41: 0 | H41: 1 | I41: 0 | J41: =IFERROR(SUMIFS('Equipment Options'!I:I,'Equipment Options'!M:M,$C41),"") -> 0 | K41: 0 | L41: 0 | M41: 0 | N41: 0 | O41: 0 | P41: 0
B42: Multifamily Refrigerator | C42: ESTARFRIDGE | D42: 17915 | E42: 70 | F42: 75.77 | G42: 0 | H42: 1 | I42: 0 | J42: =IFERROR(SUMIFS('Equipment Options'!I:I,'Equipment Options'!M:M,$C42),"") -> 0 | K42: 0 | L42: 0 | M42: 0 | N42: 0 | O42: 0 | P42: 0
B43: Energy Star Most Efficient (ESME) Multifamily Refrigerator | C43: ESMEFRIDGE | D43: 17916 | E43: 70 | F43: 95.8 | G43: 0 | H43: 1 | I43: 0 | J43: =IFERROR(SUMIFS('Equipment Options'!I:I,'Equipment Options'!M:M,$C43),"") -> 0 | K43: 0 | L43: 0 | M43: 0 | N43: 0 | O43: 0 | P43: 0
B44: Ozone Laundry System 126-400 Lbs Capacity - Ele WH | C44: OZONSYS126400EWH | D44: 17926 | E44: 15000 | F44: 271970.52 | G44: 0 | H44: 1 | I44: 0 | J44: =IFERROR(SUMIFS('Equipment Options'!I:I,'Equipment Options'!M:M,$C44),"") -> 0 | K44: 0 | L44: 0 | M44: 0 | N44: 0 | O44: 0 | P44: 0
B45: Ozone Laundry System 401-600 Lbs Capacity - Gas WH GOT | C45: OZONSYS401600GWHGOT | D45: 17927 | E45: 25000 | F45: 0 | G45: 22322.85 | H45: 0 | I45: 1 | J45: =IFERROR(SUMIFS('Equipment Options'!I:I,'Equipment Options'!M:M,$C45),"") -> 0 | K45: 0 | L45: 0 | M45: 0 | N45: 0 | O45: 0 | P45: 0
B46: Ozone Laundry System 401-600 Lbs Capacity - Gas WH Full Terr | C46: OZONSYS401600GWHFULL | D46: 17928 | E46: 25000 | F46: 5131.77 | G46: 22322.85 | H46: 0.01 | I46: 0.99 | J46: =IFERROR(SUMIFS('Equipment Options'!I:I,'Equipment Options'!M:M,$C46),"") -> 0 | K46: 0 | L46: 0 | M46: 0 | N46: 0 | O46: 0 | P46: 0
B47: Ozone Laundry System 401-600 Lbs Capacity - Ele WH | C47: OZONSYS401600EWH | D47: 17929 | E47: 25000 | F47: 518039.09 | G47: 0 | H47: 1 | I47: 0 | J47: =IFERROR(SUMIFS('Equipment Options'!I:I,'Equipment Options'!M:M,$C47),"") -> 0 | K47: 0 | L47: 0 | M47: 0 | N47: 0 | O47: 0 | P47: 0
B48: Ozone Laundry System > 600 Lbs Capacity - Gas WH GOT | C48: OZONSYS600GWHGOT | D48: 17930 | E48: 30000 | F48: 0 | G48: 31251.99 | H48: 0 | I48: 1 | J48: =IFERROR(SUMIFS('Equipment Options'!I:I,'Equipment Options'!M:M,$C48),"") -> 0 | K48: 0 | L48: 0 | M48: 0 | N48: 0 | O48: 0 | P48: 0
B49: Ozone Laundry System > 600 Lbs Capacity - Gas WH Full Terr | C49: OZONSYS600GWHFULL | D49: 17931 | E49: 30000 | F49: 7184.48 | G49: 31251.99 | H49: 0.01 | I49: 0.99 | J49: =IFERROR(SUMIFS('Equipment Options'!I:I,'Equipment Options'!M:M,$C49),"") -> 0 | K49: 0 | L49: 0 | M49: 0 | N49: 0 | O49: 0 | P49: 0
B50: Ozone Laundry System > 600 Lbs Capacity - Ele WH | C50: OZONSYS600EWH | D50: 17932 | E50: 30000 | F50: 725254.73 | G50: 0 | H50: 1 | I50: 0 | J50: =IFERROR(SUMIFS('Equipment Options'!I:I,'Equipment Options'!M:M,$C50),"") -> 0 | K50: 0 | L50: 0 | M50: 0 | N50: 0 | O50: 0 | P50: 0
B51: Ozone Laundry System < 75 Lbs Capacity - Gas WH Full Terr | C51: OZONSYS75GWHFULL | D51: 17933 | E51: 5000 | F51: 513.18 | G51: 2232.29 | H51: 0.01 | I51: 0.99 | J51: =IFERROR(SUMIFS('Equipment Options'!I:I,'Equipment Options'!M:M,$C51),"") -> 0 | K51: 0 | L51: 0 | M51: 0 | N51: 0 | O51: 0 | P51: 0
B52: Ozone Laundry System < 75 Lbs Capacity - Ele WH | C52: OZONSYS75EWH | D52: 17934 | E52: 5000 | F52: 51803.91 | G52: 0 | H52: 1 | I52: 0 | J52: =IFERROR(SUMIFS('Equipment Options'!I:I,'Equipment Options'!M:M,$C52),"") -> 0 | K52: 0 | L52: 0 | M52: 0 | N52: 0 | O52: 0 | P52: 0
B53: Ozone Laundry System 75-125 Lbs Capacity - Gas WH GOT | C53: OZONSYS75125GWHGOT | D53: 17935 | E53: 7500 | F53: 0 | G53: 4464.57 | H53: 0 | I53: 1 | J53: =IFERROR(SUMIFS('Equipment Options'!I:I,'Equipment Options'!M:M,$C53),"") -> 0 | K53: 0 | L53: 0 | M53: 0 | N53: 0 | O53: 0 | P53: 0
B54: Ozone Laundry System 75-125 Lbs Capacity - Gas WH Full Terr | C54: OZONSYS75125GWHFULL | D54: 17936 | E54: 7500 | F54: 1026.35 | G54: 4464.57 | H54: 0.01 | I54: 0.99 | J54: =IFERROR(SUMIFS('Equipment Options'!I:I,'Equipment Options'!M:M,$C54),"") -> 0 | K54: 0 | L54: 0 | M54: 0 | N54: 0 | O54: 0 | P54: 0
B55: Ozone Laundry System 75-125 Lbs Capacity - Ele WH | C55: OZONSYS75125EWH | D55: 17937 | E55: 7500 | F55: 103607.82 | G55: 0 | H55: 1 | I55: 0 | J55: =IFERROR(SUMIFS('Equipment Options'!I:I,'Equipment Options'!M:M,$C55),"") -> 0 | K55: 0 | L55: 0 | M55: 0 | N55: 0 | O55: 0 | P55: 0
B56: Ozone Laundry System 126-400 Lbs Capacity - Gas WH GOT | C56: OZONSYS126400GWHGOT | D56: 17938 | E56: 15000 | F56: 0 | G56: 11719.5 | H56: 0 | I56: 1 | J56: =IFERROR(SUMIFS('Equipment Options'!I:I,'Equipment Options'!M:M,$C56),"") -> 0 | K56: 0 | L56: 0 | M56: 0 | N56: 0 | O56: 0 | P56: 0
B57: Ozone Laundry System 126-400 Lbs Capacity - Gas WH Full Terr | C57: OZONSYS126400GWHFULL | D57: 17939 | E57: 15000 | F57: 2694.18 | G57: 11719.5 | H57: 0.01 | I57: 0.99 | J57: =IFERROR(SUMIFS('Equipment Options'!I:I,'Equipment Options'!M:M,$C57),"") -> 0 | K57: 0 | L57: 0 | M57: 0 | N57: 0 | O57: 0 | P57: 0
B58: Ozone Laundry System < 75 Lbs Capacity - Gas WH GOT | C58: OZONSYS75GWHGOT | D58: 17947 | E58: 5000 | F58: 0 | G58: 2232.29 | H58: 0 | I58: 1 | J58: =IFERROR(SUMIFS('Equipment Options'!I:I,'Equipment Options'!M:M,$C58),"") -> 0 | K58: 0 | L58: 0 | M58: 0 | N58: 0 | O58: 0 | P58: 0
B59: Commercial Washer Gas/Other Dryer Ele WH, Energy Star, EOT | C59: COMWASHEDRYGET | D59: 17948 | E59: 150 | F59: 427.56 | G59: 0 | H59: 1 | I59: 0 | J59: =IFERROR(SUMIFS('Equipment Options'!I:I,'Equipment Options'!M:M,$C59),"") -> 0 | K59: 0 | L59: 0 | M59: 0 | N59: 0 | O59: 0 | P59: 0
B60: Commercial Washer Ele Dryer Gas/Other WH, Energy Star, EOT | C60: COMWASHGDRYEET | D60: 17949 | E60: 150 | F60: 804.37 | G60: 0 | H60: 1 | I60: 0 | J60: =IFERROR(SUMIFS('Equipment Options'!I:I,'Equipment Options'!M:M,$C60),"") -> 0 | K60: 0 | L60: 0 | M60: 0 | N60: 0 | O60: 0 | P60: 0
B61: MF Commercial Washer Gas/Other Dryer Ele WH, Energy Star, EOT | C61: COMWASHEDRYGMFET | D61: 17950 | E61: 150 | F61: 312.74 | G61: 0 | H61: 1 | I61: 0 | J61: =IFERROR(SUMIFS('Equipment Options'!I:I,'Equipment Options'!M:M,$C61),"") -> 0 | K61: 0 | L61: 0 | M61: 0 | N61: 0 | O61: 0 | P61: 0
B62: MF Commercial Washer Ele Dryer Gas/Other WH, Energy Star, EOT | C62: COMWASHGDRYEMFET | D62: 17951 | E62: 150 | F62: 588.37 | G62: 0 | H62: 1 | I62: 0 | J62: =IFERROR(SUMIFS('Equipment Options'!I:I,'Equipment Options'!M:M,$C62),"") -> 0 | K62: 0 | L62: 0 | M62: 0 | N62: 0 | O62: 0 | P62: 0
B63: Commercial Washer Gas Dryer Gas WH, Energy Star | C63: COMWASHGDRYGFT | D63: 17952 | E63: 350 | F63: 64.09 | G63: 44.86 | H63: 0.08 | I63: 0.92 | J63: =IFERROR(SUMIFS('Equipment Options'!I:I,'Equipment Options'!M:M,$C63),"") -> 0 | K63: 0 | L63: 0 | M63: 0 | N63: 0 | O63: 0 | P63: 0
B64: Commercial Washer Gas Dryer Ele WH, Energy Star | C64: COMWASHEDRYGFT | D64: 17953 | E64: 350 | F64: 427.56 | G64: 28.31 | H64: 0.47 | I64: 0.53 | J64: =IFERROR(SUMIFS('Equipment Options'!I:I,'Equipment Options'!M:M,$C64),"") -> 0 | K64: 0 | L64: 0 | M64: 0 | N64: 0 | O64: 0 | P64: 0
B65: Commercial Washer Ele Dryer Gas WH, Energy Star | C65: COMWASHGDRYEFT | D65: 17954 | E65: 400 | F65: 804.37 | G65: 16.55 | H65: 0.74 | I65: 0.26 | J65: =IFERROR(SUMIFS('Equipment Options'!I:I,'Equipment Options'!M:M,$C65),"") -> 0 | K65: 0 | L65: 0 | M65: 0 | N65: 0 | O65: 0 | P65: 0
B66: Commercial Washer Ele Dryer Ele WH, Energy Star | C66: COMWASHEDRYEFT | D66: 17955 | E66: 400 | F66: 1167.84 | G66: 0 | H66: 1 | I66: 0 | J66: =IFERROR(SUMIFS('Equipment Options'!I:I,'Equipment Options'!M:M,$C66),"") -> 0 | K66: 0 | L66: 0 | M66: 0 | N66: 0 | O66: 0 | P66: 0
B67: MF Commercial Washer Gas Dryer Gas WH, Energy Star | C67: COMWASHGDRYGMFFT | D67: 17956 | E67: 350 | F67: 46.88 | G67: 32.81 | H67: 0.08 | I67: 0.92 | J67: =IFERROR(SUMIFS('Equipment Options'!I:I,'Equipment Options'!M:M,$C67),"") -> 0 | K67: 0 | L67: 0 | M67: 0 | N67: 0 | O67: 0 | P67: 0
B68: MF Commercial Washer Gas Dryer Ele WH, Energy Star | C68: COMWASHEDRYGMFFT | D68: 17957 | E68: 350 | F68: 312.74 | G68: 20.71 | H68: 0.48 | I68: 0.52 | J68: =IFERROR(SUMIFS('Equipment Options'!I:I,'Equipment Options'!M:M,$C68),"") -> 0 | K68: 0 | L68: 0 | M68: 0 | N68: 0 | O68: 0 | P68: 0
B69: MF Commercial Washer Ele Dryer Gas WH, Energy Star | C69: COMWASHGDRYEMFFT | D69: 17958 | E69: =IFERROR(_xlfn.XLOOKUP($C69,ProductCode,DefaultIncentive,0,0),0) -> 400 | F69: =IFERROR(_xlfn.XLOOKUP($C69,ProductCode,DefaultKwh,0,0),0) -> 588.37 | G69: =IFERROR(_xlfn.XLOOKUP($C69,ProductCode,DefaultTherms,0,0),0) -> 12.1 | H69: =IFERROR((_xlfn.XLOOKUP($C69,ProductCode,AllocationElectric,0,0))/100,0) -> 0.75 | I69: =IFERROR((_xlfn.XLOOKUP($C69,ProductCode,AllocationGas,0,0))/100,0) -> 0.25 | J69: =IFERROR(SUMIFS('Equipment Options'!I:I,'Equipment Options'!M:M,$C69),"") -> 0 | K69: 0 | L69: 0 | M69: 0 | N69: 0 | O69: 0 | P69: 0
B70: MF Commercial Washer Ele Dryer Ele WH, Energy Star | C70: COMWASHEDRYEMFFT | D70: 17959 | E70: 400 | F70: 854.23 | G70: 0 | H70: 1 | I70: 0 | J70: =IFERROR(SUMIFS('Equipment Options'!I:I,'Equipment Options'!M:M,$C70),"") -> 0 | K70: =J70*F70 -> 0 | L70: =O70*H70 -> 0 | M70: =J70*G70 -> 0 | N70: =O70*I70 -> 0 | O70: =J70*E70 -> 0 | P70: =(_xlfn.XLOOKUP($C70,ProductCode,IncrementalCost,"",0))*J70 -> 0
B71: Commercial Washer Gas Dryer Gas WH, Energy Star, GOT | C71: COMWASHGDRYGGT | D71: 17960 | E71: 100 | F71: 0 | G71: 44.86 | H71: 0 | I71: 1 | J71: =IFERROR(SUMIFS('Equipment Options'!I:I,'Equipment Options'!M:M,$C71),"") -> 0 | K71: 0 | L71: 0 | M71: 0 | N71: 0 | O71: 0 | P71: 0
B72: Commercial Washer Gas Dryer Ele WH, Energy Star, GOT | C72: COMWASHEDRYGGT | D72: 17961 | E72: 100 | F72: 0 | G72: 28.31 | H72: 0 | I72: 1 | J72: =IFERROR(SUMIFS('Equipment Options'!I:I,'Equipment Options'!M:M,$C72),"") -> 0 | K72: 0 | L72: 0 | M72: 0 | N72: 0 | O72: 0 | P72: 0
B73: Commercial Washer Ele Dryer Gas WH, Energy Star, GOT | C73: COMWASHGDRYEGT | D73: 17962 | E73: 100 | F73: 0 | G73: 16.55 | H73: 0 | I73: 1 | J73: =IFERROR(SUMIFS('Equipment Options'!I:I,'Equipment Options'!M:M,$C73),"") -> 0 | K73: 0 | L73: 0 | M73: 0 | N73: 0 | O73: 0 | P73: 0
B74: MF Commercial Washer Gas Dryer Gas WH, Energy Star, GOT | C74: COMWASHGDRYGMFGT | D74: 17963 | E74: 100 | F74: 0 | G74: 32.81 | H74: 0 | I74: 1 | J74: =IFERROR(SUMIFS('Equipment Options'!I:I,'Equipment Options'!M:M,$C74),"") -> 0 | K74: 0 | L74: 0 | M74: 0 | N74: 0 | O74: 0 | P74: 0
B75: MF Commercial Washer Gas Dryer Ele WH, Energy Star, GOT | C75: COMWASHEDRYGMFGT | D75: 17964 | E75: 100 | F75: 0 | G75: 20.71 | H75: 0 | I75: 1 | J75: =IFERROR(SUMIFS('Equipment Options'!I:I,'Equipment Options'!M:M,$C75),"") -> 0 | K75: 0 | L75: 0 | M75: 0 | N75: 0 | O75: 0 | P75: 0
B76: MF Commercial Washer Ele Dryer Gas WH, Energy Star, GOT | C76: COMWASHGDRYEMFGT | D76: 17965 | E76: 100 | F76: 0 | G76: 12.1 | H76: 0 | I76: 1 | J76: =IFERROR(SUMIFS('Equipment Options'!I:I,'Equipment Options'!M:M,$C76),"") -> 0 | K76: 0 | L76: 0 | M76: 0 | N76: 0 | O76: 0 | P76: 0
B77: Commercial Ice Maker, Enrgy Str, Batch SCU, 200-4,000 lb/day | C77: ICESCUBATCH | D77: 17966 | E77: 180 | F77: 559.25 | G77: 0 | H77: 1 | I77: 0 | J77: =IFERROR(SUMIFS('Equipment Options'!I:I,'Equipment Options'!M:M,$C77),"") -> 0 | K77: 0 | L77: 0 | M77: 0 | N77: 0 | O77: 0 | P77: 0
B78: Commercial Ice Maker, Enrgy Str, Batch RCU, 988-4,000 lb/day | C78: ICERCUBATCH | D78: 17967 | E78: 400 | F78: 1244.53 | G78: 0 | H78: 1 | I78: 0 | J78: =IFERROR(SUMIFS('Equipment Options'!I:I,'Equipment Options'!M:M,$C78),"") -> 0 | K78: 0 | L78: 0 | M78: 0 | N78: 0 | O78: 0 | P78: 0
B79: Commercial Ice Maker, Enrgy Str, Cont RCU, 800-4,000 lb/day | C79: ICERCUCONT | D79: 17968 | E79: 400 | F79: 4207.47 | G79: 0 | H79: 1 | I79: 0 | J79: =IFERROR(SUMIFS('Equipment Options'!I:I,'Equipment Options'!M:M,$C79),"") -> 0 | K79: 0 | L79: 0 | M79: 0 | N79: 0 | O79: 0 | P79: 0
B80: Commercial Ice Maker, Enrgy Str, Cont IMH, 820-4,000 lb/day | C80: ICEIMHCONT | D80: 17969 | E80: 400 | F80: 1138.52 | G80: 0 | H80: 1 | I80: 0 | J80: =IFERROR(SUMIFS('Equipment Options'!I:I,'Equipment Options'!M:M,$C80),"") -> 0 | K80: 0 | L80: 0 | M80: 0 | N80: 0 | O80: 0 | P80: 0
B81: Commercial Ice Maker, Energy Star, Batch IMH, 1,500-4,000 lb/day | C81: ICEIMHBATCH | D81: 17970 | E81: 400 | F81: 1831.57 | G81: 0 | H81: 1 | I81: 0 | J81: =IFERROR(SUMIFS('Equipment Options'!I:I,'Equipment Options'!M:M,$C81),"") -> 0 | K81: 0 | L81: 0 | M81: 0 | N81: 0 | O81: 0 | P81: 0
B82: Energy Star Emerging Tech Award (ESETA) Multifamily Refrigerator | C82: ESETAFRIDGE | D82: 17987 | E82: 70 | F82: 135.88 | G82: 0 | H82: 1 | I82: 0 | J82: =IFERROR(SUMIFS('Equipment Options'!I:I,'Equipment Options'!M:M,$C82),"") -> 0 | K82: 0 | L82: 0 | M82: 0 | N82: 0 | O82: 0 | P82: 0
B83: Cooler w/ Door - Remote Condensing, Horiz Low Temp - Gas | C83: COOLCASEDRRCHZLOWGAS | D83: 17988 | E83: 150 | F83: 500.36 | G83: 15.91 | H83: 0.57 | I83: 0.43 | J83: =IFERROR(SUMIFS('Equipment Options'!I:I,'Equipment Options'!M:M,$C83),"") -> 0 | K83: 0 | L83: 0 | M83: 0 | N83: 0 | O83: 0 | P83: 0
B84: Cooler w/ Door - Remote Condensing, Horiz Med Temp - Gas | C84: COOLCASEDRRCHZMEDGAS | D84: 17989 | E84: 150 | F84: 282.1 | G84: 25.68 | H84: 0.32 | I84: 0.68 | J84: =IFERROR(SUMIFS('Equipment Options'!I:I,'Equipment Options'!M:M,$C84),"") -> 0 | K84: 0 | L84: 0 | M84: 0 | N84: 0 | O84: 0 | P84: 0
B85: Cooler w/ Door - Remote Condensing, Vert Med Temp - Gas | C85: COOLCASEDRRCVTMEDGAS | D85: 17990 | E85: 150 | F85: 729.34 | G85: 66.4 | H85: 0.32 | I85: 0.68 | J85: =IFERROR(SUMIFS('Equipment Options'!I:I,'Equipment Options'!M:M,$C85),"") -> 0 | K85: 0 | L85: 0 | M85: 0 | N85: 0 | O85: 0 | P85: 0
B86: Cooler w/ Door - Remote Condensing, Horiz Low Temp - Gas EOT | C86: COOLCASEDRRCHZLOWEOT | D86: 17991 | E86: 150 | F86: 500.36 | G86: 0 | H86: 1 | I86: 0 | J86: =IFERROR(SUMIFS('Equipment Options'!I:I,'Equipment Options'!M:M,$C86),"") -> 0 | K86: 0 | L86: 0 | M86: 0 | N86: 0 | O86: 0 | P86: 0
B87: Cooler w/ Door - Remote Condensing, Vert Med Temp - Gas EOT | C87: COOLCASEDRRCVTMEDEOT | D87: 17992 | E87: 150 | F87: 729.34 | G87: 0 | H87: 1 | I87: 0 | J87: =IFERROR(SUMIFS('Equipment Options'!I:I,'Equipment Options'!M:M,$C87),"") -> 0 | K87: 0 | L87: 0 | M87: 0 | N87: 0 | O87: 0 | P87: 0
B88: Cooler w/ Door - Remote Condensing, Horiz Med Temp - Gas EOT | C88: COOLCASEDRRCHZMEDEOT | D88: 17993 | E88: 150 | F88: 282.1 | G88: 0 | H88: 1 | I88: 0 | J88: =IFERROR(SUMIFS('Equipment Options'!I:I,'Equipment Options'!M:M,$C88),"") -> 0 | K88: 0 | L88: 0 | M88: 0 | N88: 0 | O88: 0 | P88: 0
B89: Cooler w/ Door - Remote Condensing, Horiz Low Temp - GOT | C89: COOLCASEDRRCHZLOWGOT | D89: 17994 | E89: 150 | F89: 0 | G89: 15.91 | H89: 0 | I89: 1 | J89: =IFERROR(SUMIFS('Equipment Options'!I:I,'Equipment Options'!M:M,$C89),"") -> 0 | K89: 0 | L89: 0 | M89: 0 | N89: 0 | O89: 0 | P89: 0
B90: Cooler w/ Door - Remote Condensing, Horiz Med Temp - GOT | C90: COOLCASEDRRCHZMEDGOT | D90: 17995 | E90: 150 | F90: 0 | G90: 25.68 | H90: 0 | I90: 1 | J90: =IFERROR(SUMIFS('Equipment Options'!I:I,'Equipment Options'!M:M,$C90),"") -> 0 | K90: 0 | L90: 0 | M90: 0 | N90: 0 | O90: 0 | P90: 0
B91: Cooler w/ Door - Remote Condensing, Vert Med Temp - GOT | C91: COOLCASEDRRCVTMEDGOT | D91: 17996 | E91: 150 | F91: 0 | G91: 66.4 | H91: 0 | I91: 1 | J91: =IFERROR(SUMIFS('Equipment Options'!I:I,'Equipment Options'!M:M,$C91),"") -> 0 | K91: 0 | L91: 0 | M91: 0 | N91: 0 | O91: 0 | P91: 0
B92: Cooler w/ Door - Remote Condensing, Horiz Low Temp - Elec | C92: COOLCASEDRRCHZLOWELE | D92: 17997 | E92: 150 | F92: 852.29 | G92: 0 | H92: 1 | I92: 0 | J92: =IFERROR(SUMIFS('Equipment Options'!I:I,'Equipment Options'!M:M,$C92),"") -> 0 | K92: 0 | L92: 0 | M92: 0 | N92: 0 | O92: 0 | P92: 0
B93: Cooler w/ Door - Remote Condensing, Horiz Med Temp - Elec | C93: COOLCASEDRRCHZMEDELE | D93: 17998 | E93: 150 | F93: 850.19 | G93: 0 | H93: 1 | I93: 0 | J93: =IFERROR(SUMIFS('Equipment Options'!I:I,'Equipment Options'!M:M,$C93),"") -> 0 | K93: 0 | L93: 0 | M93: 0 | N93: 0 | O93: 0 | P93: 0
B94: DHP - Replacement or new HZ2 or HZ3 | C94: HPREPHZ23 | D94: 18001 | E94: 300 | F94: 461.07 | G94: 0 | H94: 1 | I94: 0 | J94: =IFERROR(SUMIFS('Equipment Options'!I:I,'Equipment Options'!M:M,$C94),"") -> 0 | K94: 0 | L94: 0 | M94: 0 | N94: 0 | O94: 0 | P94: 0
B95: DHP - Replacement or new - HZ_all CZs | C95: HPREPHZ1 | D95: 18002 | E95: 300 | F95: 410.61 | G95: 0 | H95: 1 | I95: 0 | J95: =IFERROR(SUMIFS('Equipment Options'!I:I,'Equipment Options'!M:M,$C95),"") -> 0 | K95: 0 | L95: 0 | M95: 0 | N95: 0 | O95: 0 | P95: 0
B96: On-Demand Overwrapper | C96: OVERWRAPPER | D96: 18003 | E96: 350 | F96: 1584.49 | G96: -37.57 | H96: 1 | I96: 0 | J96: =IFERROR(SUMIFS('Equipment Options'!I:I,'Equipment Options'!M:M,$C96),"") -> 0 | K96: 0 | L96: 0 | M96: 0 | N96: 0 | O96: 0 | P96: 0
B97: Cooler w/ Door - Remote Condensing, Vert Med Temp - Elec | C97: COOLCASEDRRCVTMEDELE | D97: 18008 | E97: 150 | F97: 2198.07 | G97: 0 | H97: 1 | I97: 0 | J97: =IFERROR(SUMIFS('Equipment Options'!I:I,'Equipment Options'!M:M,$C97),"") -> 0 | K97: 0 | L97: 0 | M97: 0 | N97: 0 | O97: 0 | P97: 0
B98: Two-stage Gas Valve on Clothes Dryers in On-Premises Laundry | C98: 2STAGASGVALVEOPLDRY | D98: 18010 | E98: 700 | F98: 0 | G98: 351.82 | H98: 0 | I98: 1 | J98: =IFERROR(SUMIFS('Equipment Options'!I:I,'Equipment Options'!M:M,$C98),"") -> 0 | K98: 0 | L98: 0 | M98: 0 | N98: 0 | O98: 0 | P98: 0
B99: Vertical Reach-in Refrigerator, <15, Gas Heat, EOT | C99: FRIGRCHVRT015GEOT | D99: 18040 | E99: 20 | F99: 87.71 | G99: 0 | H99: 1 | I99: 0 | J99: =IFERROR(SUMIFS('Equipment Options'!I:I,'Equipment Options'!M:M,$C99),"") -> 0 | K99: 0 | L99: 0 | M99: 0 | N99: 0 | O99: 0 | P99: 0
B100: Vertical Reach-in Refrigerator, <15, Heat Pump | C100: FRIGRCHVRT015HP | D100: 18041 | E100: 20 | F100: 77.47 | G100: 0 | H100: 1 | I100: 0 | J100: =IFERROR(SUMIFS('Equipment Options'!I:I,'Equipment Options'!M:M,$C100),"") -> 0 | K100: 0 | L100: 0 | M100: 0 | N100: 0 | O100: 0 | P100: 0
B101: Vertical Reach-in Refrigerator, <15, Gas Heat | C101: FRIGRCHVRT015GAS | D101: 18065 | E101: 20 | F101: 87.71 | G101: -0.96 | H101: 1 | I101: 0 | J101: =IFERROR(SUMIFS('Equipment Options'!I:I,'Equipment Options'!M:M,$C101),"") -> 0 | K101: 0 | L101: 0 | M101: 0 | N101: 0 | O101: 0 | P101: 0
B102: Vertical Reach-in Refrigerator, <15, Electric | C102: FRIGRCHVRT015ELE | D102: 18066 | E102: 20 | F102: 66.22 | G102: 0 | H102: 1 | I102: 0 | J102: =IFERROR(SUMIFS('Equipment Options'!I:I,'Equipment Options'!M:M,$C102),"") -> 0 | K102: 0 | L102: 0 | M102: 0 | N102: 0 | O102: 0 | P102: 0
B103: Vertical Reach-in Freezer, 15 to <30, Heat Pump | C103: FREZRCHVRT1530HP | D103: 18067 | E103: 80 | F103: 308.83 | G103: 0 | H103: 1 | I103: 0 | J103: =IFERROR(SUMIFS('Equipment Options'!I:I,'Equipment Options'!M:M,$C103),"") -> 0 | K103: 0 | L103: 0 | M103: 0 | N103: 0 | O103: 0 | P103: 0
B104: Vertical Reach-in Freezer, 15 to <30, Gas Heat | C104: FREZRCHVRT1530GAS | D104: 18068 | E104: 80 | F104: 349.62 | G104: -3.85 | H104: 1 | I104: 0 | J104: =IFERROR(SUMIFS('Equipment Options'!I:I,'Equipment Options'!M:M,$C104),"") -> 0 | K104: 0 | L104: 0 | M104: 0 | N104: 0 | O104: 0 | P104: 0
B105: Vertical Reach-in Freezer, 15 to <30, Gas Heat, EOT | C105: FREZRCHVRT1530GEOT | D105: 18069 | E105: 80 | F105: 349.62 | G105: 0 | H105: 1 | I105: 0 | J105: =IFERROR(SUMIFS('Equipment Options'!I:I,'Equipment Options'!M:M,$C105),"") -> 0 | K105: 0 | L105: 0 | M105: 0 | N105: 0 | O105: 0 | P105: 0
B106: Vertical Reach-in Freezer, 15 to <30, Electric | C106: FREZRCHVRT1530ELE | D106: 18078 | E106: 80 | F106: 263.95 | G106: 0 | H106: 1 | I106: 0 | J106: =IFERROR(SUMIFS('Equipment Options'!I:I,'Equipment Options'!M:M,$C106),"") -> 0 | K106: 0 | L106: 0 | M106: 0 | N106: 0 | O106: 0 | P106: 0
B107: Vertical Reach-in Freezer, >50, Heat Pump | C107: FREZRCHVRT50HP | D107: 18079 | E107: 325 | F107: 818.34 | G107: 0 | H107: 1 | I107: 0 | J107: =IFERROR(SUMIFS('Equipment Options'!I:I,'Equipment Options'!M:M,$C107),"") -> 0 | K107: 0 | L107: 0 | M107: 0 | N107: 0 | O107: 0 | P107: 0
B108: Vertical Reach-in Freezer, >50, Gas Heat | C108: FREZRCHVRT50GAS | D108: 18080 | E108: 325 | F108: 926.44 | G108: -10.19 | H108: 1 | I108: 0 | J108: =IFERROR(SUMIFS('Equipment Options'!I:I,'Equipment Options'!M:M,$C108),"") -> 0 | K108: 0 | L108: 0 | M108: 0 | N108: 0 | O108: 0 | P108: 0
B109: Vertical Reach-in Freezer, >50, Electric | C109: FREZRCHVRT50ELE | D109: 18081 | E109: 325 | F109: 699.43 | G109: 0 | H109: 1 | I109: 0 | J109: =IFERROR(SUMIFS('Equipment Options'!I:I,'Equipment Options'!M:M,$C109),"") -> 0 | K109: 0 | L109: 0 | M109: 0 | N109: 0 | O109: 0 | P109: 0
B110: Vertical Reach-in Freezer, >50, Gas Heat, EOT | C110: FREZRCHVRT50GEOT | D110: 18091 | E110: 325 | F110: 926.44 | G110: 0 | H110: 1 | I110: 0 | J110: =IFERROR(SUMIFS('Equipment Options'!I:I,'Equipment Options'!M:M,$C110),"") -> 0 | K110: 0 | L110: 0 | M110: 0 | N110: 0 | O110: 0 | P110: 0
B111: Vertical Reach-in Freezer, 30 to <50, Heat Pump | C111: FREZRCHVRT3050HP | D111: 18092 | E111: 190 | F111: 513.74 | G111: 0 | H111: 1 | I111: 0 | J111: =IFERROR(SUMIFS('Equipment Options'!I:I,'Equipment Options'!M:M,$C111),"") -> 0 | K111: 0 | L111: 0 | M111: 0 | N111: 0 | O111: 0 | P111: 0
B112: Vertical Reach-in Freezer, 30 to <50, Gas Heat, EOT | C112: FREZRCHVRT3050GEOT | D112: 18093 | E112: 190 | F112: 581.6 | G112: 0 | H112: 1 | I112: 0 | J112: =IFERROR(SUMIFS('Equipment Options'!I:I,'Equipment Options'!M:M,$C112),"") -> 0 | K112: 0 | L112: 0 | M112: 0 | N112: 0 | O112: 0 | P112: 0
B113: Vertical Reach-in Freezer, 30 to <50, Gas Heat | C113: FREZRCHVRT3050GAS | D113: 18094 | E113: 190 | F113: 581.6 | G113: -6.4 | H113: 1 | I113: 0 | J113: =IFERROR(SUMIFS('Equipment Options'!I:I,'Equipment Options'!M:M,$C113),"") -> 0 | K113: 0 | L113: 0 | M113: 0 | N113: 0 | O113: 0 | P113: 0
B114: Vertical Reach-in Freezer, 30 to <50, Electric | C114: FREZRCHVRT3050ELE | D114: 18095 | E114: 190 | F114: 439.09 | G114: 0 | H114: 1 | I114: 0 | J114: =IFERROR(SUMIFS('Equipment Options'!I:I,'Equipment Options'!M:M,$C114),"") -> 0 | K114: 0 | L114: 0 | M114: 0 | N114: 0 | O114: 0 | P114: 0
B115: Vertical Reach-in Freezer, <15, Heat Pump | C115: FREZRCHVRT015HP | D115: 18096 | E115: 40 | F115: 167.65 | G115: 0 | H115: 1 | I115: 0 | J115: =IFERROR(SUMIFS('Equipment Options'!I:I,'Equipment Options'!M:M,$C115),"") -> 0 | K115: 0 | L115: 0 | M115: 0 | N115: 0 | O115: 0 | P115: 0
B116: Vertical Reach-in Freezer, <15, Gas Heat, EOT | C116: FREZRCHVRT015GEOT | D116: 18097 | E116: 40 | F116: 189.79 | G116: 0 | H116: 1 | I116: 0 | J116: =IFERROR(SUMIFS('Equipment Options'!I:I,'Equipment Options'!M:M,$C116),"") -> 0 | K116: 0 | L116: 0 | M116: 0 | N116: 0 | O116: 0 | P116: 0
B117: Vertical Reach-in Freezer, <15, Gas Heat | C117: FREZRCHVRT015GAS | D117: 18098 | E117: 40 | F117: 189.79 | G117: -2.09 | H117: 1 | I117: 0 | J117: =IFERROR(SUMIFS('Equipment Options'!I:I,'Equipment Options'!M:M,$C117),"") -> 0 | K117: 0 | L117: 0 | M117: 0 | N117: 0 | O117: 0 | P117: 0
B118: Vertical Reach-in Freezer, <15, Electric | C118: FREZRCHVRT015ELE | D118: 18099 | E118: 40 | F118: 143.29 | G118: 0 | H118: 1 | I118: 0 | J118: =IFERROR(SUMIFS('Equipment Options'!I:I,'Equipment Options'!M:M,$C118),"") -> 0 | K118: 0 | L118: 0 | M118: 0 | N118: 0 | O118: 0 | P118: 0
B119: Ductless heat pump, Multifamily, w/o Baseboard Heating | C119: DHPMFNOBASE | D119: 18153 | E119: 500 | F119: 574.5 | G119: 0 | H119: 1 | I119: 0 | J119: =IFERROR(SUMIFS('Equipment Options'!I:I,'Equipment Options'!M:M,$C119),"") -> 0 | K119: 0 | L119: 0 | M119: 0 | N119: 0 | O119: 0 | P119: 0
B120: Ductless heat pump, Lodging, w/o Baseboard Heating | C120: DHPLODNOBASE | D120: 18154 | E120: 500 | F120: 699.83 | G120: 0 | H120: 1 | I120: 0 | J120: =IFERROR(SUMIFS('Equipment Options'!I:I,'Equipment Options'!M:M,$C120),"") -> 0 | K120: 0 | L120: 0 | M120: 0 | N120: 0 | O120: 0 | P120: 0
B121: Ductless heat pump, Dorm, w/o Baseboard Heating | C121: DHPDORMNOBASE | D121: 18155 | E121: 500 | F121: 581.76 | G121: 0 | H121: 1 | I121: 0 | J121: =IFERROR(SUMIFS('Equipment Options'!I:I,'Equipment Options'!M:M,$C121),"") -> 0 | K121: 0 | L121: 0 | M121: 0 | N121: 0 | O121: 0 | P121: 0
B122: Ductless heat pump, Multifamily, w/ Baseboard Heating | C122: DHPMFBASE | D122: 18156 | E122: 500 | F122: 497.88 | G122: 0 | H122: 1 | I122: 0 | J122: =IFERROR(SUMIFS('Equipment Options'!I:I,'Equipment Options'!M:M,$C122),"") -> 0 | K122: 0 | L122: 0 | M122: 0 | N122: 0 | O122: 0 | P122: 0
B123: Ductless heat pump, Lodging, w/ Baseboard Heating | C123: DHPLODBASE | D123: 18157 | E123: 500 | F123: 601.69 | G123: 0 | H123: 1 | I123: 0 | J123: =IFERROR(SUMIFS('Equipment Options'!I:I,'Equipment Options'!M:M,$C123),"") -> 0 | K123: 0 | L123: 0 | M123: 0 | N123: 0 | O123: 0 | P123: 0
B124: Ductless heat pump, Dorm, w/ Baseboard Heating | C124: DHPDORMBASE | D124: 18158 | E124: 500 | F124: 506.82 | G124: 0 | H124: 1 | I124: 0 | J124: =IFERROR(SUMIFS('Equipment Options'!I:I,'Equipment Options'!M:M,$C124),"") -> 0 | K124: 0 | L124: 0 | M124: 0 | N124: 0 | O124: 0 | P124: 0
B125: Commercial Heat Pump Water Heater - Tier 2 | C125: CHPWHT2 | D125: 18270 | E125: 800 | F125: 1432.74 | G125: -5.9 | H125: 1 | I125: 0 | J125: =IFERROR(SUMIFS('Equipment Options'!I:I,'Equipment Options'!M:M,$C125),"") -> 0 | K125: 0 | L125: 0 | M125: 0 | N125: 0 | O125: 0 | P125: 0
B126: Commercial Heat Pump Water Heater - Tier 2, ducted | C126: CHPWHT2D | D126: 18271 | E126: 800 | F126: 1328.12 | G126: -7.9 | H126: 1 | I126: 0 | J126: =IFERROR(SUMIFS('Equipment Options'!I:I,'Equipment Options'!M:M,$C126),"") -> 0 | K126: 0 | L126: 0 | M126: 0 | N126: 0 | O126: 0 | P126: 0
B127: Commercial Heat Pump Water Heater - Tier 3 | C127: CHPWHT3 | D127: 18272 | E127: 800 | F127: 1612.95 | G127: -5.89 | H127: 1 | I127: 0 | J127: =IFERROR(SUMIFS('Equipment Options'!I:I,'Equipment Options'!M:M,$C127),"") -> 0 | K127: 0 | L127: 0 | M127: 0 | N127: 0 | O127: 0 | P127: 0
B128: Commercial Heat Pump Water Heater - Tier 3, ducted | C128: CHPWHT3D | D128: 18273 | E128: 800 | F128: 1493.61 | G128: -7.9 | H128: 1 | I128: 0 | J128: =IFERROR(SUMIFS('Equipment Options'!I:I,'Equipment Options'!M:M,$C128),"") -> 0 | K128: 0 | L128: 0 | M128: 0 | N128: 0 | O128: 0 | P128: 0
B129: Commercial Heat Pump Water Heater - Tier 4 & up | C129: CHPWHT4UP | D129: 18274 | E129: 800 | F129: 1838.46 | G129: -6.52 | H129: 1 | I129: 0 | J129: =IFERROR(SUMIFS('Equipment Options'!I:I,'Equipment Options'!M:M,$C129),"") -> 0 | K129: 0 | L129: 0 | M129: 0 | N129: 0 | O129: 0 | P129: 0
B130: Commercial Heat Pump Water Heater - Tier 4 & up, ducted | C130: CHPWHT4UPD | D130: 18275 | E130: 800 | F130: 1624.15 | G130: -10.99 | H130: 1 | I130: 0 | J130: =IFERROR(SUMIFS('Equipment Options'!I:I,'Equipment Options'!M:M,$C130),"") -> 0 | K130: 0 | L130: 0 | M130: 0 | N130: 0 | O130: 0 | P130: 0
B131: Cooler w/ Door - Self-Contained, Horiz Low Temp - Gas EOT | C131: COOLCASEDRSCHZLOWEOT | D131: 18348 | E131: 150 | F131: 643.59 | G131: 0 | H131: 1 | I131: 0 | J131: =IFERROR(SUMIFS('Equipment Options'!I:I,'Equipment Options'!M:M,$C131),"") -> 0 | K131: 0 | L131: 0 | M131: 0 | N131: 0 | O131: 0 | P131: 0
B132: Condensing Tank Water Heater, Multifamily | C132: DHWCONDTANKMF | D132: 18351 | E132: 3.5 | F132: 0 | G132: 1.44 | H132: 0 | I132: 1 | J132: =IFERROR(SUMIFS('Equipment Options'!I:I,'Equipment Options'!M:M,$C132),"") -> 0 | K132: 0 | L132: 0 | M132: 0 | N132: 0 | O132: 0 | P132: 0
B133: Condensing Tank Water Heater, All Except MF | C133: DHWCONDNMF | D133: 18353 | E133: =IFERROR(_xlfn.XLOOKUP($C133,ProductCode,DefaultIncentive,0,0),0) -> 3.5 | F133: =IFERROR(_xlfn.XLOOKUP($C133,ProductCode,DefaultKwh,0,0),0) -> 0 | G133: =IFERROR(_xlfn.XLOOKUP($C133,ProductCode,DefaultTherms,0,0),0) -> 1.11 | H133: =IFERROR((_xlfn.XLOOKUP($C133,ProductCode,AllocationElectric,0,0))/100,0) -> 0 | I133: =IFERROR((_xlfn.XLOOKUP($C133,ProductCode,AllocationGas,0,0))/100,0) -> 1 | J133: =IFERROR(SUMIFS('Equipment Options'!I:I,'Equipment Options'!M:M,$C133),"") -> 0 | K133: 0 | L133: 0 | M133: 0 | N133: 0 | O133: 0 | P133: 0
B134: Comm Heat Pump Water Heater Tier 3+ Any Building Type | C134: COMHPWHT3 | D134: 18356 | E134: 800 | F134: 1422.4 | G134: 0 | H134: 1 | I134: 0 | J134: =IFERROR(SUMIFS('Equipment Options'!I:I,'Equipment Options'!M:M,$C134),"") -> 0 | K134: =J134*F134 -> 0 | L134: =O134*H134 -> 0 | M134: =J134*G134 -> 0 | N134: =O134*I134 -> 0 | O134: =J134*E134 -> 0 | P134: =(_xlfn.XLOOKUP($C134,ProductCode,IncrementalCost,"",0))*J134 -> 0
B135: Tankless Water Heater >= 200 kBtu/h, MF | C135: CTWH200COMMF | D135: 18357 | E135: 1.4 | F135: 0 | G135: 0.42 | H135: 0 | I135: 1 | J135: =IFERROR(SUMIFS('Equipment Options'!I:I,'Equipment Options'!M:M,$C135),"") -> 0 | K135: 0 | L135: 0 | M135: 0 | N135: 0 | O135: 0 | P135: 0
B136: Tankless Water Heaters >= 200 kBtu/h, All Except MF | C136: CTWH200COMNONMF | D136: 18358 | E136: 1.4 | F136: 0 | G136: 0.28 | H136: 0 | I136: 1 | J136: =IFERROR(SUMIFS('Equipment Options'!I:I,'Equipment Options'!M:M,$C136),"") -> 0 | K136: 0 | L136: 0 | M136: 0 | N136: 0 | O136: 0 | P136: 0
B137: Commercial Heat Pump Water Heater - Tier 1 | C137: CHPWHT1 | D137: 18364 | E137: 800 | F137: 1110.64 | G137: -3.71 | H137: 1 | I137: 0 | J137: =IFERROR(SUMIFS('Equipment Options'!I:I,'Equipment Options'!M:M,$C137),"") -> 0 | K137: 0 | L137: 0 | M137: 0 | N137: 0 | O137: 0 | P137: 0
B138: Commercial Tankless Water Heater <200 - All Commercial | C138: CTWH199ALLCOM | D138: 18365 | E138: 140 | F138: 0 | G138: 15.51 | H138: 0 | I138: 1 | J138: =IFERROR(SUMIFS('Equipment Options'!I:I,'Equipment Options'!M:M,$C138),"") -> 0 | K138: 0 | L138: 0 | M138: 0 | N138: 0 | O138: 0 | P138: 0
B139: MS Elective, Wall Insulation, 2021 | C139: MSWALLINSUL2021 | D139: 19032 | E139: 0 | F139: 0 | G139: 0 | H139: 1 | I139: 1 | J139: =IFERROR(SUMIFS('Equipment Options'!I:I,'Equipment Options'!M:M,$C139),"") -> 0 | K139: 0 | L139: 0 | M139: 0 | N139: 0 | O139: 0 | P139: 0
B140: MS Elective, Window-to-Wall Ratio (WWR), 2021 | C140: MSWWR2021 | D140: 19033 | E140: 0 | F140: 0 | G140: 0 | H140: 1 | I140: 1 | J140: =IFERROR(SUMIFS('Equipment Options'!I:I,'Equipment Options'!M:M,$C140),"") -> 0 | K140: 0 | L140: 0 | M140: 0 | N140: 0 | O140: 0 | P140: 0
B141: MS Elective, High-performance windows, 2021 | C141: MSWINDOWS2021 | D141: 19034 | E141: 0 | F141: 0 | G141: 0 | H141: 1 | I141: 1 | J141: =IFERROR(SUMIFS('Equipment Options'!I:I,'Equipment Options'!M:M,$C141),"") -> 0 | K141: 0 | L141: 0 | M141: 0 | N141: 0 | O141: 0 | P141: 0
B142: MS Elective, Clothes Washer, 2021 | C142: MSWASHER2021 | D142: 19035 | E142: 0 | F142: 0 | G142: 0 | H142: 1 | I142: 1 | J142: =IFERROR(SUMIFS('Equipment Options'!I:I,'Equipment Options'!M:M,$C142),"") -> 0 | K142: 0 | L142: 0 | M142: 0 | N142: 0 | O142: 0 | P142: 0
B143: MS Elective, Variable Refrigerant Flow (VRF), 2021 | C143: MSVRF2021 | D143: 19036 | E143: 0 | F143: 0 | G143: 0 | H143: 1 | I143: 1 | J143: =IFERROR(SUMIFS('Equipment Options'!I:I,'Equipment Options'!M:M,$C143),"") -> 0 | K143: 0 | L143: 0 | M143: 0 | N143: 0 | O143: 0 | P143: 0
B144: MS Elective, Tankless DHW, 2021 | C144: MSTANKLESSDHW2021 | D144: 19037 | E144: 0 | F144: 0 | G144: 0 | H144: 1 | I144: 1 | J144: =IFERROR(SUMIFS('Equipment Options'!I:I,'Equipment Options'!M:M,$C144),"") -> 0 | K144: 0 | L144: 0 | M144: 0 | N144: 0 | O144: 0 | P144: 0
B145: MS Elective, Roof Insulation, 2021 | C145: MSROOFINSUL2021 | D145: 19038 | E145: 0 | F145: 0 | G145: 0 | H145: 1 | I145: 1 | J145: =IFERROR(SUMIFS('Equipment Options'!I:I,'Equipment Options'!M:M,$C145),"") -> 0 | K145: 0 | L145: 0 | M145: 0 | N145: 0 | O145: 0 | P145: 0
B146: MS Elective, Refrigerator, 2021 | C146: MSREFRIDGE2021 | D146: 19039 | E146: 0 | F146: 0 | G146: 0 | H146: 1 | I146: 1 | J146: =IFERROR(SUMIFS('Equipment Options'!I:I,'Equipment Options'!M:M,$C146),"") -> 0 | K146: 0 | L146: 0 | M146: 0 | N146: 0 | O146: 0 | P146: 0
B147: MS Elective, PTHP (in-unit), 2021 | C147: MSPTHP2021 | D147: 19040 | E147: 0 | F147: 0 | G147: 0 | H147: 1 | I147: 1 | J147: =IFERROR(SUMIFS('Equipment Options'!I:I,'Equipment Options'!M:M,$C147),"") -> 0 | K147: 0 | L147: 0 | M147: 0 | N147: 0 | O147: 0 | P147: 0
B148: MS Elective, Overhangs, 2021 | C148: MSOVERHANG2021 | D148: 19041 | E148: 0 | F148: 0 | G148: 0 | H148: 1 | I148: 1 | J148: =IFERROR(SUMIFS('Equipment Options'!I:I,'Equipment Options'!M:M,$C148),"") -> 0 | K148: 0 | L148: 0 | M148: 0 | N148: 0 | O148: 0 | P148: 0
B149: MS Elective, LPD Reduction in Living Units, 2021 | C149: MSINUNITLPD2021 | D149: 19042 | E149: 0 | F149: 0 | G149: 0 | H149: 1 | I149: 1 | J149: =IFERROR(SUMIFS('Equipment Options'!I:I,'Equipment Options'!M:M,$C149),"") -> 0 | K149: 0 | L149: 0 | M149: 0 | N149: 0 | O149: 0 | P149: 0
B150: MS Elective, Heat Pump Water Heater, 2021 | C150: MSHPWH2021 | D150: 19043 | E150: 0 | F150: 0 | G150: 0 | H150: 1 | I150: 1 | J150: =IFERROR(SUMIFS('Equipment Options'!I:I,'Equipment Options'!M:M,$C150),"") -> 0 | K150: 0 | L150: 0 | M150: 0 | N150: 0 | O150: 0 | P150: 0
B151: MS Elective, High-efficiency Split System, 2021 | C151: MSHESS2021 | D151: 19044 | E151: 0 | F151: 0 | G151: 0 | H151: 1 | I151: 1 | J151: =IFERROR(SUMIFS('Equipment Options'!I:I,'Equipment Options'!M:M,$C151),"") -> 0 | K151: 0 | L151: 0 | M151: 0 | N151: 0 | O151: 0 | P151: 0
B152: MS Elective, Foundation Insulation, 2021 | C152: MSFOUNDINSUL2021 | D152: 19045 | E152: 0 | F152: 0 | G152: 0 | H152: 1 | I152: 1 | J152: =IFERROR(SUMIFS('Equipment Options'!I:I,'Equipment Options'!M:M,$C152),"") -> 0 | K152: 0 | L152: 0 | M152: 0 | N152: 0 | O152: 0 | P152: 0
B153: MS Elective, Exterior Lighting Power Reduction, 2021 | C153: MSEXTLIGHTLPD2021 | D153: 19046 | E153: 0 | F153: 0 | G153: 0 | H153: 1 | I153: 1 | J153: =IFERROR(SUMIFS('Equipment Options'!I:I,'Equipment Options'!M:M,$C153),"") -> 0 | K153: 0 | L153: 0 | M153: 0 | N153: 0 | O153: 0 | P153: 0
B154: MS Elective, Energy Recovery Ventilation (ERV), 2021 | C154: MSERVENT2021 | D154: 19047 | E154: 0 | F154: 0 | G154: 0 | H154: 1 | I154: 1 | J154: =IFERROR(SUMIFS('Equipment Options'!I:I,'Equipment Options'!M:M,$C154),"") -> 0 | K154: 0 | L154: 0 | M154: 0 | N154: 0 | O154: 0 | P154: 0
B155: MS Elective, Efficient Exhaust Fans, 2021 | C155: MSEEFANS2021 | D155: 19048 | E155: 0 | F155: 0 | G155: 0 | H155: 1 | I155: 1 | J155: =IFERROR(SUMIFS('Equipment Options'!I:I,'Equipment Options'!M:M,$C155),"") -> 0 | K155: 0 | L155: 0 | M155: 0 | N155: 0 | O155: 0 | P155: 0
B156: MS Elective, Dryer, 2021 | C156: MSDRYER2021 | D156: 19049 | E156: 0 | F156: 0 | G156: 0 | H156: 1 | I156: 1 | J156: =IFERROR(SUMIFS('Equipment Options'!I:I,'Equipment Options'!M:M,$C156),"") -> 0 | K156: 0 | L156: 0 | M156: 0 | N156: 0 | O156: 0 | P156: 0
B157: MS Elective, Dishwasher, 2021 | C157: MSDISHWASH2021 | D157: 19050 | E157: 0 | F157: 0 | G157: 0 | H157: 1 | I157: 1 | J157: =IFERROR(SUMIFS('Equipment Options'!I:I,'Equipment Options'!M:M,$C157),"") -> 0 | K157: 0 | L157: 0 | M157: 0 | N157: 0 | O157: 0 | P157: 0
B158: MS Elective, DHP in Living Units, 2021 code | C158: MSDHP2021 | D158: 19051 | E158: 0 | F158: 0 | G158: 0 | H158: 1 | I158: 1 | J158: =IFERROR(SUMIFS('Equipment Options'!I:I,'Equipment Options'!M:M,$C158),"") -> 0 | K158: 0 | L158: 0 | M158: 0 | N158: 0 | O158: 0 | P158: 0
B159: MS Elective, Condensing DHW (in-unit or central), 2021 | C159: MSCTDWH2021 | D159: 19052 | E159: 0 | F159: 0 | G159: 0 | H159: 1 | I159: 1 | J159: =IFERROR(SUMIFS('Equipment Options'!I:I,'Equipment Options'!M:M,$C159),"") -> 0 | K159: 0 | L159: 0 | M159: 0 | N159: 0 | O159: 0 | P159: 0
B160: MS Elective, Condensing High-Efficiency Furnace, 2021 | C160: MSCONDFURN2021 | D160: 19053 | E160: 0 | F160: 0 | G160: 0 | H160: 1 | I160: 1 | J160: =IFERROR(SUMIFS('Equipment Options'!I:I,'Equipment Options'!M:M,$C160),"") -> 0 | K160: 0 | L160: 0 | M160: 0 | N160: 0 | O160: 0 | P160: 0
B161: MS Elective, Bi-level Control in Corridors, 2021 | C161: MSBILEVEL2021 | D161: 19054 | E161: 0 | F161: 0 | G161: 0 | H161: 1 | I161: 1 | J161: =IFERROR(SUMIFS('Equipment Options'!I:I,'Equipment Options'!M:M,$C161),"") -> 0 | K161: 0 | L161: 0 | M161: 0 | N161: 0 | O161: 0 | P161: 0
B162: MS Elective, Air Tightness, 2021 code | C162: MSAIRTIGHT2021 | D162: 19055 | E162: 0 | F162: 0 | G162: 0 | H162: 1 | I162: 1 | J162: =IFERROR(SUMIFS('Equipment Options'!I:I,'Equipment Options'!M:M,$C162),"") -> 0 | K162: 0 | L162: 0 | M162: 0 | N162: 0 | O162: 0 | P162: 0
B163: MS Elective, Aerators, 2021 code | C163: MSAERATOR2021 | D163: 19056 | E163: 0 | F163: 0 | G163: 0 | H163: 1 | I163: 1 | J163: =IFERROR(SUMIFS('Equipment Options'!I:I,'Equipment Options'!M:M,$C163),"") -> 0 | K163: 0 | L163: 0 | M163: 0 | N163: 0 | O163: 0 | P163: 0
B164: MS Elective, Condensing boiler, 2021 | C164: MSCBOILER2021 | D164: 19057 | E164: 0 | F164: 0 | G164: 0 | H164: 1 | I164: 1 | J164: =IFERROR(SUMIFS('Equipment Options'!I:I,'Equipment Options'!M:M,$C164),"") -> 0 | K164: 0 | L164: 0 | M164: 0 | N164: 0 | O164: 0 | P164: 0
B165: MS Elective, High-performance windows, 2019 code | C165: MSWINDOWS2019 | D165: 19058 | E165: 0 | F165: 0 | G165: 0 | H165: 1 | I165: 1 | J165: =IFERROR(SUMIFS('Equipment Options'!I:I,'Equipment Options'!M:M,$C165),"") -> 0 | K165: 0 | L165: 0 | M165: 0 | N165: 0 | O165: 0 | P165: 0
B166: MS Elective, Window-to-Wall Ratio (WWR), 2019 code | C166: MSWWR2019 | D166: 19059 | E166: 0 | F166: 0 | G166: 0 | H166: 1 | I166: 1 | J166: =IFERROR(SUMIFS('Equipment Options'!I:I,'Equipment Options'!M:M,$C166),"") -> 0 | K166: 0 | L166: 0 | M166: 0 | N166: 0 | O166: 0 | P166: 0
B167: MS Elective, Clothes Washer, 2019 code | C167: MSWASHER2019 | D167: 19060 | E167: 0 | F167: 0 | G167: 0 | H167: 1 | I167: 1 | J167: =IFERROR(SUMIFS('Equipment Options'!I:I,'Equipment Options'!M:M,$C167),"") -> 0 | K167: 0 | L167: 0 | M167: 0 | N167: 0 | O167: 0 | P167: 0
B168: MS Elective, Wall Insulation, 2019 code | C168: MSWALLINSUL2019 | D168: 19061 | E168: 0 | F168: 0 | G168: 0 | H168: 1 | I168: 1 | J168: =IFERROR(SUMIFS('Equipment Options'!I:I,'Equipment Options'!M:M,$C168),"") -> 0 | K168: 0 | L168: 0 | M168: 0 | N168: 0 | O168: 0 | P168: 0
B169: MS Elective, Variable Refrigerant Flow (VRF), 2019 code | C169: MSVRF2019 | D169: 19062 | E169: 0 | F169: 0 | G169: 0 | H169: 1 | I169: 1 | J169: =IFERROR(SUMIFS('Equipment Options'!I:I,'Equipment Options'!M:M,$C169),"") -> 0 | K169: 0 | L169: 0 | M169: 0 | N169: 0 | O169: 0 | P169: 0
B170: MS Elective, Tankless DHW, 2019 code | C170: MSTANKLESSDHW2019 | D170: 19063 | E170: 0 | F170: 0 | G170: 0 | H170: 1 | I170: 1 | J170: =IFERROR(SUMIFS('Equipment Options'!I:I,'Equipment Options'!M:M,$C170),"") -> 0 | K170: 0 | L170: 0 | M170: 0 | N170: 0 | O170: 0 | P170: 0
B171: MS Elective, Roof Insulation, 2019 code | C171: MSROOFINSUL2019 | D171: 19064 | E171: 0 | F171: 0 | G171: 0 | H171: 1 | I171: 1 | J171: =IFERROR(SUMIFS('Equipment Options'!I:I,'Equipment Options'!M:M,$C171),"") -> 0 | K171: 0 | L171: 0 | M171: 0 | N171: 0 | O171: 0 | P171: 0
B172: MS Elective, Refrigerator, 2019 code | C172: MSREFRIDGE2019 | D172: 19065 | E172: 0 | F172: 0 | G172: 0 | H172: 1 | I172: 1 | J172: =IFERROR(SUMIFS('Equipment Options'!I:I,'Equipment Options'!M:M,$C172),"") -> 0 | K172: 0 | L172: 0 | M172: 0 | N172: 0 | O172: 0 | P172: 0
B173: MS Elective, PTHP (in-unit), 2019 code | C173: MSPTHP2019 | D173: 19066 | E173: 0 | F173: 0 | G173: 0 | H173: 1 | I173: 1 | J173: =IFERROR(SUMIFS('Equipment Options'!I:I,'Equipment Options'!M:M,$C173),"") -> 0 | K173: 0 | L173: 0 | M173: 0 | N173: 0 | O173: 0 | P173: 0
B174: MS Elective, Overhangs, 2019 code | C174: MSOVERHANG2019 | D174: 19067 | E174: 0 | F174: 0 | G174: 0 | H174: 1 | I174: 1 | J174: =IFERROR(SUMIFS('Equipment Options'!I:I,'Equipment Options'!M:M,$C174),"") -> 0 | K174: 0 | L174: 0 | M174: 0 | N174: 0 | O174: 0 | P174: 0
B175: MS Elective, Air Tightness, 2019 code | C175: MSAIRTIGHT2019 | D175: 19068 | E175: 0 | F175: 0 | G175: 0 | H175: 1 | I175: 1 | J175: =IFERROR(SUMIFS('Equipment Options'!I:I,'Equipment Options'!M:M,$C175),"") -> 0 | K175: 0 | L175: 0 | M175: 0 | N175: 0 | O175: 0 | P175: 0
B176: MS Elective, Bi-level Control in Corridors, 2019 code | C176: MSBILEVEL2019 | D176: 19069 | E176: 0 | F176: 0 | G176: 0 | H176: 1 | I176: 1 | J176: =IFERROR(SUMIFS('Equipment Options'!I:I,'Equipment Options'!M:M,$C176),"") -> 0 | K176: 0 | L176: 0 | M176: 0 | N176: 0 | O176: 0 | P176: 0
B177: MS Elective, Condensing boiler, 2019 code | C177: MSCBOILER2019 | D177: 19070 | E177: 0 | F177: 0 | G177: 0 | H177: 1 | I177: 1 | J177: =IFERROR(SUMIFS('Equipment Options'!I:I,'Equipment Options'!M:M,$C177),"") -> 0 | K177: 0 | L177: 0 | M177: 0 | N177: 0 | O177: 0 | P177: 0
B178: MS Elective, Condensing High-Efficiency Furnace, 2019 code | C178: MSCONDFURN2019 | D178: 19071 | E178: 0 | F178: 0 | G178: 0 | H178: 1 | I178: 1 | J178: =IFERROR(SUMIFS('Equipment Options'!I:I,'Equipment Options'!M:M,$C178),"") -> 0 | K178: 0 | L178: 0 | M178: 0 | N178: 0 | O178: 0 | P178: 0
B179: MS Elective, Condensing DHW (in-unit or central), 2019 code | C179: MSCTDWH2019 | D179: 19072 | E179: 0 | F179: 0 | G179: 0 | H179: 1 | I179: 1 | J179: =IFERROR(SUMIFS('Equipment Options'!I:I,'Equipment Options'!M:M,$C179),"") -> 0 | K179: 0 | L179: 0 | M179: 0 | N179: 0 | O179: 0 | P179: 0
B180: MSO Multifamily, Mid Rise, Good Tier, 2019 code | C180: MSMFMRGOOD2019 | D180: 19073 | E180: 0 | F180: 0 | G180: 0 | H180: 1 | I180: 1 | J180: =IFERROR(SUMIFS('Equipment Options'!I:I,'Equipment Options'!M:M,$C180),"") -> 0 | K180: 0 | L180: 0 | M180: 0 | N180: 0 | O180: 0 | P180: 0
B181: MSO Multifamily, Mid Rise, Better Tier, 2019 code | C181: MSMFMRBETTER2019 | D181: 19074 | E181: 0 | F181: 0 | G181: 0 | H181: 1 | I181: 1 | J181: =IFERROR(SUMIFS('Equipment Options'!I:I,'Equipment Options'!M:M,$C181),"") -> 0 | K181: 0 | L181: 0 | M181: 0 | N181: 0 | O181: 0 | P181: 0
B182: MSO Multifamily, Mid Rise, Best Tier, 2019 code | C182: MSMFMRBEST2019 | D182: 19075 | E182: 0 | F182: 0 | G182: 0 | H182: 1 | I182: 1 | J182: =IFERROR(SUMIFS('Equipment Options'!I:I,'Equipment Options'!M:M,$C182),"") -> 0 | K182: 0 | L182: 0 | M182: 0 | N182: 0 | O182: 0 | P182: 0
B183: MS Elective, Aerators, 2019 code | C183: MSAERATOR2019 | D183: 19076 | E183: 0 | F183: 0 | G183: 0 | H183: 1 | I183: 1 | J183: =IFERROR(SUMIFS('Equipment Options'!I:I,'Equipment Options'!M:M,$C183),"") -> 0 | K183: 0 | L183: 0 | M183: 0 | N183: 0 | O183: 0 | P183: 0
B184: MS Elective, Dishwasher, 2019 code | C184: MSDISHWASH2019 | D184: 19077 | E184: 0 | F184: 0 | G184: 0 | H184: 1 | I184: 1 | J184: =IFERROR(SUMIFS('Equipment Options'!I:I,'Equipment Options'!M:M,$C184),"") -> 0 | K184: 0 | L184: 0 | M184: 0 | N184: 0 | O184: 0 | P184: 0
B185: MS Elective, Dryer, 2019 code | C185: MSDRYER2019 | D185: 19078 | E185: 0 | F185: 0 | G185: 0 | H185: 1 | I185: 1 | J185: =IFERROR(SUMIFS('Equipment Options'!I:I,'Equipment Options'!M:M,$C185),"") -> 0 | K185: 0 | L185: 0 | M185: 0 | N185: 0 | O185: 0 | P185: 0
B186: MS Elective, Efficient Exhaust Fans, 2019 code | C186: MSEEFANS2019 | D186: 19079 | E186: 0 | F186: 0 | G186: 0 | H186: 1 | I186: 1 | J186: =IFERROR(SUMIFS('Equipment Options'!I:I,'Equipment Options'!M:M,$C186),"") -> 0 | K186: 0 | L186: 0 | M186: 0 | N186: 0 | O186: 0 | P186: 0
B187: MS Elective, Energy Recovery Ventilation (ERV), 2019 code | C187: MSERVENT2019 | D187: 19080 | E187: 0 | F187: 0 | G187: 0 | H187: 1 | I187: 1 | J187: =IFERROR(SUMIFS('Equipment Options'!I:I,'Equipment Options'!M:M,$C187),"") -> 0 | K187: 0 | L187: 0 | M187: 0 | N187: 0 | O187: 0 | P187: 0
B188: MS Elective, Exterior Lighting Power Reduction, 2019 code | C188: MSEXTLIGHTLPD2019 | D188: 19081 | E188: 0 | F188: 0 | G188: 0 | H188: 1 | I188: 1 | J188: =IFERROR(SUMIFS('Equipment Options'!I:I,'Equipment Options'!M:M,$C188),"") -> 0 | K188: 0 | L188: 0 | M188: 0 | N188: 0 | O188: 0 | P188: 0
B189: MSO Multifamily, Low Rise, Good Tier, 2019 code | C189: MSMFLRGOOD2019 | D189: 19082 | E189: 0 | F189: 0 | G189: 0 | H189: 1 | I189: 1 | J189: =IFERROR(SUMIFS('Equipment Options'!I:I,'Equipment Options'!M:M,$C189),"") -> 0 | K189: 0 | L189: 0 | M189: 0 | N189: 0 | O189: 0 | P189: 0
B190: MSO Multifamily, High Rise, Good Tier, 2019 code | C190: MSMFHRGOOD2019 | D190: 19083 | E190: 0 | F190: 0 | G190: 0 | H190: 1 | I190: 1 | J190: =IFERROR(SUMIFS('Equipment Options'!I:I,'Equipment Options'!M:M,$C190),"") -> 0 | K190: 0 | L190: 0 | M190: 0 | N190: 0 | O190: 0 | P190: 0
B191: MSO Multifamily, High Rise, Better Tier, 2019 code | C191: MSMFHRBETTER2019 | D191: 19084 | E191: 0 | F191: 0 | G191: 0 | H191: 1 | I191: 1 | J191: =IFERROR(SUMIFS('Equipment Options'!I:I,'Equipment Options'!M:M,$C191),"") -> 0 | K191: 0 | L191: 0 | M191: 0 | N191: 0 | O191: 0 | P191: 0
B192: MSO Multifamily, High Rise, Best Tier, 2019 code | C192: MSMFHRBEST2019 | D192: 19085 | E192: 0 | F192: 0 | G192: 0 | H192: 1 | I192: 1 | J192: =IFERROR(SUMIFS('Equipment Options'!I:I,'Equipment Options'!M:M,$C192),"") -> 0 | K192: 0 | L192: 0 | M192: 0 | N192: 0 | O192: 0 | P192: 0
B193: MS Elective, LPD Reduction in Living Units, 2019 code | C193: MSINUNITLPD2019 | D193: 19086 | E193: 0 | F193: 0 | G193: 0 | H193: 1 | I193: 1 | J193: =IFERROR(SUMIFS('Equipment Options'!I:I,'Equipment Options'!M:M,$C193),"") -> 0 | K193: 0 | L193: 0 | M193: 0 | N193: 0 | O193: 0 | P193: 0
B194: MS Elective, Foundation Insulation, 2019 code | C194: MSFOUNDINSUL2019 | D194: 19087 | E194: 0 | F194: 0 | G194: 0 | H194: 1 | I194: 1 | J194: =IFERROR(SUMIFS('Equipment Options'!I:I,'Equipment Options'!M:M,$C194),"") -> 0 | K194: 0 | L194: 0 | M194: 0 | N194: 0 | O194: 0 | P194: 0
B195: MS Elective, High-efficiency Split System, 2019 code | C195: MSHESS2019 | D195: 19088 | E195: 0 | F195: 0 | G195: 0 | H195: 1 | I195: 1 | J195: =IFERROR(SUMIFS('Equipment Options'!I:I,'Equipment Options'!M:M,$C195),"") -> 0 | K195: 0 | L195: 0 | M195: 0 | N195: 0 | O195: 0 | P195: 0
B196: MS Elective, Heat Pump Water Heater, 2019 code | C196: MSHPWH2019 | D196: 19089 | E196: 0 | F196: 0 | G196: 0 | H196: 1 | I196: 1 | J196: =IFERROR(SUMIFS('Equipment Options'!I:I,'Equipment Options'!M:M,$C196),"") -> 0 | K196: 0 | L196: 0 | M196: 0 | N196: 0 | O196: 0 | P196: 0
B197: MSO Multifamily, Low Rise, Best Tier, 2019 code | C197: MSMFLRBEST2019 | D197: 19090 | E197: =IFERROR(_xlfn.XLOOKUP($C197,ProductCode,DefaultIncentive,0,0),0) -> 0 | F197: =IFERROR(_xlfn.XLOOKUP($C197,ProductCode,DefaultKwh,0,0),0) -> 0 | G197: =IFERROR(_xlfn.XLOOKUP($C197,ProductCode,DefaultTherms,0,0),0) -> 0 | H197: =IFERROR((_xlfn.XLOOKUP($C197,ProductCode,AllocationElectric,0,0))/100,0) -> 1 | I197: =IFERROR((_xlfn.XLOOKUP($C197,ProductCode,AllocationGas,0,0))/100,0) -> 1 | J197: =IFERROR(SUMIFS('Equipment Options'!I:I,'Equipment Options'!M:M,$C197),"") -> 0 | K197: 0 | L197: 0 | M197: 0 | N197: 0 | O197: 0 | P197: 0
B198: MSO Multifamily, Low Rise, Better Tier, 2019 code | C198: MSMFLRBETTER2019 | D198: 19091 | E198: 0 | F198: 0 | G198: 0 | H198: 1 | I198: 1 | J198: =IFERROR(SUMIFS('Equipment Options'!I:I,'Equipment Options'!M:M,$C198),"") -> 0 | K198: =J198*F198 -> 0 | L198: =O198*H198 -> 0 | M198: =J198*G198 -> 0 | N198: =O198*I198 -> 0 | O198: =J198*E198 -> 0 | P198: =(_xlfn.XLOOKUP($C198,ProductCode,IncrementalCost,"",0))*J198 -> 0
B199: MS Elective, DHP in Living Units, 2019 code | C199: MSDHP2019 | D199: 19092 | E199: 0 | F199: 0 | G199: 0 | H199: 1 | I199: 1 | J199: =IFERROR(SUMIFS('Equipment Options'!I:I,'Equipment Options'!M:M,$C199),"") -> 0 | K199: 0 | L199: 0 | M199: 0 | N199: 0 | O199: 0 | P199: 0
B200: MSO Multifamily, Best Tier, 2021 | C200: MSMFBEST2021 | D200: 19095 | E200: 0 | F200: 0 | G200: 0 | H200: 1 | I200: 1 | J200: =IFERROR(SUMIFS('Equipment Options'!I:I,'Equipment Options'!M:M,$C200),"") -> 0 | K200: 0 | L200: 0 | M200: 0 | N200: 0 | O200: 0 | P200: 0
B201: MSO Multifamily, Good Tier, 2021 | C201: MSMFGOOD2021 | D201: 19096 | E201: 0 | F201: 0 | G201: 0 | H201: 1 | I201: 1 | J201: =IFERROR(SUMIFS('Equipment Options'!I:I,'Equipment Options'!M:M,$C201),"") -> 0 | K201: 0 | L201: 0 | M201: 0 | N201: 0 | O201: 0 | P201: 0
B202: MSO Multifamily, Better Tier, 2021 | C202: MSMFBETTER2021 | D202: 19097 | E202: 0 | F202: 0 | G202: 0 | H202: 1 | I202: 1 | J202: =IFERROR(SUMIFS('Equipment Options'!I:I,'Equipment Options'!M:M,$C202),"") -> 0 | K202: 0 | L202: 0 | M202: 0 | N202: 0 | O202: 0 | P202: 0
... 76 more rows

Sheet EquipOpt Lookups (hidden)
B1: Zipcode | C1: CoolingZone | D1: HeatingZone | E1: Combined | G1: Electric | I1: Gas | K1: Fuel/DHW Type | M1: Code Year | O1: Building Type
B2: 97001 | C2: 2 | D2: 2 | E2: ="CZ"&C2&" "&"HZ"&D2 -> CZ2 HZ2 | G2: Select Electric Utility | I2: Select Gas Utility | K2: Select Type | M2: Select Code Year | O2: Select Building Type
B3: 97002 | C3: 2 | D3: 1 | E3: ="CZ"&C3&" "&"HZ"&D3 -> CZ2 HZ1 | G3: Pacific Power | I3: Cascade Natural Gas | K3: Electric | M3: 2019 Code Year | O3: Lodging (Hotel/Motel/Dormitory)
B4: 97003 | C4: 2 | D4: 1 | E4: CZ2 HZ1 | G4: Portland General Electric | I4: NW Natural | K4: Gas | M4: 2021 Code Year | O4: Multifamily
B5: 97004 | C5: 2 | D5: 1 | E5: CZ2 HZ1 | G5: Other | I5: Avista | K5: Both | O5: Commercial and Other
B6: 97005 | C6: 2 | D6: 1 | E6: CZ2 HZ1 | I6: None
B7: 97006 | C7: 2 | D7: 1 | E7: CZ2 HZ1
B8: 97007 | C8: 2 | D8: 1 | E8: CZ2 HZ1
B9: 97008 | C9: 2 | D9: 1 | E9: CZ2 HZ1
B10: 97009 | C10: 2 | D10: 1 | E10: CZ2 HZ1
B11: 97011 | C11: 1 | D11: 1 | E11: CZ1 HZ1 | G11: DryerType | I11: HeatPumpWaterHeaterType | K11: Reach-In Glass Door Space Heat | O11: BaseboardTypes
B12: 97013 | C12: 2 | D12: 1 | E12: CZ2 HZ1 | G12: <Select Dryer Type> | I12: <Select type> | K12: <Select Space Heat Type> | O12: <Select Building Type>
B13: 97014 | C13: 2 | D13: 1 | E13: CZ2 HZ1 | G13: Electric Dryer | I13: Tier 1 | K13: Electric Resistance | O13: Dorm
B14: 97015 | C14: 2 | D14: 1 | E14: CZ2 HZ1 | G14: Gas Dryer | I14: Tier 2 | K14: Heat Pump | O14: Lodging
B15: 97016 | C15: 1 | D15: 1 | E15: CZ1 HZ1 | I15: Tier 2, ducted | K15: Natural Gas | O15: Multifamily
B16: 97017 | C16: 1 | D16: 1 | E16: CZ1 HZ1 | I16: Tier 3
B17: 97018 | C17: 2 | D17: 1 | E17: CZ2 HZ1 | I17: Tier 3, ducted
B18: 97019 | C18: 1 | D18: 1 | E18: CZ1 HZ1 | I18: Tier 4 & up
B19: 97020 | C19: 2 | D19: 1 | E19: CZ2 HZ1 | I19: Tier 4 & up, ducted
B20: 97021 | C20: 2 | D20: 1 | E20: CZ2 HZ1
B21: 97022 | C21: 2 | D21: 1 | E21: CZ2 HZ1
B22: 97023 | C22: 1 | D22: 1 | E22: CZ1 HZ1
B23: 97024 | C23: 2 | D23: 1 | E23: CZ2 HZ1
B24: 97026 | C24: 2 | D24: 1 | E24: CZ2 HZ1
B25: 97027 | C25: 2 | D25: 1 | E25: CZ2 HZ1
B26: 97028 | C26: 1 | D26: 3 | E26: CZ1 HZ3
B27: 97029 | C27: 2 | D27: 2 | E27: CZ2 HZ2
B28: 97030 | C28: 1 | D28: 1 | E28: CZ1 HZ1
B29: 97031 | C29: 2 | D29: 1 | E29: CZ2 HZ1
B30: 97032 | C30: 2 | D30: 1 | E30: CZ2 HZ1
B31: 97033 | C31: 2 | D31: 2 | E31: CZ2 HZ2
B32: 97034 | C32: 2 | D32: 1 | E32: CZ2 HZ1
B33: 97035 | C33: 2 | D33: 1 | E33: CZ2 HZ1
B34: 97036 | C34: 2 | D34: 1 | E34: CZ2 HZ1
B35: 97037 | C35: 2 | D35: 2 | E35: CZ2 HZ2
B36: 97038 | C36: 2 | D36: 1 | E36: CZ2 HZ1
B37: 97039 | C37: 2 | D37: 2 | E37: CZ2 HZ2
B38: 97040 | C38: 3 | D38: 1 | E38: CZ3 HZ1
B39: 97041 | C39: 1 | D39: 2 | E39: CZ1 HZ2
B40: 97042 | C40: 2 | D40: 1 | E40: CZ2 HZ1
B41: 97044 | C41: 2 | D41: 1 | E41: CZ2 HZ1
B42: 97045 | C42: 2 | D42: 1 | E42: CZ2 HZ1
B43: 97048 | C43: 1 | D43: 1 | E43: CZ1 HZ1
B44: 97049 | C44: 1 | D44: 2 | E44: CZ1 HZ2
B45: 97050 | C45: 2 | D45: 1 | E45: CZ2 HZ1
B46: 97051 | C46: 2 | D46: 1 | E46: CZ2 HZ1
B47: 97053 | C47: 2 | D47: 1 | E47: CZ2 HZ1
B48: 97054 | C48: 2 | D48: 1 | E48: CZ2 HZ1
B49: 97055 | C49: 1 | D49: 1 | E49: CZ1 HZ1
B50: 97056 | C50: 2 | D50: 1 | E50: CZ2 HZ1
B51: 97058 | C51: 3 | D51: 1 | E51: CZ3 HZ1
B52: 97060 | C52: 1 | D52: 1 | E52: CZ1 HZ1
B53: 97062 | C53: 2 | D53: 1 | E53: CZ2 HZ1
B54: 97063 | C54: 2 | D54: 2 | E54: CZ2 HZ2
B55: 97064 | C55: 1 | D55: 1 | E55: CZ1 HZ1
B56: 97065 | C56: 2 | D56: 1 | E56: CZ2 HZ1
B57: 97067 | C57: 1 | D57: 1 | E57: CZ1 HZ1
B58: 97068 | C58: 2 | D58: 1 | E58: CZ2 HZ1
B59: 97070 | C59: 2 | D59: 1 | E59: CZ2 HZ1 | G59: ≥
B60: 97071 | C60: 2 | D60: 1 | E60: CZ2 HZ1 | G60: ≤
B61: 97075 | C61: 2 | D61: 1 | E61: CZ2 HZ1
B62: 97078 | C62: 2 | D62: 1 | E62: CZ2 HZ1
B63: 97080 | C63: 1 | D63: 1 | E63: CZ1 HZ1
B64: 97086 | C64: 2 | D64: 1 | E64: CZ2 HZ1
B65: 97089 | C65: 2 | D65: 1 | E65: CZ2 HZ1
B66: 97101 | C66: 1 | D66: 1 | E66: CZ1 HZ1
B67: 97102 | C67: 1 | D67: 1 | E67: ="CZ"&C67&" "&"HZ"&D67 -> CZ1 HZ1
B68: 97103 | C68: 1 | D68: 1 | E68: CZ1 HZ1
B69: 97106 | C69: 2 | D69: 1 | E69: CZ2 HZ1
B70: 97107 | C70: 1 | D70: 1 | E70: CZ1 HZ1
B71: 97108 | C71: 1 | D71: 1 | E71: CZ1 HZ1
B72: 97109 | C72: 1 | D72: 1 | E72: CZ1 HZ1
B73: 97110 | C73: 1 | D73: 1 | E73: CZ1 HZ1
B74: 97111 | C74: 2 | D74: 1 | E74: CZ2 HZ1
B75: 97112 | C75: 1 | D75: 1 | E75: CZ1 HZ1
B76: 97113 | C76: 2 | D76: 1 | E76: CZ2 HZ1
B77: 97114 | C77: 1 | D77: 1 | E77: CZ1 HZ1
B78: 97115 | C78: 2 | D78: 1 | E78: CZ2 HZ1
B79: 97116 | C79: 2 | D79: 1 | E79: CZ2 HZ1
B80: 97117 | C80: 1 | D80: 1 | E80: CZ1 HZ1
B81: 97118 | C81: 1 | D81: 1 | E81: CZ1 HZ1
B82: 97119 | C82: 2 | D82: 1 | E82: CZ2 HZ1
B83: 97121 | C83: 1 | D83: 1 | E83: CZ1 HZ1
B84: 97122 | C84: 1 | D84: 1 | E84: CZ1 HZ1
B85: 97123 | C85: 1 | D85: 1 | E85: CZ1 HZ1
B86: 97124 | C86: 1 | D86: 1 | E86: CZ1 HZ1
B87: 97125 | C87: 1 | D87: 1 | E87: CZ1 HZ1
B88: 97127 | C88: 2 | D88: 1 | E88: CZ2 HZ1
B89: 97128 | C89: 2 | D89: 1 | E89: CZ2 HZ1
B90: 97130 | C90: 1 | D90: 1 | E90: CZ1 HZ1
B91: 97131 | C91: 1 | D91: 1 | E91: CZ1 HZ1
B92: 97132 | C92: 2 | D92: 1 | E92: CZ2 HZ1
B93: 97133 | C93: 1 | D93: 1 | E93: CZ1 HZ1
B94: 97134 | C94: 1 | D94: 1 | E94: CZ1 HZ1
B95: 97135 | C95: 1 | D95: 1 | E95: CZ1 HZ1
B96: 97136 | C96: 1 | D96: 1 | E96: CZ1 HZ1
B97: 97137 | C97: 1 | D97: 1 | E97: CZ1 HZ1
B98: 97138 | C98: 1 | D98: 1 | E98: CZ1 HZ1
B99: 97140 | C99: 2 | D99: 1 | E99: CZ2 HZ1
B100: 97141 | C100: 1 | D100: 1 | E100: CZ1 HZ1
B101: 97144 | C101: 1 | D101: 1 | E101: CZ1 HZ1
B102: 97146 | C102: 1 | D102: 1 | E102: CZ1 HZ1
B103: 97147 | C103: 1 | D103: 1 | E103: CZ1 HZ1
B104: 97148 | C104: 2 | D104: 1 | E104: CZ2 HZ1
B105: 97149 | C105: 1 | D105: 1 | E105: CZ1 HZ1
B106: 97201 | C106: 2 | D106: 1 | E106: CZ2 HZ1
B107: 97202 | C107: 2 | D107: 1 | E107: CZ2 HZ1
B108: 97203 | C108: 2 | D108: 1 | E108: CZ2 HZ1
B109: 97204 | C109: 2 | D109: 1 | E109: CZ2 HZ1
B110: 97205 | C110: 2 | D110: 1 | E110: CZ2 HZ1
B111: 97206 | C111: 2 | D111: 1 | E111: CZ2 HZ1
B112: 97207 | C112: 2 | D112: 1 | E112: CZ2 HZ1
B113: 97208 | C113: 2 | D113: 1 | E113: CZ2 HZ1
B114: 97209 | C114: 2 | D114: 1 | E114: CZ2 HZ1
B115: 97210 | C115: 2 | D115: 1 | E115: CZ2 HZ1
B116: 97211 | C116: 2 | D116: 1 | E116: CZ2 HZ1
B117: 97212 | C117: 2 | D117: 1 | E117: CZ2 HZ1
B118: 97213 | C118: 2 | D118: 1 | E118: CZ2 HZ1
B119: 97214 | C119: 2 | D119: 1 | E119: CZ2 HZ1
B120: 97215 | C120: 2 | D120: 1 | E120: CZ2 HZ1
B121: 97216 | C121: 2 | D121: 1 | E121: CZ2 HZ1
B122: 97217 | C122: 2 | D122: 1 | E122: CZ2 HZ1
B123: 97218 | C123: 2 | D123: 1 | E123: CZ2 HZ1
B124: 97219 | C124: 2 | D124: 1 | E124: CZ2 HZ1
B125: 97220 | C125: 2 | D125: 1 | E125: CZ2 HZ1
B126: 97221 | C126: 2 | D126: 1 | E126: CZ2 HZ1
B127: 97222 | C127: 2 | D127: 1 | E127: CZ2 HZ1
B128: 97223 | C128: 2 | D128: 1 | E128: CZ2 HZ1
B129: 97224 | C129: 2 | D129: 1 | E129: CZ2 HZ1
B130: 97225 | C130: 2 | D130: 1 | E130: CZ2 HZ1
B131: 97227 | C131: 2 | D131: 1 | E131: ="CZ"&C131&" "&"HZ"&D131 -> CZ2 HZ1
B132: 97228 | C132: 2 | D132: 1 | E132: CZ2 HZ1
B133: 97229 | C133: 2 | D133: 1 | E133: CZ2 HZ1
B134: 97230 | C134: 1 | D134: 1 | E134: CZ1 HZ1
B135: 97231 | C135: 2 | D135: 1 | E135: CZ2 HZ1
B136: 97232 | C136: 2 | D136: 1 | E136: CZ2 HZ1
B137: 97233 | C137: 2 | D137: 1 | E137: CZ2 HZ1
B138: 97236 | C138: 2 | D138: 1 | E138: CZ2 HZ1
B139: 97238 | C139: 2 | D139: 1 | E139: CZ2 HZ1
B140: 97239 | C140: 2 | D140: 1 | E140: CZ2 HZ1
B141: 97240 | C141: 2 | D141: 1 | E141: CZ2 HZ1
B142: 97242 | C142: 2 | D142: 1 | E142: CZ2 HZ1
B143: 97250 | C143: 2 | D143: 1 | E143: CZ2 HZ1
B144: 97266 | C144: 2 | D144: 1 | E144: CZ2 HZ1
B145: 97267 | C145: 2 | D145: 1 | E145: CZ2 HZ1
B146: 97268 | C146: 2 | D146: 1 | E146: CZ2 HZ1
B147: 97269 | C147: 2 | D147: 1 | E147: CZ2 HZ1
B148: 97280 | C148: 2 | D148: 1 | E148: CZ2 HZ1
B149: 97281 | C149: 2 | D149: 1 | E149: CZ2 HZ1
B150: 97282 | C150: 2 | D150: 1 | E150: CZ2 HZ1
B151: 97283 | C151: 2 | D151: 1 | E151: CZ2 HZ1
B152: 97286 | C152: 2 | D152: 1 | E152: CZ2 HZ1
B153: 97290 | C153: 2 | D153: 1 | E153: CZ2 HZ1
B154: 97291 | C154: 2 | D154: 1 | E154: CZ2 HZ1
B155: 97292 | C155: 2 | D155: 1 | E155: CZ2 HZ1
B156: 97293 | C156: 2 | D156: 1 | E156: CZ2 HZ1
B157: 97294 | C157: 2 | D157: 1 | E157: CZ2 HZ1
B158: 97296 | C158: 2 | D158: 1 | E158: CZ2 HZ1
B159: 97298 | C159: 2 | D159: 1 | E159: CZ2 HZ1
B160: 97301 | C160: 2 | D160: 1 | E160: CZ2 HZ1
B161: 97302 | C161: 2 | D161: 1 | E161: CZ2 HZ1
B162: 97303 | C162: 2 | D162: 1 | E162: CZ2 HZ1
B163: 97304 | C163: 1 | D163: 1 | E163: CZ1 HZ1
B164: 97305 | C164: 2 | D164: 1 | E164: CZ2 HZ1
B165: 97306 | C165: 1 | D165: 1 | E165: CZ1 HZ1
B166: 97307 | C166: 2 | D166: 1 | E166: CZ2 HZ1
B167: 97308 | C167: 2 | D167: 1 | E167: CZ2 HZ1
B168: 97309 | C168: 2 | D168: 1 | E168: CZ2 HZ1
B169: 97317 | C169: 2 | D169: 1 | E169: CZ2 HZ1
B170: 97321 | C170: 1 | D170: 1 | E170: CZ1 HZ1
B171: 97322 | C171: 1 | D171: 1 | E171: CZ1 HZ1
B172: 97324 | C172: 1 | D172: 1 | E172: CZ1 HZ1
B173: 97325 | C173: 1 | D173: 1 | E173: CZ1 HZ1
B174: 97326 | C174: 1 | D174: 1 | E174: CZ1 HZ1
B175: 97327 | C175: 2 | D175: 1 | E175: CZ2 HZ1
B176: 97329 | C176: 2 | D176: 1 | E176: CZ2 HZ1
B177: 97330 | C177: 1 | D177: 1 | E177: CZ1 HZ1
B178: 97331 | C178: 1 | D178: 1 | E178: CZ1 HZ1
B179: 97333 | C179: 1 | D179: 1 | E179: CZ1 HZ1
B180: 97335 | C180: 2 | D180: 1 | E180: CZ2 HZ1
B181: 97336 | C181: 1 | D181: 1 | E181: CZ1 HZ1
B182: 97338 | C182: 1 | D182: 1 | E182: CZ1 HZ1
B183: 97339 | C183: 1 | D183: 1 | E183: CZ1 HZ1
B184: 97341 | C184: 1 | D184: 1 | E184: CZ1 HZ1
B185: 97342 | C185: 2 | D185: 1 | E185: CZ2 HZ1
B186: 97343 | C186: 1 | D186: 1 | E186: CZ1 HZ1
B187: 97344 | C187: 1 | D187: 1 | E187: CZ1 HZ1
B188: 97345 | C188: 1 | D188: 1 | E188: CZ1 HZ1
B189: 97346 | C189: 1 | D189: 1 | E189: CZ1 HZ1
B190: 97347 | C190: 1 | D190: 1 | E190: CZ1 HZ1
B191: 97348 | C191: 1 | D191: 1 | E191: CZ1 HZ1
B192: 97350 | C192: 1 | D192: 2 | E192: CZ1 HZ2
B193: 97351 | C193: 2 | D193: 1 | E193: CZ2 HZ1
B194: 97352 | C194: 1 | D194: 1 | E194: CZ1 HZ1
B195: 97355 | C195: 2 | D195: 1 | E195: ="CZ"&C195&" "&"HZ"&D195 -> CZ2 HZ1
B196: 97357 | C196: 1 | D196: 1 | E196: CZ1 HZ1
B197: 97358 | C197: 1 | D197: 1 | E197: CZ1 HZ1
B198: 97360 | C198: 1 | D198: 1 | E198: CZ1 HZ1
B199: 97361 | C199: 1 | D199: 1 | E199: CZ1 HZ1
B200: 97362 | C200: 2 | D200: 1 | E200: CZ2 HZ1
... 863 more rows

Sheet Active Measures (hidden)
A1: ProductVersionId | B1: IsActive | C1: ProductPath | D1: ProductCode | E1: ProductDescription | F1: EvaluationDescription | G1: BusinessCustomerReportsDescription | H1: SavingsPotential | I1: SystemType | J1: MADHeaderId | K1: MADId | L1: MADVersion | M1: CECRowId | N1: MADState | O1: ProgramCode | P1: ProgramDescription | Q1: StartDate | R1: EndDate | S1: QtyUnitType | T1: PilotFlag | U1: OPUCExceptionFlag | V1: DefaultKwh | W1: DefaultTherms | X1: NEBAnnual | Y1: DefaultOverrideSavingsAndNEBs | Z1: DefaultLoadProfileEle | AA1: DefaultLoadProfileGas | AB1: DefaultOverrideProfiles | AC1: DefaultIncentive | AD1: DefaultOverrideIncentive | AE1: DefaultLifeYears | AF1: DefaultOverrideLife | AG1: UnitIncrementalCost | AH1: AddInteractiveKwh | AI1: AddInteractiveTherms | AJ1: UnitCost | AK1: UnitSave | AL1: UnitIncentive | AM1: CustomAllocation | AN1: AVI | AO1: PGE | AP1: PAC | AQ1: CNG | AR1: NWN | AS1: NWNF | AT1: NWNI | AU1: NWNWA | AV1: NWNTLM | AW1: PGELMI | AX1: PGEFF | AY1: PACLMI | AZ1: OCOOL | BA1: AVIINT | BB1: AVITRP | BC1: AttributeCategory | BD1: Attribute1 | BE1: Attribute1Description | BF1: Attribute1Required | BG1: Attribute1Type | BH1: Attribute1Length | BI1: Attribute1Entry | BJ1: Attribute2 | BK1: Attribute2Description | BL1: Attribute2Required | BM1: Attribute2Type | BN1: Attribute2Length | BO1: Attribute2Entry | BP1: Attribute3 | BQ1: Attribute3Description | BR1: Attribute3Required | BS1: Attribute3Type | BT1: Attribute3Length | BU1: Attribute3Entry | BV1: Attribute4 | BW1: Attribute4Description | BX1: Attribute4Required | BY1: Attribute4Type | BZ1: Attribute4Length | CA1: Attribute4Entry | CB1: Attribute5 | CC1: Attribute5Description | CD1: Attribute5Required | CE1: Attribute5Type | CF1: Attribute5Length | CG1: Attribute5Entry | CH1: Attribute6 | CI1: Attribute6Description | CJ1: Attribute6Required | CK1: Attribute6Type | CL1: Attribute6Length | CM1: Attribute6Entry | CN1: Attribute7 | CO1: Attribute7Description | CP1: Attribute7Required | CQ1: Attribute7Type | CR1: Attribute7Length | CS1: Attribute7Entry | CT1: Attribute8 | CU1: Attribute8Description | CV1: Attribute8Required | CW1: Attribute8Type | CX1: Attribute8Length | CY1: Attribute8Entry | CZ1: Attribute9 | DA1: Attribute9Description | DB1: Attribute9Required | DC1: Attribute9Type | DD1: Attribute9Length | DE1: Attribute9Entry | DF1: Attribute10 | DG1: Attribute10Description | DH1: Attribute10Required | DI1: Attribute10Type | DJ1: Attribute10Length | DK1: Attribute10Entry | DL1: Attribute11 | DM1: Attribute11Description | DN1: Attribute11Required | DO1: Attribute11Type | DP1: Attribute11Length | DQ1: Attribute11Entry | DR1: Attribute12 | DS1: Attribute12Description | DT1: Attribute12Required | DU1: Attribute12Type | DV1: Attribute12Length | DW1: Attribute12Entry | DX1: Attribute13 | DY1: Attribute13Description | DZ1: Attribute13Required | EA1: Attribute13Type | EB1: Attribute13Length | EC1: Attribute13Entry | ED1: Attribute14 | EE1: Attribute14Description | EF1: Attribute14Required | EG1: Attribute14Type | EH1: Attribute14Length | EI1: Attribute14Entry | EJ1: Attribute15 | EK1: Attribute15Description | EL1: Attribute15Required | EM1: Attribute15Type | EN1: Attribute15Length | EO1: Attribute15Entry | EP1: Attribute16 | EQ1: Attribute16Description | ER1: Attribute16Required | ES1: Attribute16Type | ET1: Attribute16Length | EU1: Attribute16Entry | EV1: Attribute17 | EW1: Attribute17Description | EX1: Attribute17Required | EY1: Attribute17Type | EZ1: Attribute17Length | FA1: Attribute17Entry | FB1: CreatedDatetime | FC1: RevisedDatetime | FD1: Column1
A2: 15287 | B2: Yes | C2: Prescriptive | D2: CPUMPVSDHEAT5HP | E2: Commercial Pump VSD_Heating_New Pump_5 HP (4.51 to 6.00 HP) | F2: Pump | G2: Pumps | H2: ELE | I2: N/A | J2: 864 | K2: 284 | L2: 2 | M2: 5105 | N2: OR | O2: NBE | P2: New Buildings | Q2: 2023-01-01 | R2: 2025-12-31 | S2: Units | T2: 0 | U2: 0 | V2: 1826.51 | W2: 0 | X2: 0 | Y2: 0 | Z2: Other Heating | AA2: None - gas | AB2: 0 | AC2: 500 | AD2: 0 | AE2: 15 | AF2: 0 | AG2: 592.58 | AH2: 0 | AI2: 0 | AJ2: 0 | AK2: 1 | AL2: 1 | AM2: 0 | AN2: NULL | AO2: 100 | AP2: 100 | AQ2: NULL | AR2: NULL | AS2: NULL | AT2: NULL | AU2: NULL | AV2: NULL | AW2: NULL | AX2: NULL | AY2: NULL | AZ2: NULL | BA2: NULL | BB2: NULL | BC2: NULL | BD2: No Attributes | BE2: NULL | BF2: NULL | BG2: F | BH2: NULL | BI2: NULL | BJ2: NULL | BK2: NULL | BL2: NULL | BM2: F | BN2: NULL | BO2: NULL | BP2: NULL | BQ2: NULL | BR2: NULL | BS2: F | BT2: NULL | BU2: NULL | BV2: NULL | BW2: NULL | BX2: NULL | BY2: F | BZ2: NULL | CA2: NULL | CB2: NULL | CC2: NULL | CD2: NULL | CE2: F | CF2: NULL | CG2: NULL | CH2: NULL | CI2: NULL | CJ2: NULL | CK2: F | CL2: NULL | CM2: NULL | CN2: NULL | CO2: NULL | CP2: NULL | CQ2: F | CR2: NULL | CS2: NULL | CT2: NULL | CU2: NULL | CV2: NULL | CW2: F | CX2: NULL | CY2: NULL | CZ2: NULL | DA2: NULL | DB2: NULL | DC2: F | DD2: NULL | DE2: NULL | DF2: NULL | DG2: NULL | DH2: NULL | DI2: F | DJ2: NULL | DK2: NULL | DL2: NULL | DM2: NULL | DN2: NULL | DO2: F | DP2: NULL | DQ2: NULL | DR2: NULL | DS2: NULL | DT2: NULL | DU2: F | DV2: NULL | DW2: NULL | DX2: NULL | DY2: NULL | DZ2: NULL | EA2: F | EB2: NULL | EC2: NULL | ED2: NULL | EE2: NULL | EF2: NULL | EG2: F | EH2: NULL | EI2: NULL | EJ2: NULL | EK2: NULL | EL2: NULL | EM2: F | EN2: NULL | EO2: NULL | EP2: NULL | EQ2: NULL | ER2: NULL | ES2: F | ET2: NULL | EU2: NULL | EV2: NULL | EW2: NULL | EX2: NULL | EY2: F | EZ2: NULL | FA2: NULL | FB2: NULL | FC2: 44952.60731 | FD2: 44952.60731
A3: 15288 | B3: Yes | C3: Prescriptive | D3: CPUMPVSDCOOL4HP | E3: Comm Pump VSD_Cooling_New Pump_4 HP (3.51 to 4.50 HP) | F3: Pump | G3: Pumps | H3: ELE | I3: N/A | J3: 864 | K3: 284 | L3: 2 | M3: 5121 | N3: OR | O3: NBE | P3: New Buildings | Q3: 2023-01-01 | R3: 2025-12-31 | S3: Units | T3: 0 | U3: 0 | V3: 1438.37 | W3: 0 | X3: 0 | Y3: 0 | Z3: Other Cooling | AA3: None - gas | AB3: 0 | AC3: 450 | AD3: 0 | AE3: 15 | AF3: 0 | AG3: 532.9 | AH3: 0 | AI3: 0 | AJ3: 0 | AK3: 1 | AL3: 1 | AM3: 0 | AN3: NULL | AO3: 100 | AP3: 100 | AQ3: NULL | AR3: NULL | AS3: NULL | AT3: NULL | AU3: NULL | AV3: NULL | AW3: NULL | AX3: NULL | AY3: NULL | AZ3: NULL | BA3: NULL | BB3: NULL | BC3: NULL | BD3: No Attributes | BE3: NULL | BF3: NULL | BG3: F | BH3: NULL | BI3: NULL | BJ3: NULL | BK3: NULL | BL3: NULL | BM3: F | BN3: NULL | BO3: NULL | BP3: NULL | BQ3: NULL | BR3: NULL | BS3: F | BT3: NULL | BU3: NULL | BV3: NULL | BW3: NULL | BX3: NULL | BY3: F | BZ3: NULL | CA3: NULL | CB3: NULL | CC3: NULL | CD3: NULL | CE3: F | CF3: NULL | CG3: NULL | CH3: NULL | CI3: NULL | CJ3: NULL | CK3: F | CL3: NULL | CM3: NULL | CN3: NULL | CO3: NULL | CP3: NULL | CQ3: F | CR3: NULL | CS3: NULL | CT3: NULL | CU3: NULL | CV3: NULL | CW3: F | CX3: NULL | CY3: NULL | CZ3: NULL | DA3: NULL | DB3: NULL | DC3: F | DD3: NULL | DE3: NULL | DF3: NULL | DG3: NULL | DH3: NULL | DI3: F | DJ3: NULL | DK3: NULL | DL3: NULL | DM3: NULL | DN3: NULL | DO3: F | DP3: NULL | DQ3: NULL | DR3: NULL | DS3: NULL | DT3: NULL | DU3: F | DV3: NULL | DW3: NULL | DX3: NULL | DY3: NULL | DZ3: NULL | EA3: F | EB3: NULL | EC3: NULL | ED3: NULL | EE3: NULL | EF3: NULL | EG3: F | EH3: NULL | EI3: NULL | EJ3: NULL | EK3: NULL | EL3: NULL | EM3: F | EN3: NULL | EO3: NULL | EP3: NULL | EQ3: NULL | ER3: NULL | ES3: F | ET3: NULL | EU3: NULL | EV3: NULL | EW3: NULL | EX3: NULL | EY3: F | EZ3: NULL | FA3: NULL | FB3: NULL | FC3: 44952.60731 | FD3: 44952.60731
A4: 15289 | B4: Yes | C4: Prescriptive | D4: CPUMPVSDCOOL3HP | E4: Comm Pump VSD_Cooling_New Pump_3 HP (2.51 to 3.50 HP) | F4: Pump | G4: Pumps | H4: ELE | I4: N/A | J4: 864 | K4: 284 | L4: 2 | M4: 5120 | N4: OR | O4: NBE | P4: New Buildings | Q4: 2023-01-01 | R4: 2025-12-31 | S4: Units | T4: 0 | U4: 0 | V4: 1078.78 | W4: 0 | X4: 0 | Y4: 0 | Z4: Other Cooling | AA4: None - gas | AB4: 0 | AC4: 350 | AD4: 0 | AE4: 15 | AF4: 0 | AG4: 464.75 | AH4: 0 | AI4: 0 | AJ4: 0 | AK4: 1 | AL4: 1 | AM4: 0 | AN4: NULL | AO4: 100 | AP4: 100 | AQ4: NULL | AR4: NULL | AS4: NULL | AT4: NULL | AU4: NULL | AV4: NULL | AW4: NULL | AX4: NULL | AY4: NULL | AZ4: NULL | BA4: NULL | BB4: NULL | BC4: NULL | BD4: No Attributes | BE4: NULL | BF4: NULL | BG4: F | BH4: NULL | BI4: NULL | BJ4: NULL | BK4: NULL | BL4: NULL | BM4: F | BN4: NULL | BO4: NULL | BP4: NULL | BQ4: NULL | BR4: NULL | BS4: F | BT4: NULL | BU4: NULL | BV4: NULL | BW4: NULL | BX4: NULL | BY4: F | BZ4: NULL | CA4: NULL | CB4: NULL | CC4: NULL | CD4: NULL | CE4: F | CF4: NULL | CG4: NULL | CH4: NULL | CI4: NULL | CJ4: NULL | CK4: F | CL4: NULL | CM4: NULL | CN4: NULL | CO4: NULL | CP4: NULL | CQ4: F | CR4: NULL | CS4: NULL | CT4: NULL | CU4: NULL | CV4: NULL | CW4: F | CX4: NULL | CY4: NULL | CZ4: NULL | DA4: NULL | DB4: NULL | DC4: F | DD4: NULL | DE4: NULL | DF4: NULL | DG4: NULL | DH4: NULL | DI4: F | DJ4: NULL | DK4: NULL | DL4: NULL | DM4: NULL | DN4: NULL | DO4: F | DP4: NULL | DQ4: NULL | DR4: NULL | DS4: NULL | DT4: NULL | DU4: F | DV4: NULL | DW4: NULL | DX4: NULL | DY4: NULL | DZ4: NULL | EA4: F | EB4: NULL | EC4: NULL | ED4: NULL | EE4: NULL | EF4: NULL | EG4: F | EH4: NULL | EI4: NULL | EJ4: NULL | EK4: NULL | EL4: NULL | EM4: F | EN4: NULL | EO4: NULL | EP4: NULL | EQ4: NULL | ER4: NULL | ES4: F | ET4: NULL | EU4: NULL | EV4: NULL | EW4: NULL | EX4: NULL | EY4: F | EZ4: NULL | FA4: NULL | FB4: NULL | FC4: 44952.60731 | FD4: 44952.60731
A5: 15290 | B5: Yes | C5: Prescriptive | D5: CPUMPVSDPB7P5HP | E5: Comm Pump VSD_Pressure Boost_New Pump_7.5 HP (6.01 to 8.00 HP) | F5: Pump | G5: Pumps | H5: ELE | I5: N/A | J5: 864 | K5: 284 | L5: 2 | M5: 5112 | N5: OR | O5: NBE | P5: New Buildings | Q5: 2023-01-01 | R5: 2025-12-31 | S5: Units | T5: 0 | U5: 0 | V5: 2088.55 | W5: 0 | X5: 0 | Y5: 0 | Z5: 3-Shift Industrial | AA5: None - gas | AB5: 0 | AC5: 600 | AD5: 0 | AE5: 15 | AF5: 0 | AG5: 718.63 | AH5: 0 | AI5: 0 | AJ5: 0 | AK5: 1 | AL5: 1 | AM5: 0 | AN5: NULL | AO5: 100 | AP5: 100 | AQ5: NULL | AR5: NULL | AS5: NULL | AT5: NULL | AU5: NULL | AV5: NULL | AW5: NULL | AX5: NULL | AY5: NULL | AZ5: NULL | BA5: NULL | BB5: NULL | BC5: NULL | BD5: No Attributes | BE5: NULL | BF5: NULL | BG5: F | BH5: NULL | BI5: NULL | BJ5: NULL | BK5: NULL | BL5: NULL | BM5: F | BN5: NULL | BO5: NULL | BP5: NULL | BQ5: NULL | BR5: NULL | BS5: F | BT5: NULL | BU5: NULL | BV5: NULL | BW5: NULL | BX5: NULL | BY5: F | BZ5: NULL | CA5: NULL | CB5: NULL | CC5: NULL | CD5: NULL | CE5: F | CF5: NULL | CG5: NULL | CH5: NULL | CI5: NULL | CJ5: NULL | CK5: F | CL5: NULL | CM5: NULL | CN5: NULL | CO5: NULL | CP5: NULL | CQ5: F | CR5: NULL | CS5: NULL | CT5: NULL | CU5: NULL | CV5: NULL | CW5: F | CX5: NULL | CY5: NULL | CZ5: NULL | DA5: NULL | DB5: NULL | DC5: F | DD5: NULL | DE5: NULL | DF5: NULL | DG5: NULL | DH5: NULL | DI5: F | DJ5: NULL | DK5: NULL | DL5: NULL | DM5: NULL | DN5: NULL | DO5: F | DP5: NULL | DQ5: NULL | DR5: NULL | DS5: NULL | DT5: NULL | DU5: F | DV5: NULL | DW5: NULL | DX5: NULL | DY5: NULL | DZ5: NULL | EA5: F | EB5: NULL | EC5: NULL | ED5: NULL | EE5: NULL | EF5: NULL | EG5: F | EH5: NULL | EI5: NULL | EJ5: NULL | EK5: NULL | EL5: NULL | EM5: F | EN5: NULL | EO5: NULL | EP5: NULL | EQ5: NULL | ER5: NULL | ES5: F | ET5: NULL | EU5: NULL | EV5: NULL | EW5: NULL | EX5: NULL | EY5: F | EZ5: NULL | FA5: NULL | FB5: NULL | FC5: 44952.60731 | FD5: 44952.60731
A6: 15291 | B6: Yes | C6: Prescriptive | D6: CPUMPVSDPB4HP | E6: Comm Pump VSD_Pressure Boost_New Pump_4 HP (3.51 to 4.50 HP) | F6: Pump | G6: Pumps | H6: ELE | I6: N/A | J6: 864 | K6: 284 | L6: 2 | M6: 5110 | N6: OR | O6: NBE | P6: New Buildings | Q6: 44927 | R6: 2025-12-31 | S6: Units | T6: 0 | U6: 0 | V6: 1113.89 | W6: 0 | X6: 0 | Y6: 0 | Z6: 3-Shift Industrial | AA6: None - gas | AB6: 0 | AC6: 450 | AD6: 0 | AE6: 15 | AF6: 0 | AG6: 532.9 | AH6: 0 | AI6: 0 | AJ6: 0 | AK6: 1 | AL6: 1 | AM6: 0 | AN6: NULL | AO6: 100 | AP6: 100 | AQ6: NULL | AR6: NULL | AS6: NULL | AT6: NULL | AU6: NULL | AV6: NULL | AW6: NULL | AX6: NULL | AY6: NULL | AZ6: NULL | BA6: NULL | BB6: NULL | BC6: NULL | BD6: No Attributes | BE6: NULL | BF6: NULL | BG6: F | BH6: NULL | BI6: NULL | BJ6: NULL | BK6: NULL | BL6: NULL | BM6: F | BN6: NULL | BO6: NULL | BP6: NULL | BQ6: NULL | BR6: NULL | BS6: F | BT6: NULL | BU6: NULL | BV6: NULL | BW6: NULL | BX6: NULL | BY6: F | BZ6: NULL | CA6: NULL | CB6: NULL | CC6: NULL | CD6: NULL | CE6: F | CF6: NULL | CG6: NULL | CH6: NULL | CI6: NULL | CJ6: NULL | CK6: F | CL6: NULL | CM6: NULL | CN6: NULL | CO6: NULL | CP6: NULL | CQ6: F | CR6: NULL | CS6: NULL | CT6: NULL | CU6: NULL | CV6: NULL | CW6: F | CX6: NULL | CY6: NULL | CZ6: NULL | DA6: NULL | DB6: NULL | DC6: F | DD6: NULL | DE6: NULL | DF6: NULL | DG6: NULL | DH6: NULL | DI6: F | DJ6: NULL | DK6: NULL | DL6: NULL | DM6: NULL | DN6: NULL | DO6: F | DP6: NULL | DQ6: NULL | DR6: NULL | DS6: NULL | DT6: NULL | DU6: F | DV6: NULL | DW6: NULL | DX6: NULL | DY6: NULL | DZ6: NULL | EA6: F | EB6: NULL | EC6: NULL | ED6: NULL | EE6: NULL | EF6: NULL | EG6: F | EH6: NULL | EI6: NULL | EJ6: NULL | EK6: NULL | EL6: NULL | EM6: F | EN6: NULL | EO6: NULL | EP6: NULL | EQ6: NULL | ER6: NULL | ES6: F | ET6: NULL | EU6: NULL | EV6: NULL | EW6: NULL | EX6: NULL | EY6: F | EZ6: NULL | FA6: NULL | FB6: NULL | FC6: 44952.60731 | FD6: 44952.60731
A7: 15292 | B7: Yes | C7: Prescriptive | D7: CPUMPVSDHEAT0P75 | E7: Commercial Pump VSD_Heating_New Pump_0.75 HP (0.50 to 0.75 HP) | F7: Pump | G7: Pumps | H7: ELE | I7: N/A | J7: 864 | K7: 284 | L7: 2 | M7: 5099 | N7: OR | O7: NBE | P7: New Buildings | Q7: 44927 | R7: 2025-12-31 | S7: Units | T7: 0 | U7: 0 | V7: 273.98 | W7: 0 | X7: 0 | Y7: 0 | Z7: Other Heating | AA7: None - gas | AB7: 0 | AC7: 150 | AD7: 0 | AE7: 15 | AF7: 0 | AG7: 240.34 | AH7: 0 | AI7: 0 | AJ7: 0 | AK7: 1 | AL7: 1 | AM7: 0 | AN7: NULL | AO7: 100 | AP7: 100 | AQ7: NULL | AR7: NULL | AS7: NULL | AT7: NULL | AU7: NULL | AV7: NULL | AW7: NULL | AX7: NULL | AY7: NULL | AZ7: NULL | BA7: NULL | BB7: NULL | BC7: NULL | BD7: No Attributes | BE7: NULL | BF7: NULL | BG7: F | BH7: NULL | BI7: NULL | BJ7: NULL | BK7: NULL | BL7: NULL | BM7: F | BN7: NULL | BO7: NULL | BP7: NULL | BQ7: NULL | BR7: NULL | BS7: F | BT7: NULL | BU7: NULL | BV7: NULL | BW7: NULL | BX7: NULL | BY7: F | BZ7: NULL | CA7: NULL | CB7: NULL | CC7: NULL | CD7: NULL | CE7: F | CF7: NULL | CG7: NULL | CH7: NULL | CI7: NULL | CJ7: NULL | CK7: F | CL7: NULL | CM7: NULL | CN7: NULL | CO7: NULL | CP7: NULL | CQ7: F | CR7: NULL | CS7: NULL | CT7: NULL | CU7: NULL | CV7: NULL | CW7: F | CX7: NULL | CY7: NULL | CZ7: NULL | DA7: NULL | DB7: NULL | DC7: F | DD7: NULL | DE7: NULL | DF7: NULL | DG7: NULL | DH7: NULL | DI7: F | DJ7: NULL | DK7: NULL | DL7: NULL | DM7: NULL | DN7: NULL | DO7: F | DP7: NULL | DQ7: NULL | DR7: NULL | DS7: NULL | DT7: NULL | DU7: F | DV7: NULL | DW7: NULL | DX7: NULL | DY7: NULL | DZ7: NULL | EA7: F | EB7: NULL | EC7: NULL | ED7: NULL | EE7: NULL | EF7: NULL | EG7: F | EH7: NULL | EI7: NULL | EJ7: NULL | EK7: NULL | EL7: NULL | EM7: F | EN7: NULL | EO7: NULL | EP7: NULL | EQ7: NULL | ER7: NULL | ES7: F | ET7: NULL | EU7: NULL | EV7: NULL | EW7: NULL | EX7: NULL | EY7: F | EZ7: NULL | FA7: NULL | FB7: NULL | FC7: 44952.60731 | FD7: 44952.60731
A8: 15293 | B8: Yes | C8: Prescriptive | D8: CPUMPVSDHEAT4HP | E8: Commercial Pump VSD_Heating_New Pump_4 HP (3.51 to 4.50 HP) | F8: Pump | G8: Pumps | H8: ELE | I8: N/A | J8: 864 | K8: 284 | L8: 2 | M8: 5104 | N8: OR | O8: NBE | P8: New Buildings | Q8: 2023-01-01 | R8: 2025-12-31 | S8: Units | T8: 0 | U8: 0 | V8: 1461.2 | W8: 0 | X8: 0 | Y8: 0 | Z8: Other Heating | AA8: None - gas | AB8: 0 | AC8: 450 | AD8: 0 | AE8: 15 | AF8: 0 | AG8: 532.9 | AH8: 0 | AI8: 0 | AJ8: 0 | AK8: 1 | AL8: 1 | AM8: 0 | AN8: NULL | AO8: 100 | AP8: 100 | AQ8: NULL | AR8: NULL | AS8: NULL | AT8: NULL | AU8: NULL | AV8: NULL | AW8: NULL | AX8: NULL | AY8: NULL | AZ8: NULL | BA8: NULL | BB8: NULL | BC8: NULL | BD8: No Attributes | BE8: NULL | BF8: NULL | BG8: F | BH8: NULL | BI8: NULL | BJ8: NULL | BK8: NULL | BL8: NULL | BM8: F | BN8: NULL | BO8: NULL | BP8: NULL | BQ8: NULL | BR8: NULL | BS8: F | BT8: NULL | BU8: NULL | BV8: NULL | BW8: NULL | BX8: NULL | BY8: F | BZ8: NULL | CA8: NULL | CB8: NULL | CC8: NULL | CD8: NULL | CE8: F | CF8: NULL | CG8: NULL | CH8: NULL | CI8: NULL | CJ8: NULL | CK8: F | CL8: NULL | CM8: NULL | CN8: NULL | CO8: NULL | CP8: NULL | CQ8: F | CR8: NULL | CS8: NULL | CT8: NULL | CU8: NULL | CV8: NULL | CW8: F | CX8: NULL | CY8: NULL | CZ8: NULL | DA8: NULL | DB8: NULL | DC8: F | DD8: NULL | DE8: NULL | DF8: NULL | DG8: NULL | DH8: NULL | DI8: F | DJ8: NULL | DK8: NULL | DL8: NULL | DM8: NULL | DN8: NULL | DO8: F | DP8: NULL | DQ8: NULL | DR8: NULL | DS8: NULL | DT8: NULL | DU8: F | DV8: NULL | DW8: NULL | DX8: NULL | DY8: NULL | DZ8: NULL | EA8: F | EB8: NULL | EC8: NULL | ED8: NULL | EE8: NULL | EF8: NULL | EG8: F | EH8: NULL | EI8: NULL | EJ8: NULL | EK8: NULL | EL8: NULL | EM8: F | EN8: NULL | EO8: NULL | EP8: NULL | EQ8: NULL | ER8: NULL | ES8: F | ET8: NULL | EU8: NULL | EV8: NULL | EW8: NULL | EX8: NULL | EY8: F | EZ8: NULL | FA8: NULL | FB8: NULL | FC8: 44952.60731 | FD8: 44952.60731
A9: 15294 | B9: Yes | C9: Prescriptive | D9: CPUMPVSDCOOLT5HP | E9: Comm Pump VSD_Cooling Tower_New Pump_5 HP (4.51 to 6.00 HP) | F9: Pump | G9: Pumps | H9: ELE | I9: N/A | J9: 864 | K9: 284 | L9: 2 | M9: 5094 | N9: OR | O9: NBE | P9: New Buildings | Q9: 2023-01-01 | R9: 2025-12-31 | S9: Units | T9: 0 | U9: 0 | V9: 898.41 | W9: 0 | X9: 0 | Y9: 0 | Z9: Other Cooling | AA9: None - gas | AB9: 0 | AC9: 500 | AD9: 0 | AE9: 15 | AF9: 0 | AG9: 592.58 | AH9: 0 | AI9: 0 | AJ9: 0 | AK9: 1 | AL9: 1 | AM9: 0 | AN9: NULL | AO9: 100 | AP9: 100 | AQ9: NULL | AR9: NULL | AS9: NULL | AT9: NULL | AU9: NULL | AV9: NULL | AW9: NULL | AX9: NULL | AY9: NULL | AZ9: NULL | BA9: NULL | BB9: NULL | BC9: NULL | BD9: No Attributes | BE9: NULL | BF9: NULL | BG9: F | BH9: NULL | BI9: NULL | BJ9: NULL | BK9: NULL | BL9: NULL | BM9: F | BN9: NULL | BO9: NULL | BP9: NULL | BQ9: NULL | BR9: NULL | BS9: F | BT9: NULL | BU9: NULL | BV9: NULL | BW9: NULL | BX9: NULL | BY9: F | BZ9: NULL | CA9: NULL | CB9: NULL | CC9: NULL | CD9: NULL | CE9: F | CF9: NULL | CG9: NULL | CH9: NULL | CI9: NULL | CJ9: NULL | CK9: F | CL9: NULL | CM9: NULL | CN9: NULL | CO9: NULL | CP9: NULL | CQ9: F | CR9: NULL | CS9: NULL | CT9: NULL | CU9: NULL | CV9: NULL | CW9: F | CX9: NULL | CY9: NULL | CZ9: NULL | DA9: NULL | DB9: NULL | DC9: F | DD9: NULL | DE9: NULL | DF9: NULL | DG9: NULL | DH9: NULL | DI9: F | DJ9: NULL | DK9: NULL | DL9: NULL | DM9: NULL | DN9: NULL | DO9: F | DP9: NULL | DQ9: NULL | DR9: NULL | DS9: NULL | DT9: NULL | DU9: F | DV9: NULL | DW9: NULL | DX9: NULL | DY9: NULL | DZ9: NULL | EA9: F | EB9: NULL | EC9: NULL | ED9: NULL | EE9: NULL | EF9: NULL | EG9: F | EH9: NULL | EI9: NULL | EJ9: NULL | EK9: NULL | EL9: NULL | EM9: F | EN9: NULL | EO9: NULL | EP9: NULL | EQ9: NULL | ER9: NULL | ES9: F | ET9: NULL | EU9: NULL | EV9: NULL | EW9: NULL | EX9: NULL | EY9: F | EZ9: NULL | FA9: NULL | FB9: NULL | FC9: 44952.60731 | FD9: 44952.60731
A10: 15295 | B10: Yes | C10: Prescriptive | D10: CPUMPVSDPB15HP | E10: Comm Pump VSD_Pressure Boost_New Pump_15 HP (12.51 to 17.50 HP) | F10: Pump | G10: Pumps | H10: ELE | I10: N/A | J10: 864 | K10: 284 | L10: 2 | M10: 5114 | N10: OR | O10: NBE | P10: New Buildings | Q10: 2023-01-01 | R10: 2025-12-31 | S10: Units | T10: 0 | U10: 0 | V10: 4177.09 | W10: 0 | X10: 0 | Y10: 0 | Z10: 3-Shift Industrial | AA10: None - gas | AB10: 0 | AC10: 850 | AD10: 0 | AE10: 15 | AF10: 0 | AG10: 999.31 | AH10: 0 | AI10: 0 | AJ10: 0 | AK10: 1 | AL10: 1 | AM10: 0 | AN10: NULL | AO10: 100 | AP10: 100 | AQ10: NULL | AR10: NULL | AS10: NULL | AT10: NULL | AU10: NULL | AV10: NULL | AW10: NULL | AX10: NULL | AY10: NULL | AZ10: NULL | BA10: NULL | BB10: NULL | BC10: NULL | BD10: No Attributes | BE10: NULL | BF10: NULL | BG10: F | BH10: NULL | BI10: NULL | BJ10: NULL | BK10: NULL | BL10: NULL | BM10: F | BN10: NULL | BO10: NULL | BP10: NULL | BQ10: NULL | BR10: NULL | BS10: F | BT10: NULL | BU10: NULL | BV10: NULL | BW10: NULL | BX10: NULL | BY10: F | BZ10: NULL | CA10: NULL | CB10: NULL | CC10: NULL | CD10: NULL | CE10: F | CF10: NULL | CG10: NULL | CH10: NULL | CI10: NULL | CJ10: NULL | CK10: F | CL10: NULL | CM10: NULL | CN10: NULL | CO10: NULL | CP10: NULL | CQ10: F | CR10: NULL | CS10: NULL | CT10: NULL | CU10: NULL | CV10: NULL | CW10: F | CX10: NULL | CY10: NULL | CZ10: NULL | DA10: NULL | DB10: NULL | DC10: F | DD10: NULL | DE10: NULL | DF10: NULL | DG10: NULL | DH10: NULL | DI10: F | DJ10: NULL | DK10: NULL | DL10: NULL | DM10: NULL | DN10: NULL | DO10: F | DP10: NULL | DQ10: NULL | DR10: NULL | DS10: NULL | DT10: NULL | DU10: F | DV10: NULL | DW10: NULL | DX10: NULL | DY10: NULL | DZ10: NULL | EA10: F | EB10: NULL | EC10: NULL | ED10: NULL | EE10: NULL | EF10: NULL | EG10: F | EH10: NULL | EI10: NULL | EJ10: NULL | EK10: NULL | EL10: NULL | EM10: F | EN10: NULL | EO10: NULL | EP10: NULL | EQ10: NULL | ER10: NULL | ES10: F | ET10: NULL | EU10: NULL | EV10: NULL | EW10: NULL | EX10: NULL | EY10: F | EZ10: NULL | FA10: NULL | FB10: NULL | FC10: 44952.60731 | FD10: 44952.60731
A11: 15296 | B11: Yes | C11: Prescriptive | D11: CPUMPVSDPB3HP | E11: Comm Pump VSD_Pressure Boost_New Pump_3 HP (2.51 to 3.50 HP) | F11: Pump | G11: Pumps | H11: ELE | I11: N/A | J11: 864 | K11: 284 | L11: 2 | M11: 5109 | N11: OR | O11: NBE | P11: New Buildings | Q11: 2023-01-01 | R11: 2025-12-31 | S11: Units | T11: 0 | U11: 0 | V11: 835.42 | W11: 0 | X11: 0 | Y11: 0 | Z11: 3-Shift Industrial | AA11: None - gas | AB11: 0 | AC11: 350 | AD11: 0 | AE11: 15 | AF11: 0 | AG11: 464.75 | AH11: 0 | AI11: 0 | AJ11: 0 | AK11: 1 | AL11: 1 | AM11: 0 | AN11: NULL | AO11: 100 | AP11: 100 | AQ11: NULL | AR11: NULL | AS11: NULL | AT11: NULL | AU11: NULL | AV11: NULL | AW11: NULL | AX11: NULL | AY11: NULL | AZ11: NULL | BA11: NULL | BB11: NULL | BC11: NULL | BD11: No Attributes | BE11: NULL | BF11: NULL | BG11: F | BH11: NULL | BI11: NULL | BJ11: NULL | BK11: NULL | BL11: NULL | BM11: F | BN11: NULL | BO11: NULL | BP11: NULL | BQ11: NULL | BR11: NULL | BS11: F | BT11: NULL | BU11: NULL | BV11: NULL | BW11: NULL | BX11: NULL | BY11: F | BZ11: NULL | CA11: NULL | CB11: NULL | CC11: NULL | CD11: NULL | CE11: F | CF11: NULL | CG11: NULL | CH11: NULL | CI11: NULL | CJ11: NULL | CK11: F | CL11: NULL | CM11: NULL | CN11: NULL | CO11: NULL | CP11: NULL | CQ11: F | CR11: NULL | CS11: NULL | CT11: NULL | CU11: NULL | CV11: NULL | CW11: F | CX11: NULL | CY11: NULL | CZ11: NULL | DA11: NULL | DB11: NULL | DC11: F | DD11: NULL | DE11: NULL | DF11: NULL | DG11: NULL | DH11: NULL | DI11: F | DJ11: NULL | DK11: NULL | DL11: NULL | DM11: NULL | DN11: NULL | DO11: F | DP11: NULL | DQ11: NULL | DR11: NULL | DS11: NULL | DT11: NULL | DU11: F | DV11: NULL | DW11: NULL | DX11: NULL | DY11: NULL | DZ11: NULL | EA11: F | EB11: NULL | EC11: NULL | ED11: NULL | EE11: NULL | EF11: NULL | EG11: F | EH11: NULL | EI11: NULL | EJ11: NULL | EK11: NULL | EL11: NULL | EM11: F | EN11: NULL | EO11: NULL | EP11: NULL | EQ11: NULL | ER11: NULL | ES11: F | ET11: NULL | EU11: NULL | EV11: NULL | EW11: NULL | EX11: NULL | EY11: F | EZ11: NULL | FA11: NULL | FB11: NULL | FC11: 44952.60731 | FD11: 44952.60731
A12: 15297 | B12: Yes | C12: Prescriptive | D12: CPUMPVSDPB10HP | E12: Comm Pump VSD_Pressure Boost_New Pump_10 HP (8.01 to 12.50 HP) | F12: Pump | G12: Pumps | H12: ELE | I12: N/A | J12: 864 | K12: 284 | L12: 2 | M12: 5113 | N12: OR | O12: NBE | P12: New Buildings | Q12: 2023-01-01 | R12: 2025-12-31 | S12: Units | T12: 0 | U12: 0 | V12: 2784.73 | W12: 0 | X12: 0 | Y12: 0 | Z12: 3-Shift Industrial | AA12: None - gas | AB12: 0 | AC12: 700 | AD12: 0 | AE12: 15 | AF12: 0 | AG12: 824.02 | AH12: 0 | AI12: 0 | AJ12: 0 | AK12: 1 | AL12: 1 | AM12: 0 | AN12: NULL | AO12: 100 | AP12: 100 | AQ12: NULL | AR12: NULL | AS12: NULL | AT12: NULL | AU12: NULL | AV12: NULL | AW12: NULL | AX12: NULL | AY12: NULL | AZ12: NULL | BA12: NULL | BB12: NULL | BC12: NULL | BD12: No Attributes | BE12: NULL | BF12: NULL | BG12: F | BH12: NULL | BI12: NULL | BJ12: NULL | BK12: NULL | BL12: NULL | BM12: F | BN12: NULL | BO12: NULL | BP12: NULL | BQ12: NULL | BR12: NULL | BS12: F | BT12: NULL | BU12: NULL | BV12: NULL | BW12: NULL | BX12: NULL | BY12: F | BZ12: NULL | CA12: NULL | CB12: NULL | CC12: NULL | CD12: NULL | CE12: F | CF12: NULL | CG12: NULL | CH12: NULL | CI12: NULL | CJ12: NULL | CK12: F | CL12: NULL | CM12: NULL | CN12: NULL | CO12: NULL | CP12: NULL | CQ12: F | CR12: NULL | CS12: NULL | CT12: NULL | CU12: NULL | CV12: NULL | CW12: F | CX12: NULL | CY12: NULL | CZ12: NULL | DA12: NULL | DB12: NULL | DC12: F | DD12: NULL | DE12: NULL | DF12: NULL | DG12: NULL | DH12: NULL | DI12: F | DJ12: NULL | DK12: NULL | DL12: NULL | DM12: NULL | DN12: NULL | DO12: F | DP12: NULL | DQ12: NULL | DR12: NULL | DS12: NULL | DT12: NULL | DU12: F | DV12: NULL | DW12: NULL | DX12: NULL | DY12: NULL | DZ12: NULL | EA12: F | EB12: NULL | EC12: NULL | ED12: NULL | EE12: NULL | EF12: NULL | EG12: F | EH12: NULL | EI12: NULL | EJ12: NULL | EK12: NULL | EL12: NULL | EM12: F | EN12: NULL | EO12: NULL | EP12: NULL | EQ12: NULL | ER12: NULL | ES12: F | ET12: NULL | EU12: NULL | EV12: NULL | EW12: NULL | EX12: NULL | EY12: F | EZ12: NULL | FA12: NULL | FB12: NULL | FC12: 44952.60731 | FD12: 44952.60731
A13: 15298 | B13: Yes | C13: Prescriptive | D13: CPUMPVSDCOOLT7P5HP | E13: Comm Pump VSD_Cooling Tower_New Pump_7.5 HP (6.01 to 8.00 HP) | F13: Pump | G13: Pumps | H13: ELE | I13: N/A | J13: 864 | K13: 284 | L13: 2 | M13: 5095 | N13: OR | O13: NBE | P13: New Buildings | Q13: 2023-01-01 | R13: 2025-12-31 | S13: Units | T13: 0 | U13: 0 | V13: 1347.61 | W13: 0 | X13: 0 | Y13: 0 | Z13: Other Cooling | AA13: None - gas | AB13: 0 | AC13: 600 | AD13: 0 | AE13: 15 | AF13: 0 | AG13: 718.63 | AH13: 0 | AI13: 0 | AJ13: 0 | AK13: 1 | AL13: 1 | AM13: 0 | AN13: NULL | AO13: 100 | AP13: 100 | AQ13: NULL | AR13: NULL | AS13: NULL | AT13: NULL | AU13: NULL | AV13: NULL | AW13: NULL | AX13: NULL | AY13: NULL | AZ13: NULL | BA13: NULL | BB13: NULL | BC13: NULL | BD13: No Attributes | BE13: NULL | BF13: NULL | BG13: F | BH13: NULL | BI13: NULL | BJ13: NULL | BK13: NULL | BL13: NULL | BM13: F | BN13: NULL | BO13: NULL | BP13: NULL | BQ13: NULL | BR13: NULL | BS13: F | BT13: NULL | BU13: NULL | BV13: NULL | BW13: NULL | BX13: NULL | BY13: F | BZ13: NULL | CA13: NULL | CB13: NULL | CC13: NULL | CD13: NULL | CE13: F | CF13: NULL | CG13: NULL | CH13: NULL | CI13: NULL | CJ13: NULL | CK13: F | CL13: NULL | CM13: NULL | CN13: NULL | CO13: NULL | CP13: NULL | CQ13: F | CR13: NULL | CS13: NULL | CT13: NULL | CU13: NULL | CV13: NULL | CW13: F | CX13: NULL | CY13: NULL | CZ13: NULL | DA13: NULL | DB13: NULL | DC13: F | DD13: NULL | DE13: NULL | DF13: NULL | DG13: NULL | DH13: NULL | DI13: F | DJ13: NULL | DK13: NULL | DL13: NULL | DM13: NULL | DN13: NULL | DO13: F | DP13: NULL | DQ13: NULL | DR13: NULL | DS13: NULL | DT13: NULL | DU13: F | DV13: NULL | DW13: NULL | DX13: NULL | DY13: NULL | DZ13: NULL | EA13: F | EB13: NULL | EC13: NULL | ED13: NULL | EE13: NULL | EF13: NULL | EG13: F | EH13: NULL | EI13: NULL | EJ13: NULL | EK13: NULL | EL13: NULL | EM13: F | EN13: NULL | EO13: NULL | EP13: NULL | EQ13: NULL | ER13: NULL | ES13: F | ET13: NULL | EU13: NULL | EV13: NULL | EW13: NULL | EX13: NULL | EY13: F | EZ13: NULL | FA13: NULL | FB13: NULL | FC13: 44952.60731 | FD13: 44952.60731
A14: 15299 | B14: Yes | C14: Prescriptive | D14: CPUMPVSDHEAT2HP | E14: Commercial Pump VSD_Heating_New Pump_2 HP (1.76 to 2.50 HP) | F14: Pump | G14: Pumps | H14: ELE | I14: N/A | J14: 864 | K14: 284 | L14: 2 | M14: 5102 | N14: OR | O14: NBE | P14: New Buildings | Q14: 2023-01-01 | R14: 2025-12-31 | S14: Units | T14: 0 | U14: 0 | V14: 730.6 | W14: 0 | X14: 0 | Y14: 0 | Z14: Other Heating | AA14: None - gas | AB14: 0 | AC14: 300 | AD14: 0 | AE14: 15 | AF14: 0 | AG14: 383.22 | AH14: 0 | AI14: 0 | AJ14: 0 | AK14: 1 | AL14: 1 | AM14: 0 | AN14: NULL | AO14: 100 | AP14: 100 | AQ14: NULL | AR14: NULL | AS14: NULL | AT14: NULL | AU14: NULL | AV14: NULL | AW14: NULL | AX14: NULL | AY14: NULL | AZ14: NULL | BA14: NULL | BB14: NULL | BC14: NULL | BD14: No Attributes | BE14: NULL | BF14: NULL | BG14: F | BH14: NULL | BI14: NULL | BJ14: NULL | BK14: NULL | BL14: NULL | BM14: F | BN14: NULL | BO14: NULL | BP14: NULL | BQ14: NULL | BR14: NULL | BS14: F | BT14: NULL | BU14: NULL | BV14: NULL | BW14: NULL | BX14: NULL | BY14: F | BZ14: NULL | CA14: NULL | CB14: NULL | CC14: NULL | CD14: NULL | CE14: F | CF14: NULL | CG14: NULL | CH14: NULL | CI14: NULL | CJ14: NULL | CK14: F | CL14: NULL | CM14: NULL | CN14: NULL | CO14: NULL | CP14: NULL | CQ14: F | CR14: NULL | CS14: NULL | CT14: NULL | CU14: NULL | CV14: NULL | CW14: F | CX14: NULL | CY14: NULL | CZ14: NULL | DA14: NULL | DB14: NULL | DC14: F | DD14: NULL | DE14: NULL | DF14: NULL | DG14: NULL | DH14: NULL | DI14: F | DJ14: NULL | DK14: NULL | DL14: NULL | DM14: NULL | DN14: NULL | DO14: F | DP14: NULL | DQ14: NULL | DR14: NULL | DS14: NULL | DT14: NULL | DU14: F | DV14: NULL | DW14: NULL | DX14: NULL | DY14: NULL | DZ14: NULL | EA14: F | EB14: NULL | EC14: NULL | ED14: NULL | EE14: NULL | EF14: NULL | EG14: F | EH14: NULL | EI14: NULL | EJ14: NULL | EK14: NULL | EL14: NULL | EM14: F | EN14: NULL | EO14: NULL | EP14: NULL | EQ14: NULL | ER14: NULL | ES14: F | ET14: NULL | EU14: NULL | EV14: NULL | EW14: NULL | EX14: NULL | EY14: F | EZ14: NULL | FA14: NULL | FB14: NULL | FC14: 44952.60731 | FD14: 44952.60731
A15: 15300 | B15: Yes | C15: Prescriptive | D15: CPUMPVSDCOOL1HP | E15: Comm Pump VSD_Cooling_New Pump_1 HP (0.76 to 1.25 HP) | F15: Pump | G15: Pumps | H15: ELE | I15: N/A | J15: 864 | K15: 284 | L15: 2 | M15: 5117 | N15: OR | O15: NBE | P15: New Buildings | Q15: 2023-01-01 | R15: 2025-12-31 | S15: Units | T15: 0 | U15: 0 | V15: 359.59 | W15: 0 | X15: 0 | Y15: 0 | Z15: Other Cooling | AA15: None - gas | AB15: 0 | AC15: 200 | AD15: 0 | AE15: 15 | AF15: 0 | AG15: 275.59 | AH15: 0 | AI15: 0 | AJ15: 0 | AK15: 1 | AL15: 1 | AM15: 0 | AN15: NULL | AO15: 100 | AP15: 100 | AQ15: NULL | AR15: NULL | AS15: NULL | AT15: NULL | AU15: NULL | AV15: NULL | AW15: NULL | AX15: NULL | AY15: NULL | AZ15: NULL | BA15: NULL | BB15: NULL | BC15: NULL | BD15: No Attributes | BE15: NULL | BF15: NULL | BG15: F | BH15: NULL | BI15: NULL | BJ15: NULL | BK15: NULL | BL15: NULL | BM15: F | BN15: NULL | BO15: NULL | BP15: NULL | BQ15: NULL | BR15: NULL | BS15: F | BT15: NULL | BU15: NULL | BV15: NULL | BW15: NULL | BX15: NULL | BY15: F | BZ15: NULL | CA15: NULL | CB15: NULL | CC15: NULL | CD15: NULL | CE15: F | CF15: NULL | CG15: NULL | CH15: NULL | CI15: NULL | CJ15: NULL | CK15: F | CL15: NULL | CM15: NULL | CN15: NULL | CO15: NULL | CP15: NULL | CQ15: F | CR15: NULL | CS15: NULL | CT15: NULL | CU15: NULL | CV15: NULL | CW15: F | CX15: NULL | CY15: NULL | CZ15: NULL | DA15: NULL | DB15: NULL | DC15: F | DD15: NULL | DE15: NULL | DF15: NULL | DG15: NULL | DH15: NULL | DI15: F | DJ15: NULL | DK15: NULL | DL15: NULL | DM15: NULL | DN15: NULL | DO15: F | DP15: NULL | DQ15: NULL | DR15: NULL | DS15: NULL | DT15: NULL | DU15: F | DV15: NULL | DW15: NULL | DX15: NULL | DY15: NULL | DZ15: NULL | EA15: F | EB15: NULL | EC15: NULL | ED15: NULL | EE15: NULL | EF15: NULL | EG15: F | EH15: NULL | EI15: NULL | EJ15: NULL | EK15: NULL | EL15: NULL | EM15: F | EN15: NULL | EO15: NULL | EP15: NULL | EQ15: NULL | ER15: NULL | ES15: F | ET15: NULL | EU15: NULL | EV15: NULL | EW15: NULL | EX15: NULL | EY15: F | EZ15: NULL | FA15: NULL | FB15: NULL | FC15: 44952.60731 | FD15: 44952.60731
A16: 15301 | B16: Yes | C16: Prescriptive | D16: CPUMPVSDCOOL2HP | E16: Comm Pump VSD_Cooling_New Pump_2 HP (1.76 to 2.50 HP) | F16: Pump | G16: Pumps | H16: ELE | I16: N/A | J16: 864 | K16: 284 | L16: 2 | M16: 5119 | N16: OR | O16: NBE | P16: New Buildings | Q16: 2023-01-01 | R16: 2025-12-31 | S16: Units | T16: 0 | U16: 0 | V16: 719.19 | W16: 0 | X16: 0 | Y16: 0 | Z16: Other Cooling | AA16: None - gas | AB16: 0 | AC16: 300 | AD16: 0 | AE16: 15 | AF16: 0 | AG16: 383.22 | AH16: 0 | AI16: 0 | AJ16: 0 | AK16: 1 | AL16: 1 | AM16: 0 | AN16: NULL | AO16: 100 | AP16: 100 | AQ16: NULL | AR16: NULL | AS16: NULL | AT16: NULL | AU16: NULL | AV16: NULL | AW16: NULL | AX16: NULL | AY16: NULL | AZ16: NULL | BA16: NULL | BB16: NULL | BC16: NULL | BD16: No Attributes | BE16: NULL | BF16: NULL | BG16: F | BH16: NULL | BI16: NULL | BJ16: NULL | BK16: NULL | BL16: NULL | BM16: F | BN16: NULL | BO16: NULL | BP16: NULL | BQ16: NULL | BR16: NULL | BS16: F | BT16: NULL | BU16: NULL | BV16: NULL | BW16: NULL | BX16: NULL | BY16: F | BZ16: NULL | CA16: NULL | CB16: NULL | CC16: NULL | CD16: NULL | CE16: F | CF16: NULL | CG16: NULL | CH16: NULL | CI16: NULL | CJ16: NULL | CK16: F | CL16: NULL | CM16: NULL | CN16: NULL | CO16: NULL | CP16: NULL | CQ16: F | CR16: NULL | CS16: NULL | CT16: NULL | CU16: NULL | CV16: NULL | CW16: F | CX16: NULL | CY16: NULL | CZ16: NULL | DA16: NULL | DB16: NULL | DC16: F | DD16: NULL | DE16: NULL | DF16: NULL | DG16: NULL | DH16: NULL | DI16: F | DJ16: NULL | DK16: NULL | DL16: NULL | DM16: NULL | DN16: NULL | DO16: F | DP16: NULL | DQ16: NULL | DR16: NULL | DS16: NULL | DT16: NULL | DU16: F | DV16: NULL | DW16: NULL | DX16: NULL | DY16: NULL | DZ16: NULL | EA16: F | EB16: NULL | EC16: NULL | ED16: NULL | EE16: NULL | EF16: NULL | EG16: F | EH16: NULL | EI16: NULL | EJ16: NULL | EK16: NULL | EL16: NULL | EM16: F | EN16: NULL | EO16: NULL | EP16: NULL | EQ16: NULL | ER16: NULL | ES16: F | ET16: NULL | EU16: NULL | EV16: NULL | EW16: NULL | EX16: NULL | EY16: F | EZ16: NULL | FA16: NULL | FB16: NULL | FC16: 44952.60731 | FD16: 44952.60731
A17: 15303 | B17: Yes | C17: Prescriptive | D17: CPUMPVSDPB2HP | E17: Comm Pump VSD_Pressure Boost_New Pump_2 HP (1.76 to 2.50 HP) | F17: Pump | G17: Pumps | H17: ELE | I17: N/A | J17: 864 | K17: 284 | L17: 2 | M17: 5108 | N17: OR | O17: NBE | P17: New Buildings | Q17: 2023-01-01 | R17: 2025-12-31 | S17: Units | T17: 0 | U17: 0 | V17: 556.95 | W17: 0 | X17: 0 | Y17: 0 | Z17: 3-Shift Industrial | AA17: None - gas | AB17: 0 | AC17: 300 | AD17: 0 | AE17: 15 | AF17: 0 | AG17: 383.22 | AH17: 0 | AI17: 0 | AJ17: 0 | AK17: 1 | AL17: 1 | AM17: 0 | AN17: NULL | AO17: 100 | AP17: 100 | AQ17: NULL | AR17: NULL | AS17: NULL | AT17: NULL | AU17: NULL | AV17: NULL | AW17: NULL | AX17: NULL | AY17: NULL | AZ17: NULL | BA17: NULL | BB17: NULL | BC17: NULL | BD17: No Attributes | BE17: NULL | BF17: NULL | BG17: F | BH17: NULL | BI17: NULL | BJ17: NULL | BK17: NULL | BL17: NULL | BM17: F | BN17: NULL | BO17: NULL | BP17: NULL | BQ17: NULL | BR17: NULL | BS17: F | BT17: NULL | BU17: NULL | BV17: NULL | BW17: NULL | BX17: NULL | BY17: F | BZ17: NULL | CA17: NULL | CB17: NULL | CC17: NULL | CD17: NULL | CE17: F | CF17: NULL | CG17: NULL | CH17: NULL | CI17: NULL | CJ17: NULL | CK17: F | CL17: NULL | CM17: NULL | CN17: NULL | CO17: NULL | CP17: NULL | CQ17: F | CR17: NULL | CS17: NULL | CT17: NULL | CU17: NULL | CV17: NULL | CW17: F | CX17: NULL | CY17: NULL | CZ17: NULL | DA17: NULL | DB17: NULL | DC17: F | DD17: NULL | DE17: NULL | DF17: NULL | DG17: NULL | DH17: NULL | DI17: F | DJ17: NULL | DK17: NULL | DL17: NULL | DM17: NULL | DN17: NULL | DO17: F | DP17: NULL | DQ17: NULL | DR17: NULL | DS17: NULL | DT17: NULL | DU17: F | DV17: NULL | DW17: NULL | DX17: NULL | DY17: NULL | DZ17: NULL | EA17: F | EB17: NULL | EC17: NULL | ED17: NULL | EE17: NULL | EF17: NULL | EG17: F | EH17: NULL | EI17: NULL | EJ17: NULL | EK17: NULL | EL17: NULL | EM17: F | EN17: NULL | EO17: NULL | EP17: NULL | EQ17: NULL | ER17: NULL | ES17: F | ET17: NULL | EU17: NULL | EV17: NULL | EW17: NULL | EX17: NULL | EY17: F | EZ17: NULL | FA17: NULL | FB17: NULL | FC17: 44952.60731 | FD17: 44952.60731
A18: 15304 | B18: Yes | C18: Prescriptive | D18: CPUMPVSDCOOLT15HP | E18: Comm Pump VSD_Cooling Tower_New Pump_15 HP (12.51 to 17.50 HP) | F18: Pump | G18: Pumps | H18: ELE | I18: N/A | J18: 864 | K18: 284 | L18: 2 | M18: 5097 | N18: OR | O18: NBE | P18: New Buildings | Q18: 2023-01-01 | R18: 2025-12-31 | S18: Units | T18: 0 | U18: 0 | V18: 2695.22 | W18: 0 | X18: 0 | Y18: 0 | Z18: Other Cooling | AA18: None - gas | AB18: 0 | AC18: 850 | AD18: 0 | AE18: 15 | AF18: 0 | AG18: 999.31 | AH18: 0 | AI18: 0 | AJ18: 0 | AK18: 1 | AL18: 1 | AM18: 0 | AN18: NULL | AO18: 100 | AP18: 100 | AQ18: NULL | AR18: NULL | AS18: NULL | AT18: NULL | AU18: NULL | AV18: NULL | AW18: NULL | AX18: NULL | AY18: NULL | AZ18: NULL | BA18: NULL | BB18: NULL | BC18: NULL | BD18: No Attributes | BE18: NULL | BF18: NULL | BG18: F | BH18: NULL | BI18: NULL | BJ18: NULL | BK18: NULL | BL18: NULL | BM18: F | BN18: NULL | BO18: NULL | BP18: NULL | BQ18: NULL | BR18: NULL | BS18: F | BT18: NULL | BU18: NULL | BV18: NULL | BW18: NULL | BX18: NULL | BY18: F | BZ18: NULL | CA18: NULL | CB18: NULL | CC18: NULL | CD18: NULL | CE18: F | CF18: NULL | CG18: NULL | CH18: NULL | CI18: NULL | CJ18: NULL | CK18: F | CL18: NULL | CM18: NULL | CN18: NULL | CO18: NULL | CP18: NULL | CQ18: F | CR18: NULL | CS18: NULL | CT18: NULL | CU18: NULL | CV18: NULL | CW18: F | CX18: NULL | CY18: NULL | CZ18: NULL | DA18: NULL | DB18: NULL | DC18: F | DD18: NULL | DE18: NULL | DF18: NULL | DG18: NULL | DH18: NULL | DI18: F | DJ18: NULL | DK18: NULL | DL18: NULL | DM18: NULL | DN18: NULL | DO18: F | DP18: NULL | DQ18: NULL | DR18: NULL | DS18: NULL | DT18: NULL | DU18: F | DV18: NULL | DW18: NULL | DX18: NULL | DY18: NULL | DZ18: NULL | EA18: F | EB18: NULL | EC18: NULL | ED18: NULL | EE18: NULL | EF18: NULL | EG18: F | EH18: NULL | EI18: NULL | EJ18: NULL | EK18: NULL | EL18: NULL | EM18: F | EN18: NULL | EO18: NULL | EP18: NULL | EQ18: NULL | ER18: NULL | ES18: F | ET18: NULL | EU18: NULL | EV18: NULL | EW18: NULL | EX18: NULL | EY18: F | EZ18: NULL | FA18: NULL | FB18: NULL | FC18: 44952.60731 | FD18: 44952.60731
A19: 15305 | B19: Yes | C19: Prescriptive | D19: CPUMPVSDPB20HP | E19: Comm Pump VSD_Pressure Boost_New Pump_20 HP (17.51 to 22.50 HP) | F19: Pump | G19: Pumps | H19: ELE | I19: N/A | J19: 864 | K19: 284 | L19: 2 | M19: 5115 | N19: OR | O19: NBE | P19: New Buildings | Q19: 2023-01-01 | R19: 2025-12-31 | S19: Units | T19: 0 | U19: 0 | V19: 5569.46 | W19: 0 | X19: 0 | Y19: 0 | Z19: 3-Shift Industrial | AA19: None - gas | AB19: 0 | AC19: 1000 | AD19: 0 | AE19: 15 | AF19: 0 | AG19: 1145.87 | AH19: 0 | AI19: 0 | AJ19: 0 | AK19: 1 | AL19: 1 | AM19: 0 | AN19: NULL | AO19: 100 | AP19: 100 | AQ19: NULL | AR19: NULL | AS19: NULL | AT19: NULL | AU19: NULL | AV19: NULL | AW19: NULL | AX19: NULL | AY19: NULL | AZ19: NULL | BA19: NULL | BB19: NULL | BC19: NULL | BD19: No Attributes | BE19: NULL | BF19: NULL | BG19: F | BH19: NULL | BI19: NULL | BJ19: NULL | BK19: NULL | BL19: NULL | BM19: F | BN19: NULL | BO19: NULL | BP19: NULL | BQ19: NULL | BR19: NULL | BS19: F | BT19: NULL | BU19: NULL | BV19: NULL | BW19: NULL | BX19: NULL | BY19: F | BZ19: NULL | CA19: NULL | CB19: NULL | CC19: NULL | CD19: NULL | CE19: F | CF19: NULL | CG19: NULL | CH19: NULL | CI19: NULL | CJ19: NULL | CK19: F | CL19: NULL | CM19: NULL | CN19: NULL | CO19: NULL | CP19: NULL | CQ19: F | CR19: NULL | CS19: NULL | CT19: NULL | CU19: NULL | CV19: NULL | CW19: F | CX19: NULL | CY19: NULL | CZ19: NULL | DA19: NULL | DB19: NULL | DC19: F | DD19: NULL | DE19: NULL | DF19: NULL | DG19: NULL | DH19: NULL | DI19: F | DJ19: NULL | DK19: NULL | DL19: NULL | DM19: NULL | DN19: NULL | DO19: F | DP19: NULL | DQ19: NULL | DR19: NULL | DS19: NULL | DT19: NULL | DU19: F | DV19: NULL | DW19: NULL | DX19: NULL | DY19: NULL | DZ19: NULL | EA19: F | EB19: NULL | EC19: NULL | ED19: NULL | EE19: NULL | EF19: NULL | EG19: F | EH19: NULL | EI19: NULL | EJ19: NULL | EK19: NULL | EL19: NULL | EM19: F | EN19: NULL | EO19: NULL | EP19: NULL | EQ19: NULL | ER19: NULL | ES19: F | ET19: NULL | EU19: NULL | EV19: NULL | EW19: NULL | EX19: NULL | EY19: F | EZ19: NULL | FA19: NULL | FB19: NULL | FC19: 44952.60731 | FD19: 44952.60731
A20: 15306 | B20: Yes | C20: Prescriptive | D20: CPUMPVSDPB5HP | E20: Comm Pump VSD_Pressure Boost_New Pump_5 HP (4.51 to 6.00 HP) | F20: Pump | G20: Pumps | H20: ELE | I20: N/A | J20: 864 | K20: 284 | L20: 2 | M20: 5111 | N20: OR | O20: NBE | P20: New Buildings | Q20: 2023-01-01 | R20: 2025-12-31 | S20: Units | T20: 0 | U20: 0 | V20: 1392.36 | W20: 0 | X20: 0 | Y20: 0 | Z20: 3-Shift Industrial | AA20: None - gas | AB20: 0 | AC20: 500 | AD20: 0 | AE20: 15 | AF20: 0 | AG20: 592.58 | AH20: 0 | AI20: 0 | AJ20: 0 | AK20: 1 | AL20: 1 | AM20: 0 | AN20: NULL | AO20: 100 | AP20: 100 | AQ20: NULL | AR20: NULL | AS20: NULL | AT20: NULL | AU20: NULL | AV20: NULL | AW20: NULL | AX20: NULL | AY20: NULL | AZ20: NULL | BA20: NULL | BB20: NULL | BC20: NULL | BD20: No Attributes | BE20: NULL | BF20: NULL | BG20: F | BH20: NULL | BI20: NULL | BJ20: NULL | BK20: NULL | BL20: NULL | BM20: F | BN20: NULL | BO20: NULL | BP20: NULL | BQ20: NULL | BR20: NULL | BS20: F | BT20: NULL | BU20: NULL | BV20: NULL | BW20: NULL | BX20: NULL | BY20: F | BZ20: NULL | CA20: NULL | CB20: NULL | CC20: NULL | CD20: NULL | CE20: F | CF20: NULL | CG20: NULL | CH20: NULL | CI20: NULL | CJ20: NULL | CK20: F | CL20: NULL | CM20: NULL | CN20: NULL | CO20: NULL | CP20: NULL | CQ20: F | CR20: NULL | CS20: NULL | CT20: NULL | CU20: NULL | CV20: NULL | CW20: F | CX20: NULL | CY20: NULL | CZ20: NULL | DA20: NULL | DB20: NULL | DC20: F | DD20: NULL | DE20: NULL | DF20: NULL | DG20: NULL | DH20: NULL | DI20: F | DJ20: NULL | DK20: NULL | DL20: NULL | DM20: NULL | DN20: NULL | DO20: F | DP20: NULL | DQ20: NULL | DR20: NULL | DS20: NULL | DT20: NULL | DU20: F | DV20: NULL | DW20: NULL | DX20: NULL | DY20: NULL | DZ20: NULL | EA20: F | EB20: NULL | EC20: NULL | ED20: NULL | EE20: NULL | EF20: NULL | EG20: F | EH20: NULL | EI20: NULL | EJ20: NULL | EK20: NULL | EL20: NULL | EM20: F | EN20: NULL | EO20: NULL | EP20: NULL | EQ20: NULL | ER20: NULL | ES20: F | ET20: NULL | EU20: NULL | EV20: NULL | EW20: NULL | EX20: NULL | EY20: F | EZ20: NULL | FA20: NULL | FB20: NULL | FC20: 44952.60731 | FD20: 44952.60731
A21: 15307 | B21: Yes | C21: Prescriptive | D21: CPUMPVSDCOOL0P75HP | E21: Comm Pump VSD_Cooling_New Pump_0.75 HP (0.50 to 0.75 HP) | F21: Pump | G21: Pumps | H21: ELE | I21: N/A | J21: 864 | K21: 284 | L21: 2 | M21: 5116 | N21: OR | O21: NBE | P21: New Buildings | Q21: 2023-01-01 | R21: 2025-12-31 | S21: Units | T21: 0 | U21: 0 | V21: 269.69 | W21: 0 | X21: 0 | Y21: 0 | Z21: Other Cooling | AA21: None - gas | AB21: 0 | AC21: 150 | AD21: 0 | AE21: 15 | AF21: 0 | AG21: 240.34 | AH21: 0 | AI21: 0 | AJ21: 0 | AK21: 1 | AL21: 1 | AM21: 0 | AN21: NULL | AO21: 100 | AP21: 100 | AQ21: NULL | AR21: NULL | AS21: NULL | AT21: NULL | AU21: NULL | AV21: NULL | AW21: NULL | AX21: NULL | AY21: NULL | AZ21: NULL | BA21: NULL | BB21: NULL | BC21: NULL | BD21: No Attributes | BE21: NULL | BF21: NULL | BG21: F | BH21: NULL | BI21: NULL | BJ21: NULL | BK21: NULL | BL21: NULL | BM21: F | BN21: NULL | BO21: NULL | BP21: NULL | BQ21: NULL | BR21: NULL | BS21: F | BT21: NULL | BU21: NULL | BV21: NULL | BW21: NULL | BX21: NULL | BY21: F | BZ21: NULL | CA21: NULL | CB21: NULL | CC21: NULL | CD21: NULL | CE21: F | CF21: NULL | CG21: NULL | CH21: NULL | CI21: NULL | CJ21: NULL | CK21: F | CL21: NULL | CM21: NULL | CN21: NULL | CO21: NULL | CP21: NULL | CQ21: F | CR21: NULL | CS21: NULL | CT21: NULL | CU21: NULL | CV21: NULL | CW21: F | CX21: NULL | CY21: NULL | CZ21: NULL | DA21: NULL | DB21: NULL | DC21: F | DD21: NULL | DE21: NULL | DF21: NULL | DG21: NULL | DH21: NULL | DI21: F | DJ21: NULL | DK21: NULL | DL21: NULL | DM21: NULL | DN21: NULL | DO21: F | DP21: NULL | DQ21: NULL | DR21: NULL | DS21: NULL | DT21: NULL | DU21: F | DV21: NULL | DW21: NULL | DX21: NULL | DY21: NULL | DZ21: NULL | EA21: F | EB21: NULL | EC21: NULL | ED21: NULL | EE21: NULL | EF21: NULL | EG21: F | EH21: NULL | EI21: NULL | EJ21: NULL | EK21: NULL | EL21: NULL | EM21: F | EN21: NULL | EO21: NULL | EP21: NULL | EQ21: NULL | ER21: NULL | ES21: F | ET21: NULL | EU21: NULL | EV21: NULL | EW21: NULL | EX21: NULL | EY21: F | EZ21: NULL | FA21: NULL | FB21: NULL | FC21: 44952.60731 | FD21: 44952.60731
A22: 15308 | B22: Yes | C22: Prescriptive | D22: CPUMPVSDCOOL1P5HP | E22: Comm Pump VSD_Cooling_New Pump_1.5 HP (1.26 to 1.75 HP) | F22: Pump | G22: Pumps | H22: ELE | I22: N/A | J22: 864 | K22: 284 | L22: 2 | M22: 5118 | N22: OR | O22: NBE | P22: New Buildings | Q22: 2023-01-01 | R22: 2025-12-31 | S22: Units | T22: 0 | U22: 0 | V22: 539.39 | W22: 0 | X22: 0 | Y22: 0 | Z22: Other Cooling | AA22: None - gas | AB22: 0 | AC22: 250 | AD22: 0 | AE22: 15 | AF22: 0 | AG22: 334.21 | AH22: 0 | AI22: 0 | AJ22: 0 | AK22: 1 | AL22: 1 | AM22: 0 | AN22: NULL | AO22: 100 | AP22: 100 | AQ22: NULL | AR22: NULL | AS22: NULL | AT22: NULL | AU22: NULL | AV22: NULL | AW22: NULL | AX22: NULL | AY22: NULL | AZ22: NULL | BA22: NULL | BB22: NULL | BC22: NULL | BD22: No Attributes | BE22: NULL | BF22: NULL | BG22: F | BH22: NULL | BI22: NULL | BJ22: NULL | BK22: NULL | BL22: NULL | BM22: F | BN22: NULL | BO22: NULL | BP22: NULL | BQ22: NULL | BR22: NULL | BS22: F | BT22: NULL | BU22: NULL | BV22: NULL | BW22: NULL | BX22: NULL | BY22: F | BZ22: NULL | CA22: NULL | CB22: NULL | CC22: NULL | CD22: NULL | CE22: F | CF22: NULL | CG22: NULL | CH22: NULL | CI22: NULL | CJ22: NULL | CK22: F | CL22: NULL | CM22: NULL | CN22: NULL | CO22: NULL | CP22: NULL | CQ22: F | CR22: NULL | CS22: NULL | CT22: NULL | CU22: NULL | CV22: NULL | CW22: F | CX22: NULL | CY22: NULL | CZ22: NULL | DA22: NULL | DB22: NULL | DC22: F | DD22: NULL | DE22: NULL | DF22: NULL | DG22: NULL | DH22: NULL | DI22: F | DJ22: NULL | DK22: NULL | DL22: NULL | DM22: NULL | DN22: NULL | DO22: F | DP22: NULL | DQ22: NULL | DR22: NULL | DS22: NULL | DT22: NULL | DU22: F | DV22: NULL | DW22: NULL | DX22: NULL | DY22: NULL | DZ22: NULL | EA22: F | EB22: NULL | EC22: NULL | ED22: NULL | EE22: NULL | EF22: NULL | EG22: F | EH22: NULL | EI22: NULL | EJ22: NULL | EK22: NULL | EL22: NULL | EM22: F | EN22: NULL | EO22: NULL | EP22: NULL | EQ22: NULL | ER22: NULL | ES22: F | ET22: NULL | EU22: NULL | EV22: NULL | EW22: NULL | EX22: NULL | EY22: F | EZ22: NULL | FA22: NULL | FB22: NULL | FC22: 44952.60731 | FD22: 44952.60731
A23: 15309 | B23: Yes | C23: Prescriptive | D23: CPUMPVSDHEAT7P5HP | E23: Commercial Pump VSD_Heating_New Pump_7.5 HP (6.01 to 8.00 HP) | F23: Pump | G23: Pumps | H23: ELE | I23: N/A | J23: 864 | K23: 284 | L23: 2 | M23: 5106 | N23: OR | O23: NBE | P23: New Buildings | Q23: 2023-01-01 | R23: 2025-12-31 | S23: Units | T23: 0 | U23: 0 | V23: 2739.76 | W23: 0 | X23: 0 | Y23: 0 | Z23: Other Heating | AA23: None - gas | AB23: 0 | AC23: 600 | AD23: 0 | AE23: 15 | AF23: 0 | AG23: 718.63 | AH23: 0 | AI23: 0 | AJ23: 0 | AK23: 1 | AL23: 1 | AM23: 0 | AN23: NULL | AO23: 100 | AP23: 100 | AQ23: NULL | AR23: NULL | AS23: NULL | AT23: NULL | AU23: NULL | AV23: NULL | AW23: NULL | AX23: NULL | AY23: NULL | AZ23: NULL | BA23: NULL | BB23: NULL | BC23: NULL | BD23: No Attributes | BE23: NULL | BF23: NULL | BG23: F | BH23: NULL | BI23: NULL | BJ23: NULL | BK23: NULL | BL23: NULL | BM23: F | BN23: NULL | BO23: NULL | BP23: NULL | BQ23: NULL | BR23: NULL | BS23: F | BT23: NULL | BU23: NULL | BV23: NULL | BW23: NULL | BX23: NULL | BY23: F | BZ23: NULL | CA23: NULL | CB23: NULL | CC23: NULL | CD23: NULL | CE23: F | CF23: NULL | CG23: NULL | CH23: NULL | CI23: NULL | CJ23: NULL | CK23: F | CL23: NULL | CM23: NULL | CN23: NULL | CO23: NULL | CP23: NULL | CQ23: F | CR23: NULL | CS23: NULL | CT23: NULL | CU23: NULL | CV23: NULL | CW23: F | CX23: NULL | CY23: NULL | CZ23: NULL | DA23: NULL | DB23: NULL | DC23: F | DD23: NULL | DE23: NULL | DF23: NULL | DG23: NULL | DH23: NULL | DI23: F | DJ23: NULL | DK23: NULL | DL23: NULL | DM23: NULL | DN23: NULL | DO23: F | DP23: NULL | DQ23: NULL | DR23: NULL | DS23: NULL | DT23: NULL | DU23: F | DV23: NULL | DW23: NULL | DX23: NULL | DY23: NULL | DZ23: NULL | EA23: F | EB23: NULL | EC23: NULL | ED23: NULL | EE23: NULL | EF23: NULL | EG23: F | EH23: NULL | EI23: NULL | EJ23: NULL | EK23: NULL | EL23: NULL | EM23: F | EN23: NULL | EO23: NULL | EP23: NULL | EQ23: NULL | ER23: NULL | ES23: F | ET23: NULL | EU23: NULL | EV23: NULL | EW23: NULL | EX23: NULL | EY23: F | EZ23: NULL | FA23: NULL | FB23: NULL | FC23: 44952.60731 | FD23: 44952.60731
A24: 15310 | B24: Yes | C24: Prescriptive | D24: CPUMPVSDCOOL5HP | E24: Comm Pump VSD_Cooling_New Pump_5 HP (4.51 to 6.00 HP) | F24: Pump | G24: Pumps | H24: ELE | I24: N/A | J24: 864 | K24: 284 | L24: 2 | M24: 5122 | N24: OR | O24: NBE | P24: New Buildings | Q24: 2023-01-01 | R24: 2025-12-31 | S24: Units | T24: 0 | U24: 0 | V24: 1797.97 | W24: 0 | X24: 0 | Y24: 0 | Z24: Other Cooling | AA24: None - gas | AB24: 0 | AC24: 500 | AD24: 0 | AE24: 15 | AF24: 0 | AG24: 592.58 | AH24: 0 | AI24: 0 | AJ24: 0 | AK24: 1 | AL24: 1 | AM24: 0 | AN24: NULL | AO24: 100 | AP24: 100 | AQ24: NULL | AR24: NULL | AS24: NULL | AT24: NULL | AU24: NULL | AV24: NULL | AW24: NULL | AX24: NULL | AY24: NULL | AZ24: NULL | BA24: NULL | BB24: NULL | BC24: NULL | BD24: No Attributes | BE24: NULL | BF24: NULL | BG24: F | BH24: NULL | BI24: NULL | BJ24: NULL | BK24: NULL | BL24: NULL | BM24: F | BN24: NULL | BO24: NULL | BP24: NULL | BQ24: NULL | BR24: NULL | BS24: F | BT24: NULL | BU24: NULL | BV24: NULL | BW24: NULL | BX24: NULL | BY24: F | BZ24: NULL | CA24: NULL | CB24: NULL | CC24: NULL | CD24: NULL | CE24: F | CF24: NULL | CG24: NULL | CH24: NULL | CI24: NULL | CJ24: NULL | CK24: F | CL24: NULL | CM24: NULL | CN24: NULL | CO24: NULL | CP24: NULL | CQ24: F | CR24: NULL | CS24: NULL | CT24: NULL | CU24: NULL | CV24: NULL | CW24: F | CX24: NULL | CY24: NULL | CZ24: NULL | DA24: NULL | DB24: NULL | DC24: F | DD24: NULL | DE24: NULL | DF24: NULL | DG24: NULL | DH24: NULL | DI24: F | DJ24: NULL | DK24: NULL | DL24: NULL | DM24: NULL | DN24: NULL | DO24: F | DP24: NULL | DQ24: NULL | DR24: NULL | DS24: NULL | DT24: NULL | DU24: F | DV24: NULL | DW24: NULL | DX24: NULL | DY24: NULL | DZ24: NULL | EA24: F | EB24: NULL | EC24: NULL | ED24: NULL | EE24: NULL | EF24: NULL | EG24: F | EH24: NULL | EI24: NULL | EJ24: NULL | EK24: NULL | EL24: NULL | EM24: F | EN24: NULL | EO24: NULL | EP24: NULL | EQ24: NULL | ER24: NULL | ES24: F | ET24: NULL | EU24: NULL | EV24: NULL | EW24: NULL | EX24: NULL | EY24: F | EZ24: NULL | FA24: NULL | FB24: NULL | FC24: 44952.60731 | FD24: 44952.60731
A25: 15311 | B25: Yes | C25: Prescriptive | D25: CPUMPVSDHEAT3HP | E25: Commercial Pump VSD_Heating_New Pump_3 HP (2.51 to 3.50 HP) | F25: Pump | G25: Pumps | H25: ELE | I25: N/A | J25: 864 | K25: 284 | L25: 2 | M25: 5103 | N25: OR | O25: NBE | P25: New Buildings | Q25: 2023-01-01 | R25: 2025-12-31 | S25: Units | T25: 0 | U25: 0 | V25: 1095.9 | W25: 0 | X25: 0 | Y25: 0 | Z25: Other Heating | AA25: None - gas | AB25: 0 | AC25: 350 | AD25: 0 | AE25: 15 | AF25: 0 | AG25: 464.75 | AH25: 0 | AI25: 0 | AJ25: 0 | AK25: 1 | AL25: 1 | AM25: 0 | AN25: NULL | AO25: 100 | AP25: 100 | AQ25: NULL | AR25: NULL | AS25: NULL | AT25: NULL | AU25: NULL | AV25: NULL | AW25: NULL | AX25: NULL | AY25: NULL | AZ25: NULL | BA25: NULL | BB25: NULL | BC25: NULL | BD25: No Attributes | BE25: NULL | BF25: NULL | BG25: F | BH25: NULL | BI25: NULL | BJ25: NULL | BK25: NULL | BL25: NULL | BM25: F | BN25: NULL | BO25: NULL | BP25: NULL | BQ25: NULL | BR25: NULL | BS25: F | BT25: NULL | BU25: NULL | BV25: NULL | BW25: NULL | BX25: NULL | BY25: F | BZ25: NULL | CA25: NULL | CB25: NULL | CC25: NULL | CD25: NULL | CE25: F | CF25: NULL | CG25: NULL | CH25: NULL | CI25: NULL | CJ25: NULL | CK25: F | CL25: NULL | CM25: NULL | CN25: NULL | CO25: NULL | CP25: NULL | CQ25: F | CR25: NULL | CS25: NULL | CT25: NULL | CU25: NULL | CV25: NULL | CW25: F | CX25: NULL | CY25: NULL | CZ25: NULL | DA25: NULL | DB25: NULL | DC25: F | DD25: NULL | DE25: NULL | DF25: NULL | DG25: NULL | DH25: NULL | DI25: F | DJ25: NULL | DK25: NULL | DL25: NULL | DM25: NULL | DN25: NULL | DO25: F | DP25: NULL | DQ25: NULL | DR25: NULL | DS25: NULL | DT25: NULL | DU25: F | DV25: NULL | DW25: NULL | DX25: NULL | DY25: NULL | DZ25: NULL | EA25: F | EB25: NULL | EC25: NULL | ED25: NULL | EE25: NULL | EF25: NULL | EG25: F | EH25: NULL | EI25: NULL | EJ25: NULL | EK25: NULL | EL25: NULL | EM25: F | EN25: NULL | EO25: NULL | EP25: NULL | EQ25: NULL | ER25: NULL | ES25: F | ET25: NULL | EU25: NULL | EV25: NULL | EW25: NULL | EX25: NULL | EY25: F | EZ25: NULL | FA25: NULL | FB25: NULL | FC25: 44952.60731 | FD25: 44952.60731
A26: 15312 | B26: Yes | C26: Prescriptive | D26: CPUMPVSDHEAT1P5HP | E26: Commercial Pump VSD_Heating_New Pump_1.5 HP (1.26 to 1.75 HP) | F26: Pump | G26: Pumps | H26: ELE | I26: N/A | J26: 864 | K26: 284 | L26: 2 | M26: 5101 | N26: OR | O26: NBE | P26: New Buildings | Q26: 2023-01-01 | R26: 2025-12-31 | S26: Units | T26: 0 | U26: 0 | V26: 547.95 | W26: 0 | X26: 0 | Y26: 0 | Z26: Other Heating | AA26: None - gas | AB26: 0 | AC26: 250 | AD26: 0 | AE26: 15 | AF26: 0 | AG26: 334.21 | AH26: 0 | AI26: 0 | AJ26: 0 | AK26: 1 | AL26: 1 | AM26: 0 | AN26: NULL | AO26: 100 | AP26: 100 | AQ26: NULL | AR26: NULL | AS26: NULL | AT26: NULL | AU26: NULL | AV26: NULL | AW26: NULL | AX26: NULL | AY26: NULL | AZ26: NULL | BA26: NULL | BB26: NULL | BC26: NULL | BD26: No Attributes | BE26: NULL | BF26: NULL | BG26: F | BH26: NULL | BI26: NULL | BJ26: NULL | BK26: NULL | BL26: NULL | BM26: F | BN26: NULL | BO26: NULL | BP26: NULL | BQ26: NULL | BR26: NULL | BS26: F | BT26: NULL | BU26: NULL | BV26: NULL | BW26: NULL | BX26: NULL | BY26: F | BZ26: NULL | CA26: NULL | CB26: NULL | CC26: NULL | CD26: NULL | CE26: F | CF26: NULL | CG26: NULL | CH26: NULL | CI26: NULL | CJ26: NULL | CK26: F | CL26: NULL | CM26: NULL | CN26: NULL | CO26: NULL | CP26: NULL | CQ26: F | CR26: NULL | CS26: NULL | CT26: NULL | CU26: NULL | CV26: NULL | CW26: F | CX26: NULL | CY26: NULL | CZ26: NULL | DA26: NULL | DB26: NULL | DC26: F | DD26: NULL | DE26: NULL | DF26: NULL | DG26: NULL | DH26: NULL | DI26: F | DJ26: NULL | DK26: NULL | DL26: NULL | DM26: NULL | DN26: NULL | DO26: F | DP26: NULL | DQ26: NULL | DR26: NULL | DS26: NULL | DT26: NULL | DU26: F | DV26: NULL | DW26: NULL | DX26: NULL | DY26: NULL | DZ26: NULL | EA26: F | EB26: NULL | EC26: NULL | ED26: NULL | EE26: NULL | EF26: NULL | EG26: F | EH26: NULL | EI26: NULL | EJ26: NULL | EK26: NULL | EL26: NULL | EM26: F | EN26: NULL | EO26: NULL | EP26: NULL | EQ26: NULL | ER26: NULL | ES26: F | ET26: NULL | EU26: NULL | EV26: NULL | EW26: NULL | EX26: NULL | EY26: F | EZ26: NULL | FA26: NULL | FB26: NULL | FC26: 44952.60731 | FD26: 44952.60731
A27: 15313 | B27: Yes | C27: Prescriptive | D27: CPUMPVSDHEAT1HP | E27: Commercial Pump VSD_Heating_New Pump_1 HP (0.76 to 1.25 HP) | F27: Pump | G27: Pumps | H27: ELE | I27: N/A | J27: 864 | K27: 284 | L27: 2 | M27: 5100 | N27: OR | O27: NBE | P27: New Buildings | Q27: 2023-01-01 | R27: 2025-12-31 | S27: Units | T27: 0 | U27: 0 | V27: 365.3 | W27: 0 | X27: 0 | Y27: 0 | Z27: Other Heating | AA27: None - gas | AB27: 0 | AC27: 200 | AD27: 0 | AE27: 15 | AF27: 0 | AG27: 275.59 | AH27: 0 | AI27: 0 | AJ27: 0 | AK27: 1 | AL27: 1 | AM27: 0 | AN27: NULL | AO27: 100 | AP27: 100 | AQ27: NULL | AR27: NULL | AS27: NULL | AT27: NULL | AU27: NULL | AV27: NULL | AW27: NULL | AX27: NULL | AY27: NULL | AZ27: NULL | BA27: NULL | BB27: NULL | BC27: NULL | BD27: No Attributes | BE27: NULL | BF27: NULL | BG27: F | BH27: NULL | BI27: NULL | BJ27: NULL | BK27: NULL | BL27: NULL | BM27: F | BN27: NULL | BO27: NULL | BP27: NULL | BQ27: NULL | BR27: NULL | BS27: F | BT27: NULL | BU27: NULL | BV27: NULL | BW27: NULL | BX27: NULL | BY27: F | BZ27: NULL | CA27: NULL | CB27: NULL | CC27: NULL | CD27: NULL | CE27: F | CF27: NULL | CG27: NULL | CH27: NULL | CI27: NULL | CJ27: NULL | CK27: F | CL27: NULL | CM27: NULL | CN27: NULL | CO27: NULL | CP27: NULL | CQ27: F | CR27: NULL | CS27: NULL | CT27: NULL | CU27: NULL | CV27: NULL | CW27: F | CX27: NULL | CY27: NULL | CZ27: NULL | DA27: NULL | DB27: NULL | DC27: F | DD27: NULL | DE27: NULL | DF27: NULL | DG27: NULL | DH27: NULL | DI27: F | DJ27: NULL | DK27: NULL | DL27: NULL | DM27: NULL | DN27: NULL | DO27: F | DP27: NULL | DQ27: NULL | DR27: NULL | DS27: NULL | DT27: NULL | DU27: F | DV27: NULL | DW27: NULL | DX27: NULL | DY27: NULL | DZ27: NULL | EA27: F | EB27: NULL | EC27: NULL | ED27: NULL | EE27: NULL | EF27: NULL | EG27: F | EH27: NULL | EI27: NULL | EJ27: NULL | EK27: NULL | EL27: NULL | EM27: F | EN27: NULL | EO27: NULL | EP27: NULL | EQ27: NULL | ER27: NULL | ES27: F | ET27: NULL | EU27: NULL | EV27: NULL | EW27: NULL | EX27: NULL | EY27: F | EZ27: NULL | FA27: NULL | FB27: NULL | FC27: 44952.60731 | FD27: 44952.60731
A28: 15314 | B28: Yes | C28: Prescriptive | D28: CPUMPVSDPB1P5HP | E28: Comm Pump VSD_Pressure Boost_New Pump_1.5 HP (1.26 to 1.75 HP) | F28: Pump | G28: Pumps | H28: ELE | I28: N/A | J28: 864 | K28: 284 | L28: 2 | M28: 5107 | N28: OR | O28: NBE | P28: New Buildings | Q28: 2023-01-01 | R28: 2025-12-31 | S28: Units | T28: 0 | U28: 0 | V28: 417.71 | W28: 0 | X28: 0 | Y28: 0 | Z28: 3-Shift Industrial | AA28: None - gas | AB28: 0 | AC28: 250 | AD28: 0 | AE28: 15 | AF28: 0 | AG28: 334.21 | AH28: 0 | AI28: 0 | AJ28: 0 | AK28: 1 | AL28: 1 | AM28: 0 | AN28: NULL | AO28: 100 | AP28: 100 | AQ28: NULL | AR28: NULL | AS28: NULL | AT28: NULL | AU28: NULL | AV28: NULL | AW28: NULL | AX28: NULL | AY28: NULL | AZ28: NULL | BA28: NULL | BB28: NULL | BC28: NULL | BD28: No Attributes | BE28: NULL | BF28: NULL | BG28: F | BH28: NULL | BI28: NULL | BJ28: NULL | BK28: NULL | BL28: NULL | BM28: F | BN28: NULL | BO28: NULL | BP28: NULL | BQ28: NULL | BR28: NULL | BS28: F | BT28: NULL | BU28: NULL | BV28: NULL | BW28: NULL | BX28: NULL | BY28: F | BZ28: NULL | CA28: NULL | CB28: NULL | CC28: NULL | CD28: NULL | CE28: F | CF28: NULL | CG28: NULL | CH28: NULL | CI28: NULL | CJ28: NULL | CK28: F | CL28: NULL | CM28: NULL | CN28: NULL | CO28: NULL | CP28: NULL | CQ28: F | CR28: NULL | CS28: NULL | CT28: NULL | CU28: NULL | CV28: NULL | CW28: F | CX28: NULL | CY28: NULL | CZ28: NULL | DA28: NULL | DB28: NULL | DC28: F | DD28: NULL | DE28: NULL | DF28: NULL | DG28: NULL | DH28: NULL | DI28: F | DJ28: NULL | DK28: NULL | DL28: NULL | DM28: NULL | DN28: NULL | DO28: F | DP28: NULL | DQ28: NULL | DR28: NULL | DS28: NULL | DT28: NULL | DU28: F | DV28: NULL | DW28: NULL | DX28: NULL | DY28: NULL | DZ28: NULL | EA28: F | EB28: NULL | EC28: NULL | ED28: NULL | EE28: NULL | EF28: NULL | EG28: F | EH28: NULL | EI28: NULL | EJ28: NULL | EK28: NULL | EL28: NULL | EM28: F | EN28: NULL | EO28: NULL | EP28: NULL | EQ28: NULL | ER28: NULL | ES28: F | ET28: NULL | EU28: NULL | EV28: NULL | EW28: NULL | EX28: NULL | EY28: F | EZ28: NULL | FA28: NULL | FB28: NULL | FC28: 44952.60731 | FD28: 44952.60731
A29: 15315 | B29: Yes | C29: Prescriptive | D29: CPUMPVSDCOOLT20HP | E29: Comm Pump VSD_Cooling Tower_New Pump_20 HP (17.51 to 22.50 HP) | F29: Pump | G29: Pumps | H29: ELE | I29: N/A | J29: 864 | K29: 284 | L29: 2 | M29: 5098 | N29: OR | O29: NBE | P29: New Buildings | Q29: 2023-01-01 | R29: 2025-12-31 | S29: Units | T29: 0 | U29: 0 | V29: 3593.63 | W29: 0 | X29: 0 | Y29: 0 | Z29: Other Cooling | AA29: None - gas | AB29: 0 | AC29: 1000 | AD29: 0 | AE29: 15 | AF29: 0 | AG29: 1145.87 | AH29: 0 | AI29: 0 | AJ29: 0 | AK29: 1 | AL29: 1 | AM29: 0 | AN29: NULL | AO29: 100 | AP29: 100 | AQ29: NULL | AR29: NULL | AS29: NULL | AT29: NULL | AU29: NULL | AV29: NULL | AW29: NULL | AX29: NULL | AY29: NULL | AZ29: NULL | BA29: NULL | BB29: NULL | BC29: NULL | BD29: No Attributes | BE29: NULL | BF29: NULL | BG29: F | BH29: NULL | BI29: NULL | BJ29: NULL | BK29: NULL | BL29: NULL | BM29: F | BN29: NULL | BO29: NULL | BP29: NULL | BQ29: NULL | BR29: NULL | BS29: F | BT29: NULL | BU29: NULL | BV29: NULL | BW29: NULL | BX29: NULL | BY29: F | BZ29: NULL | CA29: NULL | CB29: NULL | CC29: NULL | CD29: NULL | CE29: F | CF29: NULL | CG29: NULL | CH29: NULL | CI29: NULL | CJ29: NULL | CK29: F | CL29: NULL | CM29: NULL | CN29: NULL | CO29: NULL | CP29: NULL | CQ29: F | CR29: NULL | CS29: NULL | CT29: NULL | CU29: NULL | CV29: NULL | CW29: F | CX29: NULL | CY29: NULL | CZ29: NULL | DA29: NULL | DB29: NULL | DC29: F | DD29: NULL | DE29: NULL | DF29: NULL | DG29: NULL | DH29: NULL | DI29: F | DJ29: NULL | DK29: NULL | DL29: NULL | DM29: NULL | DN29: NULL | DO29: F | DP29: NULL | DQ29: NULL | DR29: NULL | DS29: NULL | DT29: NULL | DU29: F | DV29: NULL | DW29: NULL | DX29: NULL | DY29: NULL | DZ29: NULL | EA29: F | EB29: NULL | EC29: NULL | ED29: NULL | EE29: NULL | EF29: NULL | EG29: F | EH29: NULL | EI29: NULL | EJ29: NULL | EK29: NULL | EL29: NULL | EM29: F | EN29: NULL | EO29: NULL | EP29: NULL | EQ29: NULL | ER29: NULL | ES29: F | ET29: NULL | EU29: NULL | EV29: NULL | EW29: NULL | EX29: NULL | EY29: F | EZ29: NULL | FA29: NULL | FB29: NULL | FC29: 44952.60731 | FD29: 44952.60731
A30: 15316 | B30: Yes | C30: Prescriptive | D30: CPUMPVSDCOOLT10HP | E30: Comm Pump VSD_Cooling Tower_New Pump_10 HP (8.01 to 12.50 HP) | F30: Pump | G30: Pumps | H30: ELE | I30: N/A | J30: 864 | K30: 284 | L30: 2 | M30: 5096 | N30: OR | O30: NBE | P30: New Buildings | Q30: 2023-01-01 | R30: 2025-12-31 | S30: Units | T30: 0 | U30: 0 | V30: 1796.82 | W30: 0 | X30: 0 | Y30: 0 | Z30: Other Cooling | AA30: None - gas | AB30: 0 | AC30: 700 | AD30: 0 | AE30: 15 | AF30: 0 | AG30: 824.02 | AH30: 0 | AI30: 0 | AJ30: 0 | AK30: 1 | AL30: 1 | AM30: 0 | AN30: NULL | AO30: 100 | AP30: 100 | AQ30: NULL | AR30: NULL | AS30: NULL | AT30: NULL | AU30: NULL | AV30: NULL | AW30: NULL | AX30: NULL | AY30: NULL | AZ30: NULL | BA30: NULL | BB30: NULL | BC30: NULL | BD30: No Attributes | BE30: NULL | BF30: NULL | BG30: F | BH30: NULL | BI30: NULL | BJ30: NULL | BK30: NULL | BL30: NULL | BM30: F | BN30: NULL | BO30: NULL | BP30: NULL | BQ30: NULL | BR30: NULL | BS30: F | BT30: NULL | BU30: NULL | BV30: NULL | BW30: NULL | BX30: NULL | BY30: F | BZ30: NULL | CA30: NULL | CB30: NULL | CC30: NULL | CD30: NULL | CE30: F | CF30: NULL | CG30: NULL | CH30: NULL | CI30: NULL | CJ30: NULL | CK30: F | CL30: NULL | CM30: NULL | CN30: NULL | CO30: NULL | CP30: NULL | CQ30: F | CR30: NULL | CS30: NULL | CT30: NULL | CU30: NULL | CV30: NULL | CW30: F | CX30: NULL | CY30: NULL | CZ30: NULL | DA30: NULL | DB30: NULL | DC30: F | DD30: NULL | DE30: NULL | DF30: NULL | DG30: NULL | DH30: NULL | DI30: F | DJ30: NULL | DK30: NULL | DL30: NULL | DM30: NULL | DN30: NULL | DO30: F | DP30: NULL | DQ30: NULL | DR30: NULL | DS30: NULL | DT30: NULL | DU30: F | DV30: NULL | DW30: NULL | DX30: NULL | DY30: NULL | DZ30: NULL | EA30: F | EB30: NULL | EC30: NULL | ED30: NULL | EE30: NULL | EF30: NULL | EG30: F | EH30: NULL | EI30: NULL | EJ30: NULL | EK30: NULL | EL30: NULL | EM30: F | EN30: NULL | EO30: NULL | EP30: NULL | EQ30: NULL | ER30: NULL | ES30: F | ET30: NULL | EU30: NULL | EV30: NULL | EW30: NULL | EX30: NULL | EY30: F | EZ30: NULL | FA30: NULL | FB30: NULL | FC30: 44952.60731 | FD30: 44952.60731
A31: 15317 | B31: Yes | C31: Prescriptive | D31: CPUMPVSDCOOLT4HP | E31: Comm Pump VSD_Cooling Tower_New Pump_4 HP (3.51 to 4.50 HP) | F31: Pump | G31: Pumps | H31: ELE | I31: N/A | J31: 864 | K31: 284 | L31: 2 | M31: 5093 | N31: OR | O31: NBE | P31: New Buildings | Q31: 2023-01-01 | R31: 2025-12-31 | S31: Units | T31: 0 | U31: 0 | V31: 718.73 | W31: 0 | X31: 0 | Y31: 0 | Z31: Other Cooling | AA31: None - gas | AB31: 0 | AC31: 450 | AD31: 0 | AE31: 15 | AF31: 0 | AG31: 532.9 | AH31: 0 | AI31: 0 | AJ31: 0 | AK31: 1 | AL31: 1 | AM31: 0 | AN31: NULL | AO31: 100 | AP31: 100 | AQ31: NULL | AR31: NULL | AS31: NULL | AT31: NULL | AU31: NULL | AV31: NULL | AW31: NULL | AX31: NULL | AY31: NULL | AZ31: NULL | BA31: NULL | BB31: NULL | BC31: NULL | BD31: No Attributes | BE31: NULL | BF31: NULL | BG31: F | BH31: NULL | BI31: NULL | BJ31: NULL | BK31: NULL | BL31: NULL | BM31: F | BN31: NULL | BO31: NULL | BP31: NULL | BQ31: NULL | BR31: NULL | BS31: F | BT31: NULL | BU31: NULL | BV31: NULL | BW31: NULL | BX31: NULL | BY31: F | BZ31: NULL | CA31: NULL | CB31: NULL | CC31: NULL | CD31: NULL | CE31: F | CF31: NULL | CG31: NULL | CH31: NULL | CI31: NULL | CJ31: NULL | CK31: F | CL31: NULL | CM31: NULL | CN31: NULL | CO31: NULL | CP31: NULL | CQ31: F | CR31: NULL | CS31: NULL | CT31: NULL | CU31: NULL | CV31: NULL | CW31: F | CX31: NULL | CY31: NULL | CZ31: NULL | DA31: NULL | DB31: NULL | DC31: F | DD31: NULL | DE31: NULL | DF31: NULL | DG31: NULL | DH31: NULL | DI31: F | DJ31: NULL | DK31: NULL | DL31: NULL | DM31: NULL | DN31: NULL | DO31: F | DP31: NULL | DQ31: NULL | DR31: NULL | DS31: NULL | DT31: NULL | DU31: F | DV31: NULL | DW31: NULL | DX31: NULL | DY31: NULL | DZ31: NULL | EA31: F | EB31: NULL | EC31: NULL | ED31: NULL | EE31: NULL | EF31: NULL | EG31: F | EH31: NULL | EI31: NULL | EJ31: NULL | EK31: NULL | EL31: NULL | EM31: F | EN31: NULL | EO31: NULL | EP31: NULL | EQ31: NULL | ER31: NULL | ES31: F | ET31: NULL | EU31: NULL | EV31: NULL | EW31: NULL | EX31: NULL | EY31: F | EZ31: NULL | FA31: NULL | FB31: NULL | FC31: 44952.60731 | FD31: 44952.60731
A32: 15318 | B32: Yes | C32: Prescriptive | D32: CPUMPVSDCOOLT3HP | E32: Comm Pump VSD_Cooling Tower_New Pump_3 HP (2.51 to 3.50 HP) | F32: Pump | G32: Pumps | H32: ELE | I32: N/A | J32: 864 | K32: 284 | L32: 2 | M32: 5092 | N32: OR | O32: NBE | P32: New Buildings | Q32: 2023-01-01 | R32: 2025-12-31 | S32: Units | T32: 0 | U32: 0 | V32: 539.04 | W32: 0 | X32: 0 | Y32: 0 | Z32: Other Cooling | AA32: None - gas | AB32: 0 | AC32: 350 | AD32: 0 | AE32: 15 | AF32: 0 | AG32: 464.75 | AH32: 0 | AI32: 0 | AJ32: 0 | AK32: 1 | AL32: 1 | AM32: 0 | AN32: NULL | AO32: 100 | AP32: 100 | AQ32: NULL | AR32: NULL | AS32: NULL | AT32: NULL | AU32: NULL | AV32: NULL | AW32: NULL | AX32: NULL | AY32: NULL | AZ32: NULL | BA32: NULL | BB32: NULL | BC32: NULL | BD32: No Attributes | BE32: NULL | BF32: NULL | BG32: F | BH32: NULL | BI32: NULL | BJ32: NULL | BK32: NULL | BL32: NULL | BM32: F | BN32: NULL | BO32: NULL | BP32: NULL | BQ32: NULL | BR32: NULL | BS32: F | BT32: NULL | BU32: NULL | BV32: NULL | BW32: NULL | BX32: NULL | BY32: F | BZ32: NULL | CA32: NULL | CB32: NULL | CC32: NULL | CD32: NULL | CE32: F | CF32: NULL | CG32: NULL | CH32: NULL | CI32: NULL | CJ32: NULL | CK32: F | CL32: NULL | CM32: NULL | CN32: NULL | CO32: NULL | CP32: NULL | CQ32: F | CR32: NULL | CS32: NULL | CT32: NULL | CU32: NULL | CV32: NULL | CW32: F | CX32: NULL | CY32: NULL | CZ32: NULL | DA32: NULL | DB32: NULL | DC32: F | DD32: NULL | DE32: NULL | DF32: NULL | DG32: NULL | DH32: NULL | DI32: F | DJ32: NULL | DK32: NULL | DL32: NULL | DM32: NULL | DN32: NULL | DO32: F | DP32: NULL | DQ32: NULL | DR32: NULL | DS32: NULL | DT32: NULL | DU32: F | DV32: NULL | DW32: NULL | DX32: NULL | DY32: NULL | DZ32: NULL | EA32: F | EB32: NULL | EC32: NULL | ED32: NULL | EE32: NULL | EF32: NULL | EG32: F | EH32: NULL | EI32: NULL | EJ32: NULL | EK32: NULL | EL32: NULL | EM32: F | EN32: NULL | EO32: NULL | EP32: NULL | EQ32: NULL | ER32: NULL | ES32: F | ET32: NULL | EU32: NULL | EV32: NULL | EW32: NULL | EX32: NULL | EY32: F | EZ32: NULL | FA32: NULL | FB32: NULL | FC32: 44952.60731 | FD32: 44952.60731
A33: 15319 | B33: Yes | C33: Prescriptive | D33: CPUMPVSDCOOLT2HP | E33: Comm Pump VSD_Cooling Tower_New Pump_2 HP (1.76 to 2.50 HP) | F33: Pump | G33: Pumps | H33: ELE | I33: N/A | J33: 864 | K33: 284 | L33: 2 | M33: 5091 | N33: OR | O33: NBE | P33: New Buildings | Q33: 2023-01-01 | R33: 2025-12-31 | S33: Units | T33: 0 | U33: 0 | V33: 359.36 | W33: 0 | X33: 0 | Y33: 0 | Z33: Other Cooling | AA33: None - gas | AB33: 0 | AC33: 300 | AD33: 0 | AE33: 15 | AF33: 0 | AG33: 383.22 | AH33: 0 | AI33: 0 | AJ33: 0 | AK33: 1 | AL33: 1 | AM33: 0 | AN33: NULL | AO33: 100 | AP33: 100 | AQ33: NULL | AR33: NULL | AS33: NULL | AT33: NULL | AU33: NULL | AV33: NULL | AW33: NULL | AX33: NULL | AY33: NULL | AZ33: NULL | BA33: NULL | BB33: NULL | BC33: NULL | BD33: No Attributes | BE33: NULL | BF33: NULL | BG33: F | BH33: NULL | BI33: NULL | BJ33: NULL | BK33: NULL | BL33: NULL | BM33: F | BN33: NULL | BO33: NULL | BP33: NULL | BQ33: NULL | BR33: NULL | BS33: F | BT33: NULL | BU33: NULL | BV33: NULL | BW33: NULL | BX33: NULL | BY33: F | BZ33: NULL | CA33: NULL | CB33: NULL | CC33: NULL | CD33: NULL | CE33: F | CF33: NULL | CG33: NULL | CH33: NULL | CI33: NULL | CJ33: NULL | CK33: F | CL33: NULL | CM33: NULL | CN33: NULL | CO33: NULL | CP33: NULL | CQ33: F | CR33: NULL | CS33: NULL | CT33: NULL | CU33: NULL | CV33: NULL | CW33: F | CX33: NULL | CY33: NULL | CZ33: NULL | DA33: NULL | DB33: NULL | DC33: F | DD33: NULL | DE33: NULL | DF33: NULL | DG33: NULL | DH33: NULL | DI33: F | DJ33: NULL | DK33: NULL | DL33: NULL | DM33: NULL | DN33: NULL | DO33: F | DP33: NULL | DQ33: NULL | DR33: NULL | DS33: NULL | DT33: NULL | DU33: F | DV33: NULL | DW33: NULL | DX33: NULL | DY33: NULL | DZ33: NULL | EA33: F | EB33: NULL | EC33: NULL | ED33: NULL | EE33: NULL | EF33: NULL | EG33: F | EH33: NULL | EI33: NULL | EJ33: NULL | EK33: NULL | EL33: NULL | EM33: F | EN33: NULL | EO33: NULL | EP33: NULL | EQ33: NULL | ER33: NULL | ES33: F | ET33: NULL | EU33: NULL | EV33: NULL | EW33: NULL | EX33: NULL | EY33: F | EZ33: NULL | FA33: NULL | FB33: NULL | FC33: 44952.60731 | FD33: 44952.60731
A34: 15320 | B34: Yes | C34: Prescriptive | D34: CPUMPVSDCOOLT1P5HP | E34: Comm Pump VSD_Cooling Tower_New Pump_1.5 HP (1.26 to 1.75 HP) | F34: Pump | G34: Pumps | H34: ELE | I34: N/A | J34: 864 | K34: 284 | L34: 2 | M34: 5090 | N34: OR | O34: NBE | P34: New Buildings | Q34: 2023-01-01 | R34: 2025-12-31 | S34: Units | T34: 0 | U34: 0 | V34: 269.52 | W34: 0 | X34: 0 | Y34: 0 | Z34: Other Cooling | AA34: None - gas | AB34: 0 | AC34: 250 | AD34: 0 | AE34: 15 | AF34: 0 | AG34: 334.21 | AH34: 0 | AI34: 0 | AJ34: 0 | AK34: 1 | AL34: 1 | AM34: 0 | AN34: NULL | AO34: 100 | AP34: 100 | AQ34: NULL | AR34: NULL | AS34: NULL | AT34: NULL | AU34: NULL | AV34: NULL | AW34: NULL | AX34: NULL | AY34: NULL | AZ34: NULL | BA34: NULL | BB34: NULL | BC34: NULL | BD34: No Attributes | BE34: NULL | BF34: NULL | BG34: F | BH34: NULL | BI34: NULL | BJ34: NULL | BK34: NULL | BL34: NULL | BM34: F | BN34: NULL | BO34: NULL | BP34: NULL | BQ34: NULL | BR34: NULL | BS34: F | BT34: NULL | BU34: NULL | BV34: NULL | BW34: NULL | BX34: NULL | BY34: F | BZ34: NULL | CA34: NULL | CB34: NULL | CC34: NULL | CD34: NULL | CE34: F | CF34: NULL | CG34: NULL | CH34: NULL | CI34: NULL | CJ34: NULL | CK34: F | CL34: NULL | CM34: NULL | CN34: NULL | CO34: NULL | CP34: NULL | CQ34: F | CR34: NULL | CS34: NULL | CT34: NULL | CU34: NULL | CV34: NULL | CW34: F | CX34: NULL | CY34: NULL | CZ34: NULL | DA34: NULL | DB34: NULL | DC34: F | DD34: NULL | DE34: NULL | DF34: NULL | DG34: NULL | DH34: NULL | DI34: F | DJ34: NULL | DK34: NULL | DL34: NULL | DM34: NULL | DN34: NULL | DO34: F | DP34: NULL | DQ34: NULL | DR34: NULL | DS34: NULL | DT34: NULL | DU34: F | DV34: NULL | DW34: NULL | DX34: NULL | DY34: NULL | DZ34: NULL | EA34: F | EB34: NULL | EC34: NULL | ED34: NULL | EE34: NULL | EF34: NULL | EG34: F | EH34: NULL | EI34: NULL | EJ34: NULL | EK34: NULL | EL34: NULL | EM34: F | EN34: NULL | EO34: NULL | EP34: NULL | EQ34: NULL | ER34: NULL | ES34: F | ET34: NULL | EU34: NULL | EV34: NULL | EW34: NULL | EX34: NULL | EY34: F | EZ34: NULL | FA34: NULL | FB34: NULL | FC34: 44952.60731 | FD34: 44952.60731
A35: 15429 | B35: Yes | C35: Prescriptive | D35: MFTANKLESS199 | E35: Multifamily 199 kBth/h Condensing Tankless water heater | F35: Tankless water heater | G35: Water Heating | H35: GAS | I35: DHW | J35: 828 | K35: 196 | L35: 5 | M35: 4692 | N35: OR | O35: NBE | P35: New Buildings | Q35: 2023-01-01 | R35: 2025-12-31 | S35: Units | T35: 0 | U35: 0 | V35: 0 | W35: 25.67 | X35: 0 | Y35: 0 | Z35: None - ele | AA35: DHW | AB35: 0 | AC35: 140 | AD35: 0 | AE35: 20 | AF35: 0 | AG35: 140.21 | AH35: 0 | AI35: 0 | AJ35: 0 | AK35: 1 | AL35: 1 | AM35: 0 | AN35: 100 | AO35: NULL | AP35: NULL | AQ35: 100 | AR35: 100 | AS35: 100 | AT35: 100 | AU35: NULL | AV35: NULL | AW35: NULL | AX35: NULL | AY35: NULL | AZ35: NULL | BA35: 100 | BB35: 100 | BC35: 100 | BD35: Tankless water heater | BE35: KBTUHINPUT | BF35: kBtuh input per unit | BG35: T | BH35: Decimal | BI35: 10 | BJ35: ED | BK35: MANUFACTURER | BL35: Manufacturer Name | BM35: T | BN35: Alphanumeric | BO35: 64 | BP35: ED | BQ35: MODEL | BR35: Model | BS35: F | BT35: Alphanumeric | BU35: 64 | BV35: ED | BW35: EXISTTANK | BX35: Existing Water Storage Tank? | BY35: T | BZ35: Alphanumeric | CA35: 10 | CB35: CB | CC35: UNITS | CD35: Number of units | CE35: T | CF35: Integer | CG35: 20 | CH35: ED | CI35: UENFACT | CJ35: Uniform Energy Factor | CK35: T | CL35: Decimal | CM35: 20 | CN35: ED | CO35: NULL | CP35: NULL | CQ35: F | CR35: NULL | CS35: NULL | CT35: NULL | CU35: NULL | CV35: NULL | CW35: F | CX35: NULL | CY35: NULL | CZ35: NULL | DA35: NULL | DB35: NULL | DC35: F | DD35: NULL | DE35: NULL | DF35: NULL | DG35: NULL | DH35: NULL | DI35: F | DJ35: NULL | DK35: NULL | DL35: NULL | DM35: NULL | DN35: NULL | DO35: F | DP35: NULL | DQ35: NULL | DR35: NULL | DS35: NULL | DT35: NULL | DU35: F | DV35: NULL | DW35: NULL | DX35: NULL | DY35: NULL | DZ35: NULL | EA35: F | EB35: NULL | EC35: NULL | ED35: NULL | EE35: NULL | EF35: NULL | EG35: F | EH35: NULL | EI35: NULL | EJ35: NULL | EK35: NULL | EL35: NULL | EM35: F | EN35: NULL | EO35: NULL | EP35: NULL | EQ35: NULL | ER35: NULL | ES35: F | ET35: NULL | EU35: NULL | EV35: NULL | EW35: NULL | EX35: NULL | EY35: F | EZ35: NULL | FA35: NULL | FB35: NULL | FC35: 44952.60731 | FD35: 45534.50733
A36: 16185 | B36: Yes | C36: Semi-Prescriptive | D36: LIN2019CC | E36: Lighting, Interior, 2019 Code Calc | F36: Lighting | G36: Lighting | H36: ELE | I36: N/A | J36: 863 | K36: 246 | L36: 2 | M36: NULL | N36: OR | O36: NBE | P36: New Buildings | Q36: 2023-01-01 | R36: 2025-12-31 | S36: Other | T36: 0 | U36: 0 | V36: 0 | W36: 0 | X36: 0 | Y36: 1 | Z36: Other Interior Lights | AA36: None - gas | AB36: 0 | AC36: 0 | AD36: 1 | AE36: 15 | AF36: 0 | AG36: 0 | AH36: 0 | AI36: 0 | AJ36: 0 | AK36: 0 | AL36: 0 | AM36: 0 | AN36: NULL | AO36: 100 | AP36: 100 | AQ36: NULL | AR36: NULL | AS36: NULL | AT36: NULL | AU36: NULL | AV36: NULL | AW36: NULL | AX36: NULL | AY36: NULL | AZ36: NULL | BA36: NULL | BB36: NULL | BC36: NULL | BD36: Lighting | BE36: BLDTYPE | BF36: Building Type | BG36: T | BH36: ALPHANUMERIC | BI36: 30 | BJ36: CB | BK36: LPD | BL36: Lighting Power Density | BM36: T | BN36: DECIMAL | BO36: 10 | BP36: ED | BQ36: LIGHTINGMETHOD | BR36: Lighting Analysis Method | BS36: T | BT36: ALPHANUMERIC | BU36: 20 | BV36: CB | BW36: LIGHTDESIGN | BX36: Certified Lighting Designer? | BY36: T | BZ36: ALPHANUMERIC | CA36: 10 | CB36: CB | CC36: ADVCONTROLS | CD36: Advanced Controls? | CE36: T | CF36: ALPHANUMERIC | CG36: 10 | CH36: CB | CI36: NULL | CJ36: NULL | CK36: F | CL36: NULL | CM36: NULL | CN36: NULL | CO36: NULL | CP36: NULL | CQ36: F | CR36: NULL | CS36: NULL | CT36: NULL | CU36: NULL | CV36: NULL | CW36: F | CX36: NULL | CY36: NULL | CZ36: NULL | DA36: NULL | DB36: NULL | DC36: F | DD36: NULL | DE36: NULL | DF36: NULL | DG36: NULL | DH36: NULL | DI36: F | DJ36: NULL | DK36: NULL | DL36: NULL | DM36: NULL | DN36: NULL | DO36: F | DP36: NULL | DQ36: NULL | DR36: NULL | DS36: NULL | DT36: NULL | DU36: F | DV36: NULL | DW36: NULL | DX36: NULL | DY36: NULL | DZ36: NULL | EA36: F | EB36: NULL | EC36: NULL | ED36: NULL | EE36: NULL | EF36: NULL | EG36: F | EH36: NULL | EI36: NULL | EJ36: NULL | EK36: NULL | EL36: NULL | EM36: F | EN36: NULL | EO36: NULL | EP36: NULL | EQ36: NULL | ER36: NULL | ES36: F | ET36: NULL | EU36: NULL | EV36: NULL | EW36: NULL | EX36: NULL | EY36: F | EZ36: NULL | FA36: NULL | FB36: NULL | FC36: 44952.60731 | FD36: 44952.60731
A37: 17692 | B37: Yes | C37: Prescriptive | D37: MINISPLITAC | E37: Server Closet/Telecom Room Mini-Split Air Conditioner | F37: Server Closet Mini-split AC units | G37: HVAC | H37: ELE | I37: N/A | J37: 804 | K37: 3 | L37: 3 | M37: 4326 | N37: OR | O37: NBE | P37: New Buildings | Q37: 2024-01-01 | R37: 2025-12-31 | S37: Tons | T37: 0 | U37: 0 | V37: 417.14 | W37: 0 | X37: 0 | Y37: 0 | Z37: Large Office Ventilation | AA37: None - gas | AB37: 0 | AC37: 250 | AD37: 0 | AE37: 15 | AF37: 0 | AG37: 264.15 | AH37: 0 | AI37: 0 | AJ37: 0 | AK37: 1 | AL37: 1 | AM37: 0 | AN37: NULL | AO37: 100 | AP37: 100 | AQ37: NULL | AR37: NULL | AS37: NULL | AT37: NULL | AU37: NULL | AV37: NULL | AW37: NULL | AX37: NULL | AY37: NULL | AZ37: NULL | BA37: NULL | BB37: NULL | BC37: NULL | BD37: Server Closet Mini-split AC units | BE37: DESIGNLOAD | BF37: Design Load (in kW) | BG37: F | BH37: Alphanumeric | BI37: 64 | BJ37: ED | BK37: SEER | BL37: SEER | BM37: F | BN37: Decimal | BO37: 20 | BP37: ED | BQ37: SEER2 | BR37: SEER 2 | BS37: F | BT37: ALPHANUMERIC | BU37: 20 | BV37: ED | BW37: NULL | BX37: NULL | BY37: F | BZ37: NULL | CA37: NULL | CB37: NULL | CC37: NULL | CD37: NULL | CE37: F | CF37: NULL | CG37: NULL | CH37: NULL | CI37: NULL | CJ37: NULL | CK37: F | CL37: NULL | CM37: NULL | CN37: NULL | CO37: NULL | CP37: NULL | CQ37: F | CR37: NULL | CS37: NULL | CT37: NULL | CU37: NULL | CV37: NULL | CW37: F | CX37: NULL | CY37: NULL | CZ37: NULL | DA37: NULL | DB37: NULL | DC37: F | DD37: NULL | DE37: NULL | DF37: NULL | DG37: NULL | DH37: NULL | DI37: F | DJ37: NULL | DK37: NULL | DL37: NULL | DM37: NULL | DN37: NULL | DO37: F | DP37: NULL | DQ37: NULL | DR37: NULL | DS37: NULL | DT37: NULL | DU37: F | DV37: NULL | DW37: NULL | DX37: NULL | DY37: NULL | DZ37: NULL | EA37: F | EB37: NULL | EC37: NULL | ED37: NULL | EE37: NULL | EF37: NULL | EG37: F | EH37: NULL | EI37: NULL | EJ37: NULL | EK37: NULL | EL37: NULL | EM37: F | EN37: NULL | EO37: NULL | EP37: NULL | EQ37: NULL | ER37: NULL | ES37: F | ET37: NULL | EU37: NULL | EV37: NULL | EW37: NULL | EX37: NULL | EY37: F | EZ37: NULL | FA37: NULL | FB37: NULL | FC37: 45244.11896 | FD37: 45244.11896
A38: 17693 | B38: Yes | C38: Prescriptive | D38: MINISPLITHP | E38: Server Closet/Telecom Room Mini-Split Heat Pumps | F38: Server Closet Mini-split AC units | G38: HVAC | H38: ELE | I38: N/A | J38: 804 | K38: 3 | L38: 3 | M38: 4327 | N38: OR | O38: NBE | P38: New Buildings | Q38: 2024-01-01 | R38: 2025-12-31 | S38: Tons | T38: 0 | U38: 0 | V38: 417.14 | W38: 0 | X38: 0 | Y38: 0 | Z38: Large Office Ventilation | AA38: None - gas | AB38: 0 | AC38: 250 | AD38: 0 | AE38: 15 | AF38: 0 | AG38: 272.9 | AH38: 0 | AI38: 0 | AJ38: 0 | AK38: 1 | AL38: 1 | AM38: 0 | AN38: NULL | AO38: 100 | AP38: 100 | AQ38: NULL | AR38: NULL | AS38: NULL | AT38: NULL | AU38: NULL | AV38: NULL | AW38: NULL | AX38: NULL | AY38: NULL | AZ38: NULL | BA38: NULL | BB38: NULL | BC38: NULL | BD38: Server Closet Mini-split AC units | BE38: DESIGNLOAD | BF38: Design Load (in kW) | BG38: F | BH38: Alphanumeric | BI38: 64 | BJ38: ED | BK38: SEER | BL38: SEER | BM38: F | BN38: Decimal | BO38: 20 | BP38: ED | BQ38: SEER2 | BR38: SEER 2 | BS38: F | BT38: ALPHANUMERIC | BU38: 20 | BV38: ED | BW38: NULL | BX38: NULL | BY38: F | BZ38: NULL | CA38: NULL | CB38: NULL | CC38: NULL | CD38: NULL | CE38: F | CF38: NULL | CG38: NULL | CH38: NULL | CI38: NULL | CJ38: NULL | CK38: F | CL38: NULL | CM38: NULL | CN38: NULL | CO38: NULL | CP38: NULL | CQ38: F | CR38: NULL | CS38: NULL | CT38: NULL | CU38: NULL | CV38: NULL | CW38: F | CX38: NULL | CY38: NULL | CZ38: NULL | DA38: NULL | DB38: NULL | DC38: F | DD38: NULL | DE38: NULL | DF38: NULL | DG38: NULL | DH38: NULL | DI38: F | DJ38: NULL | DK38: NULL | DL38: NULL | DM38: NULL | DN38: NULL | DO38: F | DP38: NULL | DQ38: NULL | DR38: NULL | DS38: NULL | DT38: NULL | DU38: F | DV38: NULL | DW38: NULL | DX38: NULL | DY38: NULL | DZ38: NULL | EA38: F | EB38: NULL | EC38: NULL | ED38: NULL | EE38: NULL | EF38: NULL | EG38: F | EH38: NULL | EI38: NULL | EJ38: NULL | EK38: NULL | EL38: NULL | EM38: F | EN38: NULL | EO38: NULL | EP38: NULL | EQ38: NULL | ER38: NULL | ES38: F | ET38: NULL | EU38: NULL | EV38: NULL | EW38: NULL | EX38: NULL | EY38: F | EZ38: NULL | FA38: NULL | FB38: NULL | FC38: 45244.11896 | FD38: 45244.11896
A39: 17915 | B39: Yes | C39: Prescriptive | D39: ESTARFRIDGE | E39: Multifamily Refrigerator | F39: Refrigerator | G39: Appliance | H39: ELE | I39: N/A | J39: 913 | K39: 112 | L39: 6 | M39: 5623 | N39: OR | O39: NBE | P39: New Buildings | Q39: 2024-01-01 | R39: 2026-12-31 | S39: Units | T39: 0 | U39: 0 | V39: 75.77 | W39: 0 | X39: 0 | Y39: 0 | Z39: Res Refrigerator | AA39: None - gas | AB39: 0 | AC39: 70 | AD39: 0 | AE39: 17 | AF39: 0 | AG39: 75.41 | AH39: 0 | AI39: 0 | AJ39: 0 | AK39: 1 | AL39: 1 | AM39: 0 | AN39: NULL | AO39: 100 | AP39: 100 | AQ39: NULL | AR39: NULL | AS39: NULL | AT39: NULL | AU39: NULL | AV39: NULL | AW39: NULL | AX39: NULL | AY39: NULL | AZ39: NULL | BA39: NULL | BB39: NULL | BC39: NULL | BD39: Residential Energy Star Refrigerator | BE39: MANUFACTURER | BF39: Manufacturer | BG39: T | BH39: Alphanumeric | BI39: 64 | BJ39: CB | BK39: MODEL | BL39: Model | BM39: T | BN39: Alphanumeric | BO39: 63 | BP39: CB | BQ39: VOLUME | BR39: Volume (cubic feet) | BS39: T | BT39: Decimal | BU39: 20 | BV39: CB | BW39: NULL | BX39: NULL | BY39: F | BZ39: NULL | CA39: NULL | CB39: NULL | CC39: NULL | CD39: NULL | CE39: F | CF39: NULL | CG39: NULL | CH39: NULL | CI39: NULL | CJ39: NULL | CK39: F | CL39: NULL | CM39: NULL | CN39: NULL | CO39: NULL | CP39: NULL | CQ39: F | CR39: NULL | CS39: NULL | CT39: NULL | CU39: NULL | CV39: NULL | CW39: F | CX39: NULL | CY39: NULL | CZ39: NULL | DA39: NULL | DB39: NULL | DC39: F | DD39: NULL | DE39: NULL | DF39: NULL | DG39: NULL | DH39: NULL | DI39: F | DJ39: NULL | DK39: NULL | DL39: NULL | DM39: NULL | DN39: NULL | DO39: F | DP39: NULL | DQ39: NULL | DR39: NULL | DS39: NULL | DT39: NULL | DU39: F | DV39: NULL | DW39: NULL | DX39: NULL | DY39: NULL | DZ39: NULL | EA39: F | EB39: NULL | EC39: NULL | ED39: NULL | EE39: NULL | EF39: NULL | EG39: F | EH39: NULL | EI39: NULL | EJ39: NULL | EK39: NULL | EL39: NULL | EM39: F | EN39: NULL | EO39: NULL | EP39: NULL | EQ39: NULL | ER39: NULL | ES39: F | ET39: NULL | EU39: NULL | EV39: NULL | EW39: NULL | EX39: NULL | EY39: F | EZ39: NULL | FA39: NULL | FB39: NULL | FC39: 45253.11092 | FD39: 45253.11092
A40: 17916 | B40: Yes | C40: Prescriptive | D40: ESMEFRIDGE | E40: Energy Star Most Efficient (ESME) Multifamily Refrigerator | F40: Refrigerator | G40: Appliance | H40: ELE | I40: N/A | J40: 913 | K40: 112 | L40: 6 | M40: 5624 | N40: OR | O40: NBE | P40: New Buildings | Q40: 2024-01-01 | R40: 2026-12-31 | S40: Units | T40: 0 | U40: 0 | V40: 95.8 | W40: 0 | X40: 0 | Y40: 0 | Z40: Res Refrigerator | AA40: None - gas | AB40: 0 | AC40: 70 | AD40: 0 | AE40: 17 | AF40: 0 | AG40: 83.07 | AH40: 0 | AI40: 0 | AJ40: 0 | AK40: 1 | AL40: 1 | AM40: 0 | AN40: NULL | AO40: 100 | AP40: 100 | AQ40: NULL | AR40: NULL | AS40: NULL | AT40: NULL | AU40: NULL | AV40: NULL | AW40: NULL | AX40: NULL | AY40: NULL | AZ40: NULL | BA40: NULL | BB40: NULL | BC40: NULL | BD40: Residential Energy Star Refrigerator | BE40: MANUFACTURER | BF40: Manufacturer | BG40: T | BH40: Alphanumeric | BI40: 64 | BJ40: CB | BK40: MODEL | BL40: Model | BM40: T | BN40: Alphanumeric | BO40: 63 | BP40: CB | BQ40: VOLUME | BR40: Volume (cubic feet) | BS40: T | BT40: Decimal | BU40: 20 | BV40: CB | BW40: NULL | BX40: NULL | BY40: F | BZ40: NULL | CA40: NULL | CB40: NULL | CC40: NULL | CD40: NULL | CE40: F | CF40: NULL | CG40: NULL | CH40: NULL | CI40: NULL | CJ40: NULL | CK40: F | CL40: NULL | CM40: NULL | CN40: NULL | CO40: NULL | CP40: NULL | CQ40: F | CR40: NULL | CS40: NULL | CT40: NULL | CU40: NULL | CV40: NULL | CW40: F | CX40: NULL | CY40: NULL | CZ40: NULL | DA40: NULL | DB40: NULL | DC40: F | DD40: NULL | DE40: NULL | DF40: NULL | DG40: NULL | DH40: NULL | DI40: F | DJ40: NULL | DK40: NULL | DL40: NULL | DM40: NULL | DN40: NULL | DO40: F | DP40: NULL | DQ40: NULL | DR40: NULL | DS40: NULL | DT40: NULL | DU40: F | DV40: NULL | DW40: NULL | DX40: NULL | DY40: NULL | DZ40: NULL | EA40: F | EB40: NULL | EC40: NULL | ED40: NULL | EE40: NULL | EF40: NULL | EG40: F | EH40: NULL | EI40: NULL | EJ40: NULL | EK40: NULL | EL40: NULL | EM40: F | EN40: NULL | EO40: NULL | EP40: NULL | EQ40: NULL | ER40: NULL | ES40: F | ET40: NULL | EU40: NULL | EV40: NULL | EW40: NULL | EX40: NULL | EY40: F | EZ40: NULL | FA40: NULL | FB40: NULL | FC40: 45253.11092 | FD40: 45253.11092
A41: 17926 | B41: Yes | C41: Prescriptive | D41: OZONSYS126400EWH | E41: Ozone Laundry System 126-400 Lbs Capacity - Ele WH | F41: Clothes washer | G41: Appliance | H41: ELE | I41: DHW | J41: 918 | K41: 80 | L41: 2 | M41: 5653 | N41: OR | O41: NBE | P41: New Buildings | Q41: 2024-01-01 | R41: 2026-12-31 | S41: Other | T41: 0 | U41: 0 | V41: 271970.52 | W41: 0 | X41: 14427.32 | Y41: 0 | Z41: Lodging Hot Water | AA41: Clotheswasher | AB41: 0 | AC41: 15000 | AD41: 0 | AE41: 10 | AF41: 0 | AG41: 25433.87 | AH41: 0 | AI41: 0 | AJ41: 0 | AK41: 1 | AL41: 1 | AM41: 0 | AN41: NULL | AO41: 100 | AP41: 100 | AQ41: NULL | AR41: NULL | AS41: NULL | AT41: NULL | AU41: NULL | AV41: NULL | AW41: NULL | AX41: NULL | AY41: NULL | AZ41: NULL | BA41: NULL | BB41: NULL | BC41: NULL | BD41: Clothes Washer | BE41: MANUFACTURER | BF41: Manufacturer Name | BG41: T | BH41: Alphanumeric | BI41: 40 | BJ41: ED | BK41: MODEL | BL41: Model | BM41: T | BN41: Alphanumeric | BO41: 20 | BP41: ED | BQ41: CAPACITY | BR41: Capacity (lbs) | BS41: T | BT41: Alphanumeric | BU41: 10 | BV41: ED | BW41: NULL | BX41: NULL | BY41: F | BZ41: NULL | CA41: NULL | CB41: NULL | CC41: NULL | CD41: NULL | CE41: F | CF41: NULL | CG41: NULL | CH41: NULL | CI41: NULL | CJ41: NULL | CK41: F | CL41: NULL | CM41: NULL | CN41: NULL | CO41: NULL | CP41: NULL | CQ41: F | CR41: NULL | CS41: NULL | CT41: NULL | CU41: NULL | CV41: NULL | CW41: F | CX41: NULL | CY41: NULL | CZ41: NULL | DA41: NULL | DB41: NULL | DC41: F | DD41: NULL | DE41: NULL | DF41: NULL | DG41: NULL | DH41: NULL | DI41: F | DJ41: NULL | DK41: NULL | DL41: NULL | DM41: NULL | DN41: NULL | DO41: F | DP41: NULL | DQ41: NULL | DR41: NULL | DS41: NULL | DT41: NULL | DU41: F | DV41: NULL | DW41: NULL | DX41: NULL | DY41: NULL | DZ41: NULL | EA41: F | EB41: NULL | EC41: NULL | ED41: NULL | EE41: NULL | EF41: NULL | EG41: F | EH41: NULL | EI41: NULL | EJ41: NULL | EK41: NULL | EL41: NULL | EM41: F | EN41: NULL | EO41: NULL | EP41: NULL | EQ41: NULL | ER41: NULL | ES41: F | ET41: NULL | EU41: NULL | EV41: NULL | EW41: NULL | EX41: NULL | EY41: F | EZ41: NULL | FA41: NULL | FB41: NULL | FC41: 45253.11092 | FD41: 45253.11092
A42: 17927 | B42: Yes | C42: Prescriptive | D42: OZONSYS401600GWHGOT | E42: Ozone Laundry System 401-600 Lbs Capacity - Gas WH GOT | F42: Clothes washer | G42: Appliance | H42: GAS | I42: DHW | J42: 918 | K42: 80 | L42: 2 | M42: 5644 | N42: OR | O42: NBE | P42: New Buildings | Q42: 2024-01-01 | R42: 2026-12-31 | S42: Other | T42: 0 | U42: 0 | V42: 0 | W42: 22322.85 | X42: 28596.85 | Y42: 0 | Z42: Lodging Hot Water | AA42: Clotheswasher | AB42: 0 | AC42: 25000 | AD42: 0 | AE42: 10 | AF42: 0 | AG42: 39816.22 | AH42: 0 | AI42: 0 | AJ42: 0 | AK42: 1 | AL42: 1 | AM42: 0 | AN42: 100 | AO42: NULL | AP42: NULL | AQ42: 100 | AR42: 100 | AS42: 100 | AT42: 100 | AU42: NULL | AV42: NULL | AW42: NULL | AX42: NULL | AY42: NULL | AZ42: NULL | BA42: 100 | BB42: 100 | BC42: 100 | BD42: Clothes Washer | BE42: MANUFACTURER | BF42: Manufacturer Name | BG42: T | BH42: Alphanumeric | BI42: 40 | BJ42: ED | BK42: MODEL | BL42: Model | BM42: T | BN42: Alphanumeric | BO42: 20 | BP42: ED | BQ42: CAPACITY | BR42: Capacity (lbs) | BS42: F | BT42: Alphanumeric | BU42: 10 | BV42: ED | BW42: NULL | BX42: NULL | BY42: F | BZ42: NULL | CA42: NULL | CB42: NULL | CC42: NULL | CD42: NULL | CE42: F | CF42: NULL | CG42: NULL | CH42: NULL | CI42: NULL | CJ42: NULL | CK42: F | CL42: NULL | CM42: NULL | CN42: NULL | CO42: NULL | CP42: NULL | CQ42: F | CR42: NULL | CS42: NULL | CT42: NULL | CU42: NULL | CV42: NULL | CW42: F | CX42: NULL | CY42: NULL | CZ42: NULL | DA42: NULL | DB42: NULL | DC42: F | DD42: NULL | DE42: NULL | DF42: NULL | DG42: NULL | DH42: NULL | DI42: F | DJ42: NULL | DK42: NULL | DL42: NULL | DM42: NULL | DN42: NULL | DO42: F | DP42: NULL | DQ42: NULL | DR42: NULL | DS42: NULL | DT42: NULL | DU42: F | DV42: NULL | DW42: NULL | DX42: NULL | DY42: NULL | DZ42: NULL | EA42: F | EB42: NULL | EC42: NULL | ED42: NULL | EE42: NULL | EF42: NULL | EG42: F | EH42: NULL | EI42: NULL | EJ42: NULL | EK42: NULL | EL42: NULL | EM42: F | EN42: NULL | EO42: NULL | EP42: NULL | EQ42: NULL | ER42: NULL | ES42: F | ET42: NULL | EU42: NULL | EV42: NULL | EW42: NULL | EX42: NULL | EY42: F | EZ42: NULL | FA42: NULL | FB42: NULL | FC42: 45253.11092 | FD42: 45554.1046
A43: 17928 | B43: Yes | C43: Prescriptive | D43: OZONSYS401600GWHFULL | E43: Ozone Laundry System 401-600 Lbs Capacity - Gas WH Full Terr | F43: Clothes washer | G43: Appliance | H43: BOTH | I43: N/A | J43: 918 | K43: 80 | L43: 2 | M43: 5639 | N43: OR | O43: NBE | P43: New Buildings | Q43: 2024-01-01 | R43: 2026-12-31 | S43: Other | T43: 0 | U43: 0 | V43: 5131.77 | W43: 22322.85 | X43: 27480.6 | Y43: 0 | Z43: Lodging Hot Water | AA43: Clotheswasher | AB43: 0 | AC43: 25000 | AD43: 0 | AE43: 10 | AF43: 0 | AG43: 39816.22 | AH43: 0 | AI43: 0 | AJ43: 0 | AK43: 1 | AL43: 1 | AM43: 0 | AN43: 99 | AO43: 1 | AP43: 1 | AQ43: 99 | AR43: 99 | AS43: 99 | AT43: 99 | AU43: NULL | AV43: NULL | AW43: NULL | AX43: NULL | AY43: NULL | AZ43: NULL | BA43: 99 | BB43: 99 | BC43: 99 | BD43: Clothes Washer | BE43: MANUFACTURER | BF43: Manufacturer Name | BG43: T | BH43: Alphanumeric | BI43: 40 | BJ43: ED | BK43: MODEL | BL43: Model | BM43: T | BN43: Alphanumeric | BO43: 20 | BP43: ED | BQ43: CAPACITY | BR43: Capacity (lbs) | BS43: F | BT43: Alphanumeric | BU43: 10 | BV43: ED | BW43: NULL | BX43: NULL | BY43: F | BZ43: NULL | CA43: NULL | CB43: NULL | CC43: NULL | CD43: NULL | CE43: F | CF43: NULL | CG43: NULL | CH43: NULL | CI43: NULL | CJ43: NULL | CK43: F | CL43: NULL | CM43: NULL | CN43: NULL | CO43: NULL | CP43: NULL | CQ43: F | CR43: NULL | CS43: NULL | CT43: NULL | CU43: NULL | CV43: NULL | CW43: F | CX43: NULL | CY43: NULL | CZ43: NULL | DA43: NULL | DB43: NULL | DC43: F | DD43: NULL | DE43: NULL | DF43: NULL | DG43: NULL | DH43: NULL | DI43: F | DJ43: NULL | DK43: NULL | DL43: NULL | DM43: NULL | DN43: NULL | DO43: F | DP43: NULL | DQ43: NULL | DR43: NULL | DS43: NULL | DT43: NULL | DU43: F | DV43: NULL | DW43: NULL | DX43: NULL | DY43: NULL | DZ43: NULL | EA43: F | EB43: NULL | EC43: NULL | ED43: NULL | EE43: NULL | EF43: NULL | EG43: F | EH43: NULL | EI43: NULL | EJ43: NULL | EK43: NULL | EL43: NULL | EM43: F | EN43: NULL | EO43: NULL | EP43: NULL | EQ43: NULL | ER43: NULL | ES43: F | ET43: NULL | EU43: NULL | EV43: NULL | EW43: NULL | EX43: NULL | EY43: F | EZ43: NULL | FA43: NULL | FB43: NULL | FC43: 45253.11092 | FD43: 45554.1046
A44: 17929 | B44: Yes | C44: Prescriptive | D44: OZONSYS401600EWH | E44: Ozone Laundry System 401-600 Lbs Capacity - Ele WH | F44: Clothes washer | G44: Appliance | H44: ELE | I44: DHW | J44: 918 | K44: 80 | L44: 2 | M44: 5654 | N44: OR | O44: NBE | P44: New Buildings | Q44: 2024-01-01 | R44: 2026-12-31 | S44: Other | T44: 0 | U44: 0 | V44: 518039.09 | W44: 0 | X44: 27480.6 | Y44: 0 | Z44: Lodging Hot Water | AA44: Clotheswasher | AB44: 0 | AC44: 25000 | AD44: 0 | AE44: 10 | AF44: 0 | AG44: 39816.22 | AH44: 0 | AI44: 0 | AJ44: 0 | AK44: 1 | AL44: 1 | AM44: 0 | AN44: NULL | AO44: 100 | AP44: 100 | AQ44: NULL | AR44: NULL | AS44: NULL | AT44: NULL | AU44: NULL | AV44: NULL | AW44: NULL | AX44: NULL | AY44: NULL | AZ44: NULL | BA44: NULL | BB44: NULL | BC44: NULL | BD44: Clothes Washer | BE44: MANUFACTURER | BF44: Manufacturer Name | BG44: T | BH44: Alphanumeric | BI44: 40 | BJ44: ED | BK44: MODEL | BL44: Model | BM44: T | BN44: Alphanumeric | BO44: 20 | BP44: ED | BQ44: CAPACITY | BR44: Capacity (lbs) | BS44: T | BT44: Alphanumeric | BU44: 10 | BV44: ED | BW44: NULL | BX44: NULL | BY44: F | BZ44: NULL | CA44: NULL | CB44: NULL | CC44: NULL | CD44: NULL | CE44: F | CF44: NULL | CG44: NULL | CH44: NULL | CI44: NULL | CJ44: NULL | CK44: F | CL44: NULL | CM44: NULL | CN44: NULL | CO44: NULL | CP44: NULL | CQ44: F | CR44: NULL | CS44: NULL | CT44: NULL | CU44: NULL | CV44: NULL | CW44: F | CX44: NULL | CY44: NULL | CZ44: NULL | DA44: NULL | DB44: NULL | DC44: F | DD44: NULL | DE44: NULL | DF44: NULL | DG44: NULL | DH44: NULL | DI44: F | DJ44: NULL | DK44: NULL | DL44: NULL | DM44: NULL | DN44: NULL | DO44: F | DP44: NULL | DQ44: NULL | DR44: NULL | DS44: NULL | DT44: NULL | DU44: F | DV44: NULL | DW44: NULL | DX44: NULL | DY44: NULL | DZ44: NULL | EA44: F | EB44: NULL | EC44: NULL | ED44: NULL | EE44: NULL | EF44: NULL | EG44: F | EH44: NULL | EI44: NULL | EJ44: NULL | EK44: NULL | EL44: NULL | EM44: F | EN44: NULL | EO44: NULL | EP44: NULL | EQ44: NULL | ER44: NULL | ES44: F | ET44: NULL | EU44: NULL | EV44: NULL | EW44: NULL | EX44: NULL | EY44: F | EZ44: NULL | FA44: NULL | FB44: NULL | FC44: 45253.11092 | FD44: 45253.11092
A45: 17930 | B45: Yes | C45: Prescriptive | D45: OZONSYS600GWHGOT | E45: Ozone Laundry System > 600 Lbs Capacity - Gas WH GOT | F45: Clothes washer | G45: Appliance | H45: GAS | I45: DHW | J45: 918 | K45: 80 | L45: 2 | M45: 5645 | N45: OR | O45: NBE | P45: New Buildings | Q45: 2024-01-01 | R45: 2026-12-31 | S45: Other | T45: 0 | U45: 0 | V45: 0 | W45: 31251.99 | X45: 39924.01 | Y45: 0 | Z45: Lodging Hot Water | AA45: Clotheswasher | AB45: 0 | AC45: 30000 | AD45: 0 | AE45: 10 | AF45: 0 | AG45: 47957.66 | AH45: 0 | AI45: 0 | AJ45: 0 | AK45: 1 | AL45: 1 | AM45: 0 | AN45: 100 | AO45: NULL | AP45: NULL | AQ45: 100 | AR45: 100 | AS45: 100 | AT45: 100 | AU45: NULL | AV45: NULL | AW45: NULL | AX45: NULL | AY45: NULL | AZ45: NULL | BA45: 100 | BB45: 100 | BC45: 100 | BD45: Clothes Washer | BE45: MANUFACTURER | BF45: Manufacturer Name | BG45: T | BH45: Alphanumeric | BI45: 40 | BJ45: ED | BK45: MODEL | BL45: Model | BM45: T | BN45: Alphanumeric | BO45: 20 | BP45: ED | BQ45: CAPACITY | BR45: Capacity (lbs) | BS45: F | BT45: Alphanumeric | BU45: 10 | BV45: ED | BW45: NULL | BX45: NULL | BY45: F | BZ45: NULL | CA45: NULL | CB45: NULL | CC45: NULL | CD45: NULL | CE45: F | CF45: NULL | CG45: NULL | CH45: NULL | CI45: NULL | CJ45: NULL | CK45: F | CL45: NULL | CM45: NULL | CN45: NULL | CO45: NULL | CP45: NULL | CQ45: F | CR45: NULL | CS45: NULL | CT45: NULL | CU45: NULL | CV45: NULL | CW45: F | CX45: NULL | CY45: NULL | CZ45: NULL | DA45: NULL | DB45: NULL | DC45: F | DD45: NULL | DE45: NULL | DF45: NULL | DG45: NULL | DH45: NULL | DI45: F | DJ45: NULL | DK45: NULL | DL45: NULL | DM45: NULL | DN45: NULL | DO45: F | DP45: NULL | DQ45: NULL | DR45: NULL | DS45: NULL | DT45: NULL | DU45: F | DV45: NULL | DW45: NULL | DX45: NULL | DY45: NULL | DZ45: NULL | EA45: F | EB45: NULL | EC45: NULL | ED45: NULL | EE45: NULL | EF45: NULL | EG45: F | EH45: NULL | EI45: NULL | EJ45: NULL | EK45: NULL | EL45: NULL | EM45: F | EN45: NULL | EO45: NULL | EP45: NULL | EQ45: NULL | ER45: NULL | ES45: F | ET45: NULL | EU45: NULL | EV45: NULL | EW45: NULL | EX45: NULL | EY45: F | EZ45: NULL | FA45: NULL | FB45: NULL | FC45: 45253.11092 | FD45: 45554.1046
A46: 17931 | B46: Yes | C46: Prescriptive | D46: OZONSYS600GWHFULL | E46: Ozone Laundry System > 600 Lbs Capacity - Gas WH Full Terr | F46: Clothes washer | G46: Appliance | H46: BOTH | I46: N/A | J46: 918 | K46: 80 | L46: 2 | M46: 5640 | N46: OR | O46: NBE | P46: New Buildings | Q46: 2024-01-01 | R46: 2026-12-31 | S46: Other | T46: 0 | U46: 0 | V46: 7184.48 | W46: 31251.99 | X46: 38472.84 | Y46: 0 | Z46: Lodging Hot Water | AA46: Clotheswasher | AB46: 0 | AC46: 30000 | AD46: 0 | AE46: 10 | AF46: 0 | AG46: 47957.66 | AH46: 0 | AI46: 0 | AJ46: 0 | AK46: 1 | AL46: 1 | AM46: 0 | AN46: 99 | AO46: 1 | AP46: 1 | AQ46: 99 | AR46: 99 | AS46: 99 | AT46: 99 | AU46: NULL | AV46: NULL | AW46: NULL | AX46: NULL | AY46: NULL | AZ46: NULL | BA46: 99 | BB46: 99 | BC46: 99 | BD46: Clothes Washer | BE46: MANUFACTURER | BF46: Manufacturer Name | BG46: T | BH46: Alphanumeric | BI46: 40 | BJ46: ED | BK46: MODEL | BL46: Model | BM46: T | BN46: Alphanumeric | BO46: 20 | BP46: ED | BQ46: CAPACITY | BR46: Capacity (lbs) | BS46: F | BT46: Alphanumeric | BU46: 10 | BV46: ED | BW46: NULL | BX46: NULL | BY46: F | BZ46: NULL | CA46: NULL | CB46: NULL | CC46: NULL | CD46: NULL | CE46: F | CF46: NULL | CG46: NULL | CH46: NULL | CI46: NULL | CJ46: NULL | CK46: F | CL46: NULL | CM46: NULL | CN46: NULL | CO46: NULL | CP46: NULL | CQ46: F | CR46: NULL | CS46: NULL | CT46: NULL | CU46: NULL | CV46: NULL | CW46: F | CX46: NULL | CY46: NULL | CZ46: NULL | DA46: NULL | DB46: NULL | DC46: F | DD46: NULL | DE46: NULL | DF46: NULL | DG46: NULL | DH46: NULL | DI46: F | DJ46: NULL | DK46: NULL | DL46: NULL | DM46: NULL | DN46: NULL | DO46: F | DP46: NULL | DQ46: NULL | DR46: NULL | DS46: NULL | DT46: NULL | DU46: F | DV46: NULL | DW46: NULL | DX46: NULL | DY46: NULL | DZ46: NULL | EA46: F | EB46: NULL | EC46: NULL | ED46: NULL | EE46: NULL | EF46: NULL | EG46: F | EH46: NULL | EI46: NULL | EJ46: NULL | EK46: NULL | EL46: NULL | EM46: F | EN46: NULL | EO46: NULL | EP46: NULL | EQ46: NULL | ER46: NULL | ES46: F | ET46: NULL | EU46: NULL | EV46: NULL | EW46: NULL | EX46: NULL | EY46: F | EZ46: NULL | FA46: NULL | FB46: NULL | FC46: 45253.11092 | FD46: 45554.1046
A47: 17932 | B47: Yes | C47: Prescriptive | D47: OZONSYS600EWH | E47: Ozone Laundry System > 600 Lbs Capacity - Ele WH | F47: Clothes washer | G47: Appliance | H47: ELE | I47: DHW | J47: 918 | K47: 80 | L47: 2 | M47: 5655 | N47: OR | O47: NBE | P47: New Buildings | Q47: 2024-01-01 | R47: 2026-12-31 | S47: Other | T47: 0 | U47: 0 | V47: 725254.73 | W47: 0 | X47: 38472.84 | Y47: 0 | Z47: Lodging Hot Water | AA47: Clotheswasher | AB47: 0 | AC47: 30000 | AD47: 0 | AE47: 10 | AF47: 0 | AG47: 47957.66 | AH47: 0 | AI47: 0 | AJ47: 0 | AK47: 1 | AL47: 1 | AM47: 0 | AN47: NULL | AO47: 100 | AP47: 100 | AQ47: NULL | AR47: NULL | AS47: NULL | AT47: NULL | AU47: NULL | AV47: NULL | AW47: NULL | AX47: NULL | AY47: NULL | AZ47: NULL | BA47: NULL | BB47: NULL | BC47: NULL | BD47: Clothes Washer | BE47: MANUFACTURER | BF47: Manufacturer Name | BG47: T | BH47: Alphanumeric | BI47: 40 | BJ47: ED | BK47: MODEL | BL47: Model | BM47: T | BN47: Alphanumeric | BO47: 20 | BP47: ED | BQ47: CAPACITY | BR47: Capacity (lbs) | BS47: T | BT47: Alphanumeric | BU47: 10 | BV47: ED | BW47: NULL | BX47: NULL | BY47: F | BZ47: NULL | CA47: NULL | CB47: NULL | CC47: NULL | CD47: NULL | CE47: F | CF47: NULL | CG47: NULL | CH47: NULL | CI47: NULL | CJ47: NULL | CK47: F | CL47: NULL | CM47: NULL | CN47: NULL | CO47: NULL | CP47: NULL | CQ47: F | CR47: NULL | CS47: NULL | CT47: NULL | CU47: NULL | CV47: NULL | CW47: F | CX47: NULL | CY47: NULL | CZ47: NULL | DA47: NULL | DB47: NULL | DC47: F | DD47: NULL | DE47: NULL | DF47: NULL | DG47: NULL | DH47: NULL | DI47: F | DJ47: NULL | DK47: NULL | DL47: NULL | DM47: NULL | DN47: NULL | DO47: F | DP47: NULL | DQ47: NULL | DR47: NULL | DS47: NULL | DT47: NULL | DU47: F | DV47: NULL | DW47: NULL | DX47: NULL | DY47: NULL | DZ47: NULL | EA47: F | EB47: NULL | EC47: NULL | ED47: NULL | EE47: NULL | EF47: NULL | EG47: F | EH47: NULL | EI47: NULL | EJ47: NULL | EK47: NULL | EL47: NULL | EM47: F | EN47: NULL | EO47: NULL | EP47: NULL | EQ47: NULL | ER47: NULL | ES47: F | ET47: NULL | EU47: NULL | EV47: NULL | EW47: NULL | EX47: NULL | EY47: F | EZ47: NULL | FA47: NULL | FB47: NULL | FC47: 45253.11092 | FD47: 45253.11092
A48: 17933 | B48: Yes | C48: Prescriptive | D48: OZONSYS75GWHFULL | E48: Ozone Laundry System < 75 Lbs Capacity - Gas WH Full Terr | F48: Clothes washer | G48: Appliance | H48: BOTH | I48: N/A | J48: 918 | K48: 80 | L48: 2 | M48: 5636 | N48: OR | O48: NBE | P48: New Buildings | Q48: 2024-01-01 | R48: 2026-12-31 | S48: Other | T48: 0 | U48: 0 | V48: 513.18 | W48: 2232.29 | X48: 2748.06 | Y48: 0 | Z48: Lodging Hot Water | AA48: Clotheswasher | AB48: 0 | AC48: 5000 | AD48: 0 | AE48: 10 | AF48: 0 | AG48: 10092.68 | AH48: 0 | AI48: 0 | AJ48: 0 | AK48: 1 | AL48: 1 | AM48: 0 | AN48: 99 | AO48: 1 | AP48: 1 | AQ48: 99 | AR48: 99 | AS48: 99 | AT48: 99 | AU48: NULL | AV48: NULL | AW48: NULL | AX48: NULL | AY48: NULL | AZ48: NULL | BA48: 99 | BB48: 99 | BC48: 99 | BD48: Clothes Washer | BE48: MANUFACTURER | BF48: Manufacturer Name | BG48: T | BH48: Alphanumeric | BI48: 40 | BJ48: ED | BK48: MODEL | BL48: Model | BM48: T | BN48: Alphanumeric | BO48: 20 | BP48: ED | BQ48: CAPACITY | BR48: Capacity (lbs) | BS48: F | BT48: Alphanumeric | BU48: 10 | BV48: ED | BW48: NULL | BX48: NULL | BY48: F | BZ48: NULL | CA48: NULL | CB48: NULL | CC48: NULL | CD48: NULL | CE48: F | CF48: NULL | CG48: NULL | CH48: NULL | CI48: NULL | CJ48: NULL | CK48: F | CL48: NULL | CM48: NULL | CN48: NULL | CO48: NULL | CP48: NULL | CQ48: F | CR48: NULL | CS48: NULL | CT48: NULL | CU48: NULL | CV48: NULL | CW48: F | CX48: NULL | CY48: NULL | CZ48: NULL | DA48: NULL | DB48: NULL | DC48: F | DD48: NULL | DE48: NULL | DF48: NULL | DG48: NULL | DH48: NULL | DI48: F | DJ48: NULL | DK48: NULL | DL48: NULL | DM48: NULL | DN48: NULL | DO48: F | DP48: NULL | DQ48: NULL | DR48: NULL | DS48: NULL | DT48: NULL | DU48: F | DV48: NULL | DW48: NULL | DX48: NULL | DY48: NULL | DZ48: NULL | EA48: F | EB48: NULL | EC48: NULL | ED48: NULL | EE48: NULL | EF48: NULL | EG48: F | EH48: NULL | EI48: NULL | EJ48: NULL | EK48: NULL | EL48: NULL | EM48: F | EN48: NULL | EO48: NULL | EP48: NULL | EQ48: NULL | ER48: NULL | ES48: F | ET48: NULL | EU48: NULL | EV48: NULL | EW48: NULL | EX48: NULL | EY48: F | EZ48: NULL | FA48: NULL | FB48: NULL | FC48: 45253.11092 | FD48: 45554.1046
A49: 17934 | B49: Yes | C49: Prescriptive | D49: OZONSYS75EWH | E49: Ozone Laundry System < 75 Lbs Capacity - Ele WH | F49: Clothes washer | G49: Appliance | H49: ELE | I49: DHW | J49: 918 | K49: 80 | L49: 2 | M49: 5651 | N49: OR | O49: NBE | P49: New Buildings | Q49: 2024-01-01 | R49: 2026-12-31 | S49: Other | T49: 0 | U49: 0 | V49: 51803.91 | W49: 0 | X49: 2748.06 | Y49: 0 | Z49: Lodging Hot Water | AA49: Clotheswasher | AB49: 0 | AC49: 5000 | AD49: 0 | AE49: 10 | AF49: 0 | AG49: 10092.68 | AH49: 0 | AI49: 0 | AJ49: 0 | AK49: 1 | AL49: 1 | AM49: 0 | AN49: NULL | AO49: 100 | AP49: 100 | AQ49: NULL | AR49: NULL | AS49: NULL | AT49: NULL | AU49: NULL | AV49: NULL | AW49: NULL | AX49: NULL | AY49: NULL | AZ49: NULL | BA49: NULL | BB49: NULL | BC49: NULL | BD49: Clothes Washer | BE49: MANUFACTURER | BF49: Manufacturer Name | BG49: T | BH49: Alphanumeric | BI49: 40 | BJ49: ED | BK49: MODEL | BL49: Model | BM49: T | BN49: Alphanumeric | BO49: 20 | BP49: ED | BQ49: CAPACITY | BR49: Capacity (lbs) | BS49: T | BT49: Alphanumeric | BU49: 10 | BV49: ED | BW49: NULL | BX49: NULL | BY49: F | BZ49: NULL | CA49: NULL | CB49: NULL | CC49: NULL | CD49: NULL | CE49: F | CF49: NULL | CG49: NULL | CH49: NULL | CI49: NULL | CJ49: NULL | CK49: F | CL49: NULL | CM49: NULL | CN49: NULL | CO49: NULL | CP49: NULL | CQ49: F | CR49: NULL | CS49: NULL | CT49: NULL | CU49: NULL | CV49: NULL | CW49: F | CX49: NULL | CY49: NULL | CZ49: NULL | DA49: NULL | DB49: NULL | DC49: F | DD49: NULL | DE49: NULL | DF49: NULL | DG49: NULL | DH49: NULL | DI49: F | DJ49: NULL | DK49: NULL | DL49: NULL | DM49: NULL | DN49: NULL | DO49: F | DP49: NULL | DQ49: NULL | DR49: NULL | DS49: NULL | DT49: NULL | DU49: F | DV49: NULL | DW49: NULL | DX49: NULL | DY49: NULL | DZ49: NULL | EA49: F | EB49: NULL | EC49: NULL | ED49: NULL | EE49: NULL | EF49: NULL | EG49: F | EH49: NULL | EI49: NULL | EJ49: NULL | EK49: NULL | EL49: NULL | EM49: F | EN49: NULL | EO49: NULL | EP49: NULL | EQ49: NULL | ER49: NULL | ES49: F | ET49: NULL | EU49: NULL | EV49: NULL | EW49: NULL | EX49: NULL | EY49: F | EZ49: NULL | FA49: NULL | FB49: NULL | FC49: 45253.11092 | FD49: 45253.11092
A50: 17935 | B50: Yes | C50: Prescriptive | D50: OZONSYS75125GWHGOT | E50: Ozone Laundry System 75-125 Lbs Capacity - Gas WH GOT | F50: Clothes washer | G50: Appliance | H50: GAS | I50: DHW | J50: 918 | K50: 80 | L50: 2 | M50: 5642 | N50: OR | O50: NBE | P50: New Buildings | Q50: 2024-01-01 | R50: 2026-12-31 | S50: Other | T50: 0 | U50: 0 | V50: 0 | W50: 4464.57 | X50: 5703.43 | Y50: 0 | Z50: Lodging Hot Water | AA50: Clotheswasher | AB50: 0 | AC50: 7500 | AD50: 0 | AE50: 10 | AF50: 0 | AG50: 13479.48 | AH50: 0 | AI50: 0 | AJ50: 0 | AK50: 1 | AL50: 1 | AM50: 0 | AN50: 100 | AO50: NULL | AP50: NULL | AQ50: 100 | AR50: 100 | AS50: 100 | AT50: 100 | AU50: NULL | AV50: NULL | AW50: NULL | AX50: NULL | AY50: NULL | AZ50: NULL | BA50: 100 | BB50: 100 | BC50: 100 | BD50: Clothes Washer | BE50: MANUFACTURER | BF50: Manufacturer Name | BG50: T | BH50: Alphanumeric | BI50: 40 | BJ50: ED | BK50: MODEL | BL50: Model | BM50: T | BN50: Alphanumeric | BO50: 20 | BP50: ED | BQ50: CAPACITY | BR50: Capacity (lbs) | BS50: F | BT50: Alphanumeric | BU50: 10 | BV50: ED | BW50: NULL | BX50: NULL | BY50: F | BZ50: NULL | CA50: NULL | CB50: NULL | CC50: NULL | CD50: NULL | CE50: F | CF50: NULL | CG50: NULL | CH50: NULL | CI50: NULL | CJ50: NULL | CK50: F | CL50: NULL | CM50: NULL | CN50: NULL | CO50: NULL | CP50: NULL | CQ50: F | CR50: NULL | CS50: NULL | CT50: NULL | CU50: NULL | CV50: NULL | CW50: F | CX50: NULL | CY50: NULL | CZ50: NULL | DA50: NULL | DB50: NULL | DC50: F | DD50: NULL | DE50: NULL | DF50: NULL | DG50: NULL | DH50: NULL | DI50: F | DJ50: NULL | DK50: NULL | DL50: NULL | DM50: NULL | DN50: NULL | DO50: F | DP50: NULL | DQ50: NULL | DR50: NULL | DS50: NULL | DT50: NULL | DU50: F | DV50: NULL | DW50: NULL | DX50: NULL | DY50: NULL | DZ50: NULL | EA50: F | EB50: NULL | EC50: NULL | ED50: NULL | EE50: NULL | EF50: NULL | EG50: F | EH50: NULL | EI50: NULL | EJ50: NULL | EK50: NULL | EL50: NULL | EM50: F | EN50: NULL | EO50: NULL | EP50: NULL | EQ50: NULL | ER50: NULL | ES50: F | ET50: NULL | EU50: NULL | EV50: NULL | EW50: NULL | EX50: NULL | EY50: F | EZ50: NULL | FA50: NULL | FB50: NULL | FC50: 45253.11092 | FD50: 45554.1046
A51: 17936 | B51: Yes | C51: Prescriptive | D51: OZONSYS75125GWHFULL | E51: Ozone Laundry System 75-125 Lbs Capacity - Gas WH Full Terr | F51: Clothes washer | G51: Appliance | H51: BOTH | I51: N/A | J51: 918 | K51: 80 | L51: 2 | M51: 5637 | N51: OR | O51: NBE | P51: New Buildings | Q51: 2024-01-01 | R51: 2026-12-31 | S51: Other | T51: 0 | U51: 0 | V51: 1026.35 | W51: 4464.57 | X51: 5496.12 | Y51: 0 | Z51: Lodging Hot Water | AA51: Clotheswasher | AB51: 0 | AC51: 7500 | AD51: 0 | AE51: 10 | AF51: 0 | AG51: 13479.48 | AH51: 0 | AI51: 0 | AJ51: 0 | AK51: 1 | AL51: 1 | AM51: 0 | AN51: 99 | AO51: 1 | AP51: 1 | AQ51: 99 | AR51: 99 | AS51: 99 | AT51: 99 | AU51: NULL | AV51: NULL | AW51: NULL | AX51: NULL | AY51: NULL | AZ51: NULL | BA51: 99 | BB51: 99 | BC51: 99 | BD51: Clothes Washer | BE51: MANUFACTURER | BF51: Manufacturer Name | BG51: T | BH51: Alphanumeric | BI51: 40 | BJ51: ED | BK51: MODEL | BL51: Model | BM51: T | BN51: Alphanumeric | BO51: 20 | BP51: ED | BQ51: CAPACITY | BR51: Capacity (lbs) | BS51: F | BT51: Alphanumeric | BU51: 10 | BV51: ED | BW51: NULL | BX51: NULL | BY51: F | BZ51: NULL | CA51: NULL | CB51: NULL | CC51: NULL | CD51: NULL | CE51: F | CF51: NULL | CG51: NULL | CH51: NULL | CI51: NULL | CJ51: NULL | CK51: F | CL51: NULL | CM51: NULL | CN51: NULL | CO51: NULL | CP51: NULL | CQ51: F | CR51: NULL | CS51: NULL | CT51: NULL | CU51: NULL | CV51: NULL | CW51: F | CX51: NULL | CY51: NULL | CZ51: NULL | DA51: NULL | DB51: NULL | DC51: F | DD51: NULL | DE51: NULL | DF51: NULL | DG51: NULL | DH51: NULL | DI51: F | DJ51: NULL | DK51: NULL | DL51: NULL | DM51: NULL | DN51: NULL | DO51: F | DP51: NULL | DQ51: NULL | DR51: NULL | DS51: NULL | DT51: NULL | DU51: F | DV51: NULL | DW51: NULL | DX51: NULL | DY51: NULL | DZ51: NULL | EA51: F | EB51: NULL | EC51: NULL | ED51: NULL | EE51: NULL | EF51: NULL | EG51: F | EH51: NULL | EI51: NULL | EJ51: NULL | EK51: NULL | EL51: NULL | EM51: F | EN51: NULL | EO51: NULL | EP51: NULL | EQ51: NULL | ER51: NULL | ES51: F | ET51: NULL | EU51: NULL | EV51: NULL | EW51: NULL | EX51: NULL | EY51: F | EZ51: NULL | FA51: NULL | FB51: NULL | FC51: 45253.11092 | FD51: 45554.1046
A52: 17937 | B52: Yes | C52: Prescriptive | D52: OZONSYS75125EWH | E52: Ozone Laundry System 75-125 Lbs Capacity - Ele WH | F52: Clothes washer | G52: Appliance | H52: ELE | I52: DHW | J52: 918 | K52: 80 | L52: 2 | M52: 5652 | N52: OR | O52: NBE | P52: New Buildings | Q52: 2024-01-01 | R52: 2026-12-31 | S52: Other | T52: 0 | U52: 0 | V52: 103607.82 | W52: 0 | X52: 5496.12 | Y52: 0 | Z52: Lodging Hot Water | AA52: Clotheswasher | AB52: 0 | AC52: 7500 | AD52: 0 | AE52: 10 | AF52: 0 | AG52: 13479.48 | AH52: 0 | AI52: 0 | AJ52: 0 | AK52: 1 | AL52: 1 | AM52: 0 | AN52: NULL | AO52: 100 | AP52: 100 | AQ52: NULL | AR52: NULL | AS52: NULL | AT52: NULL | AU52: NULL | AV52: NULL | AW52: NULL | AX52: NULL | AY52: NULL | AZ52: NULL | BA52: NULL | BB52: NULL | BC52: NULL | BD52: Clothes Washer | BE52: MANUFACTURER | BF52: Manufacturer Name | BG52: T | BH52: Alphanumeric | BI52: 40 | BJ52: ED | BK52: MODEL | BL52: Model | BM52: T | BN52: Alphanumeric | BO52: 20 | BP52: ED | BQ52: CAPACITY | BR52: Capacity (lbs) | BS52: T | BT52: Alphanumeric | BU52: 10 | BV52: ED | BW52: NULL | BX52: NULL | BY52: F | BZ52: NULL | CA52: NULL | CB52: NULL | CC52: NULL | CD52: NULL | CE52: F | CF52: NULL | CG52: NULL | CH52: NULL | CI52: NULL | CJ52: NULL | CK52: F | CL52: NULL | CM52: NULL | CN52: NULL | CO52: NULL | CP52: NULL | CQ52: F | CR52: NULL | CS52: NULL | CT52: NULL | CU52: NULL | CV52: NULL | CW52: F | CX52: NULL | CY52: NULL | CZ52: NULL | DA52: NULL | DB52: NULL | DC52: F | DD52: NULL | DE52: NULL | DF52: NULL | DG52: NULL | DH52: NULL | DI52: F | DJ52: NULL | DK52: NULL | DL52: NULL | DM52: NULL | DN52: NULL | DO52: F | DP52: NULL | DQ52: NULL | DR52: NULL | DS52: NULL | DT52: NULL | DU52: F | DV52: NULL | DW52: NULL | DX52: NULL | DY52: NULL | DZ52: NULL | EA52: F | EB52: NULL | EC52: NULL | ED52: NULL | EE52: NULL | EF52: NULL | EG52: F | EH52: NULL | EI52: NULL | EJ52: NULL | EK52: NULL | EL52: NULL | EM52: F | EN52: NULL | EO52: NULL | EP52: NULL | EQ52: NULL | ER52: NULL | ES52: F | ET52: NULL | EU52: NULL | EV52: NULL | EW52: NULL | EX52: NULL | EY52: F | EZ52: NULL | FA52: NULL | FB52: NULL | FC52: 45253.11092 | FD52: 45253.11092
A53: 17938 | B53: Yes | C53: Prescriptive | D53: OZONSYS126400GWHGOT | E53: Ozone Laundry System 126-400 Lbs Capacity - Gas WH GOT | F53: Clothes washer | G53: Appliance | H53: GAS | I53: DHW | J53: 918 | K53: 80 | L53: 2 | M53: 5643 | N53: OR | O53: NBE | P53: New Buildings | Q53: 2024-01-01 | R53: 2026-12-31 | S53: Other | T53: 0 | U53: 0 | V53: 0 | W53: 11719.5 | X53: 14971.5 | Y53: 0 | Z53: Lodging Hot Water | AA53: Clotheswasher | AB53: 0 | AC53: 15000 | AD53: 0 | AE53: 10 | AF53: 0 | AG53: 25433.87 | AH53: 0 | AI53: 0 | AJ53: 0 | AK53: 1 | AL53: 1 | AM53: 0 | AN53: 100 | AO53: NULL | AP53: NULL | AQ53: 100 | AR53: 100 | AS53: 100 | AT53: 100 | AU53: NULL | AV53: NULL | AW53: NULL | AX53: NULL | AY53: NULL | AZ53: NULL | BA53: 100 | BB53: 100 | BC53: 100 | BD53: Clothes Washer | BE53: MANUFACTURER | BF53: Manufacturer Name | BG53: T | BH53: Alphanumeric | BI53: 40 | BJ53: ED | BK53: MODEL | BL53: Model | BM53: T | BN53: Alphanumeric | BO53: 20 | BP53: ED | BQ53: CAPACITY | BR53: Capacity (lbs) | BS53: F | BT53: Alphanumeric | BU53: 10 | BV53: ED | BW53: NULL | BX53: NULL | BY53: F | BZ53: NULL | CA53: NULL | CB53: NULL | CC53: NULL | CD53: NULL | CE53: F | CF53: NULL | CG53: NULL | CH53: NULL | CI53: NULL | CJ53: NULL | CK53: F | CL53: NULL | CM53: NULL | CN53: NULL | CO53: NULL | CP53: NULL | CQ53: F | CR53: NULL | CS53: NULL | CT53: NULL | CU53: NULL | CV53: NULL | CW53: F | CX53: NULL | CY53: NULL | CZ53: NULL | DA53: NULL | DB53: NULL | DC53: F | DD53: NULL | DE53: NULL | DF53: NULL | DG53: NULL | DH53: NULL | DI53: F | DJ53: NULL | DK53: NULL | DL53: NULL | DM53: NULL | DN53: NULL | DO53: F | DP53: NULL | DQ53: NULL | DR53: NULL | DS53: NULL | DT53: NULL | DU53: F | DV53: NULL | DW53: NULL | DX53: NULL | DY53: NULL | DZ53: NULL | EA53: F | EB53: NULL | EC53: NULL | ED53: NULL | EE53: NULL | EF53: NULL | EG53: F | EH53: NULL | EI53: NULL | EJ53: NULL | EK53: NULL | EL53: NULL | EM53: F | EN53: NULL | EO53: NULL | EP53: NULL | EQ53: NULL | ER53: NULL | ES53: F | ET53: NULL | EU53: NULL | EV53: NULL | EW53: NULL | EX53: NULL | EY53: F | EZ53: NULL | FA53: NULL | FB53: NULL | FC53: 45253.11092 | FD53: 45554.1046
A54: 17939 | B54: Yes | C54: Prescriptive | D54: OZONSYS126400GWHFULL | E54: Ozone Laundry System 126-400 Lbs Capacity - Gas WH Full Terr | F54: Clothes washer | G54: Appliance | H54: BOTH | I54: N/A | J54: 918 | K54: 80 | L54: 2 | M54: 5638 | N54: OR | O54: NBE | P54: New Buildings | Q54: 2024-01-01 | R54: 2026-12-31 | S54: Other | T54: 0 | U54: 0 | V54: 2694.18 | W54: 11719.5 | X54: 14427.32 | Y54: 0 | Z54: Lodging Hot Water | AA54: Clotheswasher | AB54: 0 | AC54: 15000 | AD54: 0 | AE54: 10 | AF54: 0 | AG54: 25433.87 | AH54: 0 | AI54: 0 | AJ54: 0 | AK54: 1 | AL54: 1 | AM54: 0 | AN54: 99 | AO54: 1 | AP54: 1 | AQ54: 99 | AR54: 99 | AS54: 99 | AT54: 99 | AU54: NULL | AV54: NULL | AW54: NULL | AX54: NULL | AY54: NULL | AZ54: NULL | BA54: 99 | BB54: 99 | BC54: 99 | BD54: Clothes Washer | BE54: MANUFACTURER | BF54: Manufacturer Name | BG54: T | BH54: Alphanumeric | BI54: 40 | BJ54: ED | BK54: MODEL | BL54: Model | BM54: T | BN54: Alphanumeric | BO54: 20 | BP54: ED | BQ54: CAPACITY | BR54: Capacity (lbs) | BS54: F | BT54: Alphanumeric | BU54: 10 | BV54: ED | BW54: NULL | BX54: NULL | BY54: F | BZ54: NULL | CA54: NULL | CB54: NULL | CC54: NULL | CD54: NULL | CE54: F | CF54: NULL | CG54: NULL | CH54: NULL | CI54: NULL | CJ54: NULL | CK54: F | CL54: NULL | CM54: NULL | CN54: NULL | CO54: NULL | CP54: NULL | CQ54: F | CR54: NULL | CS54: NULL | CT54: NULL | CU54: NULL | CV54: NULL | CW54: F | CX54: NULL | CY54: NULL | CZ54: NULL | DA54: NULL | DB54: NULL | DC54: F | DD54: NULL | DE54: NULL | DF54: NULL | DG54: NULL | DH54: NULL | DI54: F | DJ54: NULL | DK54: NULL | DL54: NULL | DM54: NULL | DN54: NULL | DO54: F | DP54: NULL | DQ54: NULL | DR54: NULL | DS54: NULL | DT54: NULL | DU54: F | DV54: NULL | DW54: NULL | DX54: NULL | DY54: NULL | DZ54: NULL | EA54: F | EB54: NULL | EC54: NULL | ED54: NULL | EE54: NULL | EF54: NULL | EG54: F | EH54: NULL | EI54: NULL | EJ54: NULL | EK54: NULL | EL54: NULL | EM54: F | EN54: NULL | EO54: NULL | EP54: NULL | EQ54: NULL | ER54: NULL | ES54: F | ET54: NULL | EU54: NULL | EV54: NULL | EW54: NULL | EX54: NULL | EY54: F | EZ54: NULL | FA54: NULL | FB54: NULL | FC54: 45253.11092 | FD54: 45554.1046
A55: 17947 | B55: Yes | C55: Prescriptive | D55: OZONSYS75GWHGOT | E55: Ozone Laundry System < 75 Lbs Capacity - Gas WH GOT | F55: Clothes washer | G55: Appliance | H55: GAS | I55: DHW | J55: 918 | K55: 80 | L55: 2 | M55: 5641 | N55: OR | O55: NBE | P55: New Buildings | Q55: 2024-01-01 | R55: 2026-12-31 | S55: Other | T55: 0 | U55: 0 | V55: 0 | W55: 2232.29 | X55: 2851.71 | Y55: 0 | Z55: Lodging Hot Water | AA55: Clotheswasher | AB55: 0 | AC55: 5000 | AD55: 0 | AE55: 10 | AF55: 0 | AG55: 10092.68 | AH55: 0 | AI55: 0 | AJ55: 0 | AK55: 1 | AL55: 1 | AM55: 0 | AN55: 100 | AO55: NULL | AP55: NULL | AQ55: 100 | AR55: 100 | AS55: 100 | AT55: 100 | AU55: NULL | AV55: NULL | AW55: NULL | AX55: NULL | AY55: NULL | AZ55: NULL | BA55: 100 | BB55: 100 | BC55: 100 | BD55: Clothes Washer | BE55: MANUFACTURER | BF55: Manufacturer Name | BG55: T | BH55: Alphanumeric | BI55: 40 | BJ55: ED | BK55: MODEL | BL55: Model | BM55: T | BN55: Alphanumeric | BO55: 20 | BP55: ED | BQ55: CAPACITY | BR55: Capacity (lbs) | BS55: F | BT55: Alphanumeric | BU55: 10 | BV55: ED | BW55: NULL | BX55: NULL | BY55: F | BZ55: NULL | CA55: NULL | CB55: NULL | CC55: NULL | CD55: NULL | CE55: F | CF55: NULL | CG55: NULL | CH55: NULL | CI55: NULL | CJ55: NULL | CK55: F | CL55: NULL | CM55: NULL | CN55: NULL | CO55: NULL | CP55: NULL | CQ55: F | CR55: NULL | CS55: NULL | CT55: NULL | CU55: NULL | CV55: NULL | CW55: F | CX55: NULL | CY55: NULL | CZ55: NULL | DA55: NULL | DB55: NULL | DC55: F | DD55: NULL | DE55: NULL | DF55: NULL | DG55: NULL | DH55: NULL | DI55: F | DJ55: NULL | DK55: NULL | DL55: NULL | DM55: NULL | DN55: NULL | DO55: F | DP55: NULL | DQ55: NULL | DR55: NULL | DS55: NULL | DT55: NULL | DU55: F | DV55: NULL | DW55: NULL | DX55: NULL | DY55: NULL | DZ55: NULL | EA55: F | EB55: NULL | EC55: NULL | ED55: NULL | EE55: NULL | EF55: NULL | EG55: F | EH55: NULL | EI55: NULL | EJ55: NULL | EK55: NULL | EL55: NULL | EM55: F | EN55: NULL | EO55: NULL | EP55: NULL | EQ55: NULL | ER55: NULL | ES55: F | ET55: NULL | EU55: NULL | EV55: NULL | EW55: NULL | EX55: NULL | EY55: F | EZ55: NULL | FA55: NULL | FB55: NULL | FC55: 45253.11092 | FD55: 45554.1046
A56: 17948 | B56: Yes | C56: Prescriptive | D56: COMWASHEDRYGET | E56: Commercial Washer Gas/Other Dryer Ele WH, Energy Star, EOT | F56: Clothes washer | G56: Appliance | H56: ELE | I56: N/A | J56: 935 | K56: 89 | L56: 5 | M56: 5760 | N56: OR | O56: NBE | P56: New Buildings | Q56: 2024-01-01 | R56: 2026-12-31 | S56: Units | T56: 0 | U56: 0 | V56: 427.56 | W56: 0 | X56: 340.44 | Y56: 0 | Z56: Other Process | AA56: None - gas | AB56: 0 | AC56: 150 | AD56: 0 | AE56: 7 | AF56: 0 | AG56: 531.15 | AH56: 0 | AI56: 0 | AJ56: 0 | AK56: 1 | AL56: 1 | AM56: 0 | AN56: NULL | AO56: 100 | AP56: 100 | AQ56: NULL | AR56: NULL | AS56: NULL | AT56: NULL | AU56: NULL | AV56: NULL | AW56: NULL | AX56: NULL | AY56: NULL | AZ56: NULL | BA56: NULL | BB56: NULL | BC56: NULL | BD56: Clothes Washer | BE56: MEF | BF56: MEF | BG56: T | BH56: Alphanumeric | BI56: 5 | BJ56: ED | BK56: WATERFACTOR | BL56: Water Factor | BM56: F | BN56: Alphanumeric | BO56: 10 | BP56: ED | BQ56: NULL | BR56: NULL | BS56: F | BT56: NULL | BU56: NULL | BV56: NULL | BW56: NULL | BX56: NULL | BY56: F | BZ56: NULL | CA56: NULL | CB56: NULL | CC56: NULL | CD56: NULL | CE56: F | CF56: NULL | CG56: NULL | CH56: NULL | CI56: NULL | CJ56: NULL | CK56: F | CL56: NULL | CM56: NULL | CN56: NULL | CO56: NULL | CP56: NULL | CQ56: F | CR56: NULL | CS56: NULL | CT56: NULL | CU56: NULL | CV56: NULL | CW56: F | CX56: NULL | CY56: NULL | CZ56: NULL | DA56: NULL | DB56: NULL | DC56: F | DD56: NULL | DE56: NULL | DF56: NULL | DG56: NULL | DH56: NULL | DI56: F | DJ56: NULL | DK56: NULL | DL56: NULL | DM56: NULL | DN56: NULL | DO56: F | DP56: NULL | DQ56: NULL | DR56: NULL | DS56: NULL | DT56: NULL | DU56: F | DV56: NULL | DW56: NULL | DX56: NULL | DY56: NULL | DZ56: NULL | EA56: F | EB56: NULL | EC56: NULL | ED56: NULL | EE56: NULL | EF56: NULL | EG56: F | EH56: NULL | EI56: NULL | EJ56: NULL | EK56: NULL | EL56: NULL | EM56: F | EN56: NULL | EO56: NULL | EP56: NULL | EQ56: NULL | ER56: NULL | ES56: F | ET56: NULL | EU56: NULL | EV56: NULL | EW56: NULL | EX56: NULL | EY56: F | EZ56: NULL | FA56: NULL | FB56: NULL | FC56: 45253.11092 | FD56: 45253.11092
A57: 17949 | B57: Yes | C57: Prescriptive | D57: COMWASHGDRYEET | E57: Commercial Washer Ele Dryer Gas/Other WH, Energy Star, EOT | F57: Clothes washer | G57: Appliance | H57: ELE | I57: N/A | J57: 935 | K57: 89 | L57: 5 | M57: 5758 | N57: OR | O57: NBE | P57: New Buildings | Q57: 2024-01-01 | R57: 2026-12-31 | S57: Units | T57: 0 | U57: 0 | V57: 804.37 | W57: 0 | X57: 326.56 | Y57: 0 | Z57: Other Process | AA57: None - gas | AB57: 0 | AC57: 150 | AD57: 0 | AE57: 7 | AF57: 0 | AG57: 531.15 | AH57: 0 | AI57: 0 | AJ57: 0 | AK57: 1 | AL57: 1 | AM57: 0 | AN57: NULL | AO57: 100 | AP57: 100 | AQ57: NULL | AR57: NULL | AS57: NULL | AT57: NULL | AU57: NULL | AV57: NULL | AW57: NULL | AX57: NULL | AY57: NULL | AZ57: NULL | BA57: NULL | BB57: NULL | BC57: NULL | BD57: Clothes Washer | BE57: MEF | BF57: MEF | BG57: T | BH57: Alphanumeric | BI57: 5 | BJ57: ED | BK57: WATERFACTOR | BL57: Water Factor | BM57: F | BN57: Alphanumeric | BO57: 10 | BP57: ED | BQ57: NULL | BR57: NULL | BS57: F | BT57: NULL | BU57: NULL | BV57: NULL | BW57: NULL | BX57: NULL | BY57: F | BZ57: NULL | CA57: NULL | CB57: NULL | CC57: NULL | CD57: NULL | CE57: F | CF57: NULL | CG57: NULL | CH57: NULL | CI57: NULL | CJ57: NULL | CK57: F | CL57: NULL | CM57: NULL | CN57: NULL | CO57: NULL | CP57: NULL | CQ57: F | CR57: NULL | CS57: NULL | CT57: NULL | CU57: NULL | CV57: NULL | CW57: F | CX57: NULL | CY57: NULL | CZ57: NULL | DA57: NULL | DB57: NULL | DC57: F | DD57: NULL | DE57: NULL | DF57: NULL | DG57: NULL | DH57: NULL | DI57: F | DJ57: NULL | DK57: NULL | DL57: NULL | DM57: NULL | DN57: NULL | DO57: F | DP57: NULL | DQ57: NULL | DR57: NULL | DS57: NULL | DT57: NULL | DU57: F | DV57: NULL | DW57: NULL | DX57: NULL | DY57: NULL | DZ57: NULL | EA57: F | EB57: NULL | EC57: NULL | ED57: NULL | EE57: NULL | EF57: NULL | EG57: F | EH57: NULL | EI57: NULL | EJ57: NULL | EK57: NULL | EL57: NULL | EM57: F | EN57: NULL | EO57: NULL | EP57: NULL | EQ57: NULL | ER57: NULL | ES57: F | ET57: NULL | EU57: NULL | EV57: NULL | EW57: NULL | EX57: NULL | EY57: F | EZ57: NULL | FA57: NULL | FB57: NULL | FC57: 45253.11092 | FD57: 45253.11092
A58: 17950 | B58: Yes | C58: Prescriptive | D58: COMWASHEDRYGMFET | E58: MF Commercial Washer Gas/Other Dryer Ele WH, Energy Star, EOT | F58: Clothes washer | G58: Appliance | H58: ELE | I58: N/A | J58: 935 | K58: 89 | L58: 5 | M58: 5756 | N58: OR | O58: NBE | P58: New Buildings | Q58: 2024-01-01 | R58: 2026-12-31 | S58: Units | T58: 0 | U58: 0 | V58: 312.74 | W58: 0 | X58: 252.42 | Y58: 0 | Z58: Res Clotheswasher | AA58: None - gas | AB58: 0 | AC58: 150 | AD58: 0 | AE58: 11 | AF58: 0 | AG58: 531.15 | AH58: 0 | AI58: 0 | AJ58: 0 | AK58: 1 | AL58: 1 | AM58: 0 | AN58: NULL | AO58: 100 | AP58: 100 | AQ58: NULL | AR58: NULL | AS58: NULL | AT58: NULL | AU58: NULL | AV58: NULL | AW58: NULL | AX58: NULL | AY58: NULL | AZ58: NULL | BA58: NULL | BB58: NULL | BC58: NULL | BD58: Clothes Washer | BE58: MEF | BF58: MEF | BG58: T | BH58: Alphanumeric | BI58: 5 | BJ58: ED | BK58: WATERFACTOR | BL58: Water Factor | BM58: F | BN58: Alphanumeric | BO58: 10 | BP58: ED | BQ58: NULL | BR58: NULL | BS58: F | BT58: NULL | BU58: NULL | BV58: NULL | BW58: NULL | BX58: NULL | BY58: F | BZ58: NULL | CA58: NULL | CB58: NULL | CC58: NULL | CD58: NULL | CE58: F | CF58: NULL | CG58: NULL | CH58: NULL | CI58: NULL | CJ58: NULL | CK58: F | CL58: NULL | CM58: NULL | CN58: NULL | CO58: NULL | CP58: NULL | CQ58: F | CR58: NULL | CS58: NULL | CT58: NULL | CU58: NULL | CV58: NULL | CW58: F | CX58: NULL | CY58: NULL | CZ58: NULL | DA58: NULL | DB58: NULL | DC58: F | DD58: NULL | DE58: NULL | DF58: NULL | DG58: NULL | DH58: NULL | DI58: F | DJ58: NULL | DK58: NULL | DL58: NULL | DM58: NULL | DN58: NULL | DO58: F | DP58: NULL | DQ58: NULL | DR58: NULL | DS58: NULL | DT58: NULL | DU58: F | DV58: NULL | DW58: NULL | DX58: NULL | DY58: NULL | DZ58: NULL | EA58: F | EB58: NULL | EC58: NULL | ED58: NULL | EE58: NULL | EF58: NULL | EG58: F | EH58: NULL | EI58: NULL | EJ58: NULL | EK58: NULL | EL58: NULL | EM58: F | EN58: NULL | EO58: NULL | EP58: NULL | EQ58: NULL | ER58: NULL | ES58: F | ET58: NULL | EU58: NULL | EV58: NULL | EW58: NULL | EX58: NULL | EY58: F | EZ58: NULL | FA58: NULL | FB58: NULL | FC58: 45253.11092 | FD58: 45253.11092
A59: 17951 | B59: Yes | C59: Prescriptive | D59: COMWASHGDRYEMFET | E59: MF Commercial Washer Ele Dryer Gas/Other WH, Energy Star, EOT | F59: Clothes washer | G59: Appliance | H59: ELE | I59: N/A | J59: 935 | K59: 89 | L59: 5 | M59: 5754 | N59: OR | O59: NBE | P59: New Buildings | Q59: 2024-01-01 | R59: 2026-12-31 | S59: Units | T59: 0 | U59: 0 | V59: 588.37 | W59: 0 | X59: 242.27 | Y59: 0 | Z59: Res Clotheswasher | AA59: None - gas | AB59: 0 | AC59: 150 | AD59: 0 | AE59: 11 | AF59: 0 | AG59: 531.15 | AH59: 0 | AI59: 0 | AJ59: 0 | AK59: 1 | AL59: 1 | AM59: 0 | AN59: NULL | AO59: 100 | AP59: 100 | AQ59: NULL | AR59: NULL | AS59: NULL | AT59: NULL | AU59: NULL | AV59: NULL | AW59: NULL | AX59: NULL | AY59: NULL | AZ59: NULL | BA59: NULL | BB59: NULL | BC59: NULL | BD59: Clothes Washer | BE59: MEF | BF59: MEF | BG59: T | BH59: Alphanumeric | BI59: 5 | BJ59: ED | BK59: WATERFACTOR | BL59: Water Factor | BM59: F | BN59: Alphanumeric | BO59: 10 | BP59: ED | BQ59: NULL | BR59: NULL | BS59: F | BT59: NULL | BU59: NULL | BV59: NULL | BW59: NULL | BX59: NULL | BY59: F | BZ59: NULL | CA59: NULL | CB59: NULL | CC59: NULL | CD59: NULL | CE59: F | CF59: NULL | CG59: NULL | CH59: NULL | CI59: NULL | CJ59: NULL | CK59: F | CL59: NULL | CM59: NULL | CN59: NULL | CO59: NULL | CP59: NULL | CQ59: F | CR59: NULL | CS59: NULL | CT59: NULL | CU59: NULL | CV59: NULL | CW59: F | CX59: NULL | CY59: NULL | CZ59: NULL | DA59: NULL | DB59: NULL | DC59: F | DD59: NULL | DE59: NULL | DF59: NULL | DG59: NULL | DH59: NULL | DI59: F | DJ59: NULL | DK59: NULL | DL59: NULL | DM59: NULL | DN59: NULL | DO59: F | DP59: NULL | DQ59: NULL | DR59: NULL | DS59: NULL | DT59: NULL | DU59: F | DV59: NULL | DW59: NULL | DX59: NULL | DY59: NULL | DZ59: NULL | EA59: F | EB59: NULL | EC59: NULL | ED59: NULL | EE59: NULL | EF59: NULL | EG59: F | EH59: NULL | EI59: NULL | EJ59: NULL | EK59: NULL | EL59: NULL | EM59: F | EN59: NULL | EO59: NULL | EP59: NULL | EQ59: NULL | ER59: NULL | ES59: F | ET59: NULL | EU59: NULL | EV59: NULL | EW59: NULL | EX59: NULL | EY59: F | EZ59: NULL | FA59: NULL | FB59: NULL | FC59: 45253.11092 | FD59: 45253.11092
A60: 17952 | B60: Yes | C60: Prescriptive | D60: COMWASHGDRYGFT | E60: Commercial Washer Gas Dryer Gas WH, Energy Star | F60: Clothes washer | G60: Appliance | H60: BOTH | I60: N/A | J60: 935 | K60: 89 | L60: 5 | M60: 5740 | N60: OR | O60: NBE | P60: New Buildings | Q60: 2024-01-01 | R60: 2026-12-31 | S60: Units | T60: 0 | U60: 0 | V60: 64.09 | W60: 44.86 | X60: 307.05 | Y60: 0 | Z60: Other Process | AA60: Clotheswasher | AB60: 0 | AC60: 350 | AD60: 0 | AE60: 7 | AF60: 0 | AG60: 531.15 | AH60: 0 | AI60: 0 | AJ60: 0 | AK60: 1 | AL60: 1 | AM60: 0 | AN60: 92 | AO60: 8 | AP60: 8 | AQ60: 92 | AR60: 92 | AS60: 92 | AT60: 92 | AU60: NULL | AV60: NULL | AW60: NULL | AX60: NULL | AY60: NULL | AZ60: NULL | BA60: 92 | BB60: 92 | BC60: 92 | BD60: Clothes Washer | BE60: MEF | BF60: MEF | BG60: T | BH60: Alphanumeric | BI60: 5 | BJ60: ED | BK60: WATERFACTOR | BL60: Water Factor | BM60: F | BN60: Alphanumeric | BO60: 10 | BP60: ED | BQ60: NULL | BR60: NULL | BS60: F | BT60: NULL | BU60: NULL | BV60: NULL | BW60: NULL | BX60: NULL | BY60: F | BZ60: NULL | CA60: NULL | CB60: NULL | CC60: NULL | CD60: NULL | CE60: F | CF60: NULL | CG60: NULL | CH60: NULL | CI60: NULL | CJ60: NULL | CK60: F | CL60: NULL | CM60: NULL | CN60: NULL | CO60: NULL | CP60: NULL | CQ60: F | CR60: NULL | CS60: NULL | CT60: NULL | CU60: NULL | CV60: NULL | CW60: F | CX60: NULL | CY60: NULL | CZ60: NULL | DA60: NULL | DB60: NULL | DC60: F | DD60: NULL | DE60: NULL | DF60: NULL | DG60: NULL | DH60: NULL | DI60: F | DJ60: NULL | DK60: NULL | DL60: NULL | DM60: NULL | DN60: NULL | DO60: F | DP60: NULL | DQ60: NULL | DR60: NULL | DS60: NULL | DT60: NULL | DU60: F | DV60: NULL | DW60: NULL | DX60: NULL | DY60: NULL | DZ60: NULL | EA60: F | EB60: NULL | EC60: NULL | ED60: NULL | EE60: NULL | EF60: NULL | EG60: F | EH60: NULL | EI60: NULL | EJ60: NULL | EK60: NULL | EL60: NULL | EM60: F | EN60: NULL | EO60: NULL | EP60: NULL | EQ60: NULL | ER60: NULL | ES60: F | ET60: NULL | EU60: NULL | EV60: NULL | EW60: NULL | EX60: NULL | EY60: F | EZ60: NULL | FA60: NULL | FB60: NULL | FC60: 45253.11092 | FD60: 45554.1046
A61: 17953 | B61: Yes | C61: Prescriptive | D61: COMWASHEDRYGFT | E61: Commercial Washer Gas Dryer Ele WH, Energy Star | F61: Clothes washer | G61: Appliance | H61: BOTH | I61: N/A | J61: 935 | K61: 89 | L61: 5 | M61: 5738 | N61: OR | O61: NBE | P61: New Buildings | Q61: 2024-01-01 | R61: 2026-12-31 | S61: Units | T61: 0 | U61: 0 | V61: 427.56 | W61: 28.31 | X61: 307.05 | Y61: 0 | Z61: Other Process | AA61: Clotheswasher | AB61: 0 | AC61: 350 | AD61: 0 | AE61: 7 | AF61: 0 | AG61: 531.15 | AH61: 0 | AI61: 0 | AJ61: 0 | AK61: 1 | AL61: 1 | AM61: 0 | AN61: 53 | AO61: 47 | AP61: 47 | AQ61: 53 | AR61: 53 | AS61: 53 | AT61: 53 | AU61: NULL | AV61: NULL | AW61: NULL | AX61: NULL | AY61: NULL | AZ61: NULL | BA61: 53 | BB61: 53 | BC61: 53 | BD61: Clothes Washer | BE61: MEF | BF61: MEF | BG61: T | BH61: Alphanumeric | BI61: 5 | BJ61: ED | BK61: WATERFACTOR | BL61: Water Factor | BM61: F | BN61: Alphanumeric | BO61: 10 | BP61: ED | BQ61: NULL | BR61: NULL | BS61: F | BT61: NULL | BU61: NULL | BV61: NULL | BW61: NULL | BX61: NULL | BY61: F | BZ61: NULL | CA61: NULL | CB61: NULL | CC61: NULL | CD61: NULL | CE61: F | CF61: NULL | CG61: NULL | CH61: NULL | CI61: NULL | CJ61: NULL | CK61: F | CL61: NULL | CM61: NULL | CN61: NULL | CO61: NULL | CP61: NULL | CQ61: F | CR61: NULL | CS61: NULL | CT61: NULL | CU61: NULL | CV61: NULL | CW61: F | CX61: NULL | CY61: NULL | CZ61: NULL | DA61: NULL | DB61: NULL | DC61: F | DD61: NULL | DE61: NULL | DF61: NULL | DG61: NULL | DH61: NULL | DI61: F | DJ61: NULL | DK61: NULL | DL61: NULL | DM61: NULL | DN61: NULL | DO61: F | DP61: NULL | DQ61: NULL | DR61: NULL | DS61: NULL | DT61: NULL | DU61: F | DV61: NULL | DW61: NULL | DX61: NULL | DY61: NULL | DZ61: NULL | EA61: F | EB61: NULL | EC61: NULL | ED61: NULL | EE61: NULL | EF61: NULL | EG61: F | EH61: NULL | EI61: NULL | EJ61: NULL | EK61: NULL | EL61: NULL | EM61: F | EN61: NULL | EO61: NULL | EP61: NULL | EQ61: NULL | ER61: NULL | ES61: F | ET61: NULL | EU61: NULL | EV61: NULL | EW61: NULL | EX61: NULL | EY61: F | EZ61: NULL | FA61: NULL | FB61: NULL | FC61: 45253.11092 | FD61: 45554.1046
A62: 17954 | B62: Yes | C62: Prescriptive | D62: COMWASHGDRYEFT | E62: Commercial Washer Ele Dryer Gas WH, Energy Star | F62: Clothes washer | G62: Appliance | H62: BOTH | I62: N/A | J62: 935 | K62: 89 | L62: 5 | M62: 5736 | N62: OR | O62: NBE | P62: New Buildings | Q62: 2024-01-01 | R62: 2026-12-31 | S62: Units | T62: 0 | U62: 0 | V62: 804.37 | W62: 16.55 | X62: 307.05 | Y62: 0 | Z62: Other Process | AA62: Clotheswasher | AB62: 0 | AC62: 400 | AD62: 0 | AE62: 7 | AF62: 0 | AG62: 531.15 | AH62: 0 | AI62: 0 | AJ62: 0 | AK62: 1 | AL62: 1 | AM62: 0 | AN62: 26 | AO62: 74 | AP62: 74 | AQ62: 26 | AR62: 26 | AS62: 26 | AT62: 26 | AU62: NULL | AV62: NULL | AW62: NULL | AX62: NULL | AY62: NULL | AZ62: NULL | BA62: 26 | BB62: 26 | BC62: 26 | BD62: Clothes Washer | BE62: MEF | BF62: MEF | BG62: T | BH62: Alphanumeric | BI62: 5 | BJ62: ED | BK62: WATERFACTOR | BL62: Water Factor | BM62: F | BN62: Alphanumeric | BO62: 10 | BP62: ED | BQ62: NULL | BR62: NULL | BS62: F | BT62: NULL | BU62: NULL | BV62: NULL | BW62: NULL | BX62: NULL | BY62: F | BZ62: NULL | CA62: NULL | CB62: NULL | CC62: NULL | CD62: NULL | CE62: F | CF62: NULL | CG62: NULL | CH62: NULL | CI62: NULL | CJ62: NULL | CK62: F | CL62: NULL | CM62: NULL | CN62: NULL | CO62: NULL | CP62: NULL | CQ62: F | CR62: NULL | CS62: NULL | CT62: NULL | CU62: NULL | CV62: NULL | CW62: F | CX62: NULL | CY62: NULL | CZ62: NULL | DA62: NULL | DB62: NULL | DC62: F | DD62: NULL | DE62: NULL | DF62: NULL | DG62: NULL | DH62: NULL | DI62: F | DJ62: NULL | DK62: NULL | DL62: NULL | DM62: NULL | DN62: NULL | DO62: F | DP62: NULL | DQ62: NULL | DR62: NULL | DS62: NULL | DT62: NULL | DU62: F | DV62: NULL | DW62: NULL | DX62: NULL | DY62: NULL | DZ62: NULL | EA62: F | EB62: NULL | EC62: NULL | ED62: NULL | EE62: NULL | EF62: NULL | EG62: F | EH62: NULL | EI62: NULL | EJ62: NULL | EK62: NULL | EL62: NULL | EM62: F | EN62: NULL | EO62: NULL | EP62: NULL | EQ62: NULL | ER62: NULL | ES62: F | ET62: NULL | EU62: NULL | EV62: NULL | EW62: NULL | EX62: NULL | EY62: F | EZ62: NULL | FA62: NULL | FB62: NULL | FC62: 45253.11092 | FD62: 45554.1046
A63: 17955 | B63: Yes | C63: Prescriptive | D63: COMWASHEDRYEFT | E63: Commercial Washer Ele Dryer Ele WH, Energy Star | F63: Clothes washer | G63: Appliance | H63: ELE | I63: N/A | J63: 935 | K63: 89 | L63: 5 | M63: 5734 | N63: OR | O63: NBE | P63: New Buildings | Q63: 2024-01-01 | R63: 2026-12-31 | S63: Units | T63: 0 | U63: 0 | V63: 1167.84 | W63: 0 | X63: 307.05 | Y63: 0 | Z63: Other Process | AA63: None - gas | AB63: 0 | AC63: 400 | AD63: 0 | AE63: 7 | AF63: 0 | AG63: 531.15 | AH63: 0 | AI63: 0 | AJ63: 0 | AK63: 1 | AL63: 1 | AM63: 0 | AN63: NULL | AO63: 100 | AP63: 100 | AQ63: NULL | AR63: NULL | AS63: NULL | AT63: NULL | AU63: NULL | AV63: NULL | AW63: NULL | AX63: NULL | AY63: NULL | AZ63: NULL | BA63: NULL | BB63: NULL | BC63: NULL | BD63: Clothes Washer | BE63: MEF | BF63: MEF | BG63: T | BH63: Alphanumeric | BI63: 5 | BJ63: ED | BK63: WATERFACTOR | BL63: Water Factor | BM63: F | BN63: Alphanumeric | BO63: 10 | BP63: ED | BQ63: NULL | BR63: NULL | BS63: F | BT63: NULL | BU63: NULL | BV63: NULL | BW63: NULL | BX63: NULL | BY63: F | BZ63: NULL | CA63: NULL | CB63: NULL | CC63: NULL | CD63: NULL | CE63: F | CF63: NULL | CG63: NULL | CH63: NULL | CI63: NULL | CJ63: NULL | CK63: F | CL63: NULL | CM63: NULL | CN63: NULL | CO63: NULL | CP63: NULL | CQ63: F | CR63: NULL | CS63: NULL | CT63: NULL | CU63: NULL | CV63: NULL | CW63: F | CX63: NULL | CY63: NULL | CZ63: NULL | DA63: NULL | DB63: NULL | DC63: F | DD63: NULL | DE63: NULL | DF63: NULL | DG63: NULL | DH63: NULL | DI63: F | DJ63: NULL | DK63: NULL | DL63: NULL | DM63: NULL | DN63: NULL | DO63: F | DP63: NULL | DQ63: NULL | DR63: NULL | DS63: NULL | DT63: NULL | DU63: F | DV63: NULL | DW63: NULL | DX63: NULL | DY63: NULL | DZ63: NULL | EA63: F | EB63: NULL | EC63: NULL | ED63: NULL | EE63: NULL | EF63: NULL | EG63: F | EH63: NULL | EI63: NULL | EJ63: NULL | EK63: NULL | EL63: NULL | EM63: F | EN63: NULL | EO63: NULL | EP63: NULL | EQ63: NULL | ER63: NULL | ES63: F | ET63: NULL | EU63: NULL | EV63: NULL | EW63: NULL | EX63: NULL | EY63: F | EZ63: NULL | FA63: NULL | FB63: NULL | FC63: 45253.11092 | FD63: 45253.11092
A64: 17956 | B64: Yes | C64: Prescriptive | D64: COMWASHGDRYGMFFT | E64: MF Commercial Washer Gas Dryer Gas WH, Energy Star | F64: Clothes washer | G64: Appliance | H64: BOTH | I64: N/A | J64: 935 | K64: 89 | L64: 5 | M64: 5732 | N64: OR | O64: NBE | P64: New Buildings | Q64: 2024-01-01 | R64: 2026-12-31 | S64: Units | T64: 0 | U64: 0 | V64: 46.88 | W64: 32.81 | X64: 228 | Y64: 0 | Z64: Res Clotheswasher | AA64: Clotheswasher | AB64: 0 | AC64: 350 | AD64: 0 | AE64: 11 | AF64: 0 | AG64: 531.15 | AH64: 0 | AI64: 0 | AJ64: 0 | AK64: 1 | AL64: 1 | AM64: 0 | AN64: 92 | AO64: 8 | AP64: 8 | AQ64: 92 | AR64: 92 | AS64: 92 | AT64: 92 | AU64: NULL | AV64: NULL | AW64: NULL | AX64: NULL | AY64: NULL | AZ64: NULL | BA64: 92 | BB64: 92 | BC64: 92 | BD64: Clothes Washer | BE64: MEF | BF64: MEF | BG64: T | BH64: Alphanumeric | BI64: 5 | BJ64: ED | BK64: WATERFACTOR | BL64: Water Factor | BM64: F | BN64: Alphanumeric | BO64: 10 | BP64: ED | BQ64: NULL | BR64: NULL | BS64: F | BT64: NULL | BU64: NULL | BV64: NULL | BW64: NULL | BX64: NULL | BY64: F | BZ64: NULL | CA64: NULL | CB64: NULL | CC64: NULL | CD64: NULL | CE64: F | CF64: NULL | CG64: NULL | CH64: NULL | CI64: NULL | CJ64: NULL | CK64: F | CL64: NULL | CM64: NULL | CN64: NULL | CO64: NULL | CP64: NULL | CQ64: F | CR64: NULL | CS64: NULL | CT64: NULL | CU64: NULL | CV64: NULL | CW64: F | CX64: NULL | CY64: NULL | CZ64: NULL | DA64: NULL | DB64: NULL | DC64: F | DD64: NULL | DE64: NULL | DF64: NULL | DG64: NULL | DH64: NULL | DI64: F | DJ64: NULL | DK64: NULL | DL64: NULL | DM64: NULL | DN64: NULL | DO64: F | DP64: NULL | DQ64: NULL | DR64: NULL | DS64: NULL | DT64: NULL | DU64: F | DV64: NULL | DW64: NULL | DX64: NULL | DY64: NULL | DZ64: NULL | EA64: F | EB64: NULL | EC64: NULL | ED64: NULL | EE64: NULL | EF64: NULL | EG64: F | EH64: NULL | EI64: NULL | EJ64: NULL | EK64: NULL | EL64: NULL | EM64: F | EN64: NULL | EO64: NULL | EP64: NULL | EQ64: NULL | ER64: NULL | ES64: F | ET64: NULL | EU64: NULL | EV64: NULL | EW64: NULL | EX64: NULL | EY64: F | EZ64: NULL | FA64: NULL | FB64: NULL | FC64: 45253.11092 | FD64: 45554.1046
A65: 17957 | B65: Yes | C65: Prescriptive | D65: COMWASHEDRYGMFFT | E65: MF Commercial Washer Gas Dryer Ele WH, Energy Star | F65: Clothes washer | G65: Appliance | H65: BOTH | I65: N/A | J65: 935 | K65: 89 | L65: 5 | M65: 5730 | N65: OR | O65: NBE | P65: New Buildings | Q65: 2024-01-01 | R65: 2026-12-31 | S65: Units | T65: 0 | U65: 0 | V65: 312.74 | W65: 20.71 | X65: 228 | Y65: 0 | Z65: Res Clotheswasher | AA65: Clotheswasher | AB65: 0 | AC65: 350 | AD65: 0 | AE65: 11 | AF65: 0 | AG65: 531.15 | AH65: 0 | AI65: 0 | AJ65: 0 | AK65: 1 | AL65: 1 | AM65: 0 | AN65: 52 | AO65: 48 | AP65: 48 | AQ65: 52 | AR65: 52 | AS65: 52 | AT65: 52 | AU65: NULL | AV65: NULL | AW65: NULL | AX65: NULL | AY65: NULL | AZ65: NULL | BA65: 52 | BB65: 52 | BC65: 52 | BD65: Clothes Washer | BE65: MEF | BF65: MEF | BG65: T | BH65: Alphanumeric | BI65: 5 | BJ65: ED | BK65: WATERFACTOR | BL65: Water Factor | BM65: F | BN65: Alphanumeric | BO65: 10 | BP65: ED | BQ65: NULL | BR65: NULL | BS65: F | BT65: NULL | BU65: NULL | BV65: NULL | BW65: NULL | BX65: NULL | BY65: F | BZ65: NULL | CA65: NULL | CB65: NULL | CC65: NULL | CD65: NULL | CE65: F | CF65: NULL | CG65: NULL | CH65: NULL | CI65: NULL | CJ65: NULL | CK65: F | CL65: NULL | CM65: NULL | CN65: NULL | CO65: NULL | CP65: NULL | CQ65: F | CR65: NULL | CS65: NULL | CT65: NULL | CU65: NULL | CV65: NULL | CW65: F | CX65: NULL | CY65: NULL | CZ65: NULL | DA65: NULL | DB65: NULL | DC65: F | DD65: NULL | DE65: NULL | DF65: NULL | DG65: NULL | DH65: NULL | DI65: F | DJ65: NULL | DK65: NULL | DL65: NULL | DM65: NULL | DN65: NULL | DO65: F | DP65: NULL | DQ65: NULL | DR65: NULL | DS65: NULL | DT65: NULL | DU65: F | DV65: NULL | DW65: NULL | DX65: NULL | DY65: NULL | DZ65: NULL | EA65: F | EB65: NULL | EC65: NULL | ED65: NULL | EE65: NULL | EF65: NULL | EG65: F | EH65: NULL | EI65: NULL | EJ65: NULL | EK65: NULL | EL65: NULL | EM65: F | EN65: NULL | EO65: NULL | EP65: NULL | EQ65: NULL | ER65: NULL | ES65: F | ET65: NULL | EU65: NULL | EV65: NULL | EW65: NULL | EX65: NULL | EY65: F | EZ65: NULL | FA65: NULL | FB65: NULL | FC65: 45253.11092 | FD65: 45554.1046
A66: 17958 | B66: Yes | C66: Prescriptive | D66: COMWASHGDRYEMFFT | E66: MF Commercial Washer Ele Dryer Gas WH, Energy Star | F66: Clothes washer | G66: Appliance | H66: BOTH | I66: N/A | J66: 935 | K66: 89 | L66: 5 | M66: 5728 | N66: OR | O66: NBE | P66: New Buildings | Q66: 2024-01-01 | R66: 2026-12-31 | S66: Units | T66: 0 | U66: 0 | V66: 588.37 | W66: 12.1 | X66: 228 | Y66: 0 | Z66: Res Clotheswasher | AA66: Clotheswasher | AB66: 0 | AC66: 400 | AD66: 0 | AE66: 11 | AF66: 0 | AG66: 531.15 | AH66: 0 | AI66: 0 | AJ66: 0 | AK66: 1 | AL66: 1 | AM66: 0 | AN66: 25 | AO66: 75 | AP66: 75 | AQ66: 25 | AR66: 25 | AS66: 25 | AT66: 25 | AU66: NULL | AV66: NULL | AW66: NULL | AX66: NULL | AY66: NULL | AZ66: NULL | BA66: 25 | BB66: 25 | BC66: 25 | BD66: Clothes Washer | BE66: MEF | BF66: MEF | BG66: T | BH66: Alphanumeric | BI66: 5 | BJ66: ED | BK66: WATERFACTOR | BL66: Water Factor | BM66: F | BN66: Alphanumeric | BO66: 10 | BP66: ED | BQ66: NULL | BR66: NULL | BS66: F | BT66: NULL | BU66: NULL | BV66: NULL | BW66: NULL | BX66: NULL | BY66: F | BZ66: NULL | CA66: NULL | CB66: NULL | CC66: NULL | CD66: NULL | CE66: F | CF66: NULL | CG66: NULL | CH66: NULL | CI66: NULL | CJ66: NULL | CK66: F | CL66: NULL | CM66: NULL | CN66: NULL | CO66: NULL | CP66: NULL | CQ66: F | CR66: NULL | CS66: NULL | CT66: NULL | CU66: NULL | CV66: NULL | CW66: F | CX66: NULL | CY66: NULL | CZ66: NULL | DA66: NULL | DB66: NULL | DC66: F | DD66: NULL | DE66: NULL | DF66: NULL | DG66: NULL | DH66: NULL | DI66: F | DJ66: NULL | DK66: NULL | DL66: NULL | DM66: NULL | DN66: NULL | DO66: F | DP66: NULL | DQ66: NULL | DR66: NULL | DS66: NULL | DT66: NULL | DU66: F | DV66: NULL | DW66: NULL | DX66: NULL | DY66: NULL | DZ66: NULL | EA66: F | EB66: NULL | EC66: NULL | ED66: NULL | EE66: NULL | EF66: NULL | EG66: F | EH66: NULL | EI66: NULL | EJ66: NULL | EK66: NULL | EL66: NULL | EM66: F | EN66: NULL | EO66: NULL | EP66: NULL | EQ66: NULL | ER66: NULL | ES66: F | ET66: NULL | EU66: NULL | EV66: NULL | EW66: NULL | EX66: NULL | EY66: F | EZ66: NULL | FA66: NULL | FB66: NULL | FC66: 45253.11092 | FD66: 45554.1046
A67: 17959 | B67: Yes | C67: Prescriptive | D67: COMWASHEDRYEMFFT | E67: MF Commercial Washer Ele Dryer Ele WH, Energy Star | F67: Clothes washer | G67: Appliance | H67: ELE | I67: N/A | J67: 935 | K67: 89 | L67: 5 | M67: 5726 | N67: OR | O67: NBE | P67: New Buildings | Q67: 2024-01-01 | R67: 2026-12-31 | S67: Units | T67: 0 | U67: 0 | V67: 854.23 | W67: 0 | X67: 228 | Y67: 0 | Z67: Res Clotheswasher | AA67: None - gas | AB67: 0 | AC67: 400 | AD67: 0 | AE67: 11 | AF67: 0 | AG67: 531.15 | AH67: 0 | AI67: 0 | AJ67: 0 | AK67: 1 | AL67: 1 | AM67: 0 | AN67: NULL | AO67: 100 | AP67: 100 | AQ67: NULL | AR67: NULL | AS67: NULL | AT67: NULL | AU67: NULL | AV67: NULL | AW67: NULL | AX67: NULL | AY67: NULL | AZ67: NULL | BA67: NULL | BB67: NULL | BC67: NULL | BD67: Clothes Washer | BE67: MEF | BF67: MEF | BG67: T | BH67: Alphanumeric | BI67: 5 | BJ67: ED | BK67: WATERFACTOR | BL67: Water Factor | BM67: F | BN67: Alphanumeric | BO67: 10 | BP67: ED | BQ67: NULL | BR67: NULL | BS67: F | BT67: NULL | BU67: NULL | BV67: NULL | BW67: NULL | BX67: NULL | BY67: F | BZ67: NULL | CA67: NULL | CB67: NULL | CC67: NULL | CD67: NULL | CE67: F | CF67: NULL | CG67: NULL | CH67: NULL | CI67: NULL | CJ67: NULL | CK67: F | CL67: NULL | CM67: NULL | CN67: NULL | CO67: NULL | CP67: NULL | CQ67: F | CR67: NULL | CS67: NULL | CT67: NULL | CU67: NULL | CV67: NULL | CW67: F | CX67: NULL | CY67: NULL | CZ67: NULL | DA67: NULL | DB67: NULL | DC67: F | DD67: NULL | DE67: NULL | DF67: NULL | DG67: NULL | DH67: NULL | DI67: F | DJ67: NULL | DK67: NULL | DL67: NULL | DM67: NULL | DN67: NULL | DO67: F | DP67: NULL | DQ67: NULL | DR67: NULL | DS67: NULL | DT67: NULL | DU67: F | DV67: NULL | DW67: NULL | DX67: NULL | DY67: NULL | DZ67: NULL | EA67: F | EB67: NULL | EC67: NULL | ED67: NULL | EE67: NULL | EF67: NULL | EG67: F | EH67: NULL | EI67: NULL | EJ67: NULL | EK67: NULL | EL67: NULL | EM67: F | EN67: NULL | EO67: NULL | EP67: NULL | EQ67: NULL | ER67: NULL | ES67: F | ET67: NULL | EU67: NULL | EV67: NULL | EW67: NULL | EX67: NULL | EY67: F | EZ67: NULL | FA67: NULL | FB67: NULL | FC67: 45253.11092 | FD67: 45253.11092
A68: 17960 | B68: Yes | C68: Prescriptive | D68: COMWASHGDRYGGT | E68: Commercial Washer Gas Dryer Gas WH, Energy Star, GOT | F68: Clothes washer | G68: Appliance | H68: GAS | I68: N/A | J68: 935 | K68: 89 | L68: 5 | M68: 5752 | N68: OR | O68: NBE | P68: New Buildings | Q68: 2024-01-01 | R68: 2026-12-31 | S68: Units | T68: 0 | U68: 0 | V68: 0 | W68: 44.86 | X68: 314.91 | Y68: 0 | Z68: None - ele | AA68: Clotheswasher | AB68: 0 | AC68: 100 | AD68: 0 | AE68: 7 | AF68: 0 | AG68: 531.15 | AH68: 0 | AI68: 0 | AJ68: 0 | AK68: 1 | AL68: 1 | AM68: 0 | AN68: 100 | AO68: NULL | AP68: NULL | AQ68: 100 | AR68: 100 | AS68: 100 | AT68: 100 | AU68: NULL | AV68: NULL | AW68: NULL | AX68: NULL | AY68: NULL | AZ68: NULL | BA68: 100 | BB68: 100 | BC68: 100 | BD68: Clothes Washer | BE68: MEF | BF68: MEF | BG68: T | BH68: Alphanumeric | BI68: 5 | BJ68: ED | BK68: WATERFACTOR | BL68: Water Factor | BM68: F | BN68: Alphanumeric | BO68: 10 | BP68: ED | BQ68: NULL | BR68: NULL | BS68: F | BT68: NULL | BU68: NULL | BV68: NULL | BW68: NULL | BX68: NULL | BY68: F | BZ68: NULL | CA68: NULL | CB68: NULL | CC68: NULL | CD68: NULL | CE68: F | CF68: NULL | CG68: NULL | CH68: NULL | CI68: NULL | CJ68: NULL | CK68: F | CL68: NULL | CM68: NULL | CN68: NULL | CO68: NULL | CP68: NULL | CQ68: F | CR68: NULL | CS68: NULL | CT68: NULL | CU68: NULL | CV68: NULL | CW68: F | CX68: NULL | CY68: NULL | CZ68: NULL | DA68: NULL | DB68: NULL | DC68: F | DD68: NULL | DE68: NULL | DF68: NULL | DG68: NULL | DH68: NULL | DI68: F | DJ68: NULL | DK68: NULL | DL68: NULL | DM68: NULL | DN68: NULL | DO68: F | DP68: NULL | DQ68: NULL | DR68: NULL | DS68: NULL | DT68: NULL | DU68: F | DV68: NULL | DW68: NULL | DX68: NULL | DY68: NULL | DZ68: NULL | EA68: F | EB68: NULL | EC68: NULL | ED68: NULL | EE68: NULL | EF68: NULL | EG68: F | EH68: NULL | EI68: NULL | EJ68: NULL | EK68: NULL | EL68: NULL | EM68: F | EN68: NULL | EO68: NULL | EP68: NULL | EQ68: NULL | ER68: NULL | ES68: F | ET68: NULL | EU68: NULL | EV68: NULL | EW68: NULL | EX68: NULL | EY68: F | EZ68: NULL | FA68: NULL | FB68: NULL | FC68: 45253.11092 | FD68: 45554.1046
A69: 17961 | B69: Yes | C69: Prescriptive | D69: COMWASHEDRYGGT | E69: Commercial Washer Gas Dryer Ele WH, Energy Star, GOT | F69: Clothes washer | G69: Appliance | H69: GAS | I69: N/A | J69: 935 | K69: 89 | L69: 5 | M69: 5750 | N69: OR | O69: NBE | P69: New Buildings | Q69: 2024-01-01 | R69: 2026-12-31 | S69: Units | T69: 0 | U69: 0 | V69: 0 | W69: 28.31 | X69: 343.88 | Y69: 0 | Z69: None - ele | AA69: Clotheswasher | AB69: 0 | AC69: 100 | AD69: 0 | AE69: 7 | AF69: 0 | AG69: 531.15 | AH69: 0 | AI69: 0 | AJ69: 0 | AK69: 1 | AL69: 1 | AM69: 0 | AN69: 100 | AO69: NULL | AP69: NULL | AQ69: 100 | AR69: 100 | AS69: 100 | AT69: 100 | AU69: NULL | AV69: NULL | AW69: NULL | AX69: NULL | AY69: NULL | AZ69: NULL | BA69: 100 | BB69: 100 | BC69: 100 | BD69: Clothes Washer | BE69: MEF | BF69: MEF | BG69: T | BH69: Alphanumeric | BI69: 5 | BJ69: ED | BK69: WATERFACTOR | BL69: Water Factor | BM69: F | BN69: Alphanumeric | BO69: 10 | BP69: ED | BQ69: NULL | BR69: NULL | BS69: F | BT69: NULL | BU69: NULL | BV69: NULL | BW69: NULL | BX69: NULL | BY69: F | BZ69: NULL | CA69: NULL | CB69: NULL | CC69: NULL | CD69: NULL | CE69: F | CF69: NULL | CG69: NULL | CH69: NULL | CI69: NULL | CJ69: NULL | CK69: F | CL69: NULL | CM69: NULL | CN69: NULL | CO69: NULL | CP69: NULL | CQ69: F | CR69: NULL | CS69: NULL | CT69: NULL | CU69: NULL | CV69: NULL | CW69: F | CX69: NULL | CY69: NULL | CZ69: NULL | DA69: NULL | DB69: NULL | DC69: F | DD69: NULL | DE69: NULL | DF69: NULL | DG69: NULL | DH69: NULL | DI69: F | DJ69: NULL | DK69: NULL | DL69: NULL | DM69: NULL | DN69: NULL | DO69: F | DP69: NULL | DQ69: NULL | DR69: NULL | DS69: NULL | DT69: NULL | DU69: F | DV69: NULL | DW69: NULL | DX69: NULL | DY69: NULL | DZ69: NULL | EA69: F | EB69: NULL | EC69: NULL | ED69: NULL | EE69: NULL | EF69: NULL | EG69: F | EH69: NULL | EI69: NULL | EJ69: NULL | EK69: NULL | EL69: NULL | EM69: F | EN69: NULL | EO69: NULL | EP69: NULL | EQ69: NULL | ER69: NULL | ES69: F | ET69: NULL | EU69: NULL | EV69: NULL | EW69: NULL | EX69: NULL | EY69: F | EZ69: NULL | FA69: NULL | FB69: NULL | FC69: 45253.11092 | FD69: 45554.1046
A70: 17962 | B70: Yes | C70: Prescriptive | D70: COMWASHGDRYEGT | E70: Commercial Washer Ele Dryer Gas WH, Energy Star, GOT | F70: Clothes washer | G70: Appliance | H70: GAS | I70: N/A | J70: 935 | K70: 89 | L70: 5 | M70: 5748 | N70: OR | O70: NBE | P70: New Buildings | Q70: 2024-01-01 | R70: 2026-12-31 | S70: Units | T70: 0 | U70: 0 | V70: 0 | W70: 16.55 | X70: 373.92 | Y70: 0 | Z70: None - ele | AA70: Clotheswasher | AB70: 0 | AC70: 100 | AD70: 0 | AE70: 7 | AF70: 0 | AG70: 531.15 | AH70: 0 | AI70: 0 | AJ70: 0 | AK70: 1 | AL70: 1 | AM70: 0 | AN70: 100 | AO70: NULL | AP70: NULL | AQ70: 100 | AR70: 100 | AS70: 100 | AT70: 100 | AU70: NULL | AV70: NULL | AW70: NULL | AX70: NULL | AY70: NULL | AZ70: NULL | BA70: 100 | BB70: 100 | BC70: 100 | BD70: Clothes Washer | BE70: MEF | BF70: MEF | BG70: T | BH70: Alphanumeric | BI70: 5 | BJ70: ED | BK70: WATERFACTOR | BL70: Water Factor | BM70: F | BN70: Alphanumeric | BO70: 10 | BP70: ED | BQ70: NULL | BR70: NULL | BS70: F | BT70: NULL | BU70: NULL | BV70: NULL | BW70: NULL | BX70: NULL | BY70: F | BZ70: NULL | CA70: NULL | CB70: NULL | CC70: NULL | CD70: NULL | CE70: F | CF70: NULL | CG70: NULL | CH70: NULL | CI70: NULL | CJ70: NULL | CK70: F | CL70: NULL | CM70: NULL | CN70: NULL | CO70: NULL | CP70: NULL | CQ70: F | CR70: NULL | CS70: NULL | CT70: NULL | CU70: NULL | CV70: NULL | CW70: F | CX70: NULL | CY70: NULL | CZ70: NULL | DA70: NULL | DB70: NULL | DC70: F | DD70: NULL | DE70: NULL | DF70: NULL | DG70: NULL | DH70: NULL | DI70: F | DJ70: NULL | DK70: NULL | DL70: NULL | DM70: NULL | DN70: NULL | DO70: F | DP70: NULL | DQ70: NULL | DR70: NULL | DS70: NULL | DT70: NULL | DU70: F | DV70: NULL | DW70: NULL | DX70: NULL | DY70: NULL | DZ70: NULL | EA70: F | EB70: NULL | EC70: NULL | ED70: NULL | EE70: NULL | EF70: NULL | EG70: F | EH70: NULL | EI70: NULL | EJ70: NULL | EK70: NULL | EL70: NULL | EM70: F | EN70: NULL | EO70: NULL | EP70: NULL | EQ70: NULL | ER70: NULL | ES70: F | ET70: NULL | EU70: NULL | EV70: NULL | EW70: NULL | EX70: NULL | EY70: F | EZ70: NULL | FA70: NULL | FB70: NULL | FC70: 45253.11092 | FD70: 45554.1046
A71: 17963 | B71: Yes | C71: Prescriptive | D71: COMWASHGDRYGMFGT | E71: MF Commercial Washer Gas Dryer Gas WH, Energy Star, GOT | F71: Clothes washer | G71: Appliance | H71: GAS | I71: N/A | J71: 935 | K71: 89 | L71: 5 | M71: 5746 | N71: OR | O71: NBE | P71: New Buildings | Q71: 2024-01-01 | R71: 2026-12-31 | S71: Units | T71: 0 | U71: 0 | V71: 0 | W71: 32.81 | X71: 233.75 | Y71: 0 | Z71: None - ele | AA71: Clotheswasher | AB71: 0 | AC71: 100 | AD71: 0 | AE71: 11 | AF71: 0 | AG71: 531.15 | AH71: 0 | AI71: 0 | AJ71: 0 | AK71: 1 | AL71: 1 | AM71: 0 | AN71: 100 | AO71: NULL | AP71: NULL | AQ71: 100 | AR71: 100 | AS71: 100 | AT71: 100 | AU71: NULL | AV71: NULL | AW71: NULL | AX71: NULL | AY71: NULL | AZ71: NULL | BA71: 100 | BB71: 100 | BC71: 100 | BD71: Clothes Washer | BE71: MEF | BF71: MEF | BG71: T | BH71: Alphanumeric | BI71: 5 | BJ71: ED | BK71: WATERFACTOR | BL71: Water Factor | BM71: F | BN71: Alphanumeric | BO71: 10 | BP71: ED | BQ71: NULL | BR71: NULL | BS71: F | BT71: NULL | BU71: NULL | BV71: NULL | BW71: NULL | BX71: NULL | BY71: F | BZ71: NULL | CA71: NULL | CB71: NULL | CC71: NULL | CD71: NULL | CE71: F | CF71: NULL | CG71: NULL | CH71: NULL | CI71: NULL | CJ71: NULL | CK71: F | CL71: NULL | CM71: NULL | CN71: NULL | CO71: NULL | CP71: NULL | CQ71: F | CR71: NULL | CS71: NULL | CT71: NULL | CU71: NULL | CV71: NULL | CW71: F | CX71: NULL | CY71: NULL | CZ71: NULL | DA71: NULL | DB71: NULL | DC71: F | DD71: NULL | DE71: NULL | DF71: NULL | DG71: NULL | DH71: NULL | DI71: F | DJ71: NULL | DK71: NULL | DL71: NULL | DM71: NULL | DN71: NULL | DO71: F | DP71: NULL | DQ71: NULL | DR71: NULL | DS71: NULL | DT71: NULL | DU71: F | DV71: NULL | DW71: NULL | DX71: NULL | DY71: NULL | DZ71: NULL | EA71: F | EB71: NULL | EC71: NULL | ED71: NULL | EE71: NULL | EF71: NULL | EG71: F | EH71: NULL | EI71: NULL | EJ71: NULL | EK71: NULL | EL71: NULL | EM71: F | EN71: NULL | EO71: NULL | EP71: NULL | EQ71: NULL | ER71: NULL | ES71: F | ET71: NULL | EU71: NULL | EV71: NULL | EW71: NULL | EX71: NULL | EY71: F | EZ71: NULL | FA71: NULL | FB71: NULL | FC71: 45253.11092 | FD71: 45554.1046
A72: 17964 | B72: Yes | C72: Prescriptive | D72: COMWASHEDRYGMFGT | E72: MF Commercial Washer Gas Dryer Ele WH, Energy Star, GOT | F72: Clothes washer | G72: Appliance | H72: GAS | I72: N/A | J72: 935 | K72: 89 | L72: 5 | M72: 5744 | N72: OR | O72: NBE | P72: New Buildings | Q72: 2024-01-01 | R72: 2026-12-31 | S72: Units | T72: 0 | U72: 0 | V72: 0 | W72: 20.71 | X72: 254.94 | Y72: 0 | Z72: None - ele | AA72: Clotheswasher | AB72: 0 | AC72: 100 | AD72: 0 | AE72: 11 | AF72: 0 | AG72: 531.15 | AH72: 0 | AI72: 0 | AJ72: 0 | AK72: 1 | AL72: 1 | AM72: 0 | AN72: 100 | AO72: NULL | AP72: NULL | AQ72: 100 | AR72: 100 | AS72: 100 | AT72: 100 | AU72: NULL | AV72: NULL | AW72: NULL | AX72: NULL | AY72: NULL | AZ72: NULL | BA72: 100 | BB72: 100 | BC72: 100 | BD72: Clothes Washer | BE72: MEF | BF72: MEF | BG72: T | BH72: Alphanumeric | BI72: 5 | BJ72: ED | BK72: WATERFACTOR | BL72: Water Factor | BM72: F | BN72: Alphanumeric | BO72: 10 | BP72: ED | BQ72: NULL | BR72: NULL | BS72: F | BT72: NULL | BU72: NULL | BV72: NULL | BW72: NULL | BX72: NULL | BY72: F | BZ72: NULL | CA72: NULL | CB72: NULL | CC72: NULL | CD72: NULL | CE72: F | CF72: NULL | CG72: NULL | CH72: NULL | CI72: NULL | CJ72: NULL | CK72: F | CL72: NULL | CM72: NULL | CN72: NULL | CO72: NULL | CP72: NULL | CQ72: F | CR72: NULL | CS72: NULL | CT72: NULL | CU72: NULL | CV72: NULL | CW72: F | CX72: NULL | CY72: NULL | CZ72: NULL | DA72: NULL | DB72: NULL | DC72: F | DD72: NULL | DE72: NULL | DF72: NULL | DG72: NULL | DH72: NULL | DI72: F | DJ72: NULL | DK72: NULL | DL72: NULL | DM72: NULL | DN72: NULL | DO72: F | DP72: NULL | DQ72: NULL | DR72: NULL | DS72: NULL | DT72: NULL | DU72: F | DV72: NULL | DW72: NULL | DX72: NULL | DY72: NULL | DZ72: NULL | EA72: F | EB72: NULL | EC72: NULL | ED72: NULL | EE72: NULL | EF72: NULL | EG72: F | EH72: NULL | EI72: NULL | EJ72: NULL | EK72: NULL | EL72: NULL | EM72: F | EN72: NULL | EO72: NULL | EP72: NULL | EQ72: NULL | ER72: NULL | ES72: F | ET72: NULL | EU72: NULL | EV72: NULL | EW72: NULL | EX72: NULL | EY72: F | EZ72: NULL | FA72: NULL | FB72: NULL | FC72: 45253.11092 | FD72: 45554.1046
A73: 17965 | B73: Yes | C73: Prescriptive | D73: COMWASHGDRYEMFGT | E73: MF Commercial Washer Ele Dryer Gas WH, Energy Star, GOT | F73: Clothes washer | G73: Appliance | H73: GAS | I73: N/A | J73: 935 | K73: 89 | L73: 5 | M73: 5742 | N73: OR | O73: NBE | P73: New Buildings | Q73: 2024-01-01 | R73: 2026-12-31 | S73: Units | T73: 0 | U73: 0 | V73: 0 | W73: 12.1 | X73: 276.91 | Y73: 0 | Z73: None - ele | AA73: Clotheswasher | AB73: 0 | AC73: 100 | AD73: 0 | AE73: 11 | AF73: 0 | AG73: 531.15 | AH73: 0 | AI73: 0 | AJ73: 0 | AK73: 1 | AL73: 1 | AM73: 0 | AN73: 100 | AO73: NULL | AP73: NULL | AQ73: 100 | AR73: 100 | AS73: 100 | AT73: 100 | AU73: NULL | AV73: NULL | AW73: NULL | AX73: NULL | AY73: NULL | AZ73: NULL | BA73: 100 | BB73: 100 | BC73: 100 | BD73: Clothes Washer | BE73: MEF | BF73: MEF | BG73: T | BH73: Alphanumeric | BI73: 5 | BJ73: ED | BK73: WATERFACTOR | BL73: Water Factor | BM73: F | BN73: Alphanumeric | BO73: 10 | BP73: ED | BQ73: NULL | BR73: NULL | BS73: F | BT73: NULL | BU73: NULL | BV73: NULL | BW73: NULL | BX73: NULL | BY73: F | BZ73: NULL | CA73: NULL | CB73: NULL | CC73: NULL | CD73: NULL | CE73: F | CF73: NULL | CG73: NULL | CH73: NULL | CI73: NULL | CJ73: NULL | CK73: F | CL73: NULL | CM73: NULL | CN73: NULL | CO73: NULL | CP73: NULL | CQ73: F | CR73: NULL | CS73: NULL | CT73: NULL | CU73: NULL | CV73: NULL | CW73: F | CX73: NULL | CY73: NULL | CZ73: NULL | DA73: NULL | DB73: NULL | DC73: F | DD73: NULL | DE73: NULL | DF73: NULL | DG73: NULL | DH73: NULL | DI73: F | DJ73: NULL | DK73: NULL | DL73: NULL | DM73: NULL | DN73: NULL | DO73: F | DP73: NULL | DQ73: NULL | DR73: NULL | DS73: NULL | DT73: NULL | DU73: F | DV73: NULL | DW73: NULL | DX73: NULL | DY73: NULL | DZ73: NULL | EA73: F | EB73: NULL | EC73: NULL | ED73: NULL | EE73: NULL | EF73: NULL | EG73: F | EH73: NULL | EI73: NULL | EJ73: NULL | EK73: NULL | EL73: NULL | EM73: F | EN73: NULL | EO73: NULL | EP73: NULL | EQ73: NULL | ER73: NULL | ES73: F | ET73: NULL | EU73: NULL | EV73: NULL | EW73: NULL | EX73: NULL | EY73: F | EZ73: NULL | FA73: NULL | FB73: NULL | FC73: 45253.11092 | FD73: 45554.1046
A74: 17966 | B74: Yes | C74: Prescriptive | D74: ICESCUBATCH | E74: Commercial Ice Maker, Enrgy Str, Batch SCU, 200-4,000 lb/day | F74: Icemaker | G74: Food Service | H74: ELE | I74: N/A | J74: 905 | K74: 90 | L74: 3 | M74: 5603 | N74: OR | O74: NBE | P74: New Buildings | Q74: 2024-01-01 | R74: 2026-12-31 | S74: Units | T74: 0 | U74: 0 | V74: 559.25 | W74: 0 | X74: 17 | Y74: 0 | Z74: Restaurant Refrigeration | AA74: None - gas | AB74: 0 | AC74: 180 | AD74: 0 | AE74: 8 | AF74: 0 | AG74: 188.22 | AH74: 0 | AI74: 0 | AJ74: 0 | AK74: 1 | AL74: 1 | AM74: 0 | AN74: NULL | AO74: 100 | AP74: 100 | AQ74: NULL | AR74: NULL | AS74: NULL | AT74: NULL | AU74: NULL | AV74: NULL | AW74: NULL | AX74: NULL | AY74: NULL | AZ74: NULL | BA74: NULL | BB74: NULL | BC74: NULL | BD74: Icemaker | BE74: MANUFACTURER | BF74: Manufacturer Name | BG74: F | BH74: Alphanumeric | BI74: 64 | BJ74: ED | BK74: MODEL | BL74: Model | BM74: F | BN74: Alphanumeric | BO74: 64 | BP74: ED | BQ74: NULL | BR74: NULL | BS74: F | BT74: NULL | BU74: NULL | BV74: NULL | BW74: NULL | BX74: NULL | BY74: F | BZ74: NULL | CA74: NULL | CB74: NULL | CC74: NULL | CD74: NULL | CE74: F | CF74: NULL | CG74: NULL | CH74: NULL | CI74: NULL | CJ74: NULL | CK74: F | CL74: NULL | CM74: NULL | CN74: NULL | CO74: NULL | CP74: NULL | CQ74: F | CR74: NULL | CS74: NULL | CT74: NULL | CU74: NULL | CV74: NULL | CW74: F | CX74: NULL | CY74: NULL | CZ74: NULL | DA74: NULL | DB74: NULL | DC74: F | DD74: NULL | DE74: NULL | DF74: NULL | DG74: NULL | DH74: NULL | DI74: F | DJ74: NULL | DK74: NULL | DL74: NULL | DM74: NULL | DN74: NULL | DO74: F | DP74: NULL | DQ74: NULL | DR74: NULL | DS74: NULL | DT74: NULL | DU74: F | DV74: NULL | DW74: NULL | DX74: NULL | DY74: NULL | DZ74: NULL | EA74: F | EB74: NULL | EC74: NULL | ED74: NULL | EE74: NULL | EF74: NULL | EG74: F | EH74: NULL | EI74: NULL | EJ74: NULL | EK74: NULL | EL74: NULL | EM74: F | EN74: NULL | EO74: NULL | EP74: NULL | EQ74: NULL | ER74: NULL | ES74: F | ET74: NULL | EU74: NULL | EV74: NULL | EW74: NULL | EX74: NULL | EY74: F | EZ74: NULL | FA74: NULL | FB74: NULL | FC74: 45253.11092 | FD74: 45253.11092
A75: 17967 | B75: Yes | C75: Prescriptive | D75: ICERCUBATCH | E75: Commercial Ice Maker, Enrgy Str, Batch RCU, 988-4,000 lb/day | F75: Icemaker | G75: Food Service | H75: ELE | I75: N/A | J75: 905 | K75: 90 | L75: 3 | M75: 5602 | N75: OR | O75: NBE | P75: New Buildings | Q75: 2024-01-01 | R75: 2026-12-31 | S75: Units | T75: 0 | U75: 0 | V75: 1244.53 | W75: 0 | X75: 141.11 | Y75: 0 | Z75: Restaurant Refrigeration | AA75: None - gas | AB75: 0 | AC75: 400 | AD75: 0 | AE75: 8 | AF75: 0 | AG75: 420.41 | AH75: 0 | AI75: 0 | AJ75: 0 | AK75: 1 | AL75: 1 | AM75: 0 | AN75: NULL | AO75: 100 | AP75: 100 | AQ75: NULL | AR75: NULL | AS75: NULL | AT75: NULL | AU75: NULL | AV75: NULL | AW75: NULL | AX75: NULL | AY75: NULL | AZ75: NULL | BA75: NULL | BB75: NULL | BC75: NULL | BD75: Icemaker | BE75: MANUFACTURER | BF75: Manufacturer Name | BG75: F | BH75: Alphanumeric | BI75: 64 | BJ75: ED | BK75: MODEL | BL75: Model | BM75: F | BN75: Alphanumeric | BO75: 64 | BP75: ED | BQ75: NULL | BR75: NULL | BS75: F | BT75: NULL | BU75: NULL | BV75: NULL | BW75: NULL | BX75: NULL | BY75: F | BZ75: NULL | CA75: NULL | CB75: NULL | CC75: NULL | CD75: NULL | CE75: F | CF75: NULL | CG75: NULL | CH75: NULL | CI75: NULL | CJ75: NULL | CK75: F | CL75: NULL | CM75: NULL | CN75: NULL | CO75: NULL | CP75: NULL | CQ75: F | CR75: NULL | CS75: NULL | CT75: NULL | CU75: NULL | CV75: NULL | CW75: F | CX75: NULL | CY75: NULL | CZ75: NULL | DA75: NULL | DB75: NULL | DC75: F | DD75: NULL | DE75: NULL | DF75: NULL | DG75: NULL | DH75: NULL | DI75: F | DJ75: NULL | DK75: NULL | DL75: NULL | DM75: NULL | DN75: NULL | DO75: F | DP75: NULL | DQ75: NULL | DR75: NULL | DS75: NULL | DT75: NULL | DU75: F | DV75: NULL | DW75: NULL | DX75: NULL | DY75: NULL | DZ75: NULL | EA75: F | EB75: NULL | EC75: NULL | ED75: NULL | EE75: NULL | EF75: NULL | EG75: F | EH75: NULL | EI75: NULL | EJ75: NULL | EK75: NULL | EL75: NULL | EM75: F | EN75: NULL | EO75: NULL | EP75: NULL | EQ75: NULL | ER75: NULL | ES75: F | ET75: NULL | EU75: NULL | EV75: NULL | EW75: NULL | EX75: NULL | EY75: F | EZ75: NULL | FA75: NULL | FB75: NULL | FC75: 45253.11092 | FD75: 45253.11092
A76: 17968 | B76: Yes | C76: Prescriptive | D76: ICERCUCONT | E76: Commercial Ice Maker, Enrgy Str, Cont RCU, 800-4,000 lb/day | F76: Icemaker | G76: Food Service | H76: ELE | I76: N/A | J76: 905 | K76: 90 | L76: 3 | M76: 5605 | N76: OR | O76: NBE | P76: New Buildings | Q76: 2024-01-01 | R76: 2026-12-31 | S76: Units | T76: 0 | U76: 0 | V76: 4207.47 | W76: 0 | X76: 0 | Y76: 0 | Z76: Restaurant Refrigeration | AA76: None - gas | AB76: 0 | AC76: 400 | AD76: 0 | AE76: 8 | AF76: 0 | AG76: 427.15 | AH76: 0 | AI76: 0 | AJ76: 0 | AK76: 1 | AL76: 1 | AM76: 0 | AN76: NULL | AO76: 100 | AP76: 100 | AQ76: NULL | AR76: NULL | AS76: NULL | AT76: NULL | AU76: NULL | AV76: NULL | AW76: NULL | AX76: NULL | AY76: NULL | AZ76: NULL | BA76: NULL | BB76: NULL | BC76: NULL | BD76: Icemaker | BE76: MANUFACTURER | BF76: Manufacturer Name | BG76: F | BH76: Alphanumeric | BI76: 64 | BJ76: ED | BK76: MODEL | BL76: Model | BM76: F | BN76: Alphanumeric | BO76: 64 | BP76: ED | BQ76: NULL | BR76: NULL | BS76: F | BT76: NULL | BU76: NULL | BV76: NULL | BW76: NULL | BX76: NULL | BY76: F | BZ76: NULL | CA76: NULL | CB76: NULL | CC76: NULL | CD76: NULL | CE76: F | CF76: NULL | CG76: NULL | CH76: NULL | CI76: NULL | CJ76: NULL | CK76: F | CL76: NULL | CM76: NULL | CN76: NULL | CO76: NULL | CP76: NULL | CQ76: F | CR76: NULL | CS76: NULL | CT76: NULL | CU76: NULL | CV76: NULL | CW76: F | CX76: NULL | CY76: NULL | CZ76: NULL | DA76: NULL | DB76: NULL | DC76: F | DD76: NULL | DE76: NULL | DF76: NULL | DG76: NULL | DH76: NULL | DI76: F | DJ76: NULL | DK76: NULL | DL76: NULL | DM76: NULL | DN76: NULL | DO76: F | DP76: NULL | DQ76: NULL | DR76: NULL | DS76: NULL | DT76: NULL | DU76: F | DV76: NULL | DW76: NULL | DX76: NULL | DY76: NULL | DZ76: NULL | EA76: F | EB76: NULL | EC76: NULL | ED76: NULL | EE76: NULL | EF76: NULL | EG76: F | EH76: NULL | EI76: NULL | EJ76: NULL | EK76: NULL | EL76: NULL | EM76: F | EN76: NULL | EO76: NULL | EP76: NULL | EQ76: NULL | ER76: NULL | ES76: F | ET76: NULL | EU76: NULL | EV76: NULL | EW76: NULL | EX76: NULL | EY76: F | EZ76: NULL | FA76: NULL | FB76: NULL | FC76: 45253.11092 | FD76: 45253.11092
A77: 17969 | B77: Yes | C77: Prescriptive | D77: ICEIMHCONT | E77: Commercial Ice Maker, Enrgy Str, Cont IMH, 820-4,000 lb/day | F77: Icemaker | G77: Food Service | H77: ELE | I77: N/A | J77: 905 | K77: 90 | L77: 3 | M77: 5604 | N77: OR | O77: NBE | P77: New Buildings | Q77: 2024-01-01 | R77: 2026-12-31 | S77: Units | T77: 0 | U77: 0 | V77: 1138.52 | W77: 0 | X77: 0 | Y77: 0 | Z77: Restaurant Refrigeration | AA77: None - gas | AB77: 0 | AC77: 400 | AD77: 0 | AE77: 8 | AF77: 0 | AG77: 436.86 | AH77: 0 | AI77: 0 | AJ77: 0 | AK77: 1 | AL77: 1 | AM77: 0 | AN77: NULL | AO77: 100 | AP77: 100 | AQ77: NULL | AR77: NULL | AS77: NULL | AT77: NULL | AU77: NULL | AV77: NULL | AW77: NULL | AX77: NULL | AY77: NULL | AZ77: NULL | BA77: NULL | BB77: NULL | BC77: NULL | BD77: Icemaker | BE77: MANUFACTURER | BF77: Manufacturer Name | BG77: F | BH77: Alphanumeric | BI77: 64 | BJ77: ED | BK77: MODEL | BL77: Model | BM77: F | BN77: Alphanumeric | BO77: 64 | BP77: ED | BQ77: NULL | BR77: NULL | BS77: F | BT77: NULL | BU77: NULL | BV77: NULL | BW77: NULL | BX77: NULL | BY77: F | BZ77: NULL | CA77: NULL | CB77: NULL | CC77: NULL | CD77: NULL | CE77: F | CF77: NULL | CG77: NULL | CH77: NULL | CI77: NULL | CJ77: NULL | CK77: F | CL77: NULL | CM77: NULL | CN77: NULL | CO77: NULL | CP77: NULL | CQ77: F | CR77: NULL | CS77: NULL | CT77: NULL | CU77: NULL | CV77: NULL | CW77: F | CX77: NULL | CY77: NULL | CZ77: NULL | DA77: NULL | DB77: NULL | DC77: F | DD77: NULL | DE77: NULL | DF77: NULL | DG77: NULL | DH77: NULL | DI77: F | DJ77: NULL | DK77: NULL | DL77: NULL | DM77: NULL | DN77: NULL | DO77: F | DP77: NULL | DQ77: NULL | DR77: NULL | DS77: NULL | DT77: NULL | DU77: F | DV77: NULL | DW77: NULL | DX77: NULL | DY77: NULL | DZ77: NULL | EA77: F | EB77: NULL | EC77: NULL | ED77: NULL | EE77: NULL | EF77: NULL | EG77: F | EH77: NULL | EI77: NULL | EJ77: NULL | EK77: NULL | EL77: NULL | EM77: F | EN77: NULL | EO77: NULL | EP77: NULL | EQ77: NULL | ER77: NULL | ES77: F | ET77: NULL | EU77: NULL | EV77: NULL | EW77: NULL | EX77: NULL | EY77: F | EZ77: NULL | FA77: NULL | FB77: NULL | FC77: 45253.11092 | FD77: 45253.11092
A78: 17970 | B78: Yes | C78: Prescriptive | D78: ICEIMHBATCH | E78: Commercial Ice Maker, Energy Star, Batch IMH, 1,500-4,000 lb/day | F78: Icemaker | G78: Food Service | H78: ELE | I78: N/A | J78: 905 | K78: 90 | L78: 3 | M78: 5601 | N78: OR | O78: NBE | P78: New Buildings | Q78: 2024-01-01 | R78: 2026-12-31 | S78: Units | T78: 0 | U78: 0 | V78: 1831.57 | W78: 0 | X78: 51.29 | Y78: 0 | Z78: Restaurant Refrigeration | AA78: None - gas | AB78: 0 | AC78: 400 | AD78: 0 | AE78: 8 | AF78: 0 | AG78: 552.3 | AH78: 0 | AI78: 0 | AJ78: 0 | AK78: 1 | AL78: 1 | AM78: 0 | AN78: NULL | AO78: 100 | AP78: 100 | AQ78: NULL | AR78: NULL | AS78: NULL | AT78: NULL | AU78: NULL | AV78: NULL | AW78: NULL | AX78: NULL | AY78: NULL | AZ78: NULL | BA78: NULL | BB78: NULL | BC78: NULL | BD78: Icemaker | BE78: MANUFACTURER | BF78: Manufacturer Name | BG78: F | BH78: Alphanumeric | BI78: 64 | BJ78: ED | BK78: MODEL | BL78: Model | BM78: F | BN78: Alphanumeric | BO78: 64 | BP78: ED | BQ78: NULL | BR78: NULL | BS78: F | BT78: NULL | BU78: NULL | BV78: NULL | BW78: NULL | BX78: NULL | BY78: F | BZ78: NULL | CA78: NULL | CB78: NULL | CC78: NULL | CD78: NULL | CE78: F | CF78: NULL | CG78: NULL | CH78: NULL | CI78: NULL | CJ78: NULL | CK78: F | CL78: NULL | CM78: NULL | CN78: NULL | CO78: NULL | CP78: NULL | CQ78: F | CR78: NULL | CS78: NULL | CT78: NULL | CU78: NULL | CV78: NULL | CW78: F | CX78: NULL | CY78: NULL | CZ78: NULL | DA78: NULL | DB78: NULL | DC78: F | DD78: NULL | DE78: NULL | DF78: NULL | DG78: NULL | DH78: NULL | DI78: F | DJ78: NULL | DK78: NULL | DL78: NULL | DM78: NULL | DN78: NULL | DO78: F | DP78: NULL | DQ78: NULL | DR78: NULL | DS78: NULL | DT78: NULL | DU78: F | DV78: NULL | DW78: NULL | DX78: NULL | DY78: NULL | DZ78: NULL | EA78: F | EB78: NULL | EC78: NULL | ED78: NULL | EE78: NULL | EF78: NULL | EG78: F | EH78: NULL | EI78: NULL | EJ78: NULL | EK78: NULL | EL78: NULL | EM78: F | EN78: NULL | EO78: NULL | EP78: NULL | EQ78: NULL | ER78: NULL | ES78: F | ET78: NULL | EU78: NULL | EV78: NULL | EW78: NULL | EX78: NULL | EY78: F | EZ78: NULL | FA78: NULL | FB78: NULL | FC78: 45253.11092 | FD78: 45253.11092
A79: 17987 | B79: Yes | C79: Prescriptive | D79: ESETAFRIDGE | E79: Energy Star Emerging Tech Award (ESETA) Multifamily Refrigerator | F79: Refrigerator | G79: Appliance | H79: ELE | I79: N/A | J79: 913 | K79: 112 | L79: 6 | M79: 5625 | N79: OR | O79: NBE | P79: New Buildings | Q79: 2024-01-01 | R79: 2026-12-31 | S79: Units | T79: 0 | U79: 0 | V79: 135.88 | W79: 0 | X79: 0 | Y79: 0 | Z79: Res Refrigerator | AA79: None - gas | AB79: 0 | AC79: 70 | AD79: 0 | AE79: 17 | AF79: 0 | AG79: 87.76 | AH79: 0 | AI79: 0 | AJ79: 0 | AK79: 1 | AL79: 1 | AM79: 0 | AN79: NULL | AO79: 100 | AP79: 100 | AQ79: NULL | AR79: NULL | AS79: NULL | AT79: NULL | AU79: NULL | AV79: NULL | AW79: NULL | AX79: NULL | AY79: NULL | AZ79: NULL | BA79: NULL | BB79: NULL | BC79: NULL | BD79: Residential Energy Star Refrigerator | BE79: MANUFACTURER | BF79: Manufacturer | BG79: T | BH79: Alphanumeric | BI79: 64 | BJ79: CB | BK79: MODEL | BL79: Model | BM79: T | BN79: Alphanumeric | BO79: 63 | BP79: CB | BQ79: VOLUME | BR79: Volume (cubic feet) | BS79: T | BT79: Decimal | BU79: 20 | BV79: CB | BW79: NULL | BX79: NULL | BY79: F | BZ79: NULL | CA79: NULL | CB79: NULL | CC79: NULL | CD79: NULL | CE79: F | CF79: NULL | CG79: NULL | CH79: NULL | CI79: NULL | CJ79: NULL | CK79: F | CL79: NULL | CM79: NULL | CN79: NULL | CO79: NULL | CP79: NULL | CQ79: F | CR79: NULL | CS79: NULL | CT79: NULL | CU79: NULL | CV79: NULL | CW79: F | CX79: NULL | CY79: NULL | CZ79: NULL | DA79: NULL | DB79: NULL | DC79: F | DD79: NULL | DE79: NULL | DF79: NULL | DG79: NULL | DH79: NULL | DI79: F | DJ79: NULL | DK79: NULL | DL79: NULL | DM79: NULL | DN79: NULL | DO79: F | DP79: NULL | DQ79: NULL | DR79: NULL | DS79: NULL | DT79: NULL | DU79: F | DV79: NULL | DW79: NULL | DX79: NULL | DY79: NULL | DZ79: NULL | EA79: F | EB79: NULL | EC79: NULL | ED79: NULL | EE79: NULL | EF79: NULL | EG79: F | EH79: NULL | EI79: NULL | EJ79: NULL | EK79: NULL | EL79: NULL | EM79: F | EN79: NULL | EO79: NULL | EP79: NULL | EQ79: NULL | ER79: NULL | ES79: F | ET79: NULL | EU79: NULL | EV79: NULL | EW79: NULL | EX79: NULL | EY79: F | EZ79: NULL | FA79: NULL | FB79: NULL | FC79: 45253.11092 | FD79: 45253.11092
A80: 17988 | B80: Yes | C80: Prescriptive | D80: COOLCASEDRRCHZLOWGAS | E80: Cooler w/ Door - Remote Condensing, Horiz Low Temp - Gas | F80: Refrigerator | G80: Appliance | H80: BOTH | I80: N/A | J80: 937 | K80: 201 | L80: 3 | M80: 5780 | N80: OR | O80: NBE | P80: New Buildings | Q80: 2024-01-01 | R80: 2026-12-31 | S80: Linear feet | T80: 0 | U80: 0 | V80: 500.36 | W80: 15.91 | X80: 0 | Y80: 0 | Z80: Grocery Refrigeration | AA80: Com Heating | AB80: 0 | AC80: 150 | AD80: 0 | AE80: 10 | AF80: 0 | AG80: 293.82 | AH80: 0 | AI80: 0 | AJ80: 0 | AK80: 1 | AL80: 1 | AM80: 0 | AN80: 43 | AO80: 57 | AP80: 57 | AQ80: 43 | AR80: 43 | AS80: 43 | AT80: 43 | AU80: NULL | AV80: NULL | AW80: NULL | AX80: NULL | AY80: NULL | AZ80: NULL | BA80: 43 | BB80: 43 | BC80: 43 | BD80: No Attributes | BE80: NULL | BF80: NULL | BG80: F | BH80: NULL | BI80: NULL | BJ80: NULL | BK80: NULL | BL80: NULL | BM80: F | BN80: NULL | BO80: NULL | BP80: NULL | BQ80: NULL | BR80: NULL | BS80: F | BT80: NULL | BU80: NULL | BV80: NULL | BW80: NULL | BX80: NULL | BY80: F | BZ80: NULL | CA80: NULL | CB80: NULL | CC80: NULL | CD80: NULL | CE80: F | CF80: NULL | CG80: NULL | CH80: NULL | CI80: NULL | CJ80: NULL | CK80: F | CL80: NULL | CM80: NULL | CN80: NULL | CO80: NULL | CP80: NULL | CQ80: F | CR80: NULL | CS80: NULL | CT80: NULL | CU80: NULL | CV80: NULL | CW80: F | CX80: NULL | CY80: NULL | CZ80: NULL | DA80: NULL | DB80: NULL | DC80: F | DD80: NULL | DE80: NULL | DF80: NULL | DG80: NULL | DH80: NULL | DI80: F | DJ80: NULL | DK80: NULL | DL80: NULL | DM80: NULL | DN80: NULL | DO80: F | DP80: NULL | DQ80: NULL | DR80: NULL | DS80: NULL | DT80: NULL | DU80: F | DV80: NULL | DW80: NULL | DX80: NULL | DY80: NULL | DZ80: NULL | EA80: F | EB80: NULL | EC80: NULL | ED80: NULL | EE80: NULL | EF80: NULL | EG80: F | EH80: NULL | EI80: NULL | EJ80: NULL | EK80: NULL | EL80: NULL | EM80: F | EN80: NULL | EO80: NULL | EP80: NULL | EQ80: NULL | ER80: NULL | ES80: F | ET80: NULL | EU80: NULL | EV80: NULL | EW80: NULL | EX80: NULL | EY80: F | EZ80: NULL | FA80: NULL | FB80: NULL | FC80: 45253.11092 | FD80: 45554.1046
A81: 17989 | B81: Yes | C81: Prescriptive | D81: COOLCASEDRRCHZMEDGAS | E81: Cooler w/ Door - Remote Condensing, Horiz Med Temp - Gas | F81: Refrigerator | G81: Appliance | H81: BOTH | I81: N/A | J81: 937 | K81: 201 | L81: 3 | M81: 5776 | N81: OR | O81: NBE | P81: New Buildings | Q81: 2024-01-01 | R81: 2026-12-31 | S81: Linear feet | T81: 0 | U81: 0 | V81: 282.1 | W81: 25.68 | X81: 0 | Y81: 0 | Z81: Grocery Refrigeration | AA81: Com Heating | AB81: 0 | AC81: 150 | AD81: 0 | AE81: 10 | AF81: 0 | AG81: 293.82 | AH81: 0 | AI81: 0 | AJ81: 0 | AK81: 1 | AL81: 1 | AM81: 0 | AN81: 68 | AO81: 32 | AP81: 32 | AQ81: 68 | AR81: 68 | AS81: 68 | AT81: 68 | AU81: NULL | AV81: NULL | AW81: NULL | AX81: NULL | AY81: NULL | AZ81: NULL | BA81: 68 | BB81: 68 | BC81: 68 | BD81: No Attributes | BE81: NULL | BF81: NULL | BG81: F | BH81: NULL | BI81: NULL | BJ81: NULL | BK81: NULL | BL81: NULL | BM81: F | BN81: NULL | BO81: NULL | BP81: NULL | BQ81: NULL | BR81: NULL | BS81: F | BT81: NULL | BU81: NULL | BV81: NULL | BW81: NULL | BX81: NULL | BY81: F | BZ81: NULL | CA81: NULL | CB81: NULL | CC81: NULL | CD81: NULL | CE81: F | CF81: NULL | CG81: NULL | CH81: NULL | CI81: NULL | CJ81: NULL | CK81: F | CL81: NULL | CM81: NULL | CN81: NULL | CO81: NULL | CP81: NULL | CQ81: F | CR81: NULL | CS81: NULL | CT81: NULL | CU81: NULL | CV81: NULL | CW81: F | CX81: NULL | CY81: NULL | CZ81: NULL | DA81: NULL | DB81: NULL | DC81: F | DD81: NULL | DE81: NULL | DF81: NULL | DG81: NULL | DH81: NULL | DI81: F | DJ81: NULL | DK81: NULL | DL81: NULL | DM81: NULL | DN81: NULL | DO81: F | DP81: NULL | DQ81: NULL | DR81: NULL | DS81: NULL | DT81: NULL | DU81: F | DV81: NULL | DW81: NULL | DX81: NULL | DY81: NULL | DZ81: NULL | EA81: F | EB81: NULL | EC81: NULL | ED81: NULL | EE81: NULL | EF81: NULL | EG81: F | EH81: NULL | EI81: NULL | EJ81: NULL | EK81: NULL | EL81: NULL | EM81: F | EN81: NULL | EO81: NULL | EP81: NULL | EQ81: NULL | ER81: NULL | ES81: F | ET81: NULL | EU81: NULL | EV81: NULL | EW81: NULL | EX81: NULL | EY81: F | EZ81: NULL | FA81: NULL | FB81: NULL | FC81: 45253.11092 | FD81: 45554.1046
A82: 17990 | B82: Yes | C82: Prescriptive | D82: COOLCASEDRRCVTMEDGAS | E82: Cooler w/ Door - Remote Condensing, Vert Med Temp - Gas | F82: Refrigerator | G82: Appliance | H82: BOTH | I82: N/A | J82: 937 | K82: 201 | L82: 3 | M82: 5775 | N82: OR | O82: NBE | P82: New Buildings | Q82: 2024-01-01 | R82: 2026-12-31 | S82: Linear feet | T82: 0 | U82: 0 | V82: 729.34 | W82: 66.4 | X82: 0 | Y82: 0 | Z82: Grocery Refrigeration | AA82: Com Heating | AB82: 0 | AC82: 150 | AD82: 0 | AE82: 10 | AF82: 0 | AG82: 293.82 | AH82: 0 | AI82: 0 | AJ82: 0 | AK82: 1 | AL82: 1 | AM82: 0 | AN82: 68 | AO82: 32 | AP82: 32 | AQ82: 68 | AR82: 68 | AS82: 68 | AT82: 68 | AU82: NULL | AV82: NULL | AW82: NULL | AX82: NULL | AY82: NULL | AZ82: NULL | BA82: 68 | BB82: 68 | BC82: 68 | BD82: No Attributes | BE82: NULL | BF82: NULL | BG82: F | BH82: NULL | BI82: NULL | BJ82: NULL | BK82: NULL | BL82: NULL | BM82: F | BN82: NULL | BO82: NULL | BP82: NULL | BQ82: NULL | BR82: NULL | BS82: F | BT82: NULL | BU82: NULL | BV82: NULL | BW82: NULL | BX82: NULL | BY82: F | BZ82: NULL | CA82: NULL | CB82: NULL | CC82: NULL | CD82: NULL | CE82: F | CF82: NULL | CG82: NULL | CH82: NULL | CI82: NULL | CJ82: NULL | CK82: F | CL82: NULL | CM82: NULL | CN82: NULL | CO82: NULL | CP82: NULL | CQ82: F | CR82: NULL | CS82: NULL | CT82: NULL | CU82: NULL | CV82: NULL | CW82: F | CX82: NULL | CY82: NULL | CZ82: NULL | DA82: NULL | DB82: NULL | DC82: F | DD82: NULL | DE82: NULL | DF82: NULL | DG82: NULL | DH82: NULL | DI82: F | DJ82: NULL | DK82: NULL | DL82: NULL | DM82: NULL | DN82: NULL | DO82: F | DP82: NULL | DQ82: NULL | DR82: NULL | DS82: NULL | DT82: NULL | DU82: F | DV82: NULL | DW82: NULL | DX82: NULL | DY82: NULL | DZ82: NULL | EA82: F | EB82: NULL | EC82: NULL | ED82: NULL | EE82: NULL | EF82: NULL | EG82: F | EH82: NULL | EI82: NULL | EJ82: NULL | EK82: NULL | EL82: NULL | EM82: F | EN82: NULL | EO82: NULL | EP82: NULL | EQ82: NULL | ER82: NULL | ES82: F | ET82: NULL | EU82: NULL | EV82: NULL | EW82: NULL | EX82: NULL | EY82: F | EZ82: NULL | FA82: NULL | FB82: NULL | FC82: 45253.11092 | FD82: 45554.1046
A83: 17991 | B83: Yes | C83: Prescriptive | D83: COOLCASEDRRCHZLOWEOT | E83: Cooler w/ Door - Remote Condensing, Horiz Low Temp - Gas EOT | F83: Refrigerator | G83: Appliance | H83: ELE | I83: N/A | J83: 937 | K83: 201 | L83: 3 | M83: 5784 | N83: OR | O83: NBE | P83: New Buildings | Q83: 2024-01-01 | R83: 2026-12-31 | S83: Linear feet | T83: 0 | U83: 0 | V83: 500.36 | W83: 0 | X83: 18.77 | Y83: 0 | Z83: Grocery Refrigeration | AA83: Com Heating | AB83: 0 | AC83: 150 | AD83: 0 | AE83: 10 | AF83: 0 | AG83: 293.82 | AH83: 0 | AI83: 0 | AJ83: 0 | AK83: 1 | AL83: 1 | AM83: 0 | AN83: NULL | AO83: 100 | AP83: 100 | AQ83: NULL | AR83: NULL | AS83: NULL | AT83: NULL | AU83: NULL | AV83: NULL | AW83: NULL | AX83: NULL | AY83: NULL | AZ83: NULL | BA83: NULL | BB83: NULL | BC83: NULL | BD83: No Attributes | BE83: NULL | BF83: NULL | BG83: F | BH83: NULL | BI83: NULL | BJ83: NULL | BK83: NULL | BL83: NULL | BM83: F | BN83: NULL | BO83: NULL | BP83: NULL | BQ83: NULL | BR83: NULL | BS83: F | BT83: NULL | BU83: NULL | BV83: NULL | BW83: NULL | BX83: NULL | BY83: F | BZ83: NULL | CA83: NULL | CB83: NULL | CC83: NULL | CD83: NULL | CE83: F | CF83: NULL | CG83: NULL | CH83: NULL | CI83: NULL | CJ83: NULL | CK83: F | CL83: NULL | CM83: NULL | CN83: NULL | CO83: NULL | CP83: NULL | CQ83: F | CR83: NULL | CS83: NULL | CT83: NULL | CU83: NULL | CV83: NULL | CW83: F | CX83: NULL | CY83: NULL | CZ83: NULL | DA83: NULL | DB83: NULL | DC83: F | DD83: NULL | DE83: NULL | DF83: NULL | DG83: NULL | DH83: NULL | DI83: F | DJ83: NULL | DK83: NULL | DL83: NULL | DM83: NULL | DN83: NULL | DO83: F | DP83: NULL | DQ83: NULL | DR83: NULL | DS83: NULL | DT83: NULL | DU83: F | DV83: NULL | DW83: NULL | DX83: NULL | DY83: NULL | DZ83: NULL | EA83: F | EB83: NULL | EC83: NULL | ED83: NULL | EE83: NULL | EF83: NULL | EG83: F | EH83: NULL | EI83: NULL | EJ83: NULL | EK83: NULL | EL83: NULL | EM83: F | EN83: NULL | EO83: NULL | EP83: NULL | EQ83: NULL | ER83: NULL | ES83: F | ET83: NULL | EU83: NULL | EV83: NULL | EW83: NULL | EX83: NULL | EY83: F | EZ83: NULL | FA83: NULL | FB83: NULL | FC83: 45253.11092 | FD83: 45253.11092
A84: 17992 | B84: Yes | C84: Prescriptive | D84: COOLCASEDRRCVTMEDEOT | E84: Cooler w/ Door - Remote Condensing, Vert Med Temp - Gas EOT | F84: Refrigerator | G84: Appliance | H84: ELE | I84: N/A | J84: 937 | K84: 201 | L84: 3 | M84: 5782 | N84: OR | O84: NBE | P84: New Buildings | Q84: 2024-01-01 | R84: 2026-12-31 | S84: Linear feet | T84: 0 | U84: 0 | V84: 729.34 | W84: 0 | X84: 78.31 | Y84: 0 | Z84: Grocery Refrigeration | AA84: Com Heating | AB84: 0 | AC84: 150 | AD84: 0 | AE84: 10 | AF84: 0 | AG84: 293.82 | AH84: 0 | AI84: 0 | AJ84: 0 | AK84: 1 | AL84: 1 | AM84: 0 | AN84: NULL | AO84: 100 | AP84: 100 | AQ84: NULL | AR84: NULL | AS84: NULL | AT84: NULL | AU84: NULL | AV84: NULL | AW84: NULL | AX84: NULL | AY84: NULL | AZ84: NULL | BA84: NULL | BB84: NULL | BC84: NULL | BD84: No Attributes | BE84: NULL | BF84: NULL | BG84: F | BH84: NULL | BI84: NULL | BJ84: NULL | BK84: NULL | BL84: NULL | BM84: F | BN84: NULL | BO84: NULL | BP84: NULL | BQ84: NULL | BR84: NULL | BS84: F | BT84: NULL | BU84: NULL | BV84: NULL | BW84: NULL | BX84: NULL | BY84: F | BZ84: NULL | CA84: NULL | CB84: NULL | CC84: NULL | CD84: NULL | CE84: F | CF84: NULL | CG84: NULL | CH84: NULL | CI84: NULL | CJ84: NULL | CK84: F | CL84: NULL | CM84: NULL | CN84: NULL | CO84: NULL | CP84: NULL | CQ84: F | CR84: NULL | CS84: NULL | CT84: NULL | CU84: NULL | CV84: NULL | CW84: F | CX84: NULL | CY84: NULL | CZ84: NULL | DA84: NULL | DB84: NULL | DC84: F | DD84: NULL | DE84: NULL | DF84: NULL | DG84: NULL | DH84: NULL | DI84: F | DJ84: NULL | DK84: NULL | DL84: NULL | DM84: NULL | DN84: NULL | DO84: F | DP84: NULL | DQ84: NULL | DR84: NULL | DS84: NULL | DT84: NULL | DU84: F | DV84: NULL | DW84: NULL | DX84: NULL | DY84: NULL | DZ84: NULL | EA84: F | EB84: NULL | EC84: NULL | ED84: NULL | EE84: NULL | EF84: NULL | EG84: F | EH84: NULL | EI84: NULL | EJ84: NULL | EK84: NULL | EL84: NULL | EM84: F | EN84: NULL | EO84: NULL | EP84: NULL | EQ84: NULL | ER84: NULL | ES84: F | ET84: NULL | EU84: NULL | EV84: NULL | EW84: NULL | EX84: NULL | EY84: F | EZ84: NULL | FA84: NULL | FB84: NULL | FC84: 45253.11092 | FD84: 45279.15179
A85: 17993 | B85: Yes | C85: Prescriptive | D85: COOLCASEDRRCHZMEDEOT | E85: Cooler w/ Door - Remote Condensing, Horiz Med Temp - Gas EOT | F85: Refrigerator | G85: Appliance | H85: ELE | I85: N/A | J85: 937 | K85: 201 | L85: 3 | M85: 5783 | N85: OR | O85: NBE | P85: New Buildings | Q85: 2024-01-01 | R85: 2026-12-31 | S85: Linear feet | T85: 0 | U85: 0 | V85: 282.1 | W85: 0 | X85: 30.29 | Y85: 0 | Z85: Grocery Refrigeration | AA85: Com Heating | AB85: 0 | AC85: 150 | AD85: 0 | AE85: 10 | AF85: 0 | AG85: 293.82 | AH85: 0 | AI85: 0 | AJ85: 0 | AK85: 1 | AL85: 1 | AM85: 0 | AN85: NULL | AO85: 100 | AP85: 100 | AQ85: NULL | AR85: NULL | AS85: NULL | AT85: NULL | AU85: NULL | AV85: NULL | AW85: NULL | AX85: NULL | AY85: NULL | AZ85: NULL | BA85: NULL | BB85: NULL | BC85: NULL | BD85: No Attributes | BE85: NULL | BF85: NULL | BG85: F | BH85: NULL | BI85: NULL | BJ85: NULL | BK85: NULL | BL85: NULL | BM85: F | BN85: NULL | BO85: NULL | BP85: NULL | BQ85: NULL | BR85: NULL | BS85: F | BT85: NULL | BU85: NULL | BV85: NULL | BW85: NULL | BX85: NULL | BY85: F | BZ85: NULL | CA85: NULL | CB85: NULL | CC85: NULL | CD85: NULL | CE85: F | CF85: NULL | CG85: NULL | CH85: NULL | CI85: NULL | CJ85: NULL | CK85: F | CL85: NULL | CM85: NULL | CN85: NULL | CO85: NULL | CP85: NULL | CQ85: F | CR85: NULL | CS85: NULL | CT85: NULL | CU85: NULL | CV85: NULL | CW85: F | CX85: NULL | CY85: NULL | CZ85: NULL | DA85: NULL | DB85: NULL | DC85: F | DD85: NULL | DE85: NULL | DF85: NULL | DG85: NULL | DH85: NULL | DI85: F | DJ85: NULL | DK85: NULL | DL85: NULL | DM85: NULL | DN85: NULL | DO85: F | DP85: NULL | DQ85: NULL | DR85: NULL | DS85: NULL | DT85: NULL | DU85: F | DV85: NULL | DW85: NULL | DX85: NULL | DY85: NULL | DZ85: NULL | EA85: F | EB85: NULL | EC85: NULL | ED85: NULL | EE85: NULL | EF85: NULL | EG85: F | EH85: NULL | EI85: NULL | EJ85: NULL | EK85: NULL | EL85: NULL | EM85: F | EN85: NULL | EO85: NULL | EP85: NULL | EQ85: NULL | ER85: NULL | ES85: F | ET85: NULL | EU85: NULL | EV85: NULL | EW85: NULL | EX85: NULL | EY85: F | EZ85: NULL | FA85: NULL | FB85: NULL | FC85: 45253.11092 | FD85: 45253.11092
A86: 17994 | B86: Yes | C86: Prescriptive | D86: COOLCASEDRRCHZLOWGOT | E86: Cooler w/ Door - Remote Condensing, Horiz Low Temp - GOT | F86: Refrigerator | G86: Appliance | H86: GAS | I86: HEAT | J86: 937 | K86: 201 | L86: 3 | M86: 5781 | N86: OR | O86: NBE | P86: New Buildings | Q86: 2024-01-01 | R86: 2026-12-31 | S86: Linear feet | T86: 0 | U86: 0 | V86: 0 | W86: 15.91 | X86: 39.88 | Y86: 0 | Z86: Grocery Refrigeration | AA86: Com Heating | AB86: 0 | AC86: 150 | AD86: 0 | AE86: 10 | AF86: 0 | AG86: 293.82 | AH86: 0 | AI86: 0 | AJ86: 0 | AK86: 1 | AL86: 1 | AM86: 0 | AN86: 100 | AO86: NULL | AP86: NULL | AQ86: 100 | AR86: 100 | AS86: 100 | AT86: 100 | AU86: NULL | AV86: NULL | AW86: NULL | AX86: NULL | AY86: NULL | AZ86: NULL | BA86: 100 | BB86: 100 | BC86: 100 | BD86: No Attributes | BE86: NULL | BF86: NULL | BG86: F | BH86: NULL | BI86: NULL | BJ86: NULL | BK86: NULL | BL86: NULL | BM86: F | BN86: NULL | BO86: NULL | BP86: NULL | BQ86: NULL | BR86: NULL | BS86: F | BT86: NULL | BU86: NULL | BV86: NULL | BW86: NULL | BX86: NULL | BY86: F | BZ86: NULL | CA86: NULL | CB86: NULL | CC86: NULL | CD86: NULL | CE86: F | CF86: NULL | CG86: NULL | CH86: NULL | CI86: NULL | CJ86: NULL | CK86: F | CL86: NULL | CM86: NULL | CN86: NULL | CO86: NULL | CP86: NULL | CQ86: F | CR86: NULL | CS86: NULL | CT86: NULL | CU86: NULL | CV86: NULL | CW86: F | CX86: NULL | CY86: NULL | CZ86: NULL | DA86: NULL | DB86: NULL | DC86: F | DD86: NULL | DE86: NULL | DF86: NULL | DG86: NULL | DH86: NULL | DI86: F | DJ86: NULL | DK86: NULL | DL86: NULL | DM86: NULL | DN86: NULL | DO86: F | DP86: NULL | DQ86: NULL | DR86: NULL | DS86: NULL | DT86: NULL | DU86: F | DV86: NULL | DW86: NULL | DX86: NULL | DY86: NULL | DZ86: NULL | EA86: F | EB86: NULL | EC86: NULL | ED86: NULL | EE86: NULL | EF86: NULL | EG86: F | EH86: NULL | EI86: NULL | EJ86: NULL | EK86: NULL | EL86: NULL | EM86: F | EN86: NULL | EO86: NULL | EP86: NULL | EQ86: NULL | ER86: NULL | ES86: F | ET86: NULL | EU86: NULL | EV86: NULL | EW86: NULL | EX86: NULL | EY86: F | EZ86: NULL | FA86: NULL | FB86: NULL | FC86: 45253.11092 | FD86: 45554.1046
A87: 17995 | B87: Yes | C87: Prescriptive | D87: COOLCASEDRRCHZMEDGOT | E87: Cooler w/ Door - Remote Condensing, Horiz Med Temp - GOT | F87: Refrigerator | G87: Appliance | H87: GAS | I87: HEAT | J87: 937 | K87: 201 | L87: 3 | M87: 5778 | N87: OR | O87: NBE | P87: New Buildings | Q87: 2024-01-01 | R87: 2026-12-31 | S87: Linear feet | T87: 0 | U87: 0 | V87: 0 | W87: 25.68 | X87: 22.49 | Y87: 0 | Z87: Grocery Refrigeration | AA87: Com Heating | AB87: 0 | AC87: 150 | AD87: 0 | AE87: 10 | AF87: 0 | AG87: 293.82 | AH87: 0 | AI87: 0 | AJ87: 0 | AK87: 1 | AL87: 1 | AM87: 0 | AN87: 100 | AO87: NULL | AP87: NULL | AQ87: 100 | AR87: 100 | AS87: 100 | AT87: 100 | AU87: NULL | AV87: NULL | AW87: NULL | AX87: NULL | AY87: NULL | AZ87: NULL | BA87: 100 | BB87: 100 | BC87: 100 | BD87: No Attributes | BE87: NULL | BF87: NULL | BG87: F | BH87: NULL | BI87: NULL | BJ87: NULL | BK87: NULL | BL87: NULL | BM87: F | BN87: NULL | BO87: NULL | BP87: NULL | BQ87: NULL | BR87: NULL | BS87: F | BT87: NULL | BU87: NULL | BV87: NULL | BW87: NULL | BX87: NULL | BY87: F | BZ87: NULL | CA87: NULL | CB87: NULL | CC87: NULL | CD87: NULL | CE87: F | CF87: NULL | CG87: NULL | CH87: NULL | CI87: NULL | CJ87: NULL | CK87: F | CL87: NULL | CM87: NULL | CN87: NULL | CO87: NULL | CP87: NULL | CQ87: F | CR87: NULL | CS87: NULL | CT87: NULL | CU87: NULL | CV87: NULL | CW87: F | CX87: NULL | CY87: NULL | CZ87: NULL | DA87: NULL | DB87: NULL | DC87: F | DD87: NULL | DE87: NULL | DF87: NULL | DG87: NULL | DH87: NULL | DI87: F | DJ87: NULL | DK87: NULL | DL87: NULL | DM87: NULL | DN87: NULL | DO87: F | DP87: NULL | DQ87: NULL | DR87: NULL | DS87: NULL | DT87: NULL | DU87: F | DV87: NULL | DW87: NULL | DX87: NULL | DY87: NULL | DZ87: NULL | EA87: F | EB87: NULL | EC87: NULL | ED87: NULL | EE87: NULL | EF87: NULL | EG87: F | EH87: NULL | EI87: NULL | EJ87: NULL | EK87: NULL | EL87: NULL | EM87: F | EN87: NULL | EO87: NULL | EP87: NULL | EQ87: NULL | ER87: NULL | ES87: F | ET87: NULL | EU87: NULL | EV87: NULL | EW87: NULL | EX87: NULL | EY87: F | EZ87: NULL | FA87: NULL | FB87: NULL | FC87: 45253.11092 | FD87: 45554.1046
A88: 17996 | B88: Yes | C88: Prescriptive | D88: COOLCASEDRRCVTMEDGOT | E88: Cooler w/ Door - Remote Condensing, Vert Med Temp - GOT | F88: Refrigerator | G88: Appliance | H88: GAS | I88: HEAT | J88: 937 | K88: 201 | L88: 3 | M88: 5777 | N88: OR | O88: NBE | P88: New Buildings | Q88: 2024-01-01 | R88: 2026-12-31 | S88: Linear feet | T88: 0 | U88: 0 | V88: 0 | W88: 66.4 | X88: 58.13 | Y88: 0 | Z88: Grocery Refrigeration | AA88: Com Heating | AB88: 0 | AC88: 150 | AD88: 0 | AE88: 10 | AF88: 0 | AG88: 293.82 | AH88: 0 | AI88: 0 | AJ88: 0 | AK88: 1 | AL88: 1 | AM88: 0 | AN88: 100 | AO88: NULL | AP88: NULL | AQ88: 100 | AR88: 100 | AS88: 100 | AT88: 100 | AU88: NULL | AV88: NULL | AW88: NULL | AX88: NULL | AY88: NULL | AZ88: NULL | BA88: 100 | BB88: 100 | BC88: 100 | BD88: No Attributes | BE88: NULL | BF88: NULL | BG88: F | BH88: NULL | BI88: NULL | BJ88: NULL | BK88: NULL | BL88: NULL | BM88: F | BN88: NULL | BO88: NULL | BP88: NULL | BQ88: NULL | BR88: NULL | BS88: F | BT88: NULL | BU88: NULL | BV88: NULL | BW88: NULL | BX88: NULL | BY88: F | BZ88: NULL | CA88: NULL | CB88: NULL | CC88: NULL | CD88: NULL | CE88: F | CF88: NULL | CG88: NULL | CH88: NULL | CI88: NULL | CJ88: NULL | CK88: F | CL88: NULL | CM88: NULL | CN88: NULL | CO88: NULL | CP88: NULL | CQ88: F | CR88: NULL | CS88: NULL | CT88: NULL | CU88: NULL | CV88: NULL | CW88: F | CX88: NULL | CY88: NULL | CZ88: NULL | DA88: NULL | DB88: NULL | DC88: F | DD88: NULL | DE88: NULL | DF88: NULL | DG88: NULL | DH88: NULL | DI88: F | DJ88: NULL | DK88: NULL | DL88: NULL | DM88: NULL | DN88: NULL | DO88: F | DP88: NULL | DQ88: NULL | DR88: NULL | DS88: NULL | DT88: NULL | DU88: F | DV88: NULL | DW88: NULL | DX88: NULL | DY88: NULL | DZ88: NULL | EA88: F | EB88: NULL | EC88: NULL | ED88: NULL | EE88: NULL | EF88: NULL | EG88: F | EH88: NULL | EI88: NULL | EJ88: NULL | EK88: NULL | EL88: NULL | EM88: F | EN88: NULL | EO88: NULL | EP88: NULL | EQ88: NULL | ER88: NULL | ES88: F | ET88: NULL | EU88: NULL | EV88: NULL | EW88: NULL | EX88: NULL | EY88: F | EZ88: NULL | FA88: NULL | FB88: NULL | FC88: 45253.11092 | FD88: 45554.1046
